Workbook

Sheet Outline
B3: Review of DCF
B4: Making a Cash Cycle Model
B5: Making a Waterfall Graph
B6: Scenario Analysis
B7: Making a Tornado Graph
B8: Football Field Diagram
B9: Normalising Adjustment for Cap Exp
B10: Normalising Adjustment for Working Capital
B11: Translation Adustments
B12: 1/2 Year Assumption
B13: LBO Model and Credit

Sheet Summary
N2: Low Case | R2: Growth | S2: EV/EBITDA | T2: Value Driver
O3: PV of Expicit Cash Flow | R3: =DCF!E44 -> 3777180.173 | S3: =R3 -> 3777180.173 | T3: =S3 -> 3777180.173 | AA3: Min | AB3: ='Graph Data'!G98 -> 0.566417912
O4: Add: Terminal Value | R4: =DCF!E81 -> 21187995.36 | S4: =DCF!E98 -> 36732872.38 | T4: =DCF!E113 -> 23205626.77 | AA4: Max | AB4: ='Graph Data'!G99 -> 0.9324088094
I5: Cap Exp | J5: ='AZIZA Model'!H33 -> 4800000 | O5: Less: Value of Bridge | R5: =-DCF!E87 -> -2752933.274 | S5: =R5 -> -2752933.274 | T5: =S5 -> -2752933.274
O6: Net Equity Value | R6: =R3+R4+R5 -> 22212242.26 | S6: =S3+S4+S5 -> 37757119.27 | T6: 24229873.67
K7: Low | L7: High | O7: Shares | R7: =DCF!E90 -> 13440000 | S7: =R7 -> 13440000 | T7: =S7 -> 13440000
I8: WACC | K8: =DCF!E7 -> 0.15 | L8: =DCF!F7 -> 0.12 | O8: Value per Share | R8: =R6/R7 -> 1.652696597 | S8: =S6/S7 -> 2.80930947 | T8: 1.802817982
I9: Terminal Growth | K9: =DCF!E8 -> 0.03 | L9: =DCF!F8 -> 0.05
I10: Terminal EV/EBITDA | K10: =DCF!E9 -> 7 | L10: =DCF!F9 -> 9
N12: High Case | R12: Growth | S12: EV/EBITDA | T12: Value Driver
O13: PV of Expicit Cash Flow | R13: =DCF!F44 -> 3829770.621 | S13: =R13 -> 3829770.621 | T13: =S13 -> 3829770.621
O14: Add: Terminal Value | R14: =DCF!F81 -> 47949143.77 | S14: =DCF!F98 -> 55960922.9 | T14: =DCF!F113 -> 41072120.71
O15: Less: Value of Bridge | R15: =R5 -> -2752933.274 | S15: =S5 -> -2752933.274 | T15: -2752933.274
O16: Net Equity Value | R16: =SUM(R13:R15) -> 49025981.12 | S16: =SUM(S13:S15) -> 57037760.25 | T16: 42148958.06
O17: Shares | R17: =R7 -> 13440000 | S17: =S7 -> 13440000 | T17: 13440000
O18: Value per Share | R18: =R16/R17 -> 3.647766452 | S18: =S16/S17 -> 4.243880971 | T18: 3.136083189

Sheet Football Field
B1: First, Make a Low and High Case
D3: Low | E3: High
C4: =TRANSPOSE(Summary!R2:T2) -> Growth | D4: =TRANSPOSE(Summary!R8:T8) -> 1.652696597 | E4: =TRANSPOSE(Summary!R18:T18) -> 3.647766452 | I4: WACC | K4: =Summary!K8 -> 0.15 | L4: =Summary!L8 -> 0.12
C5: EV/EBITDA | D5: 2.80930947 | E5: 4.243880971 | I5: Terminal Growth | K5: =Summary!K9 -> 0.03 | L5: =Summary!L9 -> 0.05
C6: Value Driver | D6: 1.802817982 | E6: 3.136083189 | I6: Terminal EV/EBITDA | K6: =Summary!K10 -> 7 | L6: =Summary!L10 -> 9
B8: Second, Add Increments for Labels
I9: Making the Chart
C10: Increment for Labels | D10: =MIN(D4:E6) -> 1.652696597 | E10: 1.2 | F10: =D10/E10 -> 1.377247164
B12: Third, Add Label to Low and High Case
J13: Step 1: Bar
D14: =D3 -> Low | E14: Label | F14: High | G14: Label
C15: =C4 -> Growth | D15: =D4 -> 1.652696597 | E15: =$F$10 -> 1.377247164 | F15: =E4 -> 3.647766452 | G15: =$F$10 -> 1.377247164
C16: =C5 -> EV/EBITDA | D16: =D5 -> 2.80930947 | E16: =$F$10 -> 1.377247164 | F16: =E5 -> 4.243880971 | G16: =$F$10 -> 1.377247164
C17: =C6 -> Value Driver | D17: =D6 -> 1.802817982 | E17: 1.377247164 | F17: =E6 -> 3.136083189 | G17: 1.377247164
C19: Format for Chart
B21: Fourth, Re-format for Chart
D22: Subtract | F22: High -
D23: Label | E23: Label | F23: Low | G23: Label
D25: =D14 -> Low | F25: =F14 -> High
C26: =C15 -> Growth | D26: =D15-E15 -> 0.2754494328 | E26: =E15 -> 1.377247164 | F26: =F15-D15 -> 1.995069855 | G26: =G15 -> 1.377247164
C27: =C16 -> EV/EBITDA | D27: =D16-E16 -> 1.432062306 | E27: =E16 -> 1.377247164 | F27: =F16-D16 -> 1.434571501 | G27: =G16 -> 1.377247164
C28: Value Driver | D28: 0.4255708174 | E28: 1.377247164 | F28: =F17-D17 -> 1.333265207 | G28: 1.377247164 | J28: Step 2: Remove Fill
J30: and add
J31: Labels
J38: Step 3: Repair Data Labels
J50: Step 4: Take Away Background Colour

Sheet Scenario
C2: Code Number | E2: 1
H3: 1 | I3: 2 | J3: 3 | K3: 4 | L3: 5 | M3: 6 | N3: 7
E4: Base Case | F4: Low Case | G4: High Case | H4: =TRANSPOSE(C5:C11) -> Revenue Growth | I4: COGS Percent Assumption | J4: Admin as Pct of Revenue | K4: Doubtful Debts % of Revenue | L4: Sales and Mkting Growth | M4: Cap Exp Forecast | N4: Net Revenues Projection | O4: =INDEX(E4:N4,$E$2) -> Base Case
B5: 1 | C5: Revenue Growth | E5: 1 | F5: 2 | G5: 3 | H5: =IF(H$3=$B5,$F5,$E5) -> 2 | I5: =IF(I$3=$B5,$F5,$E5) -> 1 | J5: 1 | K5: 1 | L5: 1 | M5: 1 | N5: 1 | O5: 1 | S5: 1 | T5: =TRANSPOSE(E4:N4) -> Base Case
B6: 2 | C6: COGS Percent Assumption | E6: 1 | F6: 2 | G6: 3 | H6: =IF(H$3=$B6,$F6,$E6) -> 1 | I6: 2 | J6: 1 | K6: 1 | L6: 1 | M6: 1 | N6: 1 | O6: 1 | S6: 2 | T6: Low Case
B7: 3 | C7: Admin as Pct of Revenue | E7: 0.04945351315 | F7: 0.06 | G7: 0.03 | H7: 0.04945351315 | I7: 0.04945351315 | J7: 0.06 | K7: 0.04945351315 | L7: 0.04945351315 | M7: 0.04945351315 | N7: 0.04945351315 | O7: 0.04945351315 | S7: 3 | T7: High Case
B8: 4 | C8: Doubtful Debts % of Revenue | E8: 0.005219654704 | F8: 0.003 | G8: 0.007 | H8: 0.005219654704 | I8: 0.005219654704 | J8: 0.005219654704 | K8: 0.003 | L8: 0.005219654704 | M8: 0.005219654704 | N8: 0.005219654704 | O8: 0.005219654704 | S8: 4 | T8: Revenue Growth
B9: 5 | C9: Sales and Mkting Growth | E9: 0.05169510322 | F9: 0.07 | G9: 0.03 | H9: 0.05169510322 | I9: 0.05169510322 | J9: 0.05169510322 | K9: 0.05169510322 | L9: 0.07 | M9: 0.05169510322 | N9: 0.05169510322 | O9: 0.05169510322 | S9: 5 | T9: COGS Percent Assumption
B10: 6 | C10: Cap Exp Forecast | E10: 2600000 | F10: 4000000 | G10: 5000000 | H10: 2600000 | I10: 2600000 | J10: 2600000 | K10: 2600000 | L10: 2600000 | M10: 4000000 | N10: 2600000 | O10: 2600000 | S10: 6 | T10: Admin as Pct of Revenue
B11: 7 | C11: Net Revenues Projection | E11: 50000 | F11: -40000 | G11: 100000 | H11: 50000 | I11: 50000 | J11: 50000 | K11: 50000 | L11: 50000 | M11: 50000 | N11: -40000 | O11: 50000 | S11: 7 | T11: Doubtful Debts % of Revenue
C12: Biological Assets as Pct of Sale | E12: 0.06365545198 | F12: 0.1 | G12: 0.05 | H12: 0.06365545198 | I12: 0.06365545198 | J12: 0.06365545198 | K12: 0.06365545198 | L12: 0.06365545198 | M12: 0.06365545198 | N12: 0.06365545198 | O12: 0.06365545198 | S12: 8 | T12: Sales and Mkting Growth
C13: Inventory as Percent of COGS | E13: 0.08234257117 | F13: 0.12 | G13: 0.06 | H13: 0.08234257117 | I13: 0.08234257117 | J13: 0.08234257117 | K13: 0.08234257117 | L13: 0.08234257117 | M13: 0.08234257117 | N13: 0.08234257117 | O13: 0.08234257117 | S13: 9 | T13: Cap Exp Forecast
C14: A/R as Percent of Revenues | E14: 0.1964684299 | F14: 0.22 | G14: 0.15 | H14: 0.1964684299 | I14: 0.1964684299 | J14: 0.1964684299 | K14: 0.1964684299 | L14: 0.1964684299 | M14: 0.1964684299 | N14: 0.1964684299 | O14: 0.1964684299 | S14: 10 | T14: Net Revenues Projection
C15: Other Current Assets as Pct of Revenues | E15: 0.01132390593 | F15: 0.06 | G15: 0.01 | H15: 0.01132390593 | I15: 0.01132390593 | J15: 0.01132390593 | K15: 0.01132390593 | L15: 0.01132390593 | M15: 0.01132390593 | N15: 0.01132390593 | O15: 0.01132390593
C16: Accounts Payable as Percent of Expense | E16: 0.1958445554 | F16: 0.1 | G16: 0.25 | H16: 0.1958445554 | I16: 0.1958445554 | J16: 0.1958445554 | K16: 0.1958445554 | L16: 0.1958445554 | M16: 0.1958445554 | N16: 0.1958445554 | O16: 0.1958445554
E17: 1 | O17: 1
C18: Value per Share - Gordons Method

Sheet AZIZA Financial Stmt
D1: JOD | J1: 2008 | K1: =J1+1 -> 2009 | L1: =K1+1 -> 2010 | M1: 2011 | N1: 2012 | O1: 2013 | P1: 2014 | Q1: 2015 | R1: 2016 | S1: 2017 | T1: 2018 | U1: 2019 | V1: 2020 | W1: 2021 | X1: 2022 | Y1: 2023 | Z1: 2024
A2: Historic | E2: 2015 | J2: =J1<=$E$2 -> TRUE | K2: =K1<=$E$2 -> TRUE | L2: TRUE | M2: TRUE | N2: TRUE | O2: TRUE | P2: TRUE | Q2: TRUE | R2: FALSE | S2: FALSE | T2: FALSE | U2: FALSE | V2: FALSE | W2: FALSE | X2: FALSE | Y2: FALSE | Z2: FALSE
B3: Last | E3: 2015 | J3: =J1=$E$3 -> FALSE | K3: =K1=$E$3 -> FALSE | L3: FALSE | M3: FALSE | N3: FALSE | O3: FALSE | P3: FALSE | Q3: TRUE | R3: FALSE | S3: FALSE | T3: FALSE | U3: FALSE | V3: FALSE | W3: FALSE | X3: FALSE | Y3: FALSE | Z3: FALSE
B4: Projected | J4: =NOT(J2) -> FALSE | K4: =NOT(K2) -> FALSE | L4: FALSE | M4: FALSE | N4: FALSE | O4: FALSE | P4: FALSE | Q4: FALSE | R4: TRUE | S4: TRUE | T4: TRUE | U4: TRUE | V4: TRUE | W4: TRUE | X4: TRUE | Y4: TRUE | Z4: TRUE
A6: Income Statement
D7: Net Sales | J7: 12551497 | K7: 12445619 | L7: 17843682 | M7: 18668526 | N7: 18862818 | O7: 26173760 | P7: 29532749 | Q7: 30444532 | R7: 33702722.67
D8: Cost of Goods Sold | J8: -10681924 | K8: -9013111 | L8: -11995877 | M8: -16937860 | N8: -16613133 | O8: -20590798.81 | P8: -23881020 | Q8: -24384316 | R8: -25793512.29
D9: Gross Profit | J9: =J7+J8 -> 1869573 | K9: 3432508 | L9: 5847805 | M9: 1730666 | N9: 2249685 | O9: 5582961.186 | P9: 5651729 | Q9: 6060216 | R9: 7909210.381
D10: Gross Profit Margin | J10: =J9/J7 -> 0.1489521927 | K10: 0.2758005046 | L10: 0.3277241211 | M10: 0.09270501592 | N10: 0.1192655838 | O10: 0.213303751 | P10: 0.1913715855 | Q10: 0.1990576173 | R10: 0.2346757103
D11: General & Administrative Expenses | J11: -627129 | K11: -743407 | L11: -1225100 | M11: -930214 | N11: -917134 | O11: -1089010.763 | P11: =-1031227-61597 -> -1092824 | Q11: =-1174334-49959 -> -1224293 | R11: -1211631.255
D12: Doubtful Debts Provision | J12: -195856 | K12: -71641 | L12: 0 | M12: 0 | N12: -128440 | O12: -118450.3922 | P12: =-132310 -> -132310 | Q12: =-139494 -> -139494 | R12: -174184.7338
D13: Sales & Marketing Expenses | J13: 0 | K13: 0 | L13: -134452 | M13: -263664 | N13: -330443 | O13: -744684 | P13: =-977936 -> -977936 | Q13: =-956025 -> -956025 | R13: -1005446.811
D14: Operating Proft (EBIT) | J14: =J9+J11+J12+J13 -> 1046588 | K14: 2617460 | L14: 4488253 | M14: 536788 | N14: 873668 | O14: 3630816.031 | P14: 3448659 | Q14: 3740404 | R14: 5517947.581
D15: EBIT Margin | J15: =J14/J7 -> 0.08338351991 | K15: 0.2103117571 | L15: 0.2515317747 | M15: 0.02875363593 | N15: 0.04631693949 | O15: 0.138719696 | P15: 0.1167740599 | Q15: 0.1228596321 | R15: 0.1637240895
D16: Financing Cost | J16: -106468 | K16: -69600 | L16: -91599 | M16: -195767 | N16: -190958 | O16: -299918.9863 | P16: =-208211 -> -208211 | Q16: =-173168 -> -173168 | R16: -96758.4221
D17: Other Revenues (Expenses) | J17: -53580 | K17: 303309 | L17: 405445 | M17: -523975 | N17: 185977 | O17: 523873.802 | P17: =-469868 -> -469868 | Q17: =-40317 -> -40317 | R17: 59151.47358
D18: Pre Tax Income | J18: =SUM(J14,J16:J17) -> 886540 | K18: 2851169 | L18: 4802099 | M18: -182954 | N18: 868687 | O18: 3854770.847 | P18: 2770580 | Q18: 3526919 | R18: 5480340.633
D19: Income Tax | J19: -93890 | K19: -227640 | L19: -358817 | M19: -115836 | N19: -184890 | O19: -493097 | P19: =-448339 -> -448339 | Q19: =-433286 -> -433286 | R19: -512065.508
D20: Net Profit | J20: =SUM(J18:J19) -> 792650 | K20: 2623529 | L20: 4443282 | M20: -298790 | N20: 683797 | O20: 3361673.847 | P20: 2322241 | Q20: 3093633 | R20: 4968275.125
D21: EPS | J21: =J20/9392329 -> 0.08439333844 | K21: =K20/9738063 -> 0.2694097379 | L21: =L20/13440000 -> 0.3306013393 | M21: -0.02223139881 | N21: 0.05087775298 | O21: 0.2501245422 | P21: 0.1727857887 | Q21: 0.2301810268 | R21: 0.3696633277
A23: Balance Sheet
B24: Assets | E24: Core | H24: Capital
C25: Non-Current Assets
D26: Property, Plant & Equipments | E26: 1 | J26: 11076447 | K26: 13893518 | L26: 21004249 | M26: 22364278 | N26: 22319582 | O26: 23006550 | P26: 20328563 | Q26: 20085562 | R26: 19767034.87
D27: Projects In Progress | E27: 1 | J27: 208054 | K27: 3071359 | L27: 1350464 | M27: 170690 | N27: 184908 | O27: 189825 | P27: 431901 | Q27: 460034 | R27: 474084.0435
D28: Available for Sale Investments | H28: -1 | J28: 49336 | K28: 25310 | L28: 6970 | M28: 7100 | N28: 7262 | O28: 7764 | P28: 6636 | Q28: 6636 | R28: 6839.053776
D29: Total Non-Current Assets | J29: =SUM(J26:J28) -> 11333837 | K29: 16990187 | L29: 22361683 | M29: 22542068 | N29: 22511752 | O29: 23204139 | P29: 20767100 | Q29: 20552232 | R29: 20247957.97
C30: Current Assets
D31: Biological Assets - Immature | E31: 1 | J31: 556372 | K31: 1092444 | L31: 1202625 | M31: 1003662 | N31: 1826366 | O31: 1205724 | P31: 1135500 | Q31: 1372480 | R31: 1190865.1
D32: Biological Assets - Mature | E32: 1 | J32: 612062 | K32: 604279 | L32: 1287503 | M32: 957723 | N32: 185603 | O32: 686490 | P32: 667303 | Q32: 647122 | R32: 954496.944
D33: Total Biological Assets | J33: =SUM(J31:J32) -> 1168434 | K33: 1696723 | L33: 2490128 | M33: 1961385 | N33: 2011969 | O33: 1892214 | P33: 1802803 | Q33: 2019602 | R33: 2145362.044
D34: Inventory | E34: 1 | J34: 1113114 | K34: 941042 | L34: 2078143 | M34: 1398643 | N34: 1508159 | O34: 2350474 | P34: 2532370 | Q34: 1859144 | R34: 2024681.323
D35: Accounts Receivable | E35: 1 | J35: 1414380 | K35: 1571703 | L35: 1884711 | M35: 3404388 | N35: 4328998 | O35: 4746615 | P35: 5704328 | Q35: 5621711 | R35: 6621521.004
D36: Other Current Assets | E36: 1 | J36: 628093 | K36: 906652 | L36: 993682 | M36: 1802258 | N36: 1369257 | O36: 718849 | P36: 393102 | Q36: 301815 | R36: 278438
D37: Cash & Cash Equivalents | H37: -1 | J37: =J113 -> 334544 | K37: 1131128 | L37: 336883 | M37: 160936 | N37: 114564 | O37: 1507182 | P37: 505299 | Q37: 1546993 | R37: 4672904.192
D38: Total Current Assets | J38: =SUM(J34:J37) -> 3490131 | K38: 4550525 | L38: 5293419 | M38: 6766225 | N38: 7320978 | O38: 9323120 | P38: 9135099 | Q38: 9329663 | R38: 13597544.52
D39: Total Assets | J39: =J38+J33+J29 -> 15992402 | K39: 23237435 | L39: 30145230 | M39: 31269678 | N39: 31844699 | O39: 34419473 | P39: 31705002 | Q39: 31901497 | R39: 35990864.53
C41: Shareholders Equity
D42: Paid in Capital | J42: 9371351 | K42: 10000000 | L42: 12000000 | M42: 13440000 | N42: 13440000 | O42: 13440000 | P42: 13440000 | Q42: 13440000 | R42: 13440000
D43: Statutory Reserve | J43: 208678 | K43: 471031 | L43: 915359 | M43: 915359 | N43: 983739 | O43: 1319906 | P43: 1552130 | Q43: 1861493 | R43: =1861493+('AZIZA Financial Stmt'!R20*10%) -> 2358320.512
D44: Currency Translation Differences | J44: 1539070 | K44: 1778818 | L44: 2960377 | M44: 1818385 | N44: 2267748 | O44: 3751242 | P44: 1161561 | Q44: 1183683 | R44: 1964368.908
D45: Available for sale investments reserve | J45: 0 | K45: -553 | L45: 0 | M45: 0 | N45: 0 | O45: 0 | P45: 0 | Q45: 0 | R45: 0
D46: Retained Earnings | J46: 1065975 | K46: 3427151 | L46: 4826105 | M46: 2127315 | N46: 2742732 | O46: 5768239 | P46: 6245456 | Q46: 7416926 | R46: =10369201.1247871-('AZIZA Financial Stmt'!R20*10%) -> 9872373.612
D47: Total Equity | H47: 1 | J47: =SUM(J42:J46) -> 12185074 | K47: 15676447 | L47: 20701841 | M47: 18301059 | N47: 19434219 | O47: 24279387 | P47: 22399147 | Q47: 23902102 | R47: 27635063.03
B49: Liabilities
C50: Long Term Liabilities
D51: Long Term Loans | H51: 1 | J51: 196327 | K51: 3833376 | L51: 3640809 | M51: 5297273 | N51: 3011738 | O51: 2415721 | P51: 930897 | Q51: 293594 | R51: 0
D52: Provision for Employees' Indemnity | E52: -1 | J52: 161163 | K52: 217506 | L52: 294960 | M52: 342035 | N52: 392155 | O52: 512872 | P52: 549449 | Q52: 683660 | R52: 740568.4429
J53: =SUM(J51:J52) -> 357490 | K53: 4050882 | L53: 3935769 | M53: 5639308 | N53: 3403893 | O53: 2928593 | P53: 1480346 | Q53: 977254 | R53: 740568.4429
C54: Current Liabilities
D55: Accounts Payable | E55: -1 | J55: 1919057 | K55: 2374014 | L55: 3433231 | M55: 4363041 | N55: 4293309 | O55: 3864400 | P55: 4202940 | Q55: 4182140 | R55: 5249728.924
D56: Current Portion of Long Term Loans | H56: 1 | J56: 1141533 | K56: 898899 | L56: 1043318 | M56: 1753837 | N56: 3084865 | O56: 1525761 | P56: 1466590 | Q56: 741633 | R56: 293594
D57: Credit Facilities | H57: 1 | J57: 75988 | K57: 0 | L57: 419514 | M57: 830421 | N57: 1224585 | O57: 1114229 | P57: 1819845 | Q57: 1708692 | R57: 1659471.901
D58: Income Tax Provision | E58: -1 | J58: 93890 | K58: 224946 | L58: 275601 | M58: 72711 | N58: 146546 | O58: 408540 | P58: 117542 | Q58: 22479 | R58: 133000
D59: Other Current Liabilities | E59: -1 | J59: 219370 | K59: 12247 | L59: 335956 | M59: 309301 | N59: 257282 | O59: 298563 | P59: 218592 | Q59: 367197 | R59: 279438.2994
J60: =SUM(J55:J59) -> 3449838 | K60: 3510106 | L60: 5507620 | M60: 7329311 | N60: 9006587 | O60: 7211493 | P60: 7825509 | Q60: 7022141 | R60: 7615233.124
D61: Total Liabilities | J61: =J60+J53 -> 3807328 | K61: 7560988 | L61: 9443389 | M61: 12968619 | N61: 12410480 | O61: 10140086 | P61: 9305855 | Q61: 7999395 | R61: 8355801.567
D63: Total Equity & Liabilities | J63: =J61+J47 -> 15992402 | K63: 23237435 | L63: 30145230 | M63: 31269678 | N63: 31844699 | O63: 34419473 | P63: 31705002 | Q63: 31901497 | R63: 35990864.6
D65: Invested Capital - Core Business | J65: =SUMPRODUCT(J26:J61,$E$26:$E$61) -> 13215042 | K65: 19252284 | L65: 25461629 | M65: 26014554 | N65: 26633581 | O65: 27820152 | P65: 26104544 | Q65: 25092392 | R65: 24908385.62
D66: Invested Capital Financial | J66: =SUMPRODUCT(J26:J61,$H$26:$H$61) -> 13215042 | K66: 19252284 | L66: 25461629 | M66: 26014554 | N66: 26633581 | O66: 27820152 | P66: 26104544 | Q66: 25092392 | R66: 24908385.69
J67: =J65=J66 -> TRUE | K67: TRUE | L67: TRUE | M67: TRUE | N67: TRUE | O67: TRUE | P67: TRUE | Q67: TRUE | R67: FALSE
A68: Cash Flow Statement
C69: Operating Activities
D70: Profit before Income Tax | J70: 886540 | K70: 2851169 | L70: 4802099 | M70: -182954 | N70: 868687 | O70: 3854770.847 | P70: 2770580 | Q70: 3526919 | R70: 5480340.633
C71: Adjustments
D72: Depreciation Expense | J72: 669633 | K72: 646466 | L72: 765898 | M72: 1113589 | N72: 1139330 | O72: 1236666 | P72: 1276822 | Q72: 1198225 | R72: 1205000
D73: Financing Expenses | J73: 106468 | K73: 69600 | L73: 91599 | M73: 195767 | N73: 190958 | O73: 299918.9863 | P73: 208211 | Q73: 173168 | R73: 96758.4221
D74: Doubtful Debts Provision | J74: 195856 | K74: 71641 | L74: 0 | M74: 0 | N74: 128440 | O74: 118451 | P74: 132310 | Q74: 139494 | R74: 174184.7338
D75: Provision for Employees' Indemnity | J75: 42329 | K75: 59671 | L75: 82344 | M75: 86393 | N75: 50278 | O75: 127324 | P75: 94817 | Q75: 188200 | R75: 90000
D76: Loss (Profit) of Selling Property, Plant & Equipment | J76: -1846 | K76: 62 | L76: 1175 | M76: 0 | N76: 0 | O76: -2689 | P76: 0 | Q76: -6458 | R76: 0
D77: Loss (profit) of Selling Available for sale Investments | J77: 133226 | K77: -7632 | L77: -1347 | M77: 0 | N77: 0 | O77: 0 | P77: 0 | Q77: -3018 | R77: 0
D78: Discount on Long Term Loans | J78: 0 | K78: -233070 | L78: 0 | M78: 0 | N78: 0 | O78: 0 | P78: 0 | Q78: 0 | R78: 0
J79: 2032206 | K79: 3457907 | L79: 5741768 | M79: 1212795 | N79: 2377693 | O79: 5634441.833 | P79: 4482740 | Q79: 5216530 | R79: 7046283.789
C80: Change in Working Capital
D81: Accounts Receivable | J81: -208311 | K81: -219541 | L81: -396825 | M81: -1467213 | N81: -1053050 | O81: -666888 | P81: -962234 | Q81: -56420 | R81: -1007969.304
D82: Biological Assets | J82: -244349 | K82: 172072 | L82: -1137101 | M82: 679500 | N82: -109516 | O82: -842315 | P82: -181896 | Q82: 673226 | R82: -125760.0442
D83: Inventory | J83: -199520 | K83: -528289 | L83: -793405 | M83: 528743 | N83: -50584 | O83: 119755 | P83: 89411 | Q83: -216799 | R83: -165537.3228
D84: Other Current Assets | J84: 275415 | K84: -278559 | L84: -87030 | M84: -808576 | N84: 433001 | O84: 712075 | P84: 325747 | Q84: 91287 | R84: 23377.48079
D85: Accounts Payable | J85: -39015 | K85: 472343 | L85: 1140706 | M85: 743558 | N85: -90980 | O85: 69061 | P85: 338540 | Q85: -20800 | R85: 1067588.924
D86: Other Current Liabilities | J86: -30631 | K86: 25947 | L86: 307070 | M86: -210032 | N86: -6763 | O86: 177908 | P86: -124538 | Q86: 128488 | R86: -87585.12308
D87: Employees Indemnity Paid | J87: -11317 | K87: -7135 | L87: -21916 | M87: -16968 | N87: -7193 | O87: -28366.86275 | P87: -17152 | Q87: -53548 | R87: -20218.20811
D88: income Tax Payments | J88: -56251 | K88: -96584 | L88: -308162 | M88: -313940 | N88: -115848 | O88: -269417 | P88: -714221 | Q88: -528661 | R88: -512065.508
D89: Net Cash Flows From Operating Activities | J89: 1518227 | K89: 2998161 | L89: 4445105 | M89: 347867 | N89: 1376760 | O89: 4906253.971 | P89: 3236397 | Q89: 5233303 | R89: 6218114.684
C91: Investing Activities
D92: Sale of AFS Investments | J92: 54739 | K92: 29829 | L92: 27451 | M92: 0 | N92: 0 | O92: 0 | P92: 0 | Q92: 39426 | R92: 0
D93: Purchase of AFS Investments | L93: -6970 | M93: 0 | N93: 0 | O93: 0 | P93: 0 | Q93: -36408 | R93: 0
D94: Received Dividends | J94: 0 | K94: 1276 | M94: 0 | N94: 0 | O94: 0 | P94: 0 | Q94: 0 | R94: 0
D95: Sale of Property, Plant, & Equipments | J95: 118051 | K95: 56688 | L95: 9251 | M95: 0 | N95: 0 | O95: 0 | P95: 0 | Q95: 15341 | R95: 0
D96: Purchase of Property, Plant, & Equipments | J96: -410991 | K96: -3456509 | L96: -249549 | M96: -873199 | N96: -625575 | O96: -408726 | P96: -999793 | Q96: -963312 | R96: -350000
D97: Increase in Projects in Progress | J97: -12537 | K97: -2863305 | L97: -4917269 | M97: -1640707 | N97: -14218 | O97: -4917 | P97: -282872 | Q97: -28224 | R97: 0
D98: Net Cash Used In Investing Activities | J98: -250738 | K98: -6232021 | L98: -5137086 | M98: -2513906 | N98: -639793 | O98: -413643 | P98: -1282665 | Q98: -973177 | R98: -350000
C100: Financing Activities
D101: Cash Dividends Paid | J101: 0 | K101: 0 | L101: -583307 | M101: -326535 | N101: -45256 | O101: -136627 | P101: -1521121 | Q101: -1592683 | R101: -2016000
D102: Proceeds of Loans | J102: 0 | K102: 4537600 | L102: 943257 | M102: 3214943 | N102: 319969 | O102: 0 | Q102: 76982 | R102: 0
D103: Settlments of Loans | J103: -247642 | K103: -535351 | L103: -991405 | M103: -847960 | N103: -1274476 | O103: -2155121 | P103: -1543995 | Q103: -1439242 | R103: -741633
D104: Credit Facilities | J104: -492046 | K104: -75988 | L104: 419514 | M104: 410907 | N104: 394164 | O104: -110356 | P104: 705616 | Q104: -111153 | R104: -49220.19936
D105: Financing Cost Paid | J105: -63553 | K105: -69600 | L105: -91599 | M105: -187188 | N105: -190958 | O105: -299822 | P105: -208211 | Q105: -173168 | R105: -96758.4221
D106: Due to Relative Parties | J106: -65793 | K106: -35300 | L106: -231163 | M106: -272415 | N106: 21248 | O106: -498067 | P106: 0 | Q106: 0 | R106: 0
D107: Capital Payments | J107: 0 | K107: 20815 | L107: 0 | M107: 0 | N107: 0 | O107: 0 | P107: 0 | Q107: 0 | R107: 0
D108: Net Cash Used In Financing Activities | J108: -869034 | K108: 3842176 | L108: -534703 | M108: 1991752 | N108: -775309 | O108: -3199993 | P108: -2567711 | Q108: -3239264 | R108: -2903611.621
D109: Change In Cash | J109: 398455 | K109: 608316 | L109: -1226684 | M109: -174287 | N109: -38342 | O109: 1292617.971 | P109: -613979 | Q109: 1020862 | R109: 2964503.062
D110: Foreign Currencies Translation Differences | J110: -136407 | K110: 188268 | L110: 432439 | M110: -1660 | N110: -8030 | O110: 100000.0294 | P110: -387904 | Q110: 20832 | R110: 161408.1296
D111: Begining Balance | J111: 72496 | K111: 334544 | L111: 1131128 | M111: 336883 | N111: 160936 | O111: 114564 | P111: 1507182 | Q111: 505299 | R111: 1546993
D113: End of Period Balance | J113: 334544 | K113: 1131128 | L113: 336883 | M113: 160936 | N113: 114564 | O113: 1507182 | P113: 505299 | Q113: 1546993 | R113: 4672904.192

Sheet AZIZA Model
D1: JOD | J1: 2008 | K1: =J1+1 -> 2009 | L1: 2010 | M1: 2011 | N1: 2012 | O1: 2013 | P1: 2014 | Q1: 2015 | R1: 2016 | S1: 2017 | T1: 2018 | U1: 2019 | V1: 2020 | W1: 2021 | X1: 2022 | Y1: 2023 | Z1: 2024
B2: Historic | E2: 2015 | J2: =J1<=$E$2 -> TRUE | K2: TRUE | L2: TRUE | M2: TRUE | N2: TRUE | O2: TRUE | P2: TRUE | Q2: TRUE | R2: FALSE | S2: FALSE | T2: FALSE | U2: FALSE | V2: FALSE | W2: FALSE | X2: FALSE | Y2: FALSE | Z2: FALSE
B3: Last | E3: 2015 | J3: =J1=$E$3 -> FALSE | K3: FALSE | L3: FALSE | M3: FALSE | N3: FALSE | O3: FALSE | P3: FALSE | Q3: TRUE | R3: FALSE | S3: FALSE | T3: FALSE | U3: FALSE | V3: FALSE | W3: FALSE | X3: FALSE | Y3: FALSE | Z3: FALSE
B4: Projected | J4: =NOT(J2) -> FALSE | K4: FALSE | L4: FALSE | M4: FALSE | N4: FALSE | O4: FALSE | P4: FALSE | Q4: FALSE | R4: TRUE | S4: TRUE | T4: TRUE | U4: TRUE | V4: TRUE | W4: TRUE | X4: TRUE | Y4: TRUE | Z4: TRUE
A5: Operating Assumptions Analysis
C6: Revenues | J6: =IF(J2,'AZIZA Financial Stmt'!J7) -> 12551497 | K6: =IF(K2,'AZIZA Financial Stmt'!K7) -> 12445619 | L6: =IF(L2,'AZIZA Financial Stmt'!L7) -> 17843682 | M6: =IF(M2,'AZIZA Financial Stmt'!M7) -> 18668526 | N6: =IF(N2,'AZIZA Financial Stmt'!N7) -> 18862818 | O6: =IF(O2,'AZIZA Financial Stmt'!O7) -> 26173760 | P6: =IF(P2,'AZIZA Financial Stmt'!P7) -> 29532749 | Q6: =IF(Q2,'AZIZA Financial Stmt'!Q7) -> 30444532 | R6: =IF(R2,'AZIZA Financial Stmt'!R7) -> FALSE
D7: Historic Growth | K7: =IF(K2,'AZIZA Financial Stmt'!K7/'AZIZA Financial Stmt'!J7-1) -> -0.008435487815 | L7: =IF(L2,'AZIZA Financial Stmt'!L7/'AZIZA Financial Stmt'!K7-1) -> 0.4337319823 | M7: =IF(M2,'AZIZA Financial Stmt'!M7/'AZIZA Financial Stmt'!L7-1) -> 0.04622610961 | N7: =IF(N2,'AZIZA Financial Stmt'!N7/'AZIZA Financial Stmt'!M7-1) -> 0.01040746334 | O7: =IF(O2,'AZIZA Financial Stmt'!O7/'AZIZA Financial Stmt'!N7-1) -> 0.3875848243 | P7: =IF(P2,'AZIZA Financial Stmt'!P7/'AZIZA Financial Stmt'!O7-1) -> 0.1283342172 | Q7: =IF(Q2,'AZIZA Financial Stmt'!Q7/'AZIZA Financial Stmt'!P7-1) -> 0.0308736244 | R7: =IF(R2,'AZIZA Financial Stmt'!R7/'AZIZA Financial Stmt'!Q7-1) -> FALSE | S7: =IF(S2,'AZIZA Financial Stmt'!S7/'AZIZA Financial Stmt'!R7-1) -> FALSE | T7: =IF(T2,'AZIZA Financial Stmt'!T7/'AZIZA Financial Stmt'!S7-1) -> FALSE | U7: =IF(U2,'AZIZA Financial Stmt'!U7/'AZIZA Financial Stmt'!T7-1) -> FALSE | V7: =IF(V2,'AZIZA Financial Stmt'!V7/'AZIZA Financial Stmt'!U7-1) -> FALSE | W7: =IF(W2,'AZIZA Financial Stmt'!W7/'AZIZA Financial Stmt'!V7-1) -> FALSE | X7: =IF(X2,'AZIZA Financial Stmt'!X7/'AZIZA Financial Stmt'!W7-1) -> FALSE | Y7: =IF(Y2,'AZIZA Financial Stmt'!Y7/'AZIZA Financial Stmt'!X7-1) -> FALSE | Z7: =IF(Z2,'AZIZA Financial Stmt'!Z7/'AZIZA Financial Stmt'!Y7-1) -> FALSE | AB7: =AB6+AC7 -> 0
D8: Base Case | K8: =IF(K4,'AZIZA Financial Stmt'!K7/'AZIZA Financial Stmt'!J7-1) -> FALSE | L8: =IF(L4,'AZIZA Financial Stmt'!L7/'AZIZA Financial Stmt'!K7-1) -> FALSE | M8: =IF(M4,'AZIZA Financial Stmt'!M7/'AZIZA Financial Stmt'!L7-1) -> FALSE | N8: =IF(N4,'AZIZA Financial Stmt'!N7/'AZIZA Financial Stmt'!M7-1) -> FALSE | O8: =IF(O4,'AZIZA Financial Stmt'!O7/'AZIZA Financial Stmt'!N7-1) -> FALSE | P8: =IF(P4,'AZIZA Financial Stmt'!P7/'AZIZA Financial Stmt'!O7-1) -> FALSE | Q8: =IF(Q4,'AZIZA Financial Stmt'!Q7/'AZIZA Financial Stmt'!P7-1) -> FALSE | R8: =IF(R4,'AZIZA Financial Stmt'!R7/'AZIZA Financial Stmt'!Q7-1) -> 0.1070205535 | S8: 0.05 | T8: 0.05 | U8: 0.05 | V8: 0.05 | W8: 0.05 | X8: 0.05 | Y8: 0.05 | Z8: 0.05 | AB8: =AB7+AC8 -> 0
D9: Low Case | R9: 0.05 | S9: 0.02 | T9: 0.01 | U9: 0.01 | V9: 0.02 | W9: 0.02 | X9: 0.02 | Y9: 0.02 | Z9: 0.02 | AB9: =AB8+AC9 -> 0
D10: High Case | R10: =R8 -> 0.1070205535 | S10: 0.08 | T10: 0.08 | U10: 0.07 | V10: 0.065 | W10: 0.065 | X10: 0.065 | Y10: 0.065 | Z10: 0.065 | AB10: =AB9+AC10 -> 0
D11: Revenue Growth | E11: =Scenario!O5 -> 1 | K11: =IF(K2,K7,INDEX(K8:K10,$E$11)) -> -0.008435487815 | L11: 0.4337319823 | M11: 0.04622610961 | N11: 0.01040746334 | O11: 0.3875848243 | P11: 0.1283342172 | Q11: 0.0308736244 | R11: 0.1070205535 | S11: 0.05 | T11: 0.05 | U11: 0.05 | V11: 0.05 | W11: 0.05 | X11: 0.05 | Y11: 0.05 | Z11: 0.05 | AB11: =AB10+AC11 -> 1 | AC11: TRUE
AB12: =AB11+AC12 -> 1
C13: COGS | J13: =-'AZIZA Financial Stmt'!J8 -> 10681924 | K13: =-'AZIZA Financial Stmt'!K8 -> 9013111 | L13: =-'AZIZA Financial Stmt'!L8 -> 11995877 | M13: =-'AZIZA Financial Stmt'!M8 -> 16937860 | N13: =-'AZIZA Financial Stmt'!N8 -> 16613133 | O13: =-'AZIZA Financial Stmt'!O8 -> 20590798.81 | P13: =-'AZIZA Financial Stmt'!P8 -> 23881020 | Q13: =-'AZIZA Financial Stmt'!Q8 -> 24384316 | R13: =-'AZIZA Financial Stmt'!R8 -> 25793512.29 | AB13: 1
C14: Less Depreciation | J14: ='AZIZA Financial Stmt'!J72 -> 669633 | K14: ='AZIZA Financial Stmt'!K72 -> 646466 | L14: ='AZIZA Financial Stmt'!L72 -> 765898 | M14: ='AZIZA Financial Stmt'!M72 -> 1113589 | N14: ='AZIZA Financial Stmt'!N72 -> 1139330 | O14: ='AZIZA Financial Stmt'!O72 -> 1236666 | P14: ='AZIZA Financial Stmt'!P72 -> 1276822 | Q14: ='AZIZA Financial Stmt'!Q72 -> 1198225 | R14: ='AZIZA Financial Stmt'!R72 -> 1205000 | AB14: 1
C15: COGS Less Depreciation | J15: =J13-J14 -> 10012291 | K15: =K13-K14 -> 8366645 | L15: 11229979 | M15: 15824271 | N15: 15473803 | O15: 19354132.81 | P15: 22604198 | Q15: 23186091 | R15: 24588512.29 | AB15: 1
C16: Percent of Revenue | J16: =IF(J2,J15/J6) -> 0.79769696 | K16: 0.6722562373 | L16: 0.6293532355 | M16: 0.8476443721 | N16: 0.820333579 | O16: 0.7394479362 | P16: 0.7653943085 | Q16: 0.7615847404 | R16: FALSE | AB16: 1
D17: Base Case | R17: =R15/'AZIZA Financial Stmt'!R7 -> 0.7295705017 | S17: 0.73 | T17: 0.74 | U17: 0.74 | V17: 0.74 | W17: 0.74 | X17: 0.74 | Y17: 0.74 | Z17: 0.74 | AB17: 1
D18: Low Case | R18: 0.75 | S18: 0.76 | T18: 0.75 | U18: 0.75 | V18: 0.75 | W18: 0.75 | X18: 0.75 | Y18: 0.75 | Z18: 0.75 | AB18: 1
D19: High Case | R19: =R17 -> 0.7295705017 | S19: =R19 -> 0.7295705017 | T19: =S19 -> 0.7295705017 | U19: 0.7295705017 | V19: 0.7295705017 | W19: 0.7295705017 | X19: 0.7295705017 | Y19: 0.7295705017 | Z19: 0.7295705017 | AB19: 1
D20: COGS Percent Assumption | E20: =Scenario!O6 -> 1 | J20: =IF(J2,J16,INDEX(J17:J19,$E$20)) -> 0.79769696 | K20: 0.6722562373 | L20: 0.6293532355 | M20: 0.8476443721 | N20: 0.820333579 | O20: 0.7394479362 | P20: 0.7653943085 | Q20: 0.7615847404 | R20: 0.7295705017 | S20: 0.73 | T20: 0.74 | U20: 0.74 | V20: 0.74 | W20: 0.74 | X20: 0.74 | Y20: 0.74 | Z20: 0.74 | AB20: 2 | AC20: TRUE
AB21: 2
C22: Administrative Expense | F22: Avg | G22: Last | H22: Input | I22: =CHOOSE(E23,F22,G22,H22) -> Input | J22: =-'AZIZA Financial Stmt'!J11 -> 627129 | K22: =-'AZIZA Financial Stmt'!K11 -> 743407 | L22: =-'AZIZA Financial Stmt'!L11 -> 1225100 | M22: =-'AZIZA Financial Stmt'!M11 -> 930214 | N22: =-'AZIZA Financial Stmt'!N11 -> 917134 | O22: =-'AZIZA Financial Stmt'!O11 -> 1089010.763 | P22: =-'AZIZA Financial Stmt'!P11 -> 1092824 | Q22: =-'AZIZA Financial Stmt'!Q11 -> 1224293 | R22: =-'AZIZA Financial Stmt'!R11 -> 1211631.255 | S22: =-'AZIZA Financial Stmt'!S11 -> 0 | T22: =-'AZIZA Financial Stmt'!T11 -> 0 | U22: =-'AZIZA Financial Stmt'!U11 -> 0 | V22: =-'AZIZA Financial Stmt'!V11 -> 0 | W22: =-'AZIZA Financial Stmt'!W11 -> 0 | X22: =-'AZIZA Financial Stmt'!X11 -> 0 | Y22: =-'AZIZA Financial Stmt'!Y11 -> 0 | Z22: =-'AZIZA Financial Stmt'!Z11 -> 0 | AB22: 2
C23: Admin as Pct of Revenue | E23: 3 | F23: =AVERAGEIF($2:$2,TRUE,23:23) -> 0.04945351315 | G23: =AVERAGEIF($3:$3,TRUE,23:23) -> 0.040213888 | H23: =Scenario!O7 -> 0.04945351315 | I23: =CHOOSE(E23,F23,G23,H23) -> 0.04945351315 | J23: =IF(J$2,J22/J6,$I23) -> 0.04996447834 | K23: 0.05973242472 | L23: 0.06865735446 | M23: 0.04982792964 | N23: 0.04862126115 | O23: 0.04160696678 | P23: 0.03700380212 | Q23: 0.040213888 | R23: 0.04945351315 | S23: 0.04945351315 | T23: 0.04945351315 | U23: 0.04945351315 | V23: 0.04945351315 | W23: 0.04945351315 | X23: 0.04945351315 | Y23: 0.04945351315 | Z23: 0.04945351315 | AB23: 3 | AC23: TRUE
AB24: 3
C25: Doubtful Debts Provision | F25: Avg | G25: Last | H25: Input | I25: =CHOOSE(E26,F25,G25,H25) -> Input | J25: =-'AZIZA Financial Stmt'!J12 -> 195856 | K25: =-'AZIZA Financial Stmt'!K12 -> 71641 | L25: =-'AZIZA Financial Stmt'!L12 -> 0 | M25: =-'AZIZA Financial Stmt'!M12 -> 0 | N25: =-'AZIZA Financial Stmt'!N12 -> 128440 | O25: =-'AZIZA Financial Stmt'!O12 -> 118450.3922 | P25: =-'AZIZA Financial Stmt'!P12 -> 132310 | Q25: =-'AZIZA Financial Stmt'!Q12 -> 139494 | R25: =-'AZIZA Financial Stmt'!R12 -> 174184.7338 | S25: =-'AZIZA Financial Stmt'!S12 -> 0 | T25: =-'AZIZA Financial Stmt'!T12 -> 0 | U25: =-'AZIZA Financial Stmt'!U12 -> 0 | V25: =-'AZIZA Financial Stmt'!V12 -> 0 | W25: =-'AZIZA Financial Stmt'!W12 -> 0 | X25: =-'AZIZA Financial Stmt'!X12 -> 0 | Y25: =-'AZIZA Financial Stmt'!Y12 -> 0 | Z25: =-'AZIZA Financial Stmt'!Z12 -> 0 | AB25: 3
C26: Doubtful Debts % of Revenue | E26: 3 | F26: =AVERAGEIF($2:$2,TRUE,26:26) -> 0.005219654704 | G26: =AVERAGEIF($3:$3,TRUE,26:26) -> 0.004581906531 | H26: =Scenario!O8 -> 0.005219654704 | I26: =CHOOSE(E26,F26,G26,H26) -> 0.005219654704 | J26: =IF(J$2,J25/J6,$I26) -> 0.01560419446 | K26: 0.005756322767 | L26: 0 | M26: 0 | N26: 0.006809162873 | O26: 0.004525539783 | P26: 0.004480111215 | Q26: 0.004581906531 | R26: 0.005219654704 | S26: 0.005219654704 | T26: 0.005219654704 | U26: 0.005219654704 | V26: 0.005219654704 | W26: 0.005219654704 | X26: 0.005219654704 | Y26: 0.005219654704 | Z26: 0.005219654704 | AB26: 4 | AC26: TRUE
AB27: 4
C28: Sales & Marketing Expenses | F28: Avg | G28: Last | H28: Input | I28: =CHOOSE(E29,F28,G28,H28) -> Input | J28: =-'AZIZA Financial Stmt'!J13 -> 0 | K28: =-'AZIZA Financial Stmt'!K13 -> 0 | L28: =-'AZIZA Financial Stmt'!L13 -> 134452 | M28: =-'AZIZA Financial Stmt'!M13 -> 263664 | N28: =-'AZIZA Financial Stmt'!N13 -> 330443 | O28: =-'AZIZA Financial Stmt'!O13 -> 744684 | P28: =-'AZIZA Financial Stmt'!P13 -> 977936 | Q28: =-'AZIZA Financial Stmt'!Q13 -> 956025 | R28: =-'AZIZA Financial Stmt'!R13 -> 1005446.811 | S28: =-'AZIZA Financial Stmt'!S13 -> 0 | T28: =-'AZIZA Financial Stmt'!T13 -> 0 | U28: =-'AZIZA Financial Stmt'!U13 -> 0 | V28: =-'AZIZA Financial Stmt'!V13 -> 0 | W28: =-'AZIZA Financial Stmt'!W13 -> 0 | X28: =-'AZIZA Financial Stmt'!X13 -> 0 | Y28: =-'AZIZA Financial Stmt'!Y13 -> 0 | Z28: =-'AZIZA Financial Stmt'!Z13 -> 0 | AB28: 4
C29: Sales and Mkting Growth | E29: 3 | F29: =AVERAGEIF($2:$2,TRUE,29:29) -> 0.5517420862 | G29: =AVERAGEIF($3:$3,TRUE,29:29) -> -0.02240535168 | H29: =Scenario!O9 -> 0.05169510322 | I29: =CHOOSE(E29,F29,G29,H29) -> 0.05169510322 | M29: =IF(M$2,M28/L28-1,$I29) -> 0.9610269836 | N29: 0.2532731052 | O29: 1.253592904 | P29: 0.3132227898 | Q29: -0.02240535168 | R29: 0.05169510322 | S29: 0.05169510322 | T29: 0.05169510322 | U29: 0.05169510322 | V29: 0.05169510322 | W29: 0.05169510322 | X29: 0.05169510322 | Y29: 0.05169510322 | Z29: 0.05169510322 | AB29: 5 | AC29: TRUE
AB30: 5
B31: Capital Expenditure, Depreciationa and Tax | AB31: 5
C32: Net Capital Expenditures | F32: Avg | G32: Last | H32: Input | I32: =CHOOSE(E33,F32,G32,H32) -> Input | J32: =-'AZIZA Financial Stmt'!J97-'AZIZA Financial Stmt'!J96-'AZIZA Financial Stmt'!J95 -> 305477 | K32: =-'AZIZA Financial Stmt'!K97-'AZIZA Financial Stmt'!K96-'AZIZA Financial Stmt'!K95 -> 6263126 | L32: =-'AZIZA Financial Stmt'!L97-'AZIZA Financial Stmt'!L96-'AZIZA Financial Stmt'!L95 -> 5157567 | M32: =-'AZIZA Financial Stmt'!M97-'AZIZA Financial Stmt'!M96-'AZIZA Financial Stmt'!M95 -> 2513906 | N32: =-'AZIZA Financial Stmt'!N97-'AZIZA Financial Stmt'!N96-'AZIZA Financial Stmt'!N95 -> 639793 | O32: =-'AZIZA Financial Stmt'!O97-'AZIZA Financial Stmt'!O96-'AZIZA Financial Stmt'!O95 -> 413643 | P32: =-'AZIZA Financial Stmt'!P97-'AZIZA Financial Stmt'!P96-'AZIZA Financial Stmt'!P95 -> 1282665 | Q32: =-'AZIZA Financial Stmt'!Q97-'AZIZA Financial Stmt'!Q96-'AZIZA Financial Stmt'!Q95 -> 976195 | R32: =-'AZIZA Financial Stmt'!R97-'AZIZA Financial Stmt'!R96-'AZIZA Financial Stmt'!R95 -> 350000 | S32: =-'AZIZA Financial Stmt'!S97-'AZIZA Financial Stmt'!S96-'AZIZA Financial Stmt'!S95 -> 0 | T32: =-'AZIZA Financial Stmt'!T97-'AZIZA Financial Stmt'!T96-'AZIZA Financial Stmt'!T95 -> 0 | U32: =-'AZIZA Financial Stmt'!U97-'AZIZA Financial Stmt'!U96-'AZIZA Financial Stmt'!U95 -> 0 | V32: =-'AZIZA Financial Stmt'!V97-'AZIZA Financial Stmt'!V96-'AZIZA Financial Stmt'!V95 -> 0 | W32: =-'AZIZA Financial Stmt'!W97-'AZIZA Financial Stmt'!W96-'AZIZA Financial Stmt'!W95 -> 0 | X32: =-'AZIZA Financial Stmt'!X97-'AZIZA Financial Stmt'!X96-'AZIZA Financial Stmt'!X95 -> 0 | Y32: =-'AZIZA Financial Stmt'!Y97-'AZIZA Financial Stmt'!Y96-'AZIZA Financial Stmt'!Y95 -> 0 | Z32: =-'AZIZA Financial Stmt'!Z97-'AZIZA Financial Stmt'!Z96-'AZIZA Financial Stmt'!Z95 -> 0 | AB32: 5
C33: Cap Exp Forecast | E33: 3 | F33: =AVERAGEIF($2:$2,TRUE,33:33) -> 2194046.5 | G33: =AVERAGEIF($3:$3,TRUE,33:33) -> 976195 | H33: =H34*1000 -> 4800000 | I33: =CHOOSE(E33,F33,G33,H33) -> 4800000 | J33: =J32 -> 305477 | K33: =K32 -> 6263126 | L33: 5157567 | M33: 2513906 | N33: 639793 | O33: 413643 | P33: 1282665 | Q33: 976195 | R33: =IF(R$2,R32/Q32-1,$I33) -> 4800000 | S33: 4800000 | T33: 4800000 | U33: 4800000 | V33: 4800000 | W33: 4800000 | X33: 4800000 | Y33: 4800000 | Z33: 4800000 | AB33: 6 | AC33: TRUE
H34: 4800 | AB34: 6
C35: Depreciation Expense | J35: ='AZIZA Financial Stmt'!J72 -> 669633 | K35: ='AZIZA Financial Stmt'!K72 -> 646466 | L35: ='AZIZA Financial Stmt'!L72 -> 765898 | M35: ='AZIZA Financial Stmt'!M72 -> 1113589 | N35: ='AZIZA Financial Stmt'!N72 -> 1139330 | O35: ='AZIZA Financial Stmt'!O72 -> 1236666 | P35: ='AZIZA Financial Stmt'!P72 -> 1276822 | Q35: ='AZIZA Financial Stmt'!Q72 -> 1198225 | R35: ='AZIZA Financial Stmt'!R72 -> 1205000 | S35: ='AZIZA Financial Stmt'!S72 -> 0 | T35: ='AZIZA Financial Stmt'!T72 -> 0 | U35: ='AZIZA Financial Stmt'!U72 -> 0 | V35: ='AZIZA Financial Stmt'!V72 -> 0 | W35: ='AZIZA Financial Stmt'!W72 -> 0 | X35: ='AZIZA Financial Stmt'!X72 -> 0 | Y35: ='AZIZA Financial Stmt'!Y72 -> 0 | Z35: ='AZIZA Financial Stmt'!Z72 -> 0 | AB35: 6
C36: Plant Assets | F36: Avg | G36: Last | H36: Input | I36: =CHOOSE(E37,F36,G36,H36) -> Input | J36: ='AZIZA Financial Stmt'!J26 -> 11076447 | K36: ='AZIZA Financial Stmt'!K26 -> 13893518 | L36: ='AZIZA Financial Stmt'!L26 -> 21004249 | M36: ='AZIZA Financial Stmt'!M26 -> 22364278 | N36: ='AZIZA Financial Stmt'!N26 -> 22319582 | O36: ='AZIZA Financial Stmt'!O26 -> 23006550 | P36: ='AZIZA Financial Stmt'!P26 -> 20328563 | Q36: ='AZIZA Financial Stmt'!Q26 -> 20085562 | R36: ='AZIZA Financial Stmt'!R26 -> 19767034.87 | S36: ='AZIZA Financial Stmt'!S26 -> 0 | T36: ='AZIZA Financial Stmt'!T26 -> 0 | U36: ='AZIZA Financial Stmt'!U26 -> 0 | V36: ='AZIZA Financial Stmt'!V26 -> 0 | W36: ='AZIZA Financial Stmt'!W26 -> 0 | X36: ='AZIZA Financial Stmt'!X26 -> 0 | Y36: ='AZIZA Financial Stmt'!Y26 -> 0 | Z36: ='AZIZA Financial Stmt'!Z26 -> 0 | AB36: 6
C37: Depreciation Rate | E37: 3 | F37: =AVERAGEIF($2:$2,TRUE,37:37) -> 0.05532859378 | G37: =AVERAGEIF($3:$3,TRUE,37:37) -> 0.05894292676 | H37: =R35/Q36 -> 0.05999334248 | I37: =CHOOSE(E37,F37,G37,H37) -> 0.05999334248 | K37: =IF(K$2,K35/J36,$I37) -> 0.05836402233 | L37: 0.05512628263 | M37: 0.05301732045 | N37: 0.05094418876 | O37: 0.05540722044 | P37: 0.05549819508 | Q37: 0.05894292676 | R37: 0.05999334248 | S37: 0.05999334248 | T37: 0.05999334248 | U37: 0.05999334248 | V37: 0.05999334248 | W37: 0.05999334248 | X37: 0.05999334248 | Y37: 0.05999334248 | Z37: 0.05999334248 | AB37: 7 | AC37: TRUE
AB38: 7
C39: Income Tax | J39: =-'AZIZA Financial Stmt'!J19 -> 93890 | K39: =-'AZIZA Financial Stmt'!K19 -> 227640 | L39: =-'AZIZA Financial Stmt'!L19 -> 358817 | M39: =-'AZIZA Financial Stmt'!M19 -> 115836 | N39: =-'AZIZA Financial Stmt'!N19 -> 184890 | O39: =-'AZIZA Financial Stmt'!O19 -> 493097 | P39: =-'AZIZA Financial Stmt'!P19 -> 448339 | Q39: =-'AZIZA Financial Stmt'!Q19 -> 433286 | R39: =-'AZIZA Financial Stmt'!R19 -> 512065.508 | S39: =-'AZIZA Financial Stmt'!S19 -> 0 | T39: =-'AZIZA Financial Stmt'!T19 -> 0 | U39: =-'AZIZA Financial Stmt'!U19 -> 0 | V39: =-'AZIZA Financial Stmt'!V19 -> 0 | W39: =-'AZIZA Financial Stmt'!W19 -> 0 | X39: =-'AZIZA Financial Stmt'!X19 -> 0 | Y39: =-'AZIZA Financial Stmt'!Y19 -> 0 | Z39: =-'AZIZA Financial Stmt'!Z19 -> 0 | AB39: 7
C40: Pre-tax Income | F40: Avg | G40: Last | H40: Input | I40: =CHOOSE(E41,F40,G40,H40) -> Input | J40: ='AZIZA Financial Stmt'!J18 -> 886540 | K40: ='AZIZA Financial Stmt'!K18 -> 2851169 | L40: ='AZIZA Financial Stmt'!L18 -> 4802099 | M40: ='AZIZA Financial Stmt'!M18 -> -182954 | N40: ='AZIZA Financial Stmt'!N18 -> 868687 | O40: ='AZIZA Financial Stmt'!O18 -> 3854770.847 | P40: ='AZIZA Financial Stmt'!P18 -> 2770580 | Q40: ='AZIZA Financial Stmt'!Q18 -> 3526919 | R40: ='AZIZA Financial Stmt'!R18 -> 5480340.633 | S40: ='AZIZA Financial Stmt'!S18 -> 0 | T40: ='AZIZA Financial Stmt'!T18 -> 0 | U40: ='AZIZA Financial Stmt'!U18 -> 0 | V40: ='AZIZA Financial Stmt'!V18 -> 0 | W40: ='AZIZA Financial Stmt'!W18 -> 0 | X40: ='AZIZA Financial Stmt'!X18 -> 0 | Y40: ='AZIZA Financial Stmt'!Y18 -> 0 | Z40: ='AZIZA Financial Stmt'!Z18 -> 0 | AB40: 7
C41: Income Tax Rate | E41: 3 | F41: =AVERAGEIF($2:$2,TRUE,41:41) -> 0.03159434032 | G41: =AVERAGEIF($3:$3,TRUE,41:41) -> 0.1228511344 | H41: 0.15 | I41: =CHOOSE(E41,F41,G41,H41) -> 0.15 | J41: =IF(J$2,J39/J40,$I41) -> 0.1059061069 | K41: 0.07984093542 | L41: 0.07472086685 | M41: -0.6331427572 | N41: 0.2128384562 | O41: 0.1279186285 | P41: 0.1618213515 | Q41: 0.1228511344 | R41: 0.15 | S41: 0.15 | T41: 0.15 | U41: 0.15 | V41: 0.15 | W41: 0.15 | X41: 0.15 | Y41: 0.15 | Z41: 0.15 | AB41: 8 | AC41: TRUE
AB42: 8
B43: Financing and Other Income | AB43: 8
C44: Financing Cost | J44: =-'AZIZA Financial Stmt'!J16 -> 106468 | K44: =-'AZIZA Financial Stmt'!K16 -> 69600 | L44: =-'AZIZA Financial Stmt'!L16 -> 91599 | M44: =-'AZIZA Financial Stmt'!M16 -> 195767 | N44: =-'AZIZA Financial Stmt'!N16 -> 190958 | O44: =-'AZIZA Financial Stmt'!O16 -> 299918.9863 | P44: =-'AZIZA Financial Stmt'!P16 -> 208211 | Q44: =-'AZIZA Financial Stmt'!Q16 -> 173168 | R44: =-'AZIZA Financial Stmt'!R16 -> 96758.4221 | S44: =-'AZIZA Financial Stmt'!S16 -> 0 | T44: =-'AZIZA Financial Stmt'!T16 -> 0 | U44: =-'AZIZA Financial Stmt'!U16 -> 0 | V44: =-'AZIZA Financial Stmt'!V16 -> 0 | W44: =-'AZIZA Financial Stmt'!W16 -> 0 | X44: =-'AZIZA Financial Stmt'!X16 -> 0 | Y44: =-'AZIZA Financial Stmt'!Y16 -> 0 | Z44: =-'AZIZA Financial Stmt'!Z16 -> 0 | AB44: 8
C45: Cash | J45: ='AZIZA Financial Stmt'!J37 -> 334544 | K45: ='AZIZA Financial Stmt'!K37 -> 1131128 | L45: ='AZIZA Financial Stmt'!L37 -> 336883 | M45: ='AZIZA Financial Stmt'!M37 -> 160936 | N45: ='AZIZA Financial Stmt'!N37 -> 114564 | O45: ='AZIZA Financial Stmt'!O37 -> 1507182 | P45: ='AZIZA Financial Stmt'!P37 -> 505299 | Q45: ='AZIZA Financial Stmt'!Q37 -> 1546993 | R45: ='AZIZA Financial Stmt'!R37 -> 4672904.192 | S45: ='AZIZA Financial Stmt'!S37 -> 0 | T45: ='AZIZA Financial Stmt'!T37 -> 0 | U45: ='AZIZA Financial Stmt'!U37 -> 0 | V45: ='AZIZA Financial Stmt'!V37 -> 0 | W45: ='AZIZA Financial Stmt'!W37 -> 0 | X45: ='AZIZA Financial Stmt'!X37 -> 0 | Y45: ='AZIZA Financial Stmt'!Y37 -> 0 | Z45: ='AZIZA Financial Stmt'!Z37 -> 0 | AB45: 8
C46: Debt | F46: Avg | G46: Last | H46: Input | I46: =CHOOSE(E47,F46,G46,H46) -> Input | J46: ='AZIZA Financial Stmt'!J56+'AZIZA Financial Stmt'!J57+'AZIZA Financial Stmt'!J51 -> 1413848 | K46: ='AZIZA Financial Stmt'!K56+'AZIZA Financial Stmt'!K57+'AZIZA Financial Stmt'!K51 -> 4732275 | L46: ='AZIZA Financial Stmt'!L56+'AZIZA Financial Stmt'!L57+'AZIZA Financial Stmt'!L51 -> 5103641 | M46: ='AZIZA Financial Stmt'!M56+'AZIZA Financial Stmt'!M57+'AZIZA Financial Stmt'!M51 -> 7881531 | N46: ='AZIZA Financial Stmt'!N56+'AZIZA Financial Stmt'!N57+'AZIZA Financial Stmt'!N51 -> 7321188 | O46: ='AZIZA Financial Stmt'!O56+'AZIZA Financial Stmt'!O57+'AZIZA Financial Stmt'!O51 -> 5055711 | P46: ='AZIZA Financial Stmt'!P56+'AZIZA Financial Stmt'!P57+'AZIZA Financial Stmt'!P51 -> 4217332 | Q46: ='AZIZA Financial Stmt'!Q56+'AZIZA Financial Stmt'!Q57+'AZIZA Financial Stmt'!Q51 -> 2743919 | R46: ='AZIZA Financial Stmt'!R56+'AZIZA Financial Stmt'!R57+'AZIZA Financial Stmt'!R51 -> 1953065.901 | S46: ='AZIZA Financial Stmt'!S56+'AZIZA Financial Stmt'!S57+'AZIZA Financial Stmt'!S51 -> 0 | T46: ='AZIZA Financial Stmt'!T56+'AZIZA Financial Stmt'!T57+'AZIZA Financial Stmt'!T51 -> 0 | U46: ='AZIZA Financial Stmt'!U56+'AZIZA Financial Stmt'!U57+'AZIZA Financial Stmt'!U51 -> 0 | V46: ='AZIZA Financial Stmt'!V56+'AZIZA Financial Stmt'!V57+'AZIZA Financial Stmt'!V51 -> 0 | W46: ='AZIZA Financial Stmt'!W56+'AZIZA Financial Stmt'!W57+'AZIZA Financial Stmt'!W51 -> 0 | X46: ='AZIZA Financial Stmt'!X56+'AZIZA Financial Stmt'!X57+'AZIZA Financial Stmt'!X51 -> 0 | Y46: ='AZIZA Financial Stmt'!Y56+'AZIZA Financial Stmt'!Y57+'AZIZA Financial Stmt'!Y51 -> 0 | Z46: ='AZIZA Financial Stmt'!Z56+'AZIZA Financial Stmt'!Z57+'AZIZA Financial Stmt'!Z51 -> 0 | AB46: 8
C47: Average Rate | E47: 3 | F47: =AVERAGEIF($2:$2,TRUE,47:47) -> 0.04133543555 | G47: =AVERAGEIF($3:$3,TRUE,47:47) -> 0.06310973465 | H47: 0.03 | I47: =CHOOSE(E47,F47,G47,H47) -> 0.03 | J47: =IF(J$2,J44/J46,$I47) -> 0.07530371016 | K47: 0.01470751383 | L47: 0.01794777493 | M47: 0.02483870202 | N47: 0.02608292534 | O47: 0.05932281063 | P47: 0.04937031279 | Q47: 0.06310973465 | R47: 0.03 | S47: 0.03 | T47: 0.03 | U47: 0.03 | V47: 0.03 | W47: 0.03 | X47: 0.03 | Y47: 0.03 | Z47: 0.03 | AB47: 9 | AC47: TRUE
C48: Interest Income Rate | H48: 0.02 | J48: =IF(J2,0,$H$48) -> 0 | K48: 0 | L48: 0 | M48: 0 | N48: 0 | O48: 0 | P48: 0 | Q48: 0 | R48: 0.02 | S48: 0.02 | T48: 0.02 | U48: 0.02 | V48: 0.02 | W48: 0.02 | X48: 0.02 | Y48: 0.02 | Z48: 0.02 | AB48: 9
C49: Interest Expense Rate | H49: 0.06 | J49: =IF(J2,0,$H$49) -> 0 | K49: 0 | L49: 0 | M49: 0 | N49: 0 | O49: 0 | P49: 0 | Q49: 0 | R49: 0.06 | S49: 0.06 | T49: 0.06 | U49: 0.06 | V49: 0.06 | W49: 0.06 | X49: 0.06 | Y49: 0.06 | Z49: 0.06 | AB49: 9
AB50: 9
C51: Net Revenues | F51: Avg | G51: Last | H51: Input | I51: =CHOOSE(E52,F51,G51,H51) -> Input | J51: ='AZIZA Financial Stmt'!J17 -> -53580 | K51: ='AZIZA Financial Stmt'!K17 -> 303309 | L51: ='AZIZA Financial Stmt'!L17 -> 405445 | M51: ='AZIZA Financial Stmt'!M17 -> -523975 | N51: ='AZIZA Financial Stmt'!N17 -> 185977 | O51: ='AZIZA Financial Stmt'!O17 -> 523873.802 | P51: ='AZIZA Financial Stmt'!P17 -> -469868 | Q51: ='AZIZA Financial Stmt'!Q17 -> -40317 | R51: ='AZIZA Financial Stmt'!R17 -> 59151.47358 | S51: ='AZIZA Financial Stmt'!S17 -> 0 | T51: ='AZIZA Financial Stmt'!T17 -> 0 | U51: ='AZIZA Financial Stmt'!U17 -> 0 | V51: ='AZIZA Financial Stmt'!V17 -> 0 | W51: ='AZIZA Financial Stmt'!W17 -> 0 | X51: ='AZIZA Financial Stmt'!X17 -> 0 | Y51: ='AZIZA Financial Stmt'!Y17 -> 0 | Z51: ='AZIZA Financial Stmt'!Z17 -> 0 | AB51: 9
C52: Net Revenues Projection | E52: 3 | F52: =AVERAGEIF($2:$2,TRUE,52:52) -> 41358.10025 | G52: =AVERAGEIF($3:$3,TRUE,52:52) -> -40317 | H52: 50000 | I52: =CHOOSE(E52,F52,G52,H52) -> 50000 | J52: =IF(J$2,J51,$I52) -> -53580 | K52: 303309 | L52: 405445 | M52: -523975 | N52: 185977 | O52: 523873.802 | P52: -469868 | Q52: -40317 | R52: 50000 | S52: 50000 | T52: 50000 | U52: 50000 | V52: 50000 | W52: 50000 | X52: 50000 | Y52: 50000 | Z52: 50000 | AB52: 10 | AC52: TRUE
AB53: 10
C54: Cash Balance | J54: ='AZIZA Financial Stmt'!J37 -> 334544 | K54: ='AZIZA Financial Stmt'!K37 -> 1131128 | L54: ='AZIZA Financial Stmt'!L37 -> 336883 | M54: ='AZIZA Financial Stmt'!M37 -> 160936 | N54: ='AZIZA Financial Stmt'!N37 -> 114564 | O54: ='AZIZA Financial Stmt'!O37 -> 1507182 | P54: ='AZIZA Financial Stmt'!P37 -> 505299 | Q54: ='AZIZA Financial Stmt'!Q37 -> 1546993 | R54: ='AZIZA Financial Stmt'!R37 -> 4672904.192 | S54: ='AZIZA Financial Stmt'!S37 -> 0 | T54: ='AZIZA Financial Stmt'!T37 -> 0 | U54: ='AZIZA Financial Stmt'!U37 -> 0 | V54: ='AZIZA Financial Stmt'!V37 -> 0 | W54: ='AZIZA Financial Stmt'!W37 -> 0 | X54: ='AZIZA Financial Stmt'!X37 -> 0 | Y54: ='AZIZA Financial Stmt'!Y37 -> 0 | Z54: ='AZIZA Financial Stmt'!Z37 -> 0 | AB54: 10
C55: Revenues | F55: Avg | G55: Last | H55: Input | I55: =CHOOSE(E56,F55,G55,H55) -> Input | J55: ='AZIZA Financial Stmt'!J7 -> 12551497 | K55: ='AZIZA Financial Stmt'!K7 -> 12445619 | L55: ='AZIZA Financial Stmt'!L7 -> 17843682 | M55: ='AZIZA Financial Stmt'!M7 -> 18668526 | N55: ='AZIZA Financial Stmt'!N7 -> 18862818 | O55: ='AZIZA Financial Stmt'!O7 -> 26173760 | P55: ='AZIZA Financial Stmt'!P7 -> 29532749 | Q55: ='AZIZA Financial Stmt'!Q7 -> 30444532 | R55: ='AZIZA Financial Stmt'!R7 -> 33702722.67 | S55: ='AZIZA Financial Stmt'!S7 -> 0 | T55: ='AZIZA Financial Stmt'!T7 -> 0 | U55: ='AZIZA Financial Stmt'!U7 -> 0 | V55: ='AZIZA Financial Stmt'!V7 -> 0 | W55: ='AZIZA Financial Stmt'!W7 -> 0 | X55: ='AZIZA Financial Stmt'!X7 -> 0 | Y55: ='AZIZA Financial Stmt'!Y7 -> 0 | Z55: ='AZIZA Financial Stmt'!Z7 -> 0 | AB55: 10
C56: Minimum Cash Percent | E56: 3 | F56: =AVERAGEIF($2:$2,TRUE,56:56) -> 0.0345775322 | G56: =AVERAGEIF($3:$3,TRUE,56:56) -> 0.05081349255 | H56: 0.01 | I56: =CHOOSE(E56,F56,G56,H56) -> 0.01 | J56: =IF(J$2,J54/J55,$I56) -> 0.0266537131 | K56: 0.09088563614 | L56: 0.01887967965 | M56: 0.008620712744 | N56: 0.006073535778 | O56: 0.05758370215 | P56: 0.01710978548 | Q56: 0.05081349255 | R56: 0.01 | S56: 0.01 | T56: 0.01 | U56: 0.01 | V56: 0.01 | W56: 0.01 | X56: 0.01 | Y56: 0.01 | Z56: 0.01 | AB56: 11 | AC56: TRUE
AB57: 11
C58: Net Income | J58: ='AZIZA Financial Stmt'!J20 -> 792650 | K58: ='AZIZA Financial Stmt'!K20 -> 2623529 | L58: ='AZIZA Financial Stmt'!L20 -> 4443282 | M58: ='AZIZA Financial Stmt'!M20 -> -298790 | N58: ='AZIZA Financial Stmt'!N20 -> 683797 | O58: ='AZIZA Financial Stmt'!O20 -> 3361673.847 | P58: ='AZIZA Financial Stmt'!P20 -> 2322241 | Q58: ='AZIZA Financial Stmt'!Q20 -> 3093633 | R58: ='AZIZA Financial Stmt'!R20 -> 4968275.125 | S58: ='AZIZA Financial Stmt'!S20 -> 0 | T58: ='AZIZA Financial Stmt'!T20 -> 0 | U58: ='AZIZA Financial Stmt'!U20 -> 0 | V58: ='AZIZA Financial Stmt'!V20 -> 0 | W58: ='AZIZA Financial Stmt'!W20 -> 0 | X58: ='AZIZA Financial Stmt'!X20 -> 0 | Y58: ='AZIZA Financial Stmt'!Y20 -> 0 | Z58: ='AZIZA Financial Stmt'!Z20 -> 0 | AB58: 11
C59: Dividends | F59: Avg | G59: Last | H59: Input | I59: =CHOOSE(E60,F59,G59,H59) -> Input | J59: =-'AZIZA Financial Stmt'!J101 -> 0 | K59: =-'AZIZA Financial Stmt'!K101 -> 0 | L59: =-'AZIZA Financial Stmt'!L101 -> 583307 | M59: =-'AZIZA Financial Stmt'!M101 -> 326535 | N59: =-'AZIZA Financial Stmt'!N101 -> 45256 | O59: =-'AZIZA Financial Stmt'!O101 -> 136627 | P59: =-'AZIZA Financial Stmt'!P101 -> 1521121 | Q59: =-'AZIZA Financial Stmt'!Q101 -> 1592683 | R59: =-'AZIZA Financial Stmt'!R101 -> 2016000 | S59: =-'AZIZA Financial Stmt'!S101 -> 0 | T59: =-'AZIZA Financial Stmt'!T101 -> 0 | U59: =-'AZIZA Financial Stmt'!U101 -> 0 | V59: =-'AZIZA Financial Stmt'!V101 -> 0 | W59: =-'AZIZA Financial Stmt'!W101 -> 0 | X59: =-'AZIZA Financial Stmt'!X101 -> 0 | Y59: =-'AZIZA Financial Stmt'!Y101 -> 0 | Z59: =-'AZIZA Financial Stmt'!Z101 -> 0 | AB59: 11
C60: Dividend Payout | E60: 3 | F60: =AVERAGEIF($2:$2,TRUE,60:60) -> 0.03938693346 | G60: =AVERAGEIF($3:$3,TRUE,60:60) -> 0.514826096 | H60: 0.5 | I60: =CHOOSE(E60,F60,G60,H60) -> 0.5 | J60: =IF(J$2,J59/J58,$I60) -> 0 | K60: 0 | L60: 0.1312784109 | M60: -1.09285786 | N60: 0.06618338483 | O60: 0.04064255077 | P60: 0.6550228852 | Q60: 0.514826096 | R60: 0.5 | S60: 0.5 | T60: 0.5 | U60: 0.5 | V60: 0.5 | W60: 0.5 | X60: 0.5 | Y60: 0.5 | Z60: 0.5 | AB60: 12 | AC60: TRUE
AB61: 12
B62: Working Capital | AB62: 12
C63: Total Biological Assets | J63: ='AZIZA Financial Stmt'!J33 -> 1168434 | K63: ='AZIZA Financial Stmt'!K33 -> 1696723 | L63: ='AZIZA Financial Stmt'!L33 -> 2490128 | M63: ='AZIZA Financial Stmt'!M33 -> 1961385 | N63: ='AZIZA Financial Stmt'!N33 -> 2011969 | O63: ='AZIZA Financial Stmt'!O33 -> 1892214 | P63: ='AZIZA Financial Stmt'!P33 -> 1802803 | Q63: ='AZIZA Financial Stmt'!Q33 -> 2019602 | R63: ='AZIZA Financial Stmt'!R33 -> 2145362.044 | S63: ='AZIZA Financial Stmt'!S33 -> 0 | T63: ='AZIZA Financial Stmt'!T33 -> 0 | U63: ='AZIZA Financial Stmt'!U33 -> 0 | V63: ='AZIZA Financial Stmt'!V33 -> 0 | W63: ='AZIZA Financial Stmt'!W33 -> 0 | X63: ='AZIZA Financial Stmt'!X33 -> 0 | Y63: ='AZIZA Financial Stmt'!Y33 -> 0 | Z63: ='AZIZA Financial Stmt'!Z33 -> 0 | AB63: 12
C64: Revenues | F64: Avg | G64: Last | H64: Input | I64: =CHOOSE(E65,F64,G64,H64) -> Input | J64: ='AZIZA Financial Stmt'!J7 -> 12551497 | K64: ='AZIZA Financial Stmt'!K7 -> 12445619 | L64: ='AZIZA Financial Stmt'!L7 -> 17843682 | M64: ='AZIZA Financial Stmt'!M7 -> 18668526 | N64: ='AZIZA Financial Stmt'!N7 -> 18862818 | O64: ='AZIZA Financial Stmt'!O7 -> 26173760 | P64: ='AZIZA Financial Stmt'!P7 -> 29532749 | Q64: ='AZIZA Financial Stmt'!Q7 -> 30444532 | R64: ='AZIZA Financial Stmt'!R7 -> 33702722.67 | S64: ='AZIZA Financial Stmt'!S7 -> 0 | T64: ='AZIZA Financial Stmt'!T7 -> 0 | U64: ='AZIZA Financial Stmt'!U7 -> 0 | V64: ='AZIZA Financial Stmt'!V7 -> 0 | W64: ='AZIZA Financial Stmt'!W7 -> 0 | X64: ='AZIZA Financial Stmt'!X7 -> 0 | Y64: ='AZIZA Financial Stmt'!Y7 -> 0 | Z64: ='AZIZA Financial Stmt'!Z7 -> 0 | AB64: 12
C65: Biological Assets as Pct of Sale | E65: 3 | F65: =AVERAGEIF($2:$2,TRUE,65:65) -> 0.09754713558 | G65: =AVERAGEIF($3:$3,TRUE,65:65) -> 0.06633710119 | H65: =R63/R64 -> 0.06365545198 | I65: =CHOOSE(E65,F65,G65,H65) -> 0.06365545198 | J65: =IF(J$2,J63/J64,$I65) -> 0.09309120657 | K65: 0.136330945 | L65: 0.1395523637 | M65: 0.1050637313 | N65: 0.106663225 | O65: 0.07229431308 | P65: 0.06104419876 | Q65: 0.06633710119 | R65: 0.06365545198 | S65: 0.06365545198 | T65: 0.06365545198 | U65: 0.06365545198 | V65: 0.06365545198 | W65: 0.06365545198 | X65: 0.06365545198 | Y65: 0.06365545198 | Z65: 0.06365545198 | AB65: 13 | AC65: TRUE
AB66: 13
C67: Inventory | J67: ='AZIZA Financial Stmt'!J34 -> 1113114 | K67: ='AZIZA Financial Stmt'!K34 -> 941042 | L67: ='AZIZA Financial Stmt'!L34 -> 2078143 | M67: ='AZIZA Financial Stmt'!M34 -> 1398643 | N67: ='AZIZA Financial Stmt'!N34 -> 1508159 | O67: ='AZIZA Financial Stmt'!O34 -> 2350474 | P67: ='AZIZA Financial Stmt'!P34 -> 2532370 | Q67: ='AZIZA Financial Stmt'!Q34 -> 1859144 | R67: ='AZIZA Financial Stmt'!R34 -> 2024681.323 | S67: ='AZIZA Financial Stmt'!S34 -> 0 | T67: ='AZIZA Financial Stmt'!T34 -> 0 | U67: ='AZIZA Financial Stmt'!U34 -> 0 | V67: ='AZIZA Financial Stmt'!V34 -> 0 | W67: ='AZIZA Financial Stmt'!W34 -> 0 | X67: ='AZIZA Financial Stmt'!X34 -> 0 | Y67: ='AZIZA Financial Stmt'!Y34 -> 0 | Z67: ='AZIZA Financial Stmt'!Z34 -> 0 | AB67: 13
C68: COGS | F68: Avg | G68: Last | H68: Input | I68: =CHOOSE(E69,F68,G68,H68) -> Input | J68: =J15 -> 10012291 | K68: =K15 -> 8366645 | L68: 11229979 | M68: 15824271 | N68: 15473803 | O68: 19354132.81 | P68: 22604198 | Q68: 23186091 | R68: 24588512.29 | S68: 0 | T68: 0 | U68: 0 | V68: 0 | W68: 0 | X68: 0 | Y68: 0 | Z68: 0 | AB68: 13
C69: Inventory as Percent of COGS | E69: 3 | F69: =AVERAGEIF($2:$2,TRUE,69:69) -> 0.1135268397 | G69: =AVERAGEIF($3:$3,TRUE,69:69) -> 0.08018358938 | H69: =R67/R68 -> 0.08234257117 | I69: =CHOOSE(E69,F69,G69,H69) -> 0.08234257117 | J69: =IF(J$2,J67/J68,$I69) -> 0.1111747551 | K69: 0.1124754307 | L69: 0.185053151 | M69: 0.08838593576 | N69: 0.09746530959 | O69: 0.1214455859 | P69: 0.1120309599 | Q69: 0.08018358938 | R69: 0.08234257117 | S69: 0.08234257117 | T69: 0.08234257117 | U69: 0.08234257117 | V69: 0.08234257117 | W69: 0.08234257117 | X69: 0.08234257117 | Y69: 0.08234257117 | Z69: 0.08234257117 | AB69: 14 | AC69: TRUE
AB70: 14
C71: Accounts Receivable | J71: ='AZIZA Financial Stmt'!J35 -> 1414380 | K71: ='AZIZA Financial Stmt'!K35 -> 1571703 | L71: ='AZIZA Financial Stmt'!L35 -> 1884711 | M71: ='AZIZA Financial Stmt'!M35 -> 3404388 | N71: ='AZIZA Financial Stmt'!N35 -> 4328998 | O71: ='AZIZA Financial Stmt'!O35 -> 4746615 | P71: ='AZIZA Financial Stmt'!P35 -> 5704328 | Q71: ='AZIZA Financial Stmt'!Q35 -> 5621711 | R71: ='AZIZA Financial Stmt'!R35 -> 6621521.004 | S71: ='AZIZA Financial Stmt'!S35 -> 0 | T71: ='AZIZA Financial Stmt'!T35 -> 0 | U71: ='AZIZA Financial Stmt'!U35 -> 0 | V71: ='AZIZA Financial Stmt'!V35 -> 0 | W71: ='AZIZA Financial Stmt'!W35 -> 0 | X71: ='AZIZA Financial Stmt'!X35 -> 0 | Y71: ='AZIZA Financial Stmt'!Y35 -> 0 | Z71: ='AZIZA Financial Stmt'!Z35 -> 0 | AB71: 14
C72: Revenues | F72: Avg | G72: Last | H72: Input | I72: =CHOOSE(E73,F72,G72,H72) -> Input | J72: =J64 -> 12551497 | K72: =K64 -> 12445619 | L72: 17843682 | M72: 18668526 | N72: 18862818 | O72: 26173760 | P72: 29532749 | Q72: 30444532 | R72: 33702722.67 | S72: 0 | T72: 0 | U72: 0 | V72: 0 | W72: 0 | X72: 0 | Y72: 0 | Z72: 0 | AB72: 14
C73: A/R as Percent of Revenues | E73: 3 | F73: =AVERAGEIF($2:$2,TRUE,73:73) -> 0.164451373 | G73: =AVERAGEIF($3:$3,TRUE,73:73) -> 0.1846542098 | H73: =R71/R72 -> 0.1964684299 | I73: =CHOOSE(E73,F73,G73,H73) -> 0.1964684299 | J73: =IF(J$2,J71/J72,$I73) -> 0.1126861601 | K73: 0.1262856432 | L73: 0.1056234358 | M73: 0.1823597642 | N73: 0.229499007 | O73: 0.1813501385 | P73: 0.1931526252 | Q73: 0.1846542098 | R73: 0.1964684299 | S73: 0.1964684299 | T73: 0.1964684299 | U73: 0.1964684299 | V73: 0.1964684299 | W73: 0.1964684299 | X73: 0.1964684299 | Y73: 0.1964684299 | Z73: 0.1964684299 | AB73: 15 | AC73: TRUE
AB74: 15
C75: Other Current Assets | J75: ='AZIZA Financial Stmt'!J36 -> 628093 | K75: ='AZIZA Financial Stmt'!K36 -> 906652 | L75: ='AZIZA Financial Stmt'!L36 -> 993682 | M75: ='AZIZA Financial Stmt'!M36 -> 1802258 | N75: ='AZIZA Financial Stmt'!N36 -> 1369257 | O75: ='AZIZA Financial Stmt'!O36 -> 718849 | P75: ='AZIZA Financial Stmt'!P36 -> 393102 | Q75: ='AZIZA Financial Stmt'!Q36 -> 301815 | R75: ='AZIZA Financial Stmt'!R36 -> 278438 | S75: ='AZIZA Financial Stmt'!S36 -> 0 | T75: ='AZIZA Financial Stmt'!T36 -> 0 | U75: ='AZIZA Financial Stmt'!U36 -> 0 | V75: ='AZIZA Financial Stmt'!V36 -> 0 | W75: ='AZIZA Financial Stmt'!W36 -> 0 | X75: ='AZIZA Financial Stmt'!X36 -> 0 | Y75: ='AZIZA Financial Stmt'!Y36 -> 0 | Z75: ='AZIZA Financial Stmt'!Z36 -> 0 | AB75: 15
C76: Revenues | F76: Avg | G76: Last | H76: Input | I76: =CHOOSE(E77,F76,G76,H76) -> Input | J76: =J68 -> 10012291 | K76: =K68 -> 8366645 | L76: 11229979 | M76: 15824271 | N76: 15473803 | O76: 19354132.81 | P76: 22604198 | Q76: 23186091 | R76: 24588512.29 | S76: 0 | T76: 0 | U76: 0 | V76: 0 | W76: 0 | X76: 0 | Y76: 0 | Z76: 0 | AB76: =AB75+AC76 -> 15
C77: Other Current Assets as Pct of Revenues | E77: 3 | F77: =AVERAGEIF($2:$2,TRUE,77:77) -> 0.06618904567 | G77: =AVERAGEIF($3:$3,TRUE,77:77) -> 0.01301707131 | H77: =R75/R76 -> 0.01132390593 | I77: =CHOOSE(E77,F77,G77,H77) -> 0.01132390593 | J77: =IF(J$2,J75/J76,$I77) -> 0.06273219586 | K77: 0.1083650615 | L77: 0.0884847603 | M77: 0.113892008 | N77: 0.08848871864 | O77: 0.03714188628 | P77: 0.01739066345 | Q77: 0.01301707131 | R77: 0.01132390593 | S77: 0.01132390593 | T77: 0.01132390593 | U77: 0.01132390593 | V77: 0.01132390593 | W77: 0.01132390593 | X77: 0.01132390593 | Y77: 0.01132390593 | Z77: 0.01132390593 | AB77: 16 | AC77: TRUE
AB78: 16
C79: Accounts Payable | J79: ='AZIZA Financial Stmt'!J55 -> 1919057 | K79: ='AZIZA Financial Stmt'!K55 -> 2374014 | L79: ='AZIZA Financial Stmt'!L55 -> 3433231 | M79: ='AZIZA Financial Stmt'!M55 -> 4363041 | N79: ='AZIZA Financial Stmt'!N55 -> 4293309 | O79: ='AZIZA Financial Stmt'!O55 -> 3864400 | P79: ='AZIZA Financial Stmt'!P55 -> 4202940 | Q79: ='AZIZA Financial Stmt'!Q55 -> 4182140 | R79: ='AZIZA Financial Stmt'!R55 -> 5249728.924 | S79: ='AZIZA Financial Stmt'!S55 -> 0 | T79: ='AZIZA Financial Stmt'!T55 -> 0 | U79: ='AZIZA Financial Stmt'!U55 -> 0 | V79: ='AZIZA Financial Stmt'!V55 -> 0 | W79: ='AZIZA Financial Stmt'!W55 -> 0 | X79: ='AZIZA Financial Stmt'!X55 -> 0 | Y79: ='AZIZA Financial Stmt'!Y55 -> 0 | Z79: ='AZIZA Financial Stmt'!Z55 -> 0 | AB79: 16
C80: Total Expense | F80: Avg | G80: Last | H80: Input | I80: =CHOOSE(E81,F80,G80,H80) -> Input | J80: =J22+J28+J15 -> 10639420 | K80: =K22+K28+K15 -> 9110052 | L80: 12589531 | M80: 17018149 | N80: 16721380 | O80: 21187827.58 | P80: 24674958 | Q80: 25366409 | R80: 26805590.35 | S80: 0 | T80: 0 | U80: 0 | V80: 0 | W80: 0 | X80: 0 | Y80: 0 | Z80: 0 | AB80: 16
C81: Accounts Payable as Percent of Expense | E81: 3 | F81: =AVERAGEIF($2:$2,TRUE,81:81) -> 0.2180488704 | G81: =AVERAGEIF($3:$3,TRUE,81:81) -> 0.1648692174 | H81: =R79/R80 -> 0.1958445554 | I81: =CHOOSE(E81,F81,G81,H81) -> 0.1958445554 | J81: =IF(J$2,J79/J80,$I81) -> 0.1803723323 | K81: 0.2605928045 | L81: 0.2727052342 | M81: 0.2563757668 | N81: 0.2567556625 | O81: 0.1823877406 | P81: 0.1703322048 | Q81: 0.1648692174 | R81: 0.1958445554 | S81: 0.1958445554 | T81: 0.1958445554 | U81: 0.1958445554 | V81: 0.1958445554 | W81: 0.1958445554 | X81: 0.1958445554 | Y81: 0.1958445554 | Z81: 0.1958445554 | AB81: 17 | AC81: TRUE
AB82: 17
C83: Other Current Liabilities | J83: ='AZIZA Financial Stmt'!J58+'AZIZA Financial Stmt'!J59 -> 313260 | K83: ='AZIZA Financial Stmt'!K58+'AZIZA Financial Stmt'!K59 -> 237193 | L83: ='AZIZA Financial Stmt'!L58+'AZIZA Financial Stmt'!L59 -> 611557 | M83: ='AZIZA Financial Stmt'!M58+'AZIZA Financial Stmt'!M59 -> 382012 | N83: ='AZIZA Financial Stmt'!N58+'AZIZA Financial Stmt'!N59 -> 403828 | O83: ='AZIZA Financial Stmt'!O58+'AZIZA Financial Stmt'!O59 -> 707103 | P83: ='AZIZA Financial Stmt'!P58+'AZIZA Financial Stmt'!P59 -> 336134 | Q83: ='AZIZA Financial Stmt'!Q58+'AZIZA Financial Stmt'!Q59 -> 389676 | R83: ='AZIZA Financial Stmt'!R58+'AZIZA Financial Stmt'!R59 -> 412438.2994 | S83: ='AZIZA Financial Stmt'!S58+'AZIZA Financial Stmt'!S59 -> 0 | T83: ='AZIZA Financial Stmt'!T58+'AZIZA Financial Stmt'!T59 -> 0 | U83: ='AZIZA Financial Stmt'!U58+'AZIZA Financial Stmt'!U59 -> 0 | V83: ='AZIZA Financial Stmt'!V58+'AZIZA Financial Stmt'!V59 -> 0 | W83: ='AZIZA Financial Stmt'!W58+'AZIZA Financial Stmt'!W59 -> 0 | X83: ='AZIZA Financial Stmt'!X58+'AZIZA Financial Stmt'!X59 -> 0 | Y83: ='AZIZA Financial Stmt'!Y58+'AZIZA Financial Stmt'!Y59 -> 0 | Z83: ='AZIZA Financial Stmt'!Z58+'AZIZA Financial Stmt'!Z59 -> 0 | AB83: 17
C84: Total Revenues | F84: Avg | G84: Last | H84: Input | I84: =CHOOSE(E85,F84,G84,H84) -> Input | J84: =J76 -> 10012291 | K84: =K76 -> 8366645 | L84: 11229979 | M84: 15824271 | N84: 15473803 | O84: 19354132.81 | P84: 22604198 | Q84: 23186091 | R84: 24588512.29 | S84: 0 | T84: 0 | U84: 0 | V84: 0 | W84: 0 | X84: 0 | Y84: 0 | Z84: 0 | AB84: 17
C85: Other Current Liabilities Percent | E85: 3 | F85: =AVERAGEIF($2:$2,TRUE,85:85) -> 0.02906815011 | G85: =AVERAGEIF($3:$3,TRUE,85:85) -> 0.01680645521 | H85: =R83/R84 -> 0.01677361747 | I85: =CHOOSE(E85,F85,G85,H85) -> 0.01677361747 | J85: =IF(J$2,J83/J84,$I85) -> 0.03128754448 | K85: 0.02834983437 | L85: 0.05445753728 | M85: 0.02414089091 | N85: 0.02609752754 | O85: 0.03653498748 | P85: 0.01487042363 | Q85: 0.01680645521 | R85: 0.01677361747 | S85: 0.01677361747 | T85: 0.01677361747 | U85: 0.01677361747 | V85: 0.01677361747 | W85: 0.01677361747 | X85: 0.01677361747 | Y85: 0.01677361747 | Z85: 0.01677361747 | AB85: 18 | AC85: TRUE
AB86: 18
B87: Other Assets and Liabilities | AB87: 18
C88: Provision for Employees' Indemnity | J88: ='AZIZA Financial Stmt'!J52 -> 161163 | K88: ='AZIZA Financial Stmt'!K52 -> 217506 | L88: ='AZIZA Financial Stmt'!L52 -> 294960 | M88: ='AZIZA Financial Stmt'!M52 -> 342035 | N88: ='AZIZA Financial Stmt'!N52 -> 392155 | O88: ='AZIZA Financial Stmt'!O52 -> 512872 | P88: ='AZIZA Financial Stmt'!P52 -> 549449 | Q88: ='AZIZA Financial Stmt'!Q52 -> 683660 | R88: ='AZIZA Financial Stmt'!R52 -> 740568.4429 | S88: ='AZIZA Financial Stmt'!S52 -> 0 | T88: ='AZIZA Financial Stmt'!T52 -> 0 | U88: ='AZIZA Financial Stmt'!U52 -> 0 | V88: ='AZIZA Financial Stmt'!V52 -> 0 | W88: ='AZIZA Financial Stmt'!W52 -> 0 | X88: ='AZIZA Financial Stmt'!X52 -> 0 | Y88: ='AZIZA Financial Stmt'!Y52 -> 0 | Z88: ='AZIZA Financial Stmt'!Z52 -> 0 | AB88: 18
C89: Administrative and Marketing Expense | F89: Avg | G89: Last | H89: Input | I89: =CHOOSE(E90,F89,G89,H89) -> Input | J89: =J22+J28 -> 627129 | K89: =K22+K28 -> 743407 | L89: 1359552 | M89: 1193878 | N89: 1247577 | O89: 1833694.763 | P89: 2070760 | Q89: 2180318 | R89: 2217078.066 | S89: 0 | T89: 0 | U89: 0 | V89: 0 | W89: 0 | X89: 0 | Y89: 0 | Z89: 0 | AB89: 18
C90: Provision as Percent of Expense | E90: 3 | F90: =AVERAGEIF($2:$2,TRUE,90:90) -> 0.2782416399 | G90: =AVERAGEIF($3:$3,TRUE,90:90) -> 0.3135597651 | H90: 0.3 | I90: =CHOOSE(E90,F90,G90,H90) -> 0.3 | J90: =IF(J2,J88/J89,$I$90) -> 0.2569854049 | K90: 0.292579973 | L90: 0.2169538201 | M90: 0.286490747 | N90: 0.3143333037 | O90: 0.279693224 | P90: 0.2653368811 | Q90: 0.3135597651 | R90: 0.3 | S90: 0.3 | T90: 0.3 | U90: 0.3 | V90: 0.3 | W90: 0.3 | X90: 0.3 | Y90: 0.3 | Z90: 0.3 | AB90: 19 | AC90: TRUE
F91: =AVERAGE(J90:P90) -> 0.2731961934 | G91: =AVERAGEIF(3:3,TRUE,90:90) -> 0.3135597651 | H91: 0.3 | AB91: 19
C92: Projects In Progress | F92: =AVERAGEIF(2:2,TRUE,90:90) -> 0.2782416399 | J92: =IF(J2,'AZIZA Financial Stmt'!J27,I92) -> 208054 | K92: =IF(K2,'AZIZA Financial Stmt'!K27,J92) -> 3071359 | L92: =IF(L2,'AZIZA Financial Stmt'!L27,K92) -> 1350464 | M92: =IF(M2,'AZIZA Financial Stmt'!M27,L92) -> 170690 | N92: =IF(N2,'AZIZA Financial Stmt'!N27,M92) -> 184908 | O92: =IF(O2,'AZIZA Financial Stmt'!O27,N92) -> 189825 | P92: =IF(P2,'AZIZA Financial Stmt'!P27,O92) -> 431901 | Q92: =IF(Q2,'AZIZA Financial Stmt'!Q27,P92) -> 460034 | R92: =IF(R2,'AZIZA Financial Stmt'!R27,Q92) -> 460034 | S92: =IF(S2,'AZIZA Financial Stmt'!S27,R92) -> 460034 | T92: =IF(T2,'AZIZA Financial Stmt'!T27,S92) -> 460034 | U92: =IF(U2,'AZIZA Financial Stmt'!U27,T92) -> 460034 | V92: =IF(V2,'AZIZA Financial Stmt'!V27,U92) -> 460034 | W92: =IF(W2,'AZIZA Financial Stmt'!W27,V92) -> 460034 | X92: =IF(X2,'AZIZA Financial Stmt'!X27,W92) -> 460034 | Y92: =IF(Y2,'AZIZA Financial Stmt'!Y27,X92) -> 460034 | Z92: =IF(Z2,'AZIZA Financial Stmt'!Z27,Y92) -> 460034 | AB92: 19
C93: Available for Sale Investments | J93: =IF(J2,'AZIZA Financial Stmt'!J28,I93) -> 49336 | K93: =IF(K2,'AZIZA Financial Stmt'!K28,J93) -> 25310 | L93: =IF(L2,'AZIZA Financial Stmt'!L28,K93) -> 6970 | M93: =IF(M2,'AZIZA Financial Stmt'!M28,L93) -> 7100 | N93: =IF(N2,'AZIZA Financial Stmt'!N28,M93) -> 7262 | O93: =IF(O2,'AZIZA Financial Stmt'!O28,N93) -> 7764 | P93: =IF(P2,'AZIZA Financial Stmt'!P28,O93) -> 6636 | Q93: =IF(Q2,'AZIZA Financial Stmt'!Q28,P93) -> 6636 | R93: =IF(R2,'AZIZA Financial Stmt'!R28,Q93) -> 6636 | S93: =IF(S2,'AZIZA Financial Stmt'!S28,R93) -> 6636 | T93: =IF(T2,'AZIZA Financial Stmt'!T28,S93) -> 6636 | U93: =IF(U2,'AZIZA Financial Stmt'!U28,T93) -> 6636 | V93: =IF(V2,'AZIZA Financial Stmt'!V28,U93) -> 6636 | W93: =IF(W2,'AZIZA Financial Stmt'!W28,V93) -> 6636 | X93: =IF(X2,'AZIZA Financial Stmt'!X28,W93) -> 6636 | Y93: =IF(Y2,'AZIZA Financial Stmt'!Y28,X93) -> 6636 | Z93: =IF(Z2,'AZIZA Financial Stmt'!Z28,Y93) -> 6636 | AB93: 20 | AC93: TRUE
AB94: 20
AB95: 20
A96: Operating Analysis | AB96: 20
C97: Revenues | J97: =IF(J2,J6,I97*(1+J11)) -> 12551497 | K97: 12445619 | L97: 17843682 | M97: 18668526 | N97: 18862818 | O97: 26173760 | P97: 29532749 | Q97: 30444532 | R97: 33702722.67 | S97: 35387858.8 | T97: 37157251.74 | U97: 39015114.33 | V97: 40965870.04 | W97: 43014163.55 | X97: 45164871.72 | Y97: 47423115.31 | Z97: 49794271.07 | AB97: 21 | AC97: TRUE
C98: COGS Cash | J98: =IF(J2,J15,J97*J20) -> 10012291 | K98: 8366645 | L98: 11229979 | M98: 15824271 | N98: 15473803 | O98: 19354132.81 | P98: 22604198 | Q98: 23186091 | R98: 24588512.29 | S98: 25833136.92 | T98: 27496366.29 | U98: 28871184.6 | V98: 30314743.83 | W98: 31830481.02 | X98: 33422005.08 | Y98: 35093105.33 | Z98: 36847760.6 | AB98: 22 | AC98: TRUE
C99: Administrative Expense | J99: =IF(J2,J22,J23*J97) -> 627129 | K99: 743407 | L99: 1225100 | M99: 930214 | N99: 917134 | O99: 1089010.763 | P99: 1092824 | Q99: 1224293 | R99: 1666718.039 | S99: 1750053.941 | T99: 1837556.638 | U99: 1929434.469 | V99: 2025906.193 | W99: 2127201.503 | X99: 2233561.578 | Y99: 2345239.657 | Z99: 2462501.639 | AB99: 23 | AC99: TRUE
C100: Doubtful Accounts | J100: =IF(J2,J25,J26*J97) -> 195856 | K100: 71641 | L100: 0 | M100: 0 | N100: 128440 | O100: 118450.3922 | P100: 132310 | Q100: 139494 | R100: 175916.5749 | S100: 184712.4037 | T100: 193948.0238 | U100: 203645.425 | V100: 213827.6963 | W100: 224519.0811 | X100: 235745.0351 | Y100: 247532.2869 | Z100: 259908.9013 | AB100: 24 | AC100: TRUE
C101: Sales & Marketing Expenses | J101: =IF(J2,J28,I101*(1+J29)) -> 0 | K101: 0 | L101: 134452 | M101: 263664 | N101: 330443 | O101: 744684 | P101: 977936 | Q101: 956025 | R101: 1005446.811 | S101: 1057423.488 | T101: 1112087.104 | U101: 1169576.562 | V101: 1230037.943 | W101: 1293624.881 | X101: 1360498.953 | Y101: 1430830.087 | Z101: 1504796.996 | AB101: 25 | AC101: TRUE
AB102: 25
A103: Depreciation and Capital Expenditures | AB103: 25
C104: Capital Expenditures | J104: =J33 -> 305477 | K104: =K33 -> 6263126 | L104: 5157567 | M104: 2513906 | N104: 639793 | O104: 413643 | P104: 1282665 | Q104: 976195 | R104: 4800000 | S104: 4800000 | T104: 4800000 | U104: 4800000 | V104: 4800000 | W104: 4800000 | X104: 4800000 | Y104: 4800000 | Z104: 4800000 | AB104: 26 | AC104: TRUE
AB105: 26
C106: Depreciation Rate | J106: =J37 -> 0 | K106: =K37 -> 0.05836402233 | L106: 0.05512628263 | M106: 0.05301732045 | N106: 0.05094418876 | O106: 0.05540722044 | P106: 0.05549819508 | Q106: 0.05894292676 | R106: 0.05999334248 | S106: 0.05999334248 | T106: 0.05999334248 | U106: 0.05999334248 | V106: 0.05999334248 | W106: 0.05999334248 | X106: 0.05999334248 | Y106: 0.05999334248 | Z106: 0.05999334248 | AB106: 26
C107: Depreciation Expense | J107: =IF(J2,'AZIZA Financial Stmt'!J72,J106*J109) -> 669633 | K107: =IF(K2,'AZIZA Financial Stmt'!K72,K106*K109) -> 646466 | L107: =IF(L2,'AZIZA Financial Stmt'!L72,L106*L109) -> 765898 | M107: =IF(M2,'AZIZA Financial Stmt'!M72,M106*M109) -> 1113589 | N107: =IF(N2,'AZIZA Financial Stmt'!N72,N106*N109) -> 1139330 | O107: =IF(O2,'AZIZA Financial Stmt'!O72,O106*O109) -> 1236666 | P107: =IF(P2,'AZIZA Financial Stmt'!P72,P106*P109) -> 1276822 | Q107: =IF(Q2,'AZIZA Financial Stmt'!Q72,Q106*Q109) -> 1198225 | R107: =IF(R2,'AZIZA Financial Stmt'!R72,R106*R109) -> 1205000 | S107: =IF(S2,'AZIZA Financial Stmt'!S72,S106*S109) -> 1420676.066 | T107: =IF(T2,'AZIZA Financial Stmt'!T72,T106*T109) -> 1623413.004 | U107: =IF(U2,'AZIZA Financial Stmt'!U72,U106*U109) -> 1813987.076 | V107: =IF(V2,'AZIZA Financial Stmt'!V72,V106*V109) -> 1993127.972 | W107: =IF(W2,'AZIZA Financial Stmt'!W72,W106*W109) -> 2161521.607 | X107: =IF(X2,'AZIZA Financial Stmt'!X72,X106*X109) -> 2319812.745 | Y107: =IF(Y2,'AZIZA Financial Stmt'!Y72,Y106*Y109) -> 2468607.468 | Z107: =IF(Z2,'AZIZA Financial Stmt'!Z72,Z106*Z109) -> 2608475.499 | AB107: 27 | AC107: TRUE
AB108: 27
C109: Opening Plant | J109: =I112 -> 0 | K109: =J112 -> 11076447 | L109: 13893518 | M109: 21004249 | N109: 22364278 | O109: 22319582 | P109: 23006550 | Q109: 20328563 | R109: 20085562 | S109: 23680562 | T109: 27059885.93 | U109: 30236472.93 | V109: 33222485.85 | W109: 36029357.88 | X109: 38667836.27 | Y109: 41148023.53 | Z109: 43479416.06 | AB109: 27
C110: Add: Capital Expenditures | J110: =J104 -> 305477 | K110: =K104 -> 6263126 | L110: 5157567 | M110: 2513906 | N110: 639793 | O110: 413643 | P110: 1282665 | Q110: 976195 | R110: 4800000 | S110: 4800000 | T110: 4800000 | U110: 4800000 | V110: 4800000 | W110: 4800000 | X110: 4800000 | Y110: 4800000 | Z110: 4800000 | AB110: 27
C111: Less: Depreciation | J111: =J107 -> 669633 | K111: =K107 -> 646466 | L111: 765898 | M111: 1113589 | N111: 1139330 | O111: 1236666 | P111: 1276822 | Q111: 1198225 | R111: 1205000 | S111: 1420676.066 | T111: 1623413.004 | U111: 1813987.076 | V111: 1993127.972 | W111: 2161521.607 | X111: 2319812.745 | Y111: 2468607.468 | Z111: 2608475.499 | AB111: 27
C112: Closing Plant | J112: =IF(J2,J36,J109+J110-J111) -> 11076447 | K112: 13893518 | L112: 21004249 | M112: 22364278 | N112: 22319582 | O112: 23006550 | P112: 20328563 | Q112: 20085562 | R112: 23680562 | S112: 27059885.93 | T112: 30236472.93 | U112: 33222485.85 | V112: 36029357.88 | W112: 38667836.27 | X112: 41148023.53 | Y112: 43479416.06 | Z112: 45670940.56 | AB112: 28 | AC112: TRUE
AB113: 28
A114: Working Capital | AB114: 28
C115: Biological Assets | J115: =IF(J2,J63,J65*J97) -> 1168434 | K115: 1696723 | L115: 2490128 | M115: 1961385 | N115: 2011969 | O115: 1892214 | P115: 1802803 | Q115: 2019602 | R115: 2145362.044 | S115: 2252630.146 | T115: 2365261.654 | U115: 2483524.736 | V115: 2607700.973 | W115: 2738086.022 | X115: 2874990.323 | Y115: 3018739.839 | Z115: 3169676.831 | AB115: 29 | AC115: TRUE
C116: Inventories | J116: =IF(J2,J67,J69*J98) -> 1113114 | K116: 941042 | L116: 2078143 | M116: 1398643 | N116: 1508159 | O116: 2350474 | P116: 2532370 | Q116: 1859144 | R116: 2024681.323 | S116: 2127166.916 | T116: 2264121.498 | U116: 2377327.573 | V116: 2496193.951 | W116: 2621003.649 | X116: 2752053.831 | Y116: 2889656.523 | Z116: 3034139.349 | AB116: 30 | AC116: TRUE
C117: Accounts Receivable | J117: =IF(J2,J71,J73*J97) -> 1414380 | K117: 1571703 | L117: 1884711 | M117: 3404388 | N117: 4328998 | O117: 4746615 | P117: 5704328 | Q117: 5621711 | R117: 6621521.004 | S117: 6952597.055 | T117: 7300226.907 | U117: 7665238.253 | V117: 8048500.165 | W117: 8450925.174 | X117: 8873471.432 | Y117: 9317145.004 | Z117: 9783002.254 | AB117: 31 | AC117: TRUE
C118: Other Current Assets | J118: =IF(J2,J75,J77*J97) -> 628093 | K118: 906652 | L118: 993682 | M118: 1802258 | N118: 1369257 | O118: 718849 | P118: 393102 | Q118: 301815 | R118: 381646.4609 | S118: 400728.784 | T118: 420765.2232 | U118: 441803.4844 | V118: 463893.6586 | W118: 487088.3415 | X118: 511442.7586 | Y118: 537014.8965 | Z118: 563865.6413 | AB118: 32 | AC118: TRUE
C119: Accounts Payable | J119: =IF(J2,J79,J81*(J98+J99+J100)) -> 1919057 | K119: 2374014 | L119: 3433231 | M119: 4363041 | N119: 4293309 | O119: 3864400 | P119: 4202940 | Q119: 4182140 | R119: 5176396.213 | S119: 5438192.67 | T119: 5782872.758 | U119: 6072016.396 | V119: 6375617.215 | W119: 6694398.076 | X119: 7029117.98 | Y119: 7380573.879 | Z119: 7749602.573 | AB119: 33 | AC119: TRUE
C120: Other Current Liabilities | J120: =IF(J2,J83,J85*J97) -> 313260 | K120: 237193 | L120: 611557 | M120: 382012 | N120: 403828 | O120: 707103 | P120: 336134 | Q120: 389676 | R120: 565316.5779 | S120: 593582.4068 | T120: 623261.5271 | U120: 654424.6035 | V120: 687145.8336 | W120: 721503.1253 | X120: 757578.2816 | Y120: 795457.1957 | Z120: 835230.0554 | AB120: 34 | AC120: TRUE
C121: Total Working Capital | J121: =J115+J116+J117+J118-J119-J120 -> 2091704 | K121: =K115+K116+K117+K118-K119-K120 -> 2504913 | L121: 3401876 | M121: 3821621 | N121: 4521246 | O121: 5136649 | P121: 5893529 | Q121: 5230456 | R121: 5431498.041 | S121: 5701347.824 | T121: 5944240.997 | U121: 6241453.047 | V121: 6553525.699 | W121: 6881201.984 | X121: 7225262.084 | Y121: 7586525.188 | Z121: 7965851.447 | AB121: 35 | AC121: TRUE
C122: Change in Working Capital | J122: =J121-I121 -> 2091704 | K122: =K121-J121 -> 413209 | L122: 896963 | M122: 419745 | N122: 699625 | O122: 615403 | P122: 756880 | Q122: -663073 | R122: 201042.0413 | S122: 269849.7827 | T122: 242893.1732 | U122: 297212.0499 | V122: 312072.6524 | W122: 327676.285 | X122: 344060.0992 | Y122: 361263.1042 | Z122: 379326.2594 | AB122: 36 | AC122: TRUE
AB123: 36
A124: Other Assets and Liabilities | AB124: 36
C125: Administrative and Marketing | J125: =J99+J101 -> 627129 | K125: =K99+K101 -> 743407 | L125: 1359552 | M125: 1193878 | N125: 1247577 | O125: 1833694.763 | P125: 2070760 | Q125: 2180318 | R125: 2672164.85 | S125: 2807477.428 | T125: 2949643.742 | U125: 3099011.031 | V125: 3255944.136 | W125: 3420826.384 | X125: 3594060.531 | Y125: 3776069.743 | Z125: 3967298.635 | AB125: 37 | AC125: TRUE
C126: Provision for Employees' Indemnity | J126: =IF(J2,J88,J90*J125) -> 161163 | K126: 217506 | L126: 294960 | M126: 342035 | N126: 392155 | O126: 512872 | P126: 549449 | Q126: 683660 | R126: 801649.4549 | S126: 842243.2285 | T126: 884893.1225 | U126: 929703.3094 | V126: 976783.2407 | W126: 1026247.915 | X126: 1078218.159 | Y126: 1132820.923 | Z126: 1190189.591 | AB126: 38 | AC126: TRUE
C127: Change in Indemity | K127: =K126-J126 -> 56343 | L127: =L126-K126 -> 77454 | M127: 47075 | N127: 50120 | O127: 120717 | P127: 36577 | Q127: 134211 | R127: 117989.4549 | S127: 40593.77358 | T127: 42649.89401 | U127: 44810.18686 | V127: 47079.93137 | W127: 49464.67442 | X127: 51970.24407 | Y127: 54602.76381 | Z127: 57368.66756 | AB127: 39 | AC127: TRUE
AB128: 39
C129: Projects In Progress | J129: =J92 -> 208054 | K129: =K92 -> 3071359 | L129: 1350464 | M129: 170690 | N129: 184908 | O129: 189825 | P129: 431901 | Q129: 460034 | R129: 460034 | S129: 460034 | T129: 460034 | U129: 460034 | V129: 460034 | W129: 460034 | X129: 460034 | Y129: 460034 | Z129: 460034 | AB129: 40 | AC129: TRUE
C130: Available for Sale Investments | J130: =J93 -> 49336 | K130: =K93 -> 25310 | L130: 6970 | M130: 7100 | N130: 7262 | O130: 7764 | P130: 6636 | Q130: 6636 | R130: 6636 | S130: 6636 | T130: 6636 | U130: 6636 | V130: 6636 | W130: 6636 | X130: 6636 | Y130: 6636 | Z130: 6636 | AB130: 41 | AC130: TRUE
AB131: 41
A132: Financing | AB132: 41
B133: Minimum Cash Balance Percent | J133: =J56 -> 0.0266537131 | K133: =K56 -> 0.09088563614 | L133: 0.01887967965 | M133: 0.008620712744 | N133: 0.006073535778 | O133: 0.05758370215 | P133: 0.01710978548 | Q133: 0.05081349255 | R133: 0.01 | S133: 0.01 | T133: 0.01 | U133: 0.01 | V133: 0.01 | W133: 0.01 | X133: 0.01 | Y133: 0.01 | Z133: 0.01 | AB133: 41
AB134: 41
B135: Cash Less Debt | AB135: 41
C136: Opening Balance | J136: =I138 -> 0 | K136: =J138 -> -1079304 | L136: -3601147 | M136: -4766758 | N136: -7720595 | O136: -7206624 | P136: -3548529 | Q136: -3712033 | R136: -1196926 | S136: -2759569.274 | T136: -4237708.906 | U136: -5627467.404 | V136: -6857852.71 | W136: -7884979.05 | X136: -8703303.651 | Y136: -9306446.869 | Z136: -9687176.959 | AB136: 41
C137: Add: Cash Flow | J137: =J187 -> -934898 | K137: =K187 -> -3349997 | L137: -1351203 | M137: -2398312 | N137: 488573 | O137: 3553383.847 | P137: 74974 | Q137: 2520264 | R137: -1562643.274 | S137: -1478139.632 | T137: -1389758.498 | U137: -1230385.307 | V137: -1027126.339 | W137: -818324.6011 | X137: -603143.2179 | Y137: -380730.0908 | Z137: -150215.3714 | AB137: 41
C138: Closing Balance | J138: =IF(J2,J45-J46,J136+J137) -> -1079304 | K138: -3601147 | L138: -4766758 | M138: -7720595 | N138: -7206624 | O138: -3548529 | P138: -3712033 | Q138: -1196926 | R138: -2759569.274 | S138: -4237708.906 | T138: -5627467.404 | U138: -6857852.71 | V138: -7884979.05 | W138: -8703303.651 | X138: -9306446.869 | Y138: -9687176.959 | Z138: -9837392.331 | AB138: 41
AB139: 41
C140: Minimum Cash Balance | J140: =J133*J97 -> 334544 | K140: =K133*K97 -> 1131128 | L140: 336883 | M140: 160936 | N140: 114564 | O140: 1507182 | P140: 505299 | Q140: 1546993 | R140: 337027.2267 | S140: 353878.588 | T140: 371572.5174 | U140: 390151.1433 | V140: 409658.7004 | W140: 430141.6355 | X140: 451648.7172 | Y140: 474231.1531 | Z140: 497942.7107 | AB140: =AB139+AC140 -> 42 | AC140: TRUE
C141: Cash Balance | J141: =IF(J2,J54,MAX(J138,J140)) -> 334544 | K141: 1131128 | L141: 336883 | M141: 160936 | N141: 114564 | O141: 1507182 | P141: 505299 | Q141: 1546993 | R141: 337027.2267 | S141: 353878.588 | T141: 371572.5174 | U141: 390151.1433 | V141: 409658.7004 | W141: 430141.6355 | X141: 451648.7172 | Y141: 474231.1531 | Z141: 497942.7107 | AB141: 42
C142: Interest Income Rate | J142: =J48 -> 0 | K142: =K48 -> 0 | L142: 0 | M142: 0 | N142: 0 | O142: 0 | P142: 0 | Q142: 0 | R142: 0.02 | S142: 0.02 | T142: 0.02 | U142: 0.02 | V142: 0.02 | W142: 0.02 | X142: 0.02 | Y142: 0.02 | Z142: 0.02 | AB142: 42
C143: Interest Income | J143: =IF(J2,0,J142*I141) -> 0 | K143: 0 | L143: 0 | M143: 0 | N143: 0 | O143: 0 | P143: 0 | Q143: 0 | R143: 30939.86 | S143: 6740.544533 | T143: 7077.57176 | U143: 7431.450348 | V143: 7803.022865 | W143: 8193.174009 | X143: 8602.832709 | Y143: 9032.974345 | Z143: 9484.623062 | AB143: 42
AB144: 42
C145: Debt Balance | J145: =IF(J2,J46,MAX(-J138+J140,0)) -> 1413848 | K145: 4732275 | L145: 5103641 | M145: 7881531 | N145: 7321188 | O145: 5055711 | P145: 4217332 | Q145: 2743919 | R145: 3096596.501 | S145: 4591587.494 | T145: 5999039.921 | U145: 7248003.853 | V145: 8294637.75 | W145: 9133445.286 | X145: 9758095.586 | Y145: 10161408.11 | Z145: 10335335.04 | AB145: 42
C146: Interest Expense Rate | J146: =J49 -> 0 | K146: =K49 -> 0 | L146: 0 | M146: 0 | N146: 0 | O146: 0 | P146: 0 | Q146: 0 | R146: 0.06 | S146: 0.06 | T146: 0.06 | U146: 0.06 | V146: 0.06 | W146: 0.06 | X146: 0.06 | Y146: 0.06 | Z146: 0.06 | AB146: 42
C147: Interest Expense | J147: =IF(J2,J44,I145*J146) -> 106468 | K147: 69600 | L147: 91599 | M147: 195767 | N147: 190958 | O147: 299918.9863 | P147: 208211 | Q147: 173168 | R147: 164635.14 | S147: 185795.79 | T147: 275495.2496 | U147: 359942.3953 | V147: 434880.2312 | W147: 497678.265 | X147: 548006.7172 | Y147: 585485.7352 | Z147: 609684.4868 | AB147: 42
AB148: 42
C149: Financing Cost | J149: =J147-J143 -> 106468 | K149: =K147-K143 -> 69600 | L149: 91599 | M149: 195767 | N149: 190958 | O149: 299918.9863 | P149: 208211 | Q149: 173168 | R149: 133695.28 | S149: 179055.2455 | T149: 268417.6779 | U149: 352510.9449 | V149: 427077.2083 | W149: 489485.091 | X149: 539403.8845 | Y149: 576452.7608 | Z149: 600199.8637 | AB149: 42
AB150: 42
C151: Other Revenues | J151: =J52 -> -53580 | K151: =K52 -> 303309 | L151: 405445 | M151: -523975 | N151: 185977 | O151: 523873.802 | P151: -469868 | Q151: -40317 | R151: 50000 | S151: 50000 | T151: 50000 | U151: 50000 | V151: 50000 | W151: 50000 | X151: 50000 | Y151: 50000 | Z151: 50000 | AB151: 42
AB152: 42
C153: Income Tax Rate | J153: 0.15 | K153: 0.15 | L153: 0.15 | M153: 0.15 | N153: 0.15 | O153: 0.15 | P153: 0.15 | Q153: 0.15 | R153: 0.15 | S153: 0.15 | T153: 0.15 | U153: 0.15 | V153: 0.15 | W153: 0.15 | X153: 0.15 | Y153: 0.15 | Z153: 0.15 | AB153: 42
AB154: 42
A155: Projected Income Statement | AB155: 42
C156: Net Sales | J156: =J97 -> 12551497 | K156: =K97 -> 12445619 | L156: 17843682 | M156: 18668526 | N156: 18862818 | O156: 26173760 | P156: 29532749 | Q156: 30444532 | R156: 33702722.67 | S156: 35387858.8 | T156: 37157251.74 | U156: 39015114.33 | V156: 40965870.04 | W156: 43014163.55 | X156: 45164871.72 | Y156: 47423115.31 | Z156: 49794271.07 | AB156: 43 | AC156: TRUE
C157: Cost of Goods Sold | J157: =-J98 -> -10012291 | K157: =-K98 -> -8366645 | L157: -11229979 | M157: -15824271 | N157: -15473803 | O157: -19354132.81 | P157: -22604198 | Q157: -23186091 | R157: -24588512.29 | S157: -25833136.92 | T157: -27496366.29 | U157: -28871184.6 | V157: -30314743.83 | W157: -31830481.02 | X157: -33422005.08 | Y157: -35093105.33 | Z157: -36847760.6 | AB157: 44 | AC157: TRUE
C158: Gross Profit | J158: =SUM(J156:J157) -> 2539206 | K158: =SUM(K156:K157) -> 4078974 | L158: 6613703 | M158: 2844255 | N158: 3389015 | O158: 6819627.186 | P158: 6928551 | Q158: 7258441 | R158: 9114210.381 | S158: 9554721.876 | T158: 9660885.453 | U158: 10143929.73 | V158: 10651126.21 | W158: 11183682.52 | X158: 11742866.65 | Y158: 12330009.98 | Z158: 12946510.48 | AB158: 45 | AC158: TRUE
C159: General & Administrative Expenses | J159: =-J99 -> -627129 | K159: =-K99 -> -743407 | L159: -1225100 | M159: -930214 | N159: -917134 | O159: -1089010.763 | P159: -1092824 | Q159: -1224293 | R159: -1666718.039 | S159: -1750053.941 | T159: -1837556.638 | U159: -1929434.469 | V159: -2025906.193 | W159: -2127201.503 | X159: -2233561.578 | Y159: -2345239.657 | Z159: -2462501.639 | AB159: 46 | AC159: TRUE
C160: Doubtful Debts Provision | J160: =-J100 -> -195856 | K160: =-K100 -> -71641 | L160: 0 | M160: 0 | N160: -128440 | O160: -118450.3922 | P160: -132310 | Q160: -139494 | R160: -175916.5749 | S160: -184712.4037 | T160: -193948.0238 | U160: -203645.425 | V160: -213827.6963 | W160: -224519.0811 | X160: -235745.0351 | Y160: -247532.2869 | Z160: -259908.9013 | AB160: 47 | AC160: TRUE
C161: Sales & Marketing Expenses | J161: =-J101 -> 0 | K161: =-K101 -> 0 | L161: -134452 | M161: -263664 | N161: -330443 | O161: -744684 | P161: -977936 | Q161: -956025 | R161: -1005446.811 | S161: -1057423.488 | T161: -1112087.104 | U161: -1169576.562 | V161: -1230037.943 | W161: -1293624.881 | X161: -1360498.953 | Y161: -1430830.087 | Z161: -1504796.996 | AB161: 48 | AC161: TRUE
C162: Depreciation | J162: =-J107 -> -669633 | K162: =-K107 -> -646466 | L162: -765898 | M162: -1113589 | N162: -1139330 | O162: -1236666 | P162: -1276822 | Q162: -1198225 | R162: -1205000 | S162: -1420676.066 | T162: -1623413.004 | U162: -1813987.076 | V162: -1993127.972 | W162: -2161521.607 | X162: -2319812.745 | Y162: -2468607.468 | Z162: -2608475.499 | AB162: 49 | AC162: TRUE
C163: Operating Proft (EBIT) | J163: =SUM(J158:J162) -> 1046588 | K163: =SUM(K158:K162) -> 2617460 | L163: 4488253 | M163: 536788 | N163: 873668 | O163: 3630816.031 | P163: 3448659 | Q163: 3740404 | R163: 5061128.956 | S163: 5141855.978 | T163: 4893880.683 | U163: 5027286.193 | V163: 5188226.407 | W163: 5376815.45 | X163: 5593248.338 | Y163: 5837800.482 | Z163: 6110827.444 | AB163: 50 | AC163: TRUE
C164: Financing Cost | J164: =-J149 -> -106468 | K164: =-K149 -> -69600 | L164: -91599 | M164: -195767 | N164: -190958 | O164: -299918.9863 | P164: -208211 | Q164: -173168 | R164: -133695.28 | S164: -179055.2455 | T164: -268417.6779 | U164: -352510.9449 | V164: -427077.2083 | W164: -489485.091 | X164: -539403.8845 | Y164: -576452.7608 | Z164: -600199.8637 | AB164: 51 | AC164: TRUE
C165: Other Revenues (Expenses) | J165: =J151 -> -53580 | K165: =K151 -> 303309 | L165: 405445 | M165: -523975 | N165: 185977 | O165: 523873.802 | P165: -469868 | Q165: -40317 | R165: 50000 | S165: 50000 | T165: 50000 | U165: 50000 | V165: 50000 | W165: 50000 | X165: 50000 | Y165: 50000 | Z165: 50000 | AB165: 52 | AC165: TRUE
C166: Pre Tax Income | J166: =J163+J164+J165 -> 886540 | K166: =K163+K164+K165 -> 2851169 | L166: 4802099 | M166: -182954 | N166: 868687 | O166: 3854770.847 | P166: 2770580 | Q166: 3526919 | R166: 4977433.676 | S166: 5012800.732 | T166: 4675463.005 | U166: 4724775.248 | V166: 4811149.199 | W166: 4937330.359 | X166: 5103844.453 | Y166: 5311347.721 | Z166: 5560627.581 | AB166: 53 | AC166: TRUE
C167: Income Tax | J167: =IF(J2,'AZIZA Financial Stmt'!J19,-J153*J166) -> -93890 | K167: =IF(K2,'AZIZA Financial Stmt'!K19,-K153*K166) -> -227640 | L167: =IF(L2,'AZIZA Financial Stmt'!L19,-L153*L166) -> -358817 | M167: =IF(M2,'AZIZA Financial Stmt'!M19,-M153*M166) -> -115836 | N167: =IF(N2,'AZIZA Financial Stmt'!N19,-N153*N166) -> -184890 | O167: =IF(O2,'AZIZA Financial Stmt'!O19,-O153*O166) -> -493097 | P167: =IF(P2,'AZIZA Financial Stmt'!P19,-P153*P166) -> -448339 | Q167: =IF(Q2,'AZIZA Financial Stmt'!Q19,-Q153*Q166) -> -433286 | R167: =IF(R2,'AZIZA Financial Stmt'!R19,-R153*R166) -> -746615.0514 | S167: =IF(S2,'AZIZA Financial Stmt'!S19,-S153*S166) -> -751920.1099 | T167: =IF(T2,'AZIZA Financial Stmt'!T19,-T153*T166) -> -701319.4507 | U167: =IF(U2,'AZIZA Financial Stmt'!U19,-U153*U166) -> -708716.2872 | V167: =IF(V2,'AZIZA Financial Stmt'!V19,-V153*V166) -> -721672.3799 | W167: =IF(W2,'AZIZA Financial Stmt'!W19,-W153*W166) -> -740599.5539 | X167: =IF(X2,'AZIZA Financial Stmt'!X19,-X153*X166) -> -765576.668 | Y167: =IF(Y2,'AZIZA Financial Stmt'!Y19,-Y153*Y166) -> -796702.1582 | Z167: =IF(Z2,'AZIZA Financial Stmt'!Z19,-Z153*Z166) -> -834094.1371 | AB167: 54 | AC167: TRUE
C168: Net Profit | J168: =J166+J167 -> 792650 | K168: =K166+K167 -> 2623529 | L168: 4443282 | M168: -298790 | N168: 683797 | O168: 3361673.847 | P168: 2322241 | Q168: 3093633 | R168: 4230818.625 | S168: 4260880.623 | T168: 3974143.554 | U168: 4016058.961 | V168: 4089476.819 | W168: 4196730.805 | X168: 4338267.785 | Y168: 4514645.563 | Z168: 4726533.443 | AB168: 55 | AC168: TRUE
C169: EPS | AB169: 55
AB170: 55
C171: Check | J171: ='AZIZA Financial Stmt'!J20 -> 792650 | K171: ='AZIZA Financial Stmt'!K20 -> 2623529 | L171: ='AZIZA Financial Stmt'!L20 -> 4443282 | M171: ='AZIZA Financial Stmt'!M20 -> -298790 | N171: ='AZIZA Financial Stmt'!N20 -> 683797 | O171: ='AZIZA Financial Stmt'!O20 -> 3361673.847 | P171: ='AZIZA Financial Stmt'!P20 -> 2322241 | Q171: ='AZIZA Financial Stmt'!Q20 -> 3093633 | R171: ='AZIZA Financial Stmt'!R20 -> 4968275.125 | S171: ='AZIZA Financial Stmt'!S20 -> 0 | T171: ='AZIZA Financial Stmt'!T20 -> 0 | U171: ='AZIZA Financial Stmt'!U20 -> 0 | V171: ='AZIZA Financial Stmt'!V20 -> 0 | W171: ='AZIZA Financial Stmt'!W20 -> 0 | X171: ='AZIZA Financial Stmt'!X20 -> 0 | Y171: ='AZIZA Financial Stmt'!Y20 -> 0 | Z171: ='AZIZA Financial Stmt'!Z20 -> 0 | AB171: 55
C172: Difference | J172: =J168-J171 -> 0 | K172: =K168-K171 -> 0 | L172: 0 | M172: 0 | N172: 0 | O172: 0 | P172: 0 | Q172: 0 | R172: -737456.5001 | S172: 4260880.623 | T172: 3974143.554 | U172: 4016058.961 | V172: 4089476.819 | W172: 4196730.805 | X172: 4338267.785 | Y172: 4514645.563 | Z172: 4726533.443 | AB172: 55
AB173: 55
A174: Cash Flow Statement | AB174: 55
C175: Dividend Payout Ratio | J175: =J60 -> 0 | K175: 0 | L175: 0.1312784109 | M175: -1.09285786 | N175: 0.06618338483 | O175: 0.04064255077 | P175: 0.6550228852 | Q175: 0.514826096 | R175: 0.5 | S175: 0.5 | T175: 0.5 | U175: 0.5 | V175: 0.5 | W175: 0.5 | X175: 0.5 | Y175: 0.5 | Z175: 0.5 | AB175: 55
AB176: 55
C177: EBTDA | J177: =J163-J162 -> 1716221 | K177: 3263926 | L177: 5254151 | M177: 1650377 | N177: 2012998 | O177: 4867482.031 | P177: 4725481 | Q177: 4938629 | R177: 6266128.956 | S177: 6562532.044 | T177: 6517293.687 | U177: 6841273.269 | V177: 7181354.379 | W177: 7538337.057 | X177: 7913061.082 | Y177: 8306407.95 | Z177: 8719302.943 | AB177: 56 | AC177: TRUE
C178: Less: Taxes | J178: =J167 -> -93890 | K178: -227640 | L178: -358817 | M178: -115836 | N178: -184890 | O178: -493097 | P178: -448339 | Q178: -433286 | R178: -746615.0514 | S178: -751920.1099 | T178: -701319.4507 | U178: -708716.2872 | V178: -721672.3799 | W178: -740599.5539 | X178: -765576.668 | Y178: -796702.1582 | Z178: -834094.1371 | AB178: 57 | AC178: TRUE
C179: Less: WC Changes | J179: =-J122 -> -2091704 | K179: -413209 | L179: -896963 | M179: -419745 | N179: -699625 | O179: -615403 | P179: -756880 | Q179: 663073 | R179: -201042.0413 | S179: -269849.7827 | T179: -242893.1732 | U179: -297212.0499 | V179: -312072.6524 | W179: -327676.285 | X179: -344060.0992 | Y179: -361263.1042 | Z179: -379326.2594 | AB179: 58 | AC179: TRUE
C180: Add: Change in Indemity | J180: =J127 -> 0 | K180: 56343 | L180: 77454 | M180: 47075 | N180: 50120 | O180: 120717 | P180: 36577 | Q180: 134211 | R180: 117989.4549 | S180: 40593.77358 | T180: 42649.89401 | U180: 44810.18686 | V180: 47079.93137 | W180: 49464.67442 | X180: 51970.24407 | Y180: 54602.76381 | Z180: 57368.66756 | AB180: 59 | AC180: TRUE
C181: Add: Other Income | J181: =J165 -> -53580 | K181: =K165 -> 303309 | L181: 405445 | M181: -523975 | N181: 185977 | O181: 523873.802 | P181: -469868 | Q181: -40317 | R181: 50000 | S181: 50000 | T181: 50000 | U181: 50000 | V181: 50000 | W181: 50000 | X181: 50000 | Y181: 50000 | Z181: 50000 | AB181: 60 | AC181: TRUE
D182: Operating Cash Flow | J182: =SUM(J177:J181) -> -522953 | K182: =SUM(K177:K181) -> 2982729 | L182: 4481270 | M182: 637896 | N182: 1364580 | O182: 4403572.833 | P182: 3086971 | Q182: 5262310 | R182: =SUM(R177:R181) -> 5486461.318 | S182: 5631355.925 | T182: 5665730.957 | U182: 5930155.119 | V182: 6244689.279 | W182: 6569525.893 | X182: 6905394.559 | Y182: 7253045.452 | Z182: 7613251.214 | AB182: 61 | AC182: TRUE
C183: Less:Capital Expenditure | J183: =-J104 -> -305477 | K183: -6263126 | L183: -5157567 | M183: -2513906 | N183: -639793 | O183: -413643 | P183: -1282665 | Q183: -976195 | R183: -4800000 | S183: -4800000 | T183: -4800000 | U183: -4800000 | V183: -4800000 | W183: -4800000 | X183: -4800000 | Y183: -4800000 | Z183: -4800000 | AB183: 62 | AC183: TRUE
D184: Net Cash Flow Before Financing | J184: =SUM(J182:J183) -> -828430 | K184: =SUM(K182:K183) -> -3280397 | L184: -676297 | M184: -1876010 | N184: 724787 | O184: 3989929.833 | P184: 1804306 | Q184: 4286115 | R184: 686461.3182 | S184: 831355.9251 | T184: 865730.9571 | U184: 1130155.119 | V184: 1444689.279 | W184: 1769525.893 | X184: 2105394.559 | Y184: 2453045.452 | Z184: 2813251.214 | AB184: 63 | AC184: TRUE
C185: Less: Financing Cost | J185: =J164 -> -106468 | K185: -69600 | L185: -91599 | M185: -195767 | N185: -190958 | O185: -299918.9863 | P185: -208211 | Q185: -173168 | R185: -133695.28 | S185: -179055.2455 | T185: -268417.6779 | U185: -352510.9449 | V185: -427077.2083 | W185: -489485.091 | X185: -539403.8845 | Y185: -576452.7608 | Z185: -600199.8637 | AB185: 64 | AC185: TRUE
C186: Less: Dividends | J186: =-IF(J2,J59,J175*J168) -> 0 | K186: 0 | L186: -583307 | M186: -326535 | N186: -45256 | O186: -136627 | P186: -1521121 | Q186: -1592683 | R186: -2115409.312 | S186: -2130440.311 | T186: -1987071.777 | U186: -2008029.48 | V186: -2044738.41 | W186: -2098365.403 | X186: -2169133.893 | Y186: -2257322.782 | Z186: -2363266.722 | AB186: 65 | AC186: TRUE
D187: Net Cash Flow | J187: =SUM(J184:J186) -> -934898 | K187: =SUM(K184:K186) -> -3349997 | L187: -1351203 | M187: -2398312 | N187: 488573 | O187: 3553383.847 | P187: 74974 | Q187: 2520264 | R187: -1562643.274 | S187: -1478139.632 | T187: -1389758.498 | U187: -1230385.307 | V187: -1027126.339 | W187: -818324.6011 | X187: -603143.2179 | Y187: -380730.0908 | Z187: -150215.3714 | AB187: 66 | AC187: TRUE
AB188: 66
A189: Balance Sheet | AB189: 66
B190: Equity Balance | AB190: 66
B191: Opening Balance | J191: =I194 -> 0 | K191: =J194 -> 12185074 | L191: 15676447 | M191: 20701841 | N191: 18301059 | O191: 19434219 | P191: 24279387 | Q191: 22399147 | R191: 23902102 | S191: 26017511.31 | T191: 28147951.62 | U191: 30135023.4 | V191: 32143052.88 | W191: 34187791.29 | X191: 36286156.69 | Y191: 38455290.59 | Z191: 40712613.37 | AB191: 66
B192: Add: Income | J192: =J168 -> 792650 | K192: 2623529 | L192: 4443282 | M192: -298790 | N192: 683797 | O192: 3361673.847 | P192: 2322241 | Q192: 3093633 | R192: 4230818.625 | S192: 4260880.623 | T192: 3974143.554 | U192: 4016058.961 | V192: 4089476.819 | W192: 4196730.805 | X192: 4338267.785 | Y192: 4514645.563 | Z192: 4726533.443 | AB192: 66
B193: Less: Dividends | J193: =-J186 -> 0 | K193: =-K186 -> 0 | L193: 583307 | M193: 326535 | N193: 45256 | O193: 136627 | P193: 1521121 | Q193: 1592683 | R193: 2115409.312 | S193: 2130440.311 | T193: 1987071.777 | U193: 2008029.48 | V193: 2044738.41 | W193: 2098365.403 | X193: 2169133.893 | Y193: 2257322.782 | Z193: 2363266.722 | AB193: 66
B194: Closing Balance | H194: Bridge | J194: =IF(J2,'AZIZA Financial Stmt'!J47,J191+J192-J193) -> 12185074 | K194: =IF(K2,'AZIZA Financial Stmt'!K47,K191+K192-K193) -> 15676447 | L194: =IF(L2,'AZIZA Financial Stmt'!L47,L191+L192-L193) -> 20701841 | M194: =IF(M2,'AZIZA Financial Stmt'!M47,M191+M192-M193) -> 18301059 | N194: =IF(N2,'AZIZA Financial Stmt'!N47,N191+N192-N193) -> 19434219 | O194: =IF(O2,'AZIZA Financial Stmt'!O47,O191+O192-O193) -> 24279387 | P194: =IF(P2,'AZIZA Financial Stmt'!P47,P191+P192-P193) -> 22399147 | Q194: =IF(Q2,'AZIZA Financial Stmt'!Q47,Q191+Q192-Q193) -> 23902102 | R194: =IF(R2,'AZIZA Financial Stmt'!R47,R191+R192-R193) -> 26017511.31 | S194: =IF(S2,'AZIZA Financial Stmt'!S47,S191+S192-S193) -> 28147951.62 | T194: =IF(T2,'AZIZA Financial Stmt'!T47,T191+T192-T193) -> 30135023.4 | U194: =IF(U2,'AZIZA Financial Stmt'!U47,U191+U192-U193) -> 32143052.88 | V194: =IF(V2,'AZIZA Financial Stmt'!V47,V191+V192-V193) -> 34187791.29 | W194: =IF(W2,'AZIZA Financial Stmt'!W47,W191+W192-W193) -> 36286156.69 | X194: =IF(X2,'AZIZA Financial Stmt'!X47,X191+X192-X193) -> 38455290.59 | Y194: =IF(Y2,'AZIZA Financial Stmt'!Y47,Y191+Y192-Y193) -> 40712613.37 | Z194: =IF(Z2,'AZIZA Financial Stmt'!Z47,Z191+Z192-Z193) -> 43075880.09 | AB194: 66
AB195: 66
B196: Cash Balance | F196: -1 | H196: -1 | J196: =J141 -> 334544 | K196: 1131128 | L196: 336883 | M196: 160936 | N196: 114564 | O196: 1507182 | P196: 505299 | Q196: 1546993 | R196: 337027.2267 | S196: 353878.588 | T196: 371572.5174 | U196: 390151.1433 | V196: 409658.7004 | W196: 430141.6355 | X196: 451648.7172 | Y196: 474231.1531 | Z196: 497942.7107 | AB196: 67 | AC196: TRUE
B197: Biological Assets | E197: 1 | J197: =J115 -> 1168434 | K197: 1696723 | L197: 2490128 | M197: 1961385 | N197: 2011969 | O197: 1892214 | P197: 1802803 | Q197: 2019602 | R197: 2145362.044 | S197: 2252630.146 | T197: 2365261.654 | U197: 2483524.736 | V197: 2607700.973 | W197: 2738086.022 | X197: 2874990.323 | Y197: 3018739.839 | Z197: 3169676.831 | AB197: 68 | AC197: TRUE
B198: Inventories | E198: 1 | J198: =J116 -> 1113114 | K198: 941042 | L198: 2078143 | M198: 1398643 | N198: 1508159 | O198: 2350474 | P198: 2532370 | Q198: 1859144 | R198: 2024681.323 | S198: 2127166.916 | T198: 2264121.498 | U198: 2377327.573 | V198: 2496193.951 | W198: 2621003.649 | X198: 2752053.831 | Y198: 2889656.523 | Z198: 3034139.349 | AB198: 69 | AC198: TRUE
B199: Accounts Receivable | E199: 1 | J199: =J117 -> 1414380 | K199: 1571703 | L199: 1884711 | M199: 3404388 | N199: 4328998 | O199: 4746615 | P199: 5704328 | Q199: 5621711 | R199: 6621521.004 | S199: 6952597.055 | T199: 7300226.907 | U199: 7665238.253 | V199: 8048500.165 | W199: 8450925.174 | X199: 8873471.432 | Y199: 9317145.004 | Z199: 9783002.254 | AB199: 70 | AC199: TRUE
B200: Other Current Assets | E200: 1 | J200: =J118 -> 628093 | K200: 906652 | L200: 993682 | M200: 1802258 | N200: 1369257 | O200: 718849 | P200: 393102 | Q200: 301815 | R200: 381646.4609 | S200: 400728.784 | T200: 420765.2232 | U200: 441803.4844 | V200: 463893.6586 | W200: 487088.3415 | X200: 511442.7586 | Y200: 537014.8965 | Z200: 563865.6413 | AB200: 71 | AC200: TRUE
... 56 more rows

Sheet DCF
G1: 2015 | H1: =G1+1 -> 2016 | I1: =H1+1 -> 2017 | J1: 2018 | K1: 2019 | L1: 2020 | M1: 2021 | N1: 2022 | O1: 2023 | P1: 2024
C2: Explicit period | G2: =AND(G1>=$E$21,G1<=$E$23) -> FALSE | H2: =AND(H1>=$E$21,H1<=$E$23) -> FALSE | I2: TRUE | J2: TRUE | K2: TRUE | L2: TRUE | M2: TRUE | N2: FALSE | O2: FALSE | P2: FALSE
C3: Terminal period | G3: =G1=$E$23 -> FALSE | H3: =H1=$E$23 -> FALSE | I3: FALSE | J3: FALSE | K3: FALSE | L3: FALSE | M3: TRUE | N3: FALSE | O3: FALSE | P3: FALSE
A5: Valuation Assumptions | E5: Low Case | F5: High Case
B6: Basic Assumptions
C7: WACC | E7: =G7/100 -> 0.15 | F7: =H7/100 -> 0.12 | G7: 15 | H7: 12 | J7: Cap Exp | K7: =Summary!$J$5 -> 4800000
C8: Terminal Growth | E8: =G8/100 -> 0.03 | F8: =H8/100 -> 0.05 | G8: 3 | H8: 5
C9: Terminal EV/EBITDA | E9: =G9 -> 7 | F9: =H9 -> 9 | G9: 7 | H9: 9
C10: long term ROIC VS WACC | E10: 0 | F10: 0.04
C11: LT ROIC | E11: =E7+E10 -> 0.15 | F11: =F7+F10 -> 0.16
B13: Normalization Assumptions
C14: Stable ROIC | E14: 0.15 | F14: =F11 -> 0.16 | J14: Stable WC = EBITDA x WC/EBITDA x g/(1+g)
C15: Life of Assets | E15: 20 | F15: =E15 -> 20
C16: Stable Cap Exp to Depreciation | E16: =stable_capexp(E15,E8) -> 1.781952357 | F16: =stable_capexp(F15,F8) -> 2.253923403 | J16: Half Yr Assumption: (1+WACC)^.5
C17: Stable WC to EBITDA | E17: 0.9 | F17: 0.9
C18: Tax Rate | E18: 0.15 | F18: 0.15 | J18: Value Driver Formula: NOPAT x (1-g/ROIC)/(WACC-g)
B20: Timing Assumptions
C21: Valuation start | E21: 2017
C22: Explicit period | E22: 5
C23: Terminal period | E23: =E21+E22-1 -> 2021
A26: Free Cash Flow
C27: EBIT | G27: =LOOKUP(G$1,'AZIZA Model'!$1:$1,'AZIZA Model'!163:163) -> 3740404 | H27: =LOOKUP(H$1,'AZIZA Model'!$1:$1,'AZIZA Model'!163:163) -> 5061128.956 | I27: =LOOKUP(I$1,'AZIZA Model'!$1:$1,'AZIZA Model'!163:163) -> 5141855.978 | J27: =LOOKUP(J$1,'AZIZA Model'!$1:$1,'AZIZA Model'!163:163) -> 4893880.683 | K27: =LOOKUP(K$1,'AZIZA Model'!$1:$1,'AZIZA Model'!163:163) -> 5027286.193 | L27: =LOOKUP(L$1,'AZIZA Model'!$1:$1,'AZIZA Model'!163:163) -> 5188226.407 | M27: =LOOKUP(M$1,'AZIZA Model'!$1:$1,'AZIZA Model'!163:163) -> 5376815.45 | N27: =LOOKUP(N$1,'AZIZA Model'!$1:$1,'AZIZA Model'!163:163) -> 5593248.338 | O27: =LOOKUP(O$1,'AZIZA Model'!$1:$1,'AZIZA Model'!163:163) -> 5837800.482 | P27: =LOOKUP(P$1,'AZIZA Model'!$1:$1,'AZIZA Model'!163:163) -> 6110827.444
C28: Income Tax | G28: =-LOOKUP(G$1,'AZIZA Model'!$1:$1,'AZIZA Model'!153:153)*G27 -> -561060.6 | H28: =-LOOKUP(H$1,'AZIZA Model'!$1:$1,'AZIZA Model'!153:153)*H27 -> -759169.3434 | I28: =-LOOKUP(I$1,'AZIZA Model'!$1:$1,'AZIZA Model'!153:153)*I27 -> -771278.3967 | J28: =-LOOKUP(J$1,'AZIZA Model'!$1:$1,'AZIZA Model'!153:153)*J27 -> -734082.1024 | K28: =-LOOKUP(K$1,'AZIZA Model'!$1:$1,'AZIZA Model'!153:153)*K27 -> -754092.929 | L28: =-LOOKUP(L$1,'AZIZA Model'!$1:$1,'AZIZA Model'!153:153)*L27 -> -778233.9611 | M28: =-LOOKUP(M$1,'AZIZA Model'!$1:$1,'AZIZA Model'!153:153)*M27 -> -806522.3175 | N28: =-LOOKUP(N$1,'AZIZA Model'!$1:$1,'AZIZA Model'!153:153)*N27 -> -838987.2506 | O28: =-LOOKUP(O$1,'AZIZA Model'!$1:$1,'AZIZA Model'!153:153)*O27 -> -875670.0723 | P28: =-LOOKUP(P$1,'AZIZA Model'!$1:$1,'AZIZA Model'!153:153)*P27 -> -916624.1166
C29: NOPAT | G29: =G27+G28 -> 3179343.4 | H29: 4301959.613 | I29: 4370577.581 | J29: 4159798.58 | K29: 4273193.264 | L29: 4409992.446 | M29: 4570293.133 | N29: 4754261.087 | O29: 4962130.41 | P29: 5194203.328
C30: Invested Capital Average | G30: ='AZIZA Model'!Q231 -> 25598468 | H30: ='AZIZA Model'!R231 -> 26931418.29 | I30: ='AZIZA Model'!S231 -> 30574734.56 | J30: ='AZIZA Model'!T231 -> 34067439.67 | K30: ='AZIZA Model'!U231 -> 37375062.2 | L30: ='AZIZA Model'!V231 -> 40530201.97 | M30: ='AZIZA Model'!W231 -> 43524479.34 | N30: ='AZIZA Model'!X231 -> 46368962.9 | O30: ='AZIZA Model'!Y231 -> 49074127.89 | P30: ='AZIZA Model'!Z231 -> 51649895.37
C31: Ratio of WC to EBITDA | G31: ='AZIZA Model'!Q234 -> 1.059090691 | H31: ='AZIZA Model'!R234 -> 0.8668027868 | I31: ='AZIZA Model'!S234 -> 0.8687725691 | J31: ='AZIZA Model'!T234 -> 0.9120719861 | K31: ='AZIZA Model'!U234 -> 0.9123233062 | L31: ='AZIZA Model'!V234 -> 0.9125751708 | M31: ='AZIZA Model'!W234 -> 0.9128275815 | N31: ='AZIZA Model'!X234 -> 0.9130805397 | O31: ='AZIZA Model'!Y234 -> 0.9133340468 | P31: ='AZIZA Model'!Z234 -> 0.9135881044
D33: ROIC | G33: ='AZIZA Model'!Q232 -> 0.1242005342 | H33: ='AZIZA Model'!R232 -> 0.1597375811 | I33: ='AZIZA Model'!S232 -> 0.1429473598 | J33: ='AZIZA Model'!T232 -> 0.1221048198 | K33: ='AZIZA Model'!U232 -> 0.1143327399 | L33: ='AZIZA Model'!V232 -> 0.1088075616 | M33: ='AZIZA Model'!W232 -> 0.105005119 | N33: ='AZIZA Model'!X232 -> 0.1025311068 | O33: ='AZIZA Model'!Y232 -> 0.1011149993 | P33: ='AZIZA Model'!Z232 -> 0.1005656118
C35: EBITDA | G35: =LOOKUP(G$1,'AZIZA Model'!$1:$1,'AZIZA Model'!177:177) -> 4938629 | H35: =LOOKUP(H$1,'AZIZA Model'!$1:$1,'AZIZA Model'!177:177) -> 6266128.956 | I35: =LOOKUP(I$1,'AZIZA Model'!$1:$1,'AZIZA Model'!177:177) -> 6562532.044 | J35: =LOOKUP(J$1,'AZIZA Model'!$1:$1,'AZIZA Model'!177:177) -> 6517293.687 | K35: =LOOKUP(K$1,'AZIZA Model'!$1:$1,'AZIZA Model'!177:177) -> 6841273.269 | L35: =LOOKUP(L$1,'AZIZA Model'!$1:$1,'AZIZA Model'!177:177) -> 7181354.379 | M35: =LOOKUP(M$1,'AZIZA Model'!$1:$1,'AZIZA Model'!177:177) -> 7538337.057 | N35: =LOOKUP(N$1,'AZIZA Model'!$1:$1,'AZIZA Model'!177:177) -> 7913061.082 | O35: =LOOKUP(O$1,'AZIZA Model'!$1:$1,'AZIZA Model'!177:177) -> 8306407.95 | P35: =LOOKUP(P$1,'AZIZA Model'!$1:$1,'AZIZA Model'!177:177) -> 8719302.943
C36: Less: Capital Expenditures | G36: =LOOKUP(G$1,'AZIZA Model'!$1:$1,'AZIZA Model'!183:183) -> -976195 | H36: =LOOKUP(H$1,'AZIZA Model'!$1:$1,'AZIZA Model'!183:183) -> -4800000 | I36: =LOOKUP(I$1,'AZIZA Model'!$1:$1,'AZIZA Model'!183:183) -> -4800000 | J36: =LOOKUP(J$1,'AZIZA Model'!$1:$1,'AZIZA Model'!183:183) -> -4800000 | K36: =LOOKUP(K$1,'AZIZA Model'!$1:$1,'AZIZA Model'!183:183) -> -4800000 | L36: =LOOKUP(L$1,'AZIZA Model'!$1:$1,'AZIZA Model'!183:183) -> -4800000 | M36: =LOOKUP(M$1,'AZIZA Model'!$1:$1,'AZIZA Model'!183:183) -> -4800000 | N36: =LOOKUP(N$1,'AZIZA Model'!$1:$1,'AZIZA Model'!183:183) -> -4800000 | O36: =LOOKUP(O$1,'AZIZA Model'!$1:$1,'AZIZA Model'!183:183) -> -4800000 | P36: =LOOKUP(P$1,'AZIZA Model'!$1:$1,'AZIZA Model'!183:183) -> -4800000
C37: Less: Working Capital Changes | G37: =LOOKUP(G$1,'AZIZA Model'!$1:$1,'AZIZA Model'!179:179) -> 663073 | H37: =LOOKUP(H$1,'AZIZA Model'!$1:$1,'AZIZA Model'!179:179) -> -201042.0413 | I37: =LOOKUP(I$1,'AZIZA Model'!$1:$1,'AZIZA Model'!179:179) -> -269849.7827 | J37: =LOOKUP(J$1,'AZIZA Model'!$1:$1,'AZIZA Model'!179:179) -> -242893.1732 | K37: =LOOKUP(K$1,'AZIZA Model'!$1:$1,'AZIZA Model'!179:179) -> -297212.0499 | L37: =LOOKUP(L$1,'AZIZA Model'!$1:$1,'AZIZA Model'!179:179) -> -312072.6524 | M37: =LOOKUP(M$1,'AZIZA Model'!$1:$1,'AZIZA Model'!179:179) -> -327676.285 | N37: =LOOKUP(N$1,'AZIZA Model'!$1:$1,'AZIZA Model'!179:179) -> -344060.0992 | O37: =LOOKUP(O$1,'AZIZA Model'!$1:$1,'AZIZA Model'!179:179) -> -361263.1042 | P37: =LOOKUP(P$1,'AZIZA Model'!$1:$1,'AZIZA Model'!179:179) -> -379326.2594
C38: Less: Operating Taxes | G38: =G28 -> -561060.6 | H38: -759169.3434 | I38: -771278.3967 | J38: -734082.1024 | K38: -754092.929 | L38: -778233.9611 | M38: -806522.3175 | N38: -838987.2506 | O38: -875670.0723 | P38: -916624.1166
C39: Add: Change in Indemity | G39: =LOOKUP(G$1,'AZIZA Model'!$1:$1,'AZIZA Model'!180:180) -> 134211 | H39: =LOOKUP(H$1,'AZIZA Model'!$1:$1,'AZIZA Model'!180:180) -> 117989.4549 | I39: =LOOKUP(I$1,'AZIZA Model'!$1:$1,'AZIZA Model'!180:180) -> 40593.77358 | J39: =LOOKUP(J$1,'AZIZA Model'!$1:$1,'AZIZA Model'!180:180) -> 42649.89401 | K39: =LOOKUP(K$1,'AZIZA Model'!$1:$1,'AZIZA Model'!180:180) -> 44810.18686 | L39: =LOOKUP(L$1,'AZIZA Model'!$1:$1,'AZIZA Model'!180:180) -> 47079.93137 | M39: =LOOKUP(M$1,'AZIZA Model'!$1:$1,'AZIZA Model'!180:180) -> 49464.67442 | N39: =LOOKUP(N$1,'AZIZA Model'!$1:$1,'AZIZA Model'!180:180) -> 51970.24407 | O39: =LOOKUP(O$1,'AZIZA Model'!$1:$1,'AZIZA Model'!180:180) -> 54602.76381 | P39: =LOOKUP(P$1,'AZIZA Model'!$1:$1,'AZIZA Model'!180:180) -> 57368.66756
D40: Total Cash Flow | G40: =SUM(G35:G39) -> 4198657.4 | H40: =SUM(H35:H39) -> 623907.0262 | I40: 761997.6383 | J40: 782968.3054 | K40: 1034778.477 | L40: 1338127.697 | M40: 1653603.129 | N40: 1981983.976 | O40: 2324077.537 | P40: 2680721.234
B42: PV of Explicit Cash Flow | E42: Low Case | F42: High Case
C43: Free Cash Flow (FCFF) | G43: =IF(G2,G40) -> FALSE | H43: FALSE | I43: 761997.6383 | J43: 782968.3054 | K43: 1034778.477 | L43: 1338127.697 | M43: 1653603.129 | N43: FALSE | O43: FALSE | P43: FALSE
C44: PV Cash flow - Low Case | E44: =NPV(E7,43:43)*(1+E7)^0.5 -> 3777180.173 | F44: =NPV(F7,43:43) -> 3829770.621
A47: Normalized cash flow in terminal year - Low Case | G47: =G3*G40 -> 0 | H47: 0 | I47: 0 | J47: 0 | K47: 0 | L47: 0 | M47: 1653603.129 | N47: 0 | O47: 0 | P47: 0
C48: Low Case
D49: Normalised ROIC | E49: =E14 -> 0.15 | G49: =$E$49 -> 0.15 | H49: =$E$49 -> 0.15 | I49: 0.15 | J49: 0.15 | K49: 0.15 | L49: 0.15 | M49: 0.15 | N49: 0.15 | O49: 0.15 | P49: 0.15
D50: NOPAT | G50: =G49*G30*G3 -> 0 | H50: 0 | I50: 0 | J50: 0 | K50: 0 | L50: 0 | M50: 6528671.901 | N50: 0 | O50: 0 | P50: 0
D51: Depreciation | G51: =(G35-G27)*G3 -> 0 | H51: 0 | I51: 0 | J51: 0 | K51: 0 | L51: 0 | M51: 2161521.607 | N51: 0 | O51: 0 | P51: 0
D53: Stable EBITDA | G53: =G50+G51+G56 -> 0 | H53: =H50+H51+H56 -> 0 | I53: 0 | J53: 0 | K53: 0 | L53: 0 | M53: =M50+M51-M56 -> 9842312.079 | N53: 0 | O53: 0 | P53: 0
D54: Less: Cappex req. for Gr. In EBITDA | E54: =E16 -> 1.781952357 | G54: =-G51*$E$54 -> 0 | H54: =-H51*$E$54 -> 0 | I54: 0 | J54: 0 | K54: 0 | L54: 0 | M54: -3851728.522 | N54: 0 | O54: 0 | P54: 0
D55: Less: working capital at future Gr. | E55: =E17 -> 0.9 | G55: =-G53*$E$55*$E$8/(1+$E$8)*G3 -> 0 | H55: 0 | I55: 0 | J55: 0 | K55: 0 | L55: 0 | M55: -258002.3555 | N55: 0 | O55: 0 | P55: 0
D56: Less: Operating taxes | E56: ='AZIZA Model'!O153 -> 0.15 | G56: =-$E$56*(G50/(1-$E$56)) -> 0 | H56: =-$E$56*(H50/(1-$E$56)) -> 0 | I56: 0 | J56: 0 | K56: 0 | L56: 0 | M56: -1152118.571 | N56: 0 | O56: 0 | P56: 0
D57: Add: Change in Indemity | G57: =G39*G3 -> 0 | H57: =H39*H3 -> 0 | I57: 0 | J57: 0 | K57: 0 | L57: 0 | M57: 49464.67442 | N57: 0 | O57: 0 | P57: 0
D58: Normalized Free Cash Flow | G58: =G53+G54+G55+G56+G57 -> 0 | H58: =H53+H54+H55+H56+H57 -> 0 | I58: 0 | J58: 0 | K58: 0 | L58: 0 | M58: 4629927.305 | N58: 0 | O58: 0 | P58: 0
C60: High Case
D61: Normalised ROIC | E61: =F14 -> 0.16 | G61: =$E$61 -> 0.16 | H61: =$E$61 -> 0.16 | I61: 0.16 | J61: 0.16 | K61: 0.16 | L61: 0.16 | M61: 0.16 | N61: 0.16 | O61: 0.16 | P61: 0.16
D62: NOPAT | G62: =G61*G30*G3 -> 0 | H62: =H61*H30*H3 -> 0 | I62: 0 | J62: 0 | K62: 0 | L62: 0 | M62: 6963916.695 | N62: 0 | O62: 0 | P62: 0
D63: Depreciation | G63: =G51 -> 0 | H63: =H51 -> 0 | I63: 0 | J63: 0 | K63: 0 | L63: 0 | M63: 2161521.607 | N63: 0 | O63: 0 | P63: 0
D65: Stable EBITDA | G65: =G62+G63+G68 -> 0 | H65: =H62+H63+H68 -> 0 | I65: =I62+I63+I68 -> 0 | J65: =J62+J63+J68 -> 0 | K65: =K62+K63+K68 -> 0 | L65: =L62+L63+L68 -> 0 | M65: =M62+M63-M68 -> 10354364.78 | N65: =N62+N63+N68 -> 0 | O65: =O62+O63+O68 -> 0 | P65: =P62+P63+P68 -> 0
D66: Less: Cappex req. for Gr. In EBITDA | E66: =F16 -> 2.253923403 | G66: =-G63*$E$54 -> 0 | H66: =-H63*$E$54 -> 0 | I66: =-I63*$E$54 -> 0 | J66: =-J63*$E$54 -> 0 | K66: =-K63*$E$54 -> 0 | L66: =-L63*$E$54 -> 0 | M66: =-M63*$E$54 -> -3851728.522 | N66: =-N63*$E$54 -> 0 | O66: =-O63*$E$54 -> 0 | P66: =-P63*$E$54 -> 0
D67: Less: working capital at future Gr. | E67: =F17 -> 0.9 | G67: =-G65*$E$55*$E$8/(1+$E$8)*F13 -> 0 | H67: =-H65*$E$55*$E$8/(1+$E$8)*H13 -> 0 | I67: 0 | J67: 0 | K67: 0 | L67: 0 | M67: 0 | N67: 0 | O67: 0 | P67: 0
D68: Less: Operating taxes | E68: =E56 -> 0.15 | G68: =-$E$56*(G62/(1-$E$56)) -> 0 | H68: =-$E$56*(H62/(1-$E$56)) -> 0 | I68: 0 | J68: 0 | K68: 0 | L68: 0 | M68: -1228926.476 | N68: 0 | O68: 0 | P68: 0
D69: Add: Change in Indemity | G69: =G57 -> 0 | H69: =H57 -> 0 | I69: 0 | J69: 0 | K69: 0 | L69: 0 | M69: 49464.67442 | N69: 0 | O69: 0 | P69: 0
D70: Normalized Free Cash Flow | G70: =G65+G66+G67+G68+G69 -> 0 | H70: =H65+H66+H67+H68+H69 -> 0 | I70: 0 | J70: 0 | K70: 0 | L70: 0 | M70: 5323174.454 | N70: 0 | O70: 0 | P70: 0
A72: Terminal Value from Gordon Method
D73: Values from Gordon - Low Case | G73: =G58*(1+$E$8)/($E$7-$E$8) -> 0 | H73: =H58*(1+$E$8)/($E$7-$E$8) -> 0 | I73: 0 | J73: 0 | K73: 0 | L73: 0 | M73: 39740209.37 | N73: 0 | O73: 0 | P73: 0
D74: Values from Gordon - High Case | G74: =G70*(1+$F$8)/($F$7-$F$8) -> 0 | H74: =H70*(1+$F$8)/($F$7-$F$8) -> 0 | I74: 0 | J74: 0 | K74: 0 | L74: 0 | M74: 79847616.81 | N74: 0 | O74: 0 | P74: 0
D75: Implied EV/EBITDA in Terminal Year - Low Case | G75: =G73/G35 -> 0 | H75: 0 | I75: 0 | J75: 0 | K75: 0 | L75: 0 | M75: 5.271747478 | N75: 0 | O75: 0 | P75: 0
D76: Implied EV/EBITDA in Terminal Year - High Case | G76: =IF(G65,G74/G65)*1 -> 0 | H76: =IF(H65,H74/H65)*1 -> 0 | I76: 0 | J76: 0 | K76: 0 | L76: 0 | M76: 7.711493513 | N76: 0 | O76: 0 | P76: 0
D78: PV of terminal value - Low Case | G78: =IF(G2,G73) -> FALSE | H78: FALSE | I78: 0 | J78: 0 | K78: 0 | L78: 0 | M78: 39740209.37 | N78: FALSE | O78: FALSE | P78: FALSE
D79: PV of terminal value - High Case | G79: =IF(G2,G74) -> FALSE | H79: =IF(H2,H74) -> FALSE | I79: 0 | J79: 0 | K79: 0 | L79: 0 | M79: 79847616.81 | N79: FALSE | O79: FALSE | P79: FALSE
D81: Value of Terminal EV | E81: =NPV(E7,78:78)*(1+E7)^0.5 -> 21187995.36 | F81: =NPV(F7,79:79)*(1+F7)^0.5 -> 47949143.77
D82: Total EV | E82: =E81+E44 -> 24965175.54 | F82: =E81+E44 -> 24965175.54
C84: Bridge EV to Equity Value
D85: Year of Balance Sheet | E85: =E21-1 -> 2016
D86: Book Value of Bridge | E86: =LOOKUP(E85,'AZIZA Model'!1:1,'AZIZA Model'!236:236) -> 2752933.274 | F86: =E86 -> 2752933.274
D87: Market Value of Bridge | E87: =E86 -> 2752933.274 | F87: =E87 -> 2752933.274
D89: Equity Value | E89: =E82-E87 -> 22212242.26 | F89: =F82-F87 -> 22212242.26
D90: Shares | E90: =LOOKUP(E85,'AZIZA Model'!1:1,'AZIZA Model'!238:238) -> 13440000 | F90: =E90 -> 13440000
D91: Equity Value per Share | E91: =E89/E90 -> 1.652696597 | F91: =F89/F90 -> 1.652696597
A94: Terminal value:EV/EBITDA | G94: =$E$9*G3*G53 -> 0 | H94: =$E$9*H3*H53 -> 0 | I94: 0 | J94: 0 | K94: 0 | L94: 0 | M94: 68896184.55 | N94: 0 | O94: 0 | P94: 0
D95: Termnal Value for PV - Low Case | G95: =IF(G2,G94) -> FALSE | H95: FALSE | I95: 0 | J95: 0 | K95: 0 | L95: 0 | M95: 68896184.55 | N95: FALSE | O95: FALSE | P95: FALSE
D96: Termnal Value for PV - High Case | G96: =IF(G2,G3*G65*$F$9) -> FALSE | H96: =IF(H2,H3*H65*$F$9) -> FALSE | I96: 0 | J96: 0 | K96: 0 | L96: 0 | M96: 93189282.99 | N96: FALSE | O96: FALSE | P96: FALSE
D98: PV of Terminal Value | E98: =NPV(E7,95:95)*(1+E7)^0.5 -> 36732872.38 | F98: =NPV(F7,96:96)*(1+F7)^0.5 -> 55960922.9
D99: EV with EV/EBITDA | E99: =E98+E44 -> 40510052.55 | F99: =F98+F44 -> 59790693.52
D101: Less: Bridge EV to EV | E101: =E87 -> 2752933.274 | F101: =F87 -> 2752933.274
D102: Equity Value | E102: =E99-E101 -> 37757119.27 | F102: =F99-F101 -> 57037760.25
D103: Shares | E103: =E90 -> 13440000 | F103: =F90 -> 13440000
D104: Equity Value per Share | E104: =E102/E103 -> 2.80930947 | F104: =F102/F103 -> 4.243880971
A107: Terminal value: Value Driver Formula
D108: Terminal value - Value driver formula - Low Case | G108: =IF(G2,G50*(1-$E$8/$E$11)/($E$7-$E$8)*G3) -> FALSE | H108: =IF(H2,H50*(1-$E$8/$E$11)/($E$7-$E$8)*H3) -> FALSE | I108: 0 | J108: 0 | K108: 0 | L108: 0 | M108: 43524479.34 | N108: FALSE | O108: FALSE | P108: FALSE
D109: Terminal value - Value driver formula - High Case | G109: =IF(G2,G62*(1-$F$8/$F$14)/($F$7-$F$8)) -> FALSE | H109: =IF(H2,H62*(1-$F$8/$F$14)/($F$7-$F$8)) -> FALSE | I109: 0 | J109: 0 | K109: 0 | L109: 0 | M109: 68395610.4 | N109: FALSE | O109: FALSE | P109: FALSE
D110: Implied EV/EBITDA - Low Case | G110: =G108/G35 -> 0 | H110: 0 | I110: 0 | J110: 0 | K110: 0 | L110: 0 | M110: 5.773750764 | N110: 0 | O110: 0 | P110: 0
D111: Implied EV/EBITDA - High Case
D113: PV of Terminal Value | E113: =NPV(E7,108:108)*(1+E7)^0.5 -> 23205626.77 | F113: =NPV(F7,109:109)*(1+F7)^0.5 -> 41072120.71
D114: EV with Value Driver Formula | E114: =E44+E113 -> 26982806.95 | F114: =F44+F113 -> 44901891.33
D116: Less: Bridge EV to EV | E116: =E101 -> 2752933.274 | F116: =F101 -> 2752933.274
D117: Equity Value | E117: =E114-E116 -> 24229873.67 | F117: =F114-F116 -> 42148958.06
D118: Shares | E118: =E103 -> 13440000 | F118: =F103 -> 13440000
D119: Equity Value per Share | E119: =E117/E118 -> 1.802817982 | F119: =F117/F118 -> 3.136083189
H126: Current EV-STOCK P | I126: 32000000
H128: Explicit period | I128: =E22 -> 5
I130: WACC
G131: =E89 -> 22212242.26 | H131: 0.1 | I131: 0.12 | J131: 0.15 | K131: 0.17
G132: 0.01 | H132: 44858656.29 | I132: 34010117.68 | J132: 23842692.13 | K132: 19332867.21
G133: 0.02 | H133: 45293912.92 | I133: 33604314.72 | J133: 23086834.9 | K133: 18550737.47
E134: GROWTH | G134: 0.03 | H134: 45868690.11 | I134: 33119207.21 | J134: 22212242.26 | K134: 17662617.99
G135: 0.04 | H135: 46858527.05 | I135: 32667370.08 | J135: 21278425.64 | K135: 16716001
G139: =E99 -> 40510052.55 | H139: 0.1 | I139: 0.12 | J139: 0.15 | K139: 0.17
G140: 7 | H140: 49123141.29 | I140: 45425767.83 | J140: 40510052.55 | K140: 37600820.74
E141: EV/EBITDA | G141: 7.5 | H141: 52327934.8 | I141: 48380962.08 | J141: 43133829.15 | K141: 40028720.53
G142: 8 | H142: 55532728.31 | I142: 51336156.34 | J142: 45757605.74 | K142: 42456620.32
G143: 8.5 | H143: 58737521.82 | I143: 54291350.59 | J143: 48381382.34 | K143: 44884520.12
D146: CASH FLOW | H146: =-I126 -> -32000000 | I146: =I73+I43 -> 761997.6383 | J146: 782968.3054 | K146: 1034778.477 | L146: 1338127.697 | M146: 41393812.5 | N146: 0 | O146: 0 | P146: 0
D147: IRR | E147: =IRR(146:146) -> 0.07538417943

Sheet Graph Data
B3: 1 | C3: =MATCH(B3,'AZIZA Model'!AB:AB,0) -> 11 | D3: =INDEX('AZIZA Model'!C:C,'Graph Data'!C3)&INDEX('AZIZA Model'!D:D,'Graph Data'!C3)&INDEX('AZIZA Model'!B:B,'Graph Data'!C3) -> Revenue Growth | E3: =INDEX('AZIZA Model'!J:J,'Graph Data'!$C3) -> 0 | F3: =INDEX('AZIZA Model'!K:K,'Graph Data'!$C3) -> -0.008435487815 | G3: =INDEX('AZIZA Model'!L:L,'Graph Data'!$C3) -> 0.4337319823 | H3: =INDEX('AZIZA Model'!M:M,'Graph Data'!$C3) -> 0.04622610961 | I3: =INDEX('AZIZA Model'!N:N,'Graph Data'!$C3) -> 0.01040746334 | J3: =INDEX('AZIZA Model'!O:O,'Graph Data'!$C3) -> 0.3875848243 | K3: =INDEX('AZIZA Model'!P:P,'Graph Data'!$C3) -> 0.1283342172 | L3: =INDEX('AZIZA Model'!Q:Q,'Graph Data'!$C3) -> 0.0308736244 | M3: =INDEX('AZIZA Model'!R:R,'Graph Data'!$C3) -> 0.1070205535 | N3: =INDEX('AZIZA Model'!S:S,'Graph Data'!$C3) -> 0.05 | O3: =INDEX('AZIZA Model'!T:T,'Graph Data'!$C3) -> 0.05 | P3: =INDEX('AZIZA Model'!U:U,'Graph Data'!$C3) -> 0.05 | Q3: =INDEX('AZIZA Model'!V:V,'Graph Data'!$C3) -> 0.05 | R3: =INDEX('AZIZA Model'!W:W,'Graph Data'!$C3) -> 0.05 | S3: =INDEX('AZIZA Model'!X:X,'Graph Data'!$C3) -> 0.05 | T3: =INDEX('AZIZA Model'!Y:Y,'Graph Data'!$C3) -> 0.05 | U3: =INDEX('AZIZA Model'!Z:Z,'Graph Data'!$C3) -> 0.05
B4: 2 | C4: =MATCH(B4,'AZIZA Model'!AB:AB,0) -> 20 | D4: =INDEX('AZIZA Model'!C:C,'Graph Data'!C4)&INDEX('AZIZA Model'!D:D,'Graph Data'!C4)&INDEX('AZIZA Model'!B:B,'Graph Data'!C4) -> COGS Percent Assumption | E4: =INDEX('AZIZA Model'!J:J,'Graph Data'!$C4) -> 0.79769696 | F4: =INDEX('AZIZA Model'!K:K,'Graph Data'!$C4) -> 0.6722562373 | G4: =INDEX('AZIZA Model'!L:L,'Graph Data'!$C4) -> 0.6293532355 | H4: =INDEX('AZIZA Model'!M:M,'Graph Data'!$C4) -> 0.8476443721 | I4: =INDEX('AZIZA Model'!N:N,'Graph Data'!$C4) -> 0.820333579 | J4: =INDEX('AZIZA Model'!O:O,'Graph Data'!$C4) -> 0.7394479362 | K4: =INDEX('AZIZA Model'!P:P,'Graph Data'!$C4) -> 0.7653943085 | L4: =INDEX('AZIZA Model'!Q:Q,'Graph Data'!$C4) -> 0.7615847404 | M4: =INDEX('AZIZA Model'!R:R,'Graph Data'!$C4) -> 0.7295705017 | N4: =INDEX('AZIZA Model'!S:S,'Graph Data'!$C4) -> 0.73 | O4: =INDEX('AZIZA Model'!T:T,'Graph Data'!$C4) -> 0.74 | P4: =INDEX('AZIZA Model'!U:U,'Graph Data'!$C4) -> 0.74 | Q4: =INDEX('AZIZA Model'!V:V,'Graph Data'!$C4) -> 0.74 | R4: =INDEX('AZIZA Model'!W:W,'Graph Data'!$C4) -> 0.74 | S4: =INDEX('AZIZA Model'!X:X,'Graph Data'!$C4) -> 0.74 | T4: =INDEX('AZIZA Model'!Y:Y,'Graph Data'!$C4) -> 0.74 | U4: =INDEX('AZIZA Model'!Z:Z,'Graph Data'!$C4) -> 0.74
B5: 3 | C5: =MATCH(B5,'AZIZA Model'!AB:AB,0) -> 23 | D5: =INDEX('AZIZA Model'!C:C,'Graph Data'!C5)&INDEX('AZIZA Model'!D:D,'Graph Data'!C5)&INDEX('AZIZA Model'!B:B,'Graph Data'!C5) -> Admin as Pct of Revenue | E5: =INDEX('AZIZA Model'!J:J,'Graph Data'!$C5) -> 0.04996447834 | F5: =INDEX('AZIZA Model'!K:K,'Graph Data'!$C5) -> 0.05973242472 | G5: =INDEX('AZIZA Model'!L:L,'Graph Data'!$C5) -> 0.06865735446 | H5: =INDEX('AZIZA Model'!M:M,'Graph Data'!$C5) -> 0.04982792964 | I5: =INDEX('AZIZA Model'!N:N,'Graph Data'!$C5) -> 0.04862126115 | J5: =INDEX('AZIZA Model'!O:O,'Graph Data'!$C5) -> 0.04160696678 | K5: =INDEX('AZIZA Model'!P:P,'Graph Data'!$C5) -> 0.03700380212 | L5: =INDEX('AZIZA Model'!Q:Q,'Graph Data'!$C5) -> 0.040213888 | M5: =INDEX('AZIZA Model'!R:R,'Graph Data'!$C5) -> 0.04945351315 | N5: =INDEX('AZIZA Model'!S:S,'Graph Data'!$C5) -> 0.04945351315 | O5: =INDEX('AZIZA Model'!T:T,'Graph Data'!$C5) -> 0.04945351315 | P5: =INDEX('AZIZA Model'!U:U,'Graph Data'!$C5) -> 0.04945351315 | Q5: =INDEX('AZIZA Model'!V:V,'Graph Data'!$C5) -> 0.04945351315 | R5: =INDEX('AZIZA Model'!W:W,'Graph Data'!$C5) -> 0.04945351315 | S5: =INDEX('AZIZA Model'!X:X,'Graph Data'!$C5) -> 0.04945351315 | T5: =INDEX('AZIZA Model'!Y:Y,'Graph Data'!$C5) -> 0.04945351315 | U5: =INDEX('AZIZA Model'!Z:Z,'Graph Data'!$C5) -> 0.04945351315
B6: 4 | C6: =MATCH(B6,'AZIZA Model'!AB:AB,0) -> 26 | D6: =INDEX('AZIZA Model'!C:C,'Graph Data'!C6)&INDEX('AZIZA Model'!D:D,'Graph Data'!C6)&INDEX('AZIZA Model'!B:B,'Graph Data'!C6) -> Doubtful Debts % of Revenue | E6: =INDEX('AZIZA Model'!J:J,'Graph Data'!$C6) -> 0.01560419446 | F6: =INDEX('AZIZA Model'!K:K,'Graph Data'!$C6) -> 0.005756322767 | G6: =INDEX('AZIZA Model'!L:L,'Graph Data'!$C6) -> 0 | H6: =INDEX('AZIZA Model'!M:M,'Graph Data'!$C6) -> 0 | I6: =INDEX('AZIZA Model'!N:N,'Graph Data'!$C6) -> 0.006809162873 | J6: =INDEX('AZIZA Model'!O:O,'Graph Data'!$C6) -> 0.004525539783 | K6: =INDEX('AZIZA Model'!P:P,'Graph Data'!$C6) -> 0.004480111215 | L6: =INDEX('AZIZA Model'!Q:Q,'Graph Data'!$C6) -> 0.004581906531 | M6: =INDEX('AZIZA Model'!R:R,'Graph Data'!$C6) -> 0.005219654704 | N6: =INDEX('AZIZA Model'!S:S,'Graph Data'!$C6) -> 0.005219654704 | O6: =INDEX('AZIZA Model'!T:T,'Graph Data'!$C6) -> 0.005219654704 | P6: =INDEX('AZIZA Model'!U:U,'Graph Data'!$C6) -> 0.005219654704 | Q6: =INDEX('AZIZA Model'!V:V,'Graph Data'!$C6) -> 0.005219654704 | R6: =INDEX('AZIZA Model'!W:W,'Graph Data'!$C6) -> 0.005219654704 | S6: =INDEX('AZIZA Model'!X:X,'Graph Data'!$C6) -> 0.005219654704 | T6: =INDEX('AZIZA Model'!Y:Y,'Graph Data'!$C6) -> 0.005219654704 | U6: =INDEX('AZIZA Model'!Z:Z,'Graph Data'!$C6) -> 0.005219654704
B7: 5 | C7: =MATCH(B7,'AZIZA Model'!AB:AB,0) -> 29 | D7: =INDEX('AZIZA Model'!C:C,'Graph Data'!C7)&INDEX('AZIZA Model'!D:D,'Graph Data'!C7)&INDEX('AZIZA Model'!B:B,'Graph Data'!C7) -> Sales and Mkting Growth | E7: =INDEX('AZIZA Model'!J:J,'Graph Data'!$C7) -> 0 | F7: =INDEX('AZIZA Model'!K:K,'Graph Data'!$C7) -> 0 | G7: =INDEX('AZIZA Model'!L:L,'Graph Data'!$C7) -> 0 | H7: =INDEX('AZIZA Model'!M:M,'Graph Data'!$C7) -> 0.9610269836 | I7: =INDEX('AZIZA Model'!N:N,'Graph Data'!$C7) -> 0.2532731052 | J7: =INDEX('AZIZA Model'!O:O,'Graph Data'!$C7) -> 1.253592904 | K7: =INDEX('AZIZA Model'!P:P,'Graph Data'!$C7) -> 0.3132227898 | L7: =INDEX('AZIZA Model'!Q:Q,'Graph Data'!$C7) -> -0.02240535168 | M7: =INDEX('AZIZA Model'!R:R,'Graph Data'!$C7) -> 0.05169510322 | N7: =INDEX('AZIZA Model'!S:S,'Graph Data'!$C7) -> 0.05169510322 | O7: =INDEX('AZIZA Model'!T:T,'Graph Data'!$C7) -> 0.05169510322 | P7: =INDEX('AZIZA Model'!U:U,'Graph Data'!$C7) -> 0.05169510322 | Q7: =INDEX('AZIZA Model'!V:V,'Graph Data'!$C7) -> 0.05169510322 | R7: =INDEX('AZIZA Model'!W:W,'Graph Data'!$C7) -> 0.05169510322 | S7: =INDEX('AZIZA Model'!X:X,'Graph Data'!$C7) -> 0.05169510322 | T7: =INDEX('AZIZA Model'!Y:Y,'Graph Data'!$C7) -> 0.05169510322 | U7: =INDEX('AZIZA Model'!Z:Z,'Graph Data'!$C7) -> 0.05169510322
B8: 6 | C8: =MATCH(B8,'AZIZA Model'!AB:AB,0) -> 33 | D8: =INDEX('AZIZA Model'!C:C,'Graph Data'!C8)&INDEX('AZIZA Model'!D:D,'Graph Data'!C8)&INDEX('AZIZA Model'!B:B,'Graph Data'!C8) -> Cap Exp Forecast | E8: =INDEX('AZIZA Model'!J:J,'Graph Data'!$C8) -> 305477 | F8: =INDEX('AZIZA Model'!K:K,'Graph Data'!$C8) -> 6263126 | G8: =INDEX('AZIZA Model'!L:L,'Graph Data'!$C8) -> 5157567 | H8: =INDEX('AZIZA Model'!M:M,'Graph Data'!$C8) -> 2513906 | I8: =INDEX('AZIZA Model'!N:N,'Graph Data'!$C8) -> 639793 | J8: =INDEX('AZIZA Model'!O:O,'Graph Data'!$C8) -> 413643 | K8: =INDEX('AZIZA Model'!P:P,'Graph Data'!$C8) -> 1282665 | L8: =INDEX('AZIZA Model'!Q:Q,'Graph Data'!$C8) -> 976195 | M8: =INDEX('AZIZA Model'!R:R,'Graph Data'!$C8) -> 4800000 | N8: =INDEX('AZIZA Model'!S:S,'Graph Data'!$C8) -> 4800000 | O8: =INDEX('AZIZA Model'!T:T,'Graph Data'!$C8) -> 4800000 | P8: =INDEX('AZIZA Model'!U:U,'Graph Data'!$C8) -> 4800000 | Q8: =INDEX('AZIZA Model'!V:V,'Graph Data'!$C8) -> 4800000 | R8: =INDEX('AZIZA Model'!W:W,'Graph Data'!$C8) -> 4800000 | S8: =INDEX('AZIZA Model'!X:X,'Graph Data'!$C8) -> 4800000 | T8: =INDEX('AZIZA Model'!Y:Y,'Graph Data'!$C8) -> 4800000 | U8: =INDEX('AZIZA Model'!Z:Z,'Graph Data'!$C8) -> 4800000
B9: 7 | C9: =MATCH(B9,'AZIZA Model'!AB:AB,0) -> 37 | D9: =INDEX('AZIZA Model'!C:C,'Graph Data'!C9)&INDEX('AZIZA Model'!D:D,'Graph Data'!C9)&INDEX('AZIZA Model'!B:B,'Graph Data'!C9) -> Depreciation Rate | E9: =INDEX('AZIZA Model'!J:J,'Graph Data'!$C9) -> 0 | F9: =INDEX('AZIZA Model'!K:K,'Graph Data'!$C9) -> 0.05836402233 | G9: =INDEX('AZIZA Model'!L:L,'Graph Data'!$C9) -> 0.05512628263 | H9: =INDEX('AZIZA Model'!M:M,'Graph Data'!$C9) -> 0.05301732045 | I9: =INDEX('AZIZA Model'!N:N,'Graph Data'!$C9) -> 0.05094418876 | J9: =INDEX('AZIZA Model'!O:O,'Graph Data'!$C9) -> 0.05540722044 | K9: =INDEX('AZIZA Model'!P:P,'Graph Data'!$C9) -> 0.05549819508 | L9: =INDEX('AZIZA Model'!Q:Q,'Graph Data'!$C9) -> 0.05894292676 | M9: =INDEX('AZIZA Model'!R:R,'Graph Data'!$C9) -> 0.05999334248 | N9: =INDEX('AZIZA Model'!S:S,'Graph Data'!$C9) -> 0.05999334248 | O9: =INDEX('AZIZA Model'!T:T,'Graph Data'!$C9) -> 0.05999334248 | P9: =INDEX('AZIZA Model'!U:U,'Graph Data'!$C9) -> 0.05999334248 | Q9: =INDEX('AZIZA Model'!V:V,'Graph Data'!$C9) -> 0.05999334248 | R9: =INDEX('AZIZA Model'!W:W,'Graph Data'!$C9) -> 0.05999334248 | S9: =INDEX('AZIZA Model'!X:X,'Graph Data'!$C9) -> 0.05999334248 | T9: =INDEX('AZIZA Model'!Y:Y,'Graph Data'!$C9) -> 0.05999334248 | U9: =INDEX('AZIZA Model'!Z:Z,'Graph Data'!$C9) -> 0.05999334248
B10: 8 | C10: =MATCH(B10,'AZIZA Model'!AB:AB,0) -> 41 | D10: =INDEX('AZIZA Model'!C:C,'Graph Data'!C10)&INDEX('AZIZA Model'!D:D,'Graph Data'!C10)&INDEX('AZIZA Model'!B:B,'Graph Data'!C10) -> Income Tax Rate | E10: =INDEX('AZIZA Model'!J:J,'Graph Data'!$C10) -> 0.1059061069 | F10: =INDEX('AZIZA Model'!K:K,'Graph Data'!$C10) -> 0.07984093542 | G10: =INDEX('AZIZA Model'!L:L,'Graph Data'!$C10) -> 0.07472086685 | H10: =INDEX('AZIZA Model'!M:M,'Graph Data'!$C10) -> -0.6331427572 | I10: =INDEX('AZIZA Model'!N:N,'Graph Data'!$C10) -> 0.2128384562 | J10: =INDEX('AZIZA Model'!O:O,'Graph Data'!$C10) -> 0.1279186285 | K10: =INDEX('AZIZA Model'!P:P,'Graph Data'!$C10) -> 0.1618213515 | L10: =INDEX('AZIZA Model'!Q:Q,'Graph Data'!$C10) -> 0.1228511344 | M10: =INDEX('AZIZA Model'!R:R,'Graph Data'!$C10) -> 0.15 | N10: =INDEX('AZIZA Model'!S:S,'Graph Data'!$C10) -> 0.15 | O10: =INDEX('AZIZA Model'!T:T,'Graph Data'!$C10) -> 0.15 | P10: =INDEX('AZIZA Model'!U:U,'Graph Data'!$C10) -> 0.15 | Q10: =INDEX('AZIZA Model'!V:V,'Graph Data'!$C10) -> 0.15 | R10: =INDEX('AZIZA Model'!W:W,'Graph Data'!$C10) -> 0.15 | S10: =INDEX('AZIZA Model'!X:X,'Graph Data'!$C10) -> 0.15 | T10: =INDEX('AZIZA Model'!Y:Y,'Graph Data'!$C10) -> 0.15 | U10: =INDEX('AZIZA Model'!Z:Z,'Graph Data'!$C10) -> 0.15
B11: 9 | C11: =MATCH(B11,'AZIZA Model'!AB:AB,0) -> 47 | D11: =INDEX('AZIZA Model'!C:C,'Graph Data'!C11)&INDEX('AZIZA Model'!D:D,'Graph Data'!C11)&INDEX('AZIZA Model'!B:B,'Graph Data'!C11) -> Average Rate | E11: =INDEX('AZIZA Model'!J:J,'Graph Data'!$C11) -> 0.07530371016 | F11: =INDEX('AZIZA Model'!K:K,'Graph Data'!$C11) -> 0.01470751383 | G11: =INDEX('AZIZA Model'!L:L,'Graph Data'!$C11) -> 0.01794777493 | H11: =INDEX('AZIZA Model'!M:M,'Graph Data'!$C11) -> 0.02483870202 | I11: =INDEX('AZIZA Model'!N:N,'Graph Data'!$C11) -> 0.02608292534 | J11: =INDEX('AZIZA Model'!O:O,'Graph Data'!$C11) -> 0.05932281063 | K11: =INDEX('AZIZA Model'!P:P,'Graph Data'!$C11) -> 0.04937031279 | L11: =INDEX('AZIZA Model'!Q:Q,'Graph Data'!$C11) -> 0.06310973465 | M11: =INDEX('AZIZA Model'!R:R,'Graph Data'!$C11) -> 0.03 | N11: =INDEX('AZIZA Model'!S:S,'Graph Data'!$C11) -> 0.03 | O11: =INDEX('AZIZA Model'!T:T,'Graph Data'!$C11) -> 0.03 | P11: =INDEX('AZIZA Model'!U:U,'Graph Data'!$C11) -> 0.03 | Q11: =INDEX('AZIZA Model'!V:V,'Graph Data'!$C11) -> 0.03 | R11: =INDEX('AZIZA Model'!W:W,'Graph Data'!$C11) -> 0.03 | S11: =INDEX('AZIZA Model'!X:X,'Graph Data'!$C11) -> 0.03 | T11: =INDEX('AZIZA Model'!Y:Y,'Graph Data'!$C11) -> 0.03 | U11: =INDEX('AZIZA Model'!Z:Z,'Graph Data'!$C11) -> 0.03
B12: 10 | C12: =MATCH(B12,'AZIZA Model'!AB:AB,0) -> 52 | D12: =INDEX('AZIZA Model'!C:C,'Graph Data'!C12)&INDEX('AZIZA Model'!D:D,'Graph Data'!C12)&INDEX('AZIZA Model'!B:B,'Graph Data'!C12) -> Net Revenues Projection | E12: =INDEX('AZIZA Model'!J:J,'Graph Data'!$C12) -> -53580 | F12: =INDEX('AZIZA Model'!K:K,'Graph Data'!$C12) -> 303309 | G12: =INDEX('AZIZA Model'!L:L,'Graph Data'!$C12) -> 405445 | H12: =INDEX('AZIZA Model'!M:M,'Graph Data'!$C12) -> -523975 | I12: =INDEX('AZIZA Model'!N:N,'Graph Data'!$C12) -> 185977 | J12: =INDEX('AZIZA Model'!O:O,'Graph Data'!$C12) -> 523873.802 | K12: =INDEX('AZIZA Model'!P:P,'Graph Data'!$C12) -> -469868 | L12: =INDEX('AZIZA Model'!Q:Q,'Graph Data'!$C12) -> -40317 | M12: =INDEX('AZIZA Model'!R:R,'Graph Data'!$C12) -> 50000 | N12: =INDEX('AZIZA Model'!S:S,'Graph Data'!$C12) -> 50000 | O12: =INDEX('AZIZA Model'!T:T,'Graph Data'!$C12) -> 50000 | P12: =INDEX('AZIZA Model'!U:U,'Graph Data'!$C12) -> 50000 | Q12: =INDEX('AZIZA Model'!V:V,'Graph Data'!$C12) -> 50000 | R12: =INDEX('AZIZA Model'!W:W,'Graph Data'!$C12) -> 50000 | S12: =INDEX('AZIZA Model'!X:X,'Graph Data'!$C12) -> 50000 | T12: =INDEX('AZIZA Model'!Y:Y,'Graph Data'!$C12) -> 50000 | U12: =INDEX('AZIZA Model'!Z:Z,'Graph Data'!$C12) -> 50000
B13: 11 | C13: =MATCH(B13,'AZIZA Model'!AB:AB,0) -> 56 | D13: =INDEX('AZIZA Model'!C:C,'Graph Data'!C13)&INDEX('AZIZA Model'!D:D,'Graph Data'!C13)&INDEX('AZIZA Model'!B:B,'Graph Data'!C13) -> Minimum Cash Percent | E13: =INDEX('AZIZA Model'!J:J,'Graph Data'!$C13) -> 0.0266537131 | F13: =INDEX('AZIZA Model'!K:K,'Graph Data'!$C13) -> 0.09088563614 | G13: =INDEX('AZIZA Model'!L:L,'Graph Data'!$C13) -> 0.01887967965 | H13: =INDEX('AZIZA Model'!M:M,'Graph Data'!$C13) -> 0.008620712744 | I13: =INDEX('AZIZA Model'!N:N,'Graph Data'!$C13) -> 0.006073535778 | J13: =INDEX('AZIZA Model'!O:O,'Graph Data'!$C13) -> 0.05758370215 | K13: =INDEX('AZIZA Model'!P:P,'Graph Data'!$C13) -> 0.01710978548 | L13: =INDEX('AZIZA Model'!Q:Q,'Graph Data'!$C13) -> 0.05081349255 | M13: =INDEX('AZIZA Model'!R:R,'Graph Data'!$C13) -> 0.01 | N13: =INDEX('AZIZA Model'!S:S,'Graph Data'!$C13) -> 0.01 | O13: =INDEX('AZIZA Model'!T:T,'Graph Data'!$C13) -> 0.01 | P13: =INDEX('AZIZA Model'!U:U,'Graph Data'!$C13) -> 0.01 | Q13: =INDEX('AZIZA Model'!V:V,'Graph Data'!$C13) -> 0.01 | R13: =INDEX('AZIZA Model'!W:W,'Graph Data'!$C13) -> 0.01 | S13: =INDEX('AZIZA Model'!X:X,'Graph Data'!$C13) -> 0.01 | T13: =INDEX('AZIZA Model'!Y:Y,'Graph Data'!$C13) -> 0.01 | U13: =INDEX('AZIZA Model'!Z:Z,'Graph Data'!$C13) -> 0.01
B14: 12 | C14: =MATCH(B14,'AZIZA Model'!AB:AB,0) -> 60 | D14: =INDEX('AZIZA Model'!C:C,'Graph Data'!C14)&INDEX('AZIZA Model'!D:D,'Graph Data'!C14)&INDEX('AZIZA Model'!B:B,'Graph Data'!C14) -> Dividend Payout | E14: =INDEX('AZIZA Model'!J:J,'Graph Data'!$C14) -> 0 | F14: =INDEX('AZIZA Model'!K:K,'Graph Data'!$C14) -> 0 | G14: =INDEX('AZIZA Model'!L:L,'Graph Data'!$C14) -> 0.1312784109 | H14: =INDEX('AZIZA Model'!M:M,'Graph Data'!$C14) -> -1.09285786 | I14: =INDEX('AZIZA Model'!N:N,'Graph Data'!$C14) -> 0.06618338483 | J14: =INDEX('AZIZA Model'!O:O,'Graph Data'!$C14) -> 0.04064255077 | K14: =INDEX('AZIZA Model'!P:P,'Graph Data'!$C14) -> 0.6550228852 | L14: =INDEX('AZIZA Model'!Q:Q,'Graph Data'!$C14) -> 0.514826096 | M14: =INDEX('AZIZA Model'!R:R,'Graph Data'!$C14) -> 0.5 | N14: =INDEX('AZIZA Model'!S:S,'Graph Data'!$C14) -> 0.5 | O14: =INDEX('AZIZA Model'!T:T,'Graph Data'!$C14) -> 0.5 | P14: =INDEX('AZIZA Model'!U:U,'Graph Data'!$C14) -> 0.5 | Q14: =INDEX('AZIZA Model'!V:V,'Graph Data'!$C14) -> 0.5 | R14: =INDEX('AZIZA Model'!W:W,'Graph Data'!$C14) -> 0.5 | S14: =INDEX('AZIZA Model'!X:X,'Graph Data'!$C14) -> 0.5 | T14: =INDEX('AZIZA Model'!Y:Y,'Graph Data'!$C14) -> 0.5 | U14: =INDEX('AZIZA Model'!Z:Z,'Graph Data'!$C14) -> 0.5
B15: 13 | C15: =MATCH(B15,'AZIZA Model'!AB:AB,0) -> 65 | D15: =INDEX('AZIZA Model'!C:C,'Graph Data'!C15)&INDEX('AZIZA Model'!D:D,'Graph Data'!C15)&INDEX('AZIZA Model'!B:B,'Graph Data'!C15) -> Biological Assets as Pct of Sale | E15: =INDEX('AZIZA Model'!J:J,'Graph Data'!$C15) -> 0.09309120657 | F15: =INDEX('AZIZA Model'!K:K,'Graph Data'!$C15) -> 0.136330945 | G15: =INDEX('AZIZA Model'!L:L,'Graph Data'!$C15) -> 0.1395523637 | H15: =INDEX('AZIZA Model'!M:M,'Graph Data'!$C15) -> 0.1050637313 | I15: =INDEX('AZIZA Model'!N:N,'Graph Data'!$C15) -> 0.106663225 | J15: =INDEX('AZIZA Model'!O:O,'Graph Data'!$C15) -> 0.07229431308 | K15: =INDEX('AZIZA Model'!P:P,'Graph Data'!$C15) -> 0.06104419876 | L15: =INDEX('AZIZA Model'!Q:Q,'Graph Data'!$C15) -> 0.06633710119 | M15: =INDEX('AZIZA Model'!R:R,'Graph Data'!$C15) -> 0.06365545198 | N15: =INDEX('AZIZA Model'!S:S,'Graph Data'!$C15) -> 0.06365545198 | O15: =INDEX('AZIZA Model'!T:T,'Graph Data'!$C15) -> 0.06365545198 | P15: =INDEX('AZIZA Model'!U:U,'Graph Data'!$C15) -> 0.06365545198 | Q15: =INDEX('AZIZA Model'!V:V,'Graph Data'!$C15) -> 0.06365545198 | R15: =INDEX('AZIZA Model'!W:W,'Graph Data'!$C15) -> 0.06365545198 | S15: =INDEX('AZIZA Model'!X:X,'Graph Data'!$C15) -> 0.06365545198 | T15: =INDEX('AZIZA Model'!Y:Y,'Graph Data'!$C15) -> 0.06365545198 | U15: =INDEX('AZIZA Model'!Z:Z,'Graph Data'!$C15) -> 0.06365545198
B16: 14 | C16: =MATCH(B16,'AZIZA Model'!AB:AB,0) -> 69 | D16: =INDEX('AZIZA Model'!C:C,'Graph Data'!C16)&INDEX('AZIZA Model'!D:D,'Graph Data'!C16)&INDEX('AZIZA Model'!B:B,'Graph Data'!C16) -> Inventory as Percent of COGS | E16: =INDEX('AZIZA Model'!J:J,'Graph Data'!$C16) -> 0.1111747551 | F16: =INDEX('AZIZA Model'!K:K,'Graph Data'!$C16) -> 0.1124754307 | G16: =INDEX('AZIZA Model'!L:L,'Graph Data'!$C16) -> 0.185053151 | H16: =INDEX('AZIZA Model'!M:M,'Graph Data'!$C16) -> 0.08838593576 | I16: =INDEX('AZIZA Model'!N:N,'Graph Data'!$C16) -> 0.09746530959 | J16: =INDEX('AZIZA Model'!O:O,'Graph Data'!$C16) -> 0.1214455859 | K16: =INDEX('AZIZA Model'!P:P,'Graph Data'!$C16) -> 0.1120309599 | L16: =INDEX('AZIZA Model'!Q:Q,'Graph Data'!$C16) -> 0.08018358938 | M16: =INDEX('AZIZA Model'!R:R,'Graph Data'!$C16) -> 0.08234257117 | N16: =INDEX('AZIZA Model'!S:S,'Graph Data'!$C16) -> 0.08234257117 | O16: =INDEX('AZIZA Model'!T:T,'Graph Data'!$C16) -> 0.08234257117 | P16: =INDEX('AZIZA Model'!U:U,'Graph Data'!$C16) -> 0.08234257117 | Q16: =INDEX('AZIZA Model'!V:V,'Graph Data'!$C16) -> 0.08234257117 | R16: =INDEX('AZIZA Model'!W:W,'Graph Data'!$C16) -> 0.08234257117 | S16: =INDEX('AZIZA Model'!X:X,'Graph Data'!$C16) -> 0.08234257117 | T16: =INDEX('AZIZA Model'!Y:Y,'Graph Data'!$C16) -> 0.08234257117 | U16: =INDEX('AZIZA Model'!Z:Z,'Graph Data'!$C16) -> 0.08234257117
B17: 15 | C17: =MATCH(B17,'AZIZA Model'!AB:AB,0) -> 73 | D17: =INDEX('AZIZA Model'!C:C,'Graph Data'!C17)&INDEX('AZIZA Model'!D:D,'Graph Data'!C17)&INDEX('AZIZA Model'!B:B,'Graph Data'!C17) -> A/R as Percent of Revenues | E17: =INDEX('AZIZA Model'!J:J,'Graph Data'!$C17) -> 0.1126861601 | F17: =INDEX('AZIZA Model'!K:K,'Graph Data'!$C17) -> 0.1262856432 | G17: =INDEX('AZIZA Model'!L:L,'Graph Data'!$C17) -> 0.1056234358 | H17: =INDEX('AZIZA Model'!M:M,'Graph Data'!$C17) -> 0.1823597642 | I17: =INDEX('AZIZA Model'!N:N,'Graph Data'!$C17) -> 0.229499007 | J17: =INDEX('AZIZA Model'!O:O,'Graph Data'!$C17) -> 0.1813501385 | K17: =INDEX('AZIZA Model'!P:P,'Graph Data'!$C17) -> 0.1931526252 | L17: =INDEX('AZIZA Model'!Q:Q,'Graph Data'!$C17) -> 0.1846542098 | M17: =INDEX('AZIZA Model'!R:R,'Graph Data'!$C17) -> 0.1964684299 | N17: =INDEX('AZIZA Model'!S:S,'Graph Data'!$C17) -> 0.1964684299 | O17: =INDEX('AZIZA Model'!T:T,'Graph Data'!$C17) -> 0.1964684299 | P17: =INDEX('AZIZA Model'!U:U,'Graph Data'!$C17) -> 0.1964684299 | Q17: =INDEX('AZIZA Model'!V:V,'Graph Data'!$C17) -> 0.1964684299 | R17: =INDEX('AZIZA Model'!W:W,'Graph Data'!$C17) -> 0.1964684299 | S17: =INDEX('AZIZA Model'!X:X,'Graph Data'!$C17) -> 0.1964684299 | T17: =INDEX('AZIZA Model'!Y:Y,'Graph Data'!$C17) -> 0.1964684299 | U17: =INDEX('AZIZA Model'!Z:Z,'Graph Data'!$C17) -> 0.1964684299
B18: 16 | C18: =MATCH(B18,'AZIZA Model'!AB:AB,0) -> 77 | D18: =INDEX('AZIZA Model'!C:C,'Graph Data'!C18)&INDEX('AZIZA Model'!D:D,'Graph Data'!C18)&INDEX('AZIZA Model'!B:B,'Graph Data'!C18) -> Other Current Assets as Pct of Revenues | E18: =INDEX('AZIZA Model'!J:J,'Graph Data'!$C18) -> 0.06273219586 | F18: =INDEX('AZIZA Model'!K:K,'Graph Data'!$C18) -> 0.1083650615 | G18: =INDEX('AZIZA Model'!L:L,'Graph Data'!$C18) -> 0.0884847603 | H18: =INDEX('AZIZA Model'!M:M,'Graph Data'!$C18) -> 0.113892008 | I18: =INDEX('AZIZA Model'!N:N,'Graph Data'!$C18) -> 0.08848871864 | J18: =INDEX('AZIZA Model'!O:O,'Graph Data'!$C18) -> 0.03714188628 | K18: =INDEX('AZIZA Model'!P:P,'Graph Data'!$C18) -> 0.01739066345 | L18: =INDEX('AZIZA Model'!Q:Q,'Graph Data'!$C18) -> 0.01301707131 | M18: =INDEX('AZIZA Model'!R:R,'Graph Data'!$C18) -> 0.01132390593 | N18: =INDEX('AZIZA Model'!S:S,'Graph Data'!$C18) -> 0.01132390593 | O18: =INDEX('AZIZA Model'!T:T,'Graph Data'!$C18) -> 0.01132390593 | P18: =INDEX('AZIZA Model'!U:U,'Graph Data'!$C18) -> 0.01132390593 | Q18: =INDEX('AZIZA Model'!V:V,'Graph Data'!$C18) -> 0.01132390593 | R18: =INDEX('AZIZA Model'!W:W,'Graph Data'!$C18) -> 0.01132390593 | S18: =INDEX('AZIZA Model'!X:X,'Graph Data'!$C18) -> 0.01132390593 | T18: =INDEX('AZIZA Model'!Y:Y,'Graph Data'!$C18) -> 0.01132390593 | U18: =INDEX('AZIZA Model'!Z:Z,'Graph Data'!$C18) -> 0.01132390593
B19: 17 | C19: =MATCH(B19,'AZIZA Model'!AB:AB,0) -> 81 | D19: =INDEX('AZIZA Model'!C:C,'Graph Data'!C19)&INDEX('AZIZA Model'!D:D,'Graph Data'!C19)&INDEX('AZIZA Model'!B:B,'Graph Data'!C19) -> Accounts Payable as Percent of Expense | E19: =INDEX('AZIZA Model'!J:J,'Graph Data'!$C19) -> 0.1803723323 | F19: =INDEX('AZIZA Model'!K:K,'Graph Data'!$C19) -> 0.2605928045 | G19: =INDEX('AZIZA Model'!L:L,'Graph Data'!$C19) -> 0.2727052342 | H19: =INDEX('AZIZA Model'!M:M,'Graph Data'!$C19) -> 0.2563757668 | I19: =INDEX('AZIZA Model'!N:N,'Graph Data'!$C19) -> 0.2567556625 | J19: =INDEX('AZIZA Model'!O:O,'Graph Data'!$C19) -> 0.1823877406 | K19: =INDEX('AZIZA Model'!P:P,'Graph Data'!$C19) -> 0.1703322048 | L19: =INDEX('AZIZA Model'!Q:Q,'Graph Data'!$C19) -> 0.1648692174 | M19: =INDEX('AZIZA Model'!R:R,'Graph Data'!$C19) -> 0.1958445554 | N19: =INDEX('AZIZA Model'!S:S,'Graph Data'!$C19) -> 0.1958445554 | O19: =INDEX('AZIZA Model'!T:T,'Graph Data'!$C19) -> 0.1958445554 | P19: =INDEX('AZIZA Model'!U:U,'Graph Data'!$C19) -> 0.1958445554 | Q19: =INDEX('AZIZA Model'!V:V,'Graph Data'!$C19) -> 0.1958445554 | R19: =INDEX('AZIZA Model'!W:W,'Graph Data'!$C19) -> 0.1958445554 | S19: =INDEX('AZIZA Model'!X:X,'Graph Data'!$C19) -> 0.1958445554 | T19: =INDEX('AZIZA Model'!Y:Y,'Graph Data'!$C19) -> 0.1958445554 | U19: =INDEX('AZIZA Model'!Z:Z,'Graph Data'!$C19) -> 0.1958445554
B20: 18 | C20: =MATCH(B20,'AZIZA Model'!AB:AB,0) -> 85 | D20: =INDEX('AZIZA Model'!C:C,'Graph Data'!C20)&INDEX('AZIZA Model'!D:D,'Graph Data'!C20)&INDEX('AZIZA Model'!B:B,'Graph Data'!C20) -> Other Current Liabilities Percent | E20: =INDEX('AZIZA Model'!J:J,'Graph Data'!$C20) -> 0.03128754448 | F20: =INDEX('AZIZA Model'!K:K,'Graph Data'!$C20) -> 0.02834983437 | G20: =INDEX('AZIZA Model'!L:L,'Graph Data'!$C20) -> 0.05445753728 | H20: =INDEX('AZIZA Model'!M:M,'Graph Data'!$C20) -> 0.02414089091 | I20: =INDEX('AZIZA Model'!N:N,'Graph Data'!$C20) -> 0.02609752754 | J20: =INDEX('AZIZA Model'!O:O,'Graph Data'!$C20) -> 0.03653498748 | K20: =INDEX('AZIZA Model'!P:P,'Graph Data'!$C20) -> 0.01487042363 | L20: =INDEX('AZIZA Model'!Q:Q,'Graph Data'!$C20) -> 0.01680645521 | M20: =INDEX('AZIZA Model'!R:R,'Graph Data'!$C20) -> 0.01677361747 | N20: =INDEX('AZIZA Model'!S:S,'Graph Data'!$C20) -> 0.01677361747 | O20: =INDEX('AZIZA Model'!T:T,'Graph Data'!$C20) -> 0.01677361747 | P20: =INDEX('AZIZA Model'!U:U,'Graph Data'!$C20) -> 0.01677361747 | Q20: =INDEX('AZIZA Model'!V:V,'Graph Data'!$C20) -> 0.01677361747 | R20: =INDEX('AZIZA Model'!W:W,'Graph Data'!$C20) -> 0.01677361747 | S20: =INDEX('AZIZA Model'!X:X,'Graph Data'!$C20) -> 0.01677361747 | T20: =INDEX('AZIZA Model'!Y:Y,'Graph Data'!$C20) -> 0.01677361747 | U20: =INDEX('AZIZA Model'!Z:Z,'Graph Data'!$C20) -> 0.01677361747
B21: 19 | C21: =MATCH(B21,'AZIZA Model'!AB:AB,0) -> 90 | D21: =INDEX('AZIZA Model'!C:C,'Graph Data'!C21)&INDEX('AZIZA Model'!D:D,'Graph Data'!C21)&INDEX('AZIZA Model'!B:B,'Graph Data'!C21) -> Provision as Percent of Expense | E21: =INDEX('AZIZA Model'!J:J,'Graph Data'!$C21) -> 0.2569854049 | F21: =INDEX('AZIZA Model'!K:K,'Graph Data'!$C21) -> 0.292579973 | G21: =INDEX('AZIZA Model'!L:L,'Graph Data'!$C21) -> 0.2169538201 | H21: =INDEX('AZIZA Model'!M:M,'Graph Data'!$C21) -> 0.286490747 | I21: =INDEX('AZIZA Model'!N:N,'Graph Data'!$C21) -> 0.3143333037 | J21: =INDEX('AZIZA Model'!O:O,'Graph Data'!$C21) -> 0.279693224 | K21: =INDEX('AZIZA Model'!P:P,'Graph Data'!$C21) -> 0.2653368811 | L21: =INDEX('AZIZA Model'!Q:Q,'Graph Data'!$C21) -> 0.3135597651 | M21: =INDEX('AZIZA Model'!R:R,'Graph Data'!$C21) -> 0.3 | N21: =INDEX('AZIZA Model'!S:S,'Graph Data'!$C21) -> 0.3 | O21: =INDEX('AZIZA Model'!T:T,'Graph Data'!$C21) -> 0.3 | P21: =INDEX('AZIZA Model'!U:U,'Graph Data'!$C21) -> 0.3 | Q21: =INDEX('AZIZA Model'!V:V,'Graph Data'!$C21) -> 0.3 | R21: =INDEX('AZIZA Model'!W:W,'Graph Data'!$C21) -> 0.3 | S21: =INDEX('AZIZA Model'!X:X,'Graph Data'!$C21) -> 0.3 | T21: =INDEX('AZIZA Model'!Y:Y,'Graph Data'!$C21) -> 0.3 | U21: =INDEX('AZIZA Model'!Z:Z,'Graph Data'!$C21) -> 0.3
B22: 20 | C22: =MATCH(B22,'AZIZA Model'!AB:AB,0) -> 93 | D22: =INDEX('AZIZA Model'!C:C,'Graph Data'!C22)&INDEX('AZIZA Model'!D:D,'Graph Data'!C22)&INDEX('AZIZA Model'!B:B,'Graph Data'!C22) -> Available for Sale Investments | E22: =INDEX('AZIZA Model'!J:J,'Graph Data'!$C22) -> 49336 | F22: =INDEX('AZIZA Model'!K:K,'Graph Data'!$C22) -> 25310 | G22: =INDEX('AZIZA Model'!L:L,'Graph Data'!$C22) -> 6970 | H22: =INDEX('AZIZA Model'!M:M,'Graph Data'!$C22) -> 7100 | I22: =INDEX('AZIZA Model'!N:N,'Graph Data'!$C22) -> 7262 | J22: =INDEX('AZIZA Model'!O:O,'Graph Data'!$C22) -> 7764 | K22: =INDEX('AZIZA Model'!P:P,'Graph Data'!$C22) -> 6636 | L22: =INDEX('AZIZA Model'!Q:Q,'Graph Data'!$C22) -> 6636 | M22: =INDEX('AZIZA Model'!R:R,'Graph Data'!$C22) -> 6636 | N22: =INDEX('AZIZA Model'!S:S,'Graph Data'!$C22) -> 6636 | O22: =INDEX('AZIZA Model'!T:T,'Graph Data'!$C22) -> 6636 | P22: =INDEX('AZIZA Model'!U:U,'Graph Data'!$C22) -> 6636 | Q22: =INDEX('AZIZA Model'!V:V,'Graph Data'!$C22) -> 6636 | R22: =INDEX('AZIZA Model'!W:W,'Graph Data'!$C22) -> 6636 | S22: =INDEX('AZIZA Model'!X:X,'Graph Data'!$C22) -> 6636 | T22: =INDEX('AZIZA Model'!Y:Y,'Graph Data'!$C22) -> 6636 | U22: =INDEX('AZIZA Model'!Z:Z,'Graph Data'!$C22) -> 6636
B23: 21 | C23: =MATCH(B23,'AZIZA Model'!AB:AB,0) -> 97 | D23: =INDEX('AZIZA Model'!C:C,'Graph Data'!C23)&INDEX('AZIZA Model'!D:D,'Graph Data'!C23)&INDEX('AZIZA Model'!B:B,'Graph Data'!C23) -> Revenues | E23: =INDEX('AZIZA Model'!J:J,'Graph Data'!$C23) -> 12551497 | F23: =INDEX('AZIZA Model'!K:K,'Graph Data'!$C23) -> 12445619 | G23: =INDEX('AZIZA Model'!L:L,'Graph Data'!$C23) -> 17843682 | H23: =INDEX('AZIZA Model'!M:M,'Graph Data'!$C23) -> 18668526 | I23: =INDEX('AZIZA Model'!N:N,'Graph Data'!$C23) -> 18862818 | J23: =INDEX('AZIZA Model'!O:O,'Graph Data'!$C23) -> 26173760 | K23: =INDEX('AZIZA Model'!P:P,'Graph Data'!$C23) -> 29532749 | L23: =INDEX('AZIZA Model'!Q:Q,'Graph Data'!$C23) -> 30444532 | M23: =INDEX('AZIZA Model'!R:R,'Graph Data'!$C23) -> 33702722.67 | N23: =INDEX('AZIZA Model'!S:S,'Graph Data'!$C23) -> 35387858.8 | O23: =INDEX('AZIZA Model'!T:T,'Graph Data'!$C23) -> 37157251.74 | P23: =INDEX('AZIZA Model'!U:U,'Graph Data'!$C23) -> 39015114.33 | Q23: =INDEX('AZIZA Model'!V:V,'Graph Data'!$C23) -> 40965870.04 | R23: =INDEX('AZIZA Model'!W:W,'Graph Data'!$C23) -> 43014163.55 | S23: =INDEX('AZIZA Model'!X:X,'Graph Data'!$C23) -> 45164871.72 | T23: =INDEX('AZIZA Model'!Y:Y,'Graph Data'!$C23) -> 47423115.31 | U23: =INDEX('AZIZA Model'!Z:Z,'Graph Data'!$C23) -> 49794271.07
B24: 22 | C24: =MATCH(B24,'AZIZA Model'!AB:AB,0) -> 98 | D24: =INDEX('AZIZA Model'!C:C,'Graph Data'!C24)&INDEX('AZIZA Model'!D:D,'Graph Data'!C24)&INDEX('AZIZA Model'!B:B,'Graph Data'!C24) -> COGS Cash | E24: =INDEX('AZIZA Model'!J:J,'Graph Data'!$C24) -> 10012291 | F24: =INDEX('AZIZA Model'!K:K,'Graph Data'!$C24) -> 8366645 | G24: =INDEX('AZIZA Model'!L:L,'Graph Data'!$C24) -> 11229979 | H24: =INDEX('AZIZA Model'!M:M,'Graph Data'!$C24) -> 15824271 | I24: =INDEX('AZIZA Model'!N:N,'Graph Data'!$C24) -> 15473803 | J24: =INDEX('AZIZA Model'!O:O,'Graph Data'!$C24) -> 19354132.81 | K24: =INDEX('AZIZA Model'!P:P,'Graph Data'!$C24) -> 22604198 | L24: =INDEX('AZIZA Model'!Q:Q,'Graph Data'!$C24) -> 23186091 | M24: =INDEX('AZIZA Model'!R:R,'Graph Data'!$C24) -> 24588512.29 | N24: =INDEX('AZIZA Model'!S:S,'Graph Data'!$C24) -> 25833136.92 | O24: =INDEX('AZIZA Model'!T:T,'Graph Data'!$C24) -> 27496366.29 | P24: =INDEX('AZIZA Model'!U:U,'Graph Data'!$C24) -> 28871184.6 | Q24: =INDEX('AZIZA Model'!V:V,'Graph Data'!$C24) -> 30314743.83 | R24: =INDEX('AZIZA Model'!W:W,'Graph Data'!$C24) -> 31830481.02 | S24: =INDEX('AZIZA Model'!X:X,'Graph Data'!$C24) -> 33422005.08 | T24: =INDEX('AZIZA Model'!Y:Y,'Graph Data'!$C24) -> 35093105.33 | U24: =INDEX('AZIZA Model'!Z:Z,'Graph Data'!$C24) -> 36847760.6
B25: 23 | C25: =MATCH(B25,'AZIZA Model'!AB:AB,0) -> 99 | D25: =INDEX('AZIZA Model'!C:C,'Graph Data'!C25)&INDEX('AZIZA Model'!D:D,'Graph Data'!C25)&INDEX('AZIZA Model'!B:B,'Graph Data'!C25) -> Administrative Expense | E25: =INDEX('AZIZA Model'!J:J,'Graph Data'!$C25) -> 627129 | F25: =INDEX('AZIZA Model'!K:K,'Graph Data'!$C25) -> 743407 | G25: =INDEX('AZIZA Model'!L:L,'Graph Data'!$C25) -> 1225100 | H25: =INDEX('AZIZA Model'!M:M,'Graph Data'!$C25) -> 930214 | I25: =INDEX('AZIZA Model'!N:N,'Graph Data'!$C25) -> 917134 | J25: =INDEX('AZIZA Model'!O:O,'Graph Data'!$C25) -> 1089010.763 | K25: =INDEX('AZIZA Model'!P:P,'Graph Data'!$C25) -> 1092824 | L25: =INDEX('AZIZA Model'!Q:Q,'Graph Data'!$C25) -> 1224293 | M25: =INDEX('AZIZA Model'!R:R,'Graph Data'!$C25) -> 1666718.039 | N25: =INDEX('AZIZA Model'!S:S,'Graph Data'!$C25) -> 1750053.941 | O25: =INDEX('AZIZA Model'!T:T,'Graph Data'!$C25) -> 1837556.638 | P25: =INDEX('AZIZA Model'!U:U,'Graph Data'!$C25) -> 1929434.469 | Q25: =INDEX('AZIZA Model'!V:V,'Graph Data'!$C25) -> 2025906.193 | R25: =INDEX('AZIZA Model'!W:W,'Graph Data'!$C25) -> 2127201.503 | S25: =INDEX('AZIZA Model'!X:X,'Graph Data'!$C25) -> 2233561.578 | T25: =INDEX('AZIZA Model'!Y:Y,'Graph Data'!$C25) -> 2345239.657 | U25: =INDEX('AZIZA Model'!Z:Z,'Graph Data'!$C25) -> 2462501.639
B26: 24 | C26: =MATCH(B26,'AZIZA Model'!AB:AB,0) -> 100 | D26: =INDEX('AZIZA Model'!C:C,'Graph Data'!C26)&INDEX('AZIZA Model'!D:D,'Graph Data'!C26)&INDEX('AZIZA Model'!B:B,'Graph Data'!C26) -> Doubtful Accounts | E26: =INDEX('AZIZA Model'!J:J,'Graph Data'!$C26) -> 195856 | F26: =INDEX('AZIZA Model'!K:K,'Graph Data'!$C26) -> 71641 | G26: =INDEX('AZIZA Model'!L:L,'Graph Data'!$C26) -> 0 | H26: =INDEX('AZIZA Model'!M:M,'Graph Data'!$C26) -> 0 | I26: =INDEX('AZIZA Model'!N:N,'Graph Data'!$C26) -> 128440 | J26: =INDEX('AZIZA Model'!O:O,'Graph Data'!$C26) -> 118450.3922 | K26: =INDEX('AZIZA Model'!P:P,'Graph Data'!$C26) -> 132310 | L26: =INDEX('AZIZA Model'!Q:Q,'Graph Data'!$C26) -> 139494 | M26: =INDEX('AZIZA Model'!R:R,'Graph Data'!$C26) -> 175916.5749 | N26: =INDEX('AZIZA Model'!S:S,'Graph Data'!$C26) -> 184712.4037 | O26: =INDEX('AZIZA Model'!T:T,'Graph Data'!$C26) -> 193948.0238 | P26: =INDEX('AZIZA Model'!U:U,'Graph Data'!$C26) -> 203645.425 | Q26: =INDEX('AZIZA Model'!V:V,'Graph Data'!$C26) -> 213827.6963 | R26: =INDEX('AZIZA Model'!W:W,'Graph Data'!$C26) -> 224519.0811 | S26: =INDEX('AZIZA Model'!X:X,'Graph Data'!$C26) -> 235745.0351 | T26: =INDEX('AZIZA Model'!Y:Y,'Graph Data'!$C26) -> 247532.2869 | U26: =INDEX('AZIZA Model'!Z:Z,'Graph Data'!$C26) -> 259908.9013
B27: 25 | C27: =MATCH(B27,'AZIZA Model'!AB:AB,0) -> 101 | D27: =INDEX('AZIZA Model'!C:C,'Graph Data'!C27)&INDEX('AZIZA Model'!D:D,'Graph Data'!C27)&INDEX('AZIZA Model'!B:B,'Graph Data'!C27) -> Sales & Marketing Expenses | E27: =INDEX('AZIZA Model'!J:J,'Graph Data'!$C27) -> 0 | F27: =INDEX('AZIZA Model'!K:K,'Graph Data'!$C27) -> 0 | G27: =INDEX('AZIZA Model'!L:L,'Graph Data'!$C27) -> 134452 | H27: =INDEX('AZIZA Model'!M:M,'Graph Data'!$C27) -> 263664 | I27: =INDEX('AZIZA Model'!N:N,'Graph Data'!$C27) -> 330443 | J27: =INDEX('AZIZA Model'!O:O,'Graph Data'!$C27) -> 744684 | K27: =INDEX('AZIZA Model'!P:P,'Graph Data'!$C27) -> 977936 | L27: =INDEX('AZIZA Model'!Q:Q,'Graph Data'!$C27) -> 956025 | M27: =INDEX('AZIZA Model'!R:R,'Graph Data'!$C27) -> 1005446.811 | N27: =INDEX('AZIZA Model'!S:S,'Graph Data'!$C27) -> 1057423.488 | O27: =INDEX('AZIZA Model'!T:T,'Graph Data'!$C27) -> 1112087.104 | P27: =INDEX('AZIZA Model'!U:U,'Graph Data'!$C27) -> 1169576.562 | Q27: =INDEX('AZIZA Model'!V:V,'Graph Data'!$C27) -> 1230037.943 | R27: =INDEX('AZIZA Model'!W:W,'Graph Data'!$C27) -> 1293624.881 | S27: =INDEX('AZIZA Model'!X:X,'Graph Data'!$C27) -> 1360498.953 | T27: =INDEX('AZIZA Model'!Y:Y,'Graph Data'!$C27) -> 1430830.087 | U27: =INDEX('AZIZA Model'!Z:Z,'Graph Data'!$C27) -> 1504796.996
B28: 26 | C28: =MATCH(B28,'AZIZA Model'!AB:AB,0) -> 104 | D28: =INDEX('AZIZA Model'!C:C,'Graph Data'!C28)&INDEX('AZIZA Model'!D:D,'Graph Data'!C28)&INDEX('AZIZA Model'!B:B,'Graph Data'!C28) -> Capital Expenditures | E28: =INDEX('AZIZA Model'!J:J,'Graph Data'!$C28) -> 305477 | F28: =INDEX('AZIZA Model'!K:K,'Graph Data'!$C28) -> 6263126 | G28: =INDEX('AZIZA Model'!L:L,'Graph Data'!$C28) -> 5157567 | H28: =INDEX('AZIZA Model'!M:M,'Graph Data'!$C28) -> 2513906 | I28: =INDEX('AZIZA Model'!N:N,'Graph Data'!$C28) -> 639793 | J28: =INDEX('AZIZA Model'!O:O,'Graph Data'!$C28) -> 413643 | K28: =INDEX('AZIZA Model'!P:P,'Graph Data'!$C28) -> 1282665 | L28: =INDEX('AZIZA Model'!Q:Q,'Graph Data'!$C28) -> 976195 | M28: =INDEX('AZIZA Model'!R:R,'Graph Data'!$C28) -> 4800000 | N28: =INDEX('AZIZA Model'!S:S,'Graph Data'!$C28) -> 4800000 | O28: =INDEX('AZIZA Model'!T:T,'Graph Data'!$C28) -> 4800000 | P28: =INDEX('AZIZA Model'!U:U,'Graph Data'!$C28) -> 4800000 | Q28: =INDEX('AZIZA Model'!V:V,'Graph Data'!$C28) -> 4800000 | R28: =INDEX('AZIZA Model'!W:W,'Graph Data'!$C28) -> 4800000 | S28: =INDEX('AZIZA Model'!X:X,'Graph Data'!$C28) -> 4800000 | T28: =INDEX('AZIZA Model'!Y:Y,'Graph Data'!$C28) -> 4800000 | U28: =INDEX('AZIZA Model'!Z:Z,'Graph Data'!$C28) -> 4800000
B29: 27 | C29: =MATCH(B29,'AZIZA Model'!AB:AB,0) -> 107 | D29: =INDEX('AZIZA Model'!C:C,'Graph Data'!C29)&INDEX('AZIZA Model'!D:D,'Graph Data'!C29)&INDEX('AZIZA Model'!B:B,'Graph Data'!C29) -> Depreciation Expense | E29: =INDEX('AZIZA Model'!J:J,'Graph Data'!$C29) -> 669633 | F29: =INDEX('AZIZA Model'!K:K,'Graph Data'!$C29) -> 646466 | G29: =INDEX('AZIZA Model'!L:L,'Graph Data'!$C29) -> 765898 | H29: =INDEX('AZIZA Model'!M:M,'Graph Data'!$C29) -> 1113589 | I29: =INDEX('AZIZA Model'!N:N,'Graph Data'!$C29) -> 1139330 | J29: =INDEX('AZIZA Model'!O:O,'Graph Data'!$C29) -> 1236666 | K29: =INDEX('AZIZA Model'!P:P,'Graph Data'!$C29) -> 1276822 | L29: =INDEX('AZIZA Model'!Q:Q,'Graph Data'!$C29) -> 1198225 | M29: =INDEX('AZIZA Model'!R:R,'Graph Data'!$C29) -> 1205000 | N29: =INDEX('AZIZA Model'!S:S,'Graph Data'!$C29) -> 1420676.066 | O29: =INDEX('AZIZA Model'!T:T,'Graph Data'!$C29) -> 1623413.004 | P29: =INDEX('AZIZA Model'!U:U,'Graph Data'!$C29) -> 1813987.076 | Q29: =INDEX('AZIZA Model'!V:V,'Graph Data'!$C29) -> 1993127.972 | R29: =INDEX('AZIZA Model'!W:W,'Graph Data'!$C29) -> 2161521.607 | S29: =INDEX('AZIZA Model'!X:X,'Graph Data'!$C29) -> 2319812.745 | T29: =INDEX('AZIZA Model'!Y:Y,'Graph Data'!$C29) -> 2468607.468 | U29: =INDEX('AZIZA Model'!Z:Z,'Graph Data'!$C29) -> 2608475.499
B30: 28 | C30: =MATCH(B30,'AZIZA Model'!AB:AB,0) -> 112 | D30: =INDEX('AZIZA Model'!C:C,'Graph Data'!C30)&INDEX('AZIZA Model'!D:D,'Graph Data'!C30)&INDEX('AZIZA Model'!B:B,'Graph Data'!C30) -> Closing Plant | E30: =INDEX('AZIZA Model'!J:J,'Graph Data'!$C30) -> 11076447 | F30: =INDEX('AZIZA Model'!K:K,'Graph Data'!$C30) -> 13893518 | G30: =INDEX('AZIZA Model'!L:L,'Graph Data'!$C30) -> 21004249 | H30: =INDEX('AZIZA Model'!M:M,'Graph Data'!$C30) -> 22364278 | I30: =INDEX('AZIZA Model'!N:N,'Graph Data'!$C30) -> 22319582 | J30: =INDEX('AZIZA Model'!O:O,'Graph Data'!$C30) -> 23006550 | K30: =INDEX('AZIZA Model'!P:P,'Graph Data'!$C30) -> 20328563 | L30: =INDEX('AZIZA Model'!Q:Q,'Graph Data'!$C30) -> 20085562 | M30: =INDEX('AZIZA Model'!R:R,'Graph Data'!$C30) -> 23680562 | N30: =INDEX('AZIZA Model'!S:S,'Graph Data'!$C30) -> 27059885.93 | O30: =INDEX('AZIZA Model'!T:T,'Graph Data'!$C30) -> 30236472.93 | P30: =INDEX('AZIZA Model'!U:U,'Graph Data'!$C30) -> 33222485.85 | Q30: =INDEX('AZIZA Model'!V:V,'Graph Data'!$C30) -> 36029357.88 | R30: =INDEX('AZIZA Model'!W:W,'Graph Data'!$C30) -> 38667836.27 | S30: =INDEX('AZIZA Model'!X:X,'Graph Data'!$C30) -> 41148023.53 | T30: =INDEX('AZIZA Model'!Y:Y,'Graph Data'!$C30) -> 43479416.06 | U30: =INDEX('AZIZA Model'!Z:Z,'Graph Data'!$C30) -> 45670940.56
B31: 29 | C31: =MATCH(B31,'AZIZA Model'!AB:AB,0) -> 115 | D31: =INDEX('AZIZA Model'!C:C,'Graph Data'!C31)&INDEX('AZIZA Model'!D:D,'Graph Data'!C31)&INDEX('AZIZA Model'!B:B,'Graph Data'!C31) -> Biological Assets | E31: =INDEX('AZIZA Model'!J:J,'Graph Data'!$C31) -> 1168434 | F31: =INDEX('AZIZA Model'!K:K,'Graph Data'!$C31) -> 1696723 | G31: =INDEX('AZIZA Model'!L:L,'Graph Data'!$C31) -> 2490128 | H31: =INDEX('AZIZA Model'!M:M,'Graph Data'!$C31) -> 1961385 | I31: =INDEX('AZIZA Model'!N:N,'Graph Data'!$C31) -> 2011969 | J31: =INDEX('AZIZA Model'!O:O,'Graph Data'!$C31) -> 1892214 | K31: =INDEX('AZIZA Model'!P:P,'Graph Data'!$C31) -> 1802803 | L31: =INDEX('AZIZA Model'!Q:Q,'Graph Data'!$C31) -> 2019602 | M31: =INDEX('AZIZA Model'!R:R,'Graph Data'!$C31) -> 2145362.044 | N31: =INDEX('AZIZA Model'!S:S,'Graph Data'!$C31) -> 2252630.146 | O31: =INDEX('AZIZA Model'!T:T,'Graph Data'!$C31) -> 2365261.654 | P31: =INDEX('AZIZA Model'!U:U,'Graph Data'!$C31) -> 2483524.736 | Q31: =INDEX('AZIZA Model'!V:V,'Graph Data'!$C31) -> 2607700.973 | R31: =INDEX('AZIZA Model'!W:W,'Graph Data'!$C31) -> 2738086.022 | S31: =INDEX('AZIZA Model'!X:X,'Graph Data'!$C31) -> 2874990.323 | T31: =INDEX('AZIZA Model'!Y:Y,'Graph Data'!$C31) -> 3018739.839 | U31: =INDEX('AZIZA Model'!Z:Z,'Graph Data'!$C31) -> 3169676.831
B32: 30 | C32: =MATCH(B32,'AZIZA Model'!AB:AB,0) -> 116 | D32: =INDEX('AZIZA Model'!C:C,'Graph Data'!C32)&INDEX('AZIZA Model'!D:D,'Graph Data'!C32)&INDEX('AZIZA Model'!B:B,'Graph Data'!C32) -> Inventories | E32: =INDEX('AZIZA Model'!J:J,'Graph Data'!$C32) -> 1113114 | F32: =INDEX('AZIZA Model'!K:K,'Graph Data'!$C32) -> 941042 | G32: =INDEX('AZIZA Model'!L:L,'Graph Data'!$C32) -> 2078143 | H32: =INDEX('AZIZA Model'!M:M,'Graph Data'!$C32) -> 1398643 | I32: =INDEX('AZIZA Model'!N:N,'Graph Data'!$C32) -> 1508159 | J32: =INDEX('AZIZA Model'!O:O,'Graph Data'!$C32) -> 2350474 | K32: =INDEX('AZIZA Model'!P:P,'Graph Data'!$C32) -> 2532370 | L32: =INDEX('AZIZA Model'!Q:Q,'Graph Data'!$C32) -> 1859144 | M32: =INDEX('AZIZA Model'!R:R,'Graph Data'!$C32) -> 2024681.323 | N32: =INDEX('AZIZA Model'!S:S,'Graph Data'!$C32) -> 2127166.916 | O32: =INDEX('AZIZA Model'!T:T,'Graph Data'!$C32) -> 2264121.498 | P32: =INDEX('AZIZA Model'!U:U,'Graph Data'!$C32) -> 2377327.573 | Q32: =INDEX('AZIZA Model'!V:V,'Graph Data'!$C32) -> 2496193.951 | R32: =INDEX('AZIZA Model'!W:W,'Graph Data'!$C32) -> 2621003.649 | S32: =INDEX('AZIZA Model'!X:X,'Graph Data'!$C32) -> 2752053.831 | T32: =INDEX('AZIZA Model'!Y:Y,'Graph Data'!$C32) -> 2889656.523 | U32: =INDEX('AZIZA Model'!Z:Z,'Graph Data'!$C32) -> 3034139.349
B33: 31 | C33: =MATCH(B33,'AZIZA Model'!AB:AB,0) -> 117 | D33: =INDEX('AZIZA Model'!C:C,'Graph Data'!C33)&INDEX('AZIZA Model'!D:D,'Graph Data'!C33)&INDEX('AZIZA Model'!B:B,'Graph Data'!C33) -> Accounts Receivable | E33: =INDEX('AZIZA Model'!J:J,'Graph Data'!$C33) -> 1414380 | F33: =INDEX('AZIZA Model'!K:K,'Graph Data'!$C33) -> 1571703 | G33: =INDEX('AZIZA Model'!L:L,'Graph Data'!$C33) -> 1884711 | H33: =INDEX('AZIZA Model'!M:M,'Graph Data'!$C33) -> 3404388 | I33: =INDEX('AZIZA Model'!N:N,'Graph Data'!$C33) -> 4328998 | J33: =INDEX('AZIZA Model'!O:O,'Graph Data'!$C33) -> 4746615 | K33: =INDEX('AZIZA Model'!P:P,'Graph Data'!$C33) -> 5704328 | L33: =INDEX('AZIZA Model'!Q:Q,'Graph Data'!$C33) -> 5621711 | M33: =INDEX('AZIZA Model'!R:R,'Graph Data'!$C33) -> 6621521.004 | N33: =INDEX('AZIZA Model'!S:S,'Graph Data'!$C33) -> 6952597.055 | O33: =INDEX('AZIZA Model'!T:T,'Graph Data'!$C33) -> 7300226.907 | P33: =INDEX('AZIZA Model'!U:U,'Graph Data'!$C33) -> 7665238.253 | Q33: =INDEX('AZIZA Model'!V:V,'Graph Data'!$C33) -> 8048500.165 | R33: =INDEX('AZIZA Model'!W:W,'Graph Data'!$C33) -> 8450925.174 | S33: =INDEX('AZIZA Model'!X:X,'Graph Data'!$C33) -> 8873471.432 | T33: =INDEX('AZIZA Model'!Y:Y,'Graph Data'!$C33) -> 9317145.004 | U33: =INDEX('AZIZA Model'!Z:Z,'Graph Data'!$C33) -> 9783002.254
B34: 32 | C34: =MATCH(B34,'AZIZA Model'!AB:AB,0) -> 118 | D34: =INDEX('AZIZA Model'!C:C,'Graph Data'!C34)&INDEX('AZIZA Model'!D:D,'Graph Data'!C34)&INDEX('AZIZA Model'!B:B,'Graph Data'!C34) -> Other Current Assets | E34: =INDEX('AZIZA Model'!J:J,'Graph Data'!$C34) -> 628093 | F34: =INDEX('AZIZA Model'!K:K,'Graph Data'!$C34) -> 906652 | G34: =INDEX('AZIZA Model'!L:L,'Graph Data'!$C34) -> 993682 | H34: =INDEX('AZIZA Model'!M:M,'Graph Data'!$C34) -> 1802258 | I34: =INDEX('AZIZA Model'!N:N,'Graph Data'!$C34) -> 1369257 | J34: =INDEX('AZIZA Model'!O:O,'Graph Data'!$C34) -> 718849 | K34: =INDEX('AZIZA Model'!P:P,'Graph Data'!$C34) -> 393102 | L34: =INDEX('AZIZA Model'!Q:Q,'Graph Data'!$C34) -> 301815 | M34: =INDEX('AZIZA Model'!R:R,'Graph Data'!$C34) -> 381646.4609 | N34: =INDEX('AZIZA Model'!S:S,'Graph Data'!$C34) -> 400728.784 | O34: =INDEX('AZIZA Model'!T:T,'Graph Data'!$C34) -> 420765.2232 | P34: =INDEX('AZIZA Model'!U:U,'Graph Data'!$C34) -> 441803.4844 | Q34: =INDEX('AZIZA Model'!V:V,'Graph Data'!$C34) -> 463893.6586 | R34: =INDEX('AZIZA Model'!W:W,'Graph Data'!$C34) -> 487088.3415 | S34: =INDEX('AZIZA Model'!X:X,'Graph Data'!$C34) -> 511442.7586 | T34: =INDEX('AZIZA Model'!Y:Y,'Graph Data'!$C34) -> 537014.8965 | U34: =INDEX('AZIZA Model'!Z:Z,'Graph Data'!$C34) -> 563865.6413
B35: 33 | C35: =MATCH(B35,'AZIZA Model'!AB:AB,0) -> 119 | D35: =INDEX('AZIZA Model'!C:C,'Graph Data'!C35)&INDEX('AZIZA Model'!D:D,'Graph Data'!C35)&INDEX('AZIZA Model'!B:B,'Graph Data'!C35) -> Accounts Payable | E35: =INDEX('AZIZA Model'!J:J,'Graph Data'!$C35) -> 1919057 | F35: =INDEX('AZIZA Model'!K:K,'Graph Data'!$C35) -> 2374014 | G35: =INDEX('AZIZA Model'!L:L,'Graph Data'!$C35) -> 3433231 | H35: =INDEX('AZIZA Model'!M:M,'Graph Data'!$C35) -> 4363041 | I35: =INDEX('AZIZA Model'!N:N,'Graph Data'!$C35) -> 4293309 | J35: =INDEX('AZIZA Model'!O:O,'Graph Data'!$C35) -> 3864400 | K35: =INDEX('AZIZA Model'!P:P,'Graph Data'!$C35) -> 4202940 | L35: =INDEX('AZIZA Model'!Q:Q,'Graph Data'!$C35) -> 4182140 | M35: =INDEX('AZIZA Model'!R:R,'Graph Data'!$C35) -> 5176396.213 | N35: =INDEX('AZIZA Model'!S:S,'Graph Data'!$C35) -> 5438192.67 | O35: =INDEX('AZIZA Model'!T:T,'Graph Data'!$C35) -> 5782872.758 | P35: =INDEX('AZIZA Model'!U:U,'Graph Data'!$C35) -> 6072016.396 | Q35: =INDEX('AZIZA Model'!V:V,'Graph Data'!$C35) -> 6375617.215 | R35: =INDEX('AZIZA Model'!W:W,'Graph Data'!$C35) -> 6694398.076 | S35: =INDEX('AZIZA Model'!X:X,'Graph Data'!$C35) -> 7029117.98 | T35: =INDEX('AZIZA Model'!Y:Y,'Graph Data'!$C35) -> 7380573.879 | U35: =INDEX('AZIZA Model'!Z:Z,'Graph Data'!$C35) -> 7749602.573
B36: 34 | C36: =MATCH(B36,'AZIZA Model'!AB:AB,0) -> 120 | D36: =INDEX('AZIZA Model'!C:C,'Graph Data'!C36)&INDEX('AZIZA Model'!D:D,'Graph Data'!C36)&INDEX('AZIZA Model'!B:B,'Graph Data'!C36) -> Other Current Liabilities | E36: =INDEX('AZIZA Model'!J:J,'Graph Data'!$C36) -> 313260 | F36: =INDEX('AZIZA Model'!K:K,'Graph Data'!$C36) -> 237193 | G36: =INDEX('AZIZA Model'!L:L,'Graph Data'!$C36) -> 611557 | H36: =INDEX('AZIZA Model'!M:M,'Graph Data'!$C36) -> 382012 | I36: =INDEX('AZIZA Model'!N:N,'Graph Data'!$C36) -> 403828 | J36: =INDEX('AZIZA Model'!O:O,'Graph Data'!$C36) -> 707103 | K36: =INDEX('AZIZA Model'!P:P,'Graph Data'!$C36) -> 336134 | L36: =INDEX('AZIZA Model'!Q:Q,'Graph Data'!$C36) -> 389676 | M36: =INDEX('AZIZA Model'!R:R,'Graph Data'!$C36) -> 565316.5779 | N36: =INDEX('AZIZA Model'!S:S,'Graph Data'!$C36) -> 593582.4068 | O36: =INDEX('AZIZA Model'!T:T,'Graph Data'!$C36) -> 623261.5271 | P36: =INDEX('AZIZA Model'!U:U,'Graph Data'!$C36) -> 654424.6035 | Q36: =INDEX('AZIZA Model'!V:V,'Graph Data'!$C36) -> 687145.8336 | R36: =INDEX('AZIZA Model'!W:W,'Graph Data'!$C36) -> 721503.1253 | S36: =INDEX('AZIZA Model'!X:X,'Graph Data'!$C36) -> 757578.2816 | T36: =INDEX('AZIZA Model'!Y:Y,'Graph Data'!$C36) -> 795457.1957 | U36: =INDEX('AZIZA Model'!Z:Z,'Graph Data'!$C36) -> 835230.0554
B37: 35 | C37: =MATCH(B37,'AZIZA Model'!AB:AB,0) -> 121 | D37: =INDEX('AZIZA Model'!C:C,'Graph Data'!C37)&INDEX('AZIZA Model'!D:D,'Graph Data'!C37)&INDEX('AZIZA Model'!B:B,'Graph Data'!C37) -> Total Working Capital | E37: =INDEX('AZIZA Model'!J:J,'Graph Data'!$C37) -> 2091704 | F37: =INDEX('AZIZA Model'!K:K,'Graph Data'!$C37) -> 2504913 | G37: =INDEX('AZIZA Model'!L:L,'Graph Data'!$C37) -> 3401876 | H37: =INDEX('AZIZA Model'!M:M,'Graph Data'!$C37) -> 3821621 | I37: =INDEX('AZIZA Model'!N:N,'Graph Data'!$C37) -> 4521246 | J37: =INDEX('AZIZA Model'!O:O,'Graph Data'!$C37) -> 5136649 | K37: =INDEX('AZIZA Model'!P:P,'Graph Data'!$C37) -> 5893529 | L37: =INDEX('AZIZA Model'!Q:Q,'Graph Data'!$C37) -> 5230456 | M37: =INDEX('AZIZA Model'!R:R,'Graph Data'!$C37) -> 5431498.041 | N37: =INDEX('AZIZA Model'!S:S,'Graph Data'!$C37) -> 5701347.824 | O37: =INDEX('AZIZA Model'!T:T,'Graph Data'!$C37) -> 5944240.997 | P37: =INDEX('AZIZA Model'!U:U,'Graph Data'!$C37) -> 6241453.047 | Q37: =INDEX('AZIZA Model'!V:V,'Graph Data'!$C37) -> 6553525.699 | R37: =INDEX('AZIZA Model'!W:W,'Graph Data'!$C37) -> 6881201.984 | S37: =INDEX('AZIZA Model'!X:X,'Graph Data'!$C37) -> 7225262.084 | T37: =INDEX('AZIZA Model'!Y:Y,'Graph Data'!$C37) -> 7586525.188 | U37: =INDEX('AZIZA Model'!Z:Z,'Graph Data'!$C37) -> 7965851.447
B38: 36 | C38: =MATCH(B38,'AZIZA Model'!AB:AB,0) -> 122 | D38: =INDEX('AZIZA Model'!C:C,'Graph Data'!C38)&INDEX('AZIZA Model'!D:D,'Graph Data'!C38)&INDEX('AZIZA Model'!B:B,'Graph Data'!C38) -> Change in Working Capital | E38: =INDEX('AZIZA Model'!J:J,'Graph Data'!$C38) -> 2091704 | F38: =INDEX('AZIZA Model'!K:K,'Graph Data'!$C38) -> 413209 | G38: =INDEX('AZIZA Model'!L:L,'Graph Data'!$C38) -> 896963 | H38: =INDEX('AZIZA Model'!M:M,'Graph Data'!$C38) -> 419745 | I38: =INDEX('AZIZA Model'!N:N,'Graph Data'!$C38) -> 699625 | J38: =INDEX('AZIZA Model'!O:O,'Graph Data'!$C38) -> 615403 | K38: =INDEX('AZIZA Model'!P:P,'Graph Data'!$C38) -> 756880 | L38: =INDEX('AZIZA Model'!Q:Q,'Graph Data'!$C38) -> -663073 | M38: =INDEX('AZIZA Model'!R:R,'Graph Data'!$C38) -> 201042.0413 | N38: =INDEX('AZIZA Model'!S:S,'Graph Data'!$C38) -> 269849.7827 | O38: =INDEX('AZIZA Model'!T:T,'Graph Data'!$C38) -> 242893.1732 | P38: =INDEX('AZIZA Model'!U:U,'Graph Data'!$C38) -> 297212.0499 | Q38: =INDEX('AZIZA Model'!V:V,'Graph Data'!$C38) -> 312072.6524 | R38: =INDEX('AZIZA Model'!W:W,'Graph Data'!$C38) -> 327676.285 | S38: =INDEX('AZIZA Model'!X:X,'Graph Data'!$C38) -> 344060.0992 | T38: =INDEX('AZIZA Model'!Y:Y,'Graph Data'!$C38) -> 361263.1042 | U38: =INDEX('AZIZA Model'!Z:Z,'Graph Data'!$C38) -> 379326.2594
B39: 37 | C39: =MATCH(B39,'AZIZA Model'!AB:AB,0) -> 125 | D39: =INDEX('AZIZA Model'!C:C,'Graph Data'!C39)&INDEX('AZIZA Model'!D:D,'Graph Data'!C39)&INDEX('AZIZA Model'!B:B,'Graph Data'!C39) -> Administrative and Marketing | E39: =INDEX('AZIZA Model'!J:J,'Graph Data'!$C39) -> 627129 | F39: =INDEX('AZIZA Model'!K:K,'Graph Data'!$C39) -> 743407 | G39: =INDEX('AZIZA Model'!L:L,'Graph Data'!$C39) -> 1359552 | H39: =INDEX('AZIZA Model'!M:M,'Graph Data'!$C39) -> 1193878 | I39: =INDEX('AZIZA Model'!N:N,'Graph Data'!$C39) -> 1247577 | J39: =INDEX('AZIZA Model'!O:O,'Graph Data'!$C39) -> 1833694.763 | K39: =INDEX('AZIZA Model'!P:P,'Graph Data'!$C39) -> 2070760 | L39: =INDEX('AZIZA Model'!Q:Q,'Graph Data'!$C39) -> 2180318 | M39: =INDEX('AZIZA Model'!R:R,'Graph Data'!$C39) -> 2672164.85 | N39: =INDEX('AZIZA Model'!S:S,'Graph Data'!$C39) -> 2807477.428 | O39: =INDEX('AZIZA Model'!T:T,'Graph Data'!$C39) -> 2949643.742 | P39: =INDEX('AZIZA Model'!U:U,'Graph Data'!$C39) -> 3099011.031 | Q39: =INDEX('AZIZA Model'!V:V,'Graph Data'!$C39) -> 3255944.136 | R39: =INDEX('AZIZA Model'!W:W,'Graph Data'!$C39) -> 3420826.384 | S39: =INDEX('AZIZA Model'!X:X,'Graph Data'!$C39) -> 3594060.531 | T39: =INDEX('AZIZA Model'!Y:Y,'Graph Data'!$C39) -> 3776069.743 | U39: =INDEX('AZIZA Model'!Z:Z,'Graph Data'!$C39) -> 3967298.635
B40: 38 | C40: =MATCH(B40,'AZIZA Model'!AB:AB,0) -> 126 | D40: =INDEX('AZIZA Model'!C:C,'Graph Data'!C40)&INDEX('AZIZA Model'!D:D,'Graph Data'!C40)&INDEX('AZIZA Model'!B:B,'Graph Data'!C40) -> Provision for Employees' Indemnity | E40: =INDEX('AZIZA Model'!J:J,'Graph Data'!$C40) -> 161163 | F40: =INDEX('AZIZA Model'!K:K,'Graph Data'!$C40) -> 217506 | G40: =INDEX('AZIZA Model'!L:L,'Graph Data'!$C40) -> 294960 | H40: =INDEX('AZIZA Model'!M:M,'Graph Data'!$C40) -> 342035 | I40: =INDEX('AZIZA Model'!N:N,'Graph Data'!$C40) -> 392155 | J40: =INDEX('AZIZA Model'!O:O,'Graph Data'!$C40) -> 512872 | K40: =INDEX('AZIZA Model'!P:P,'Graph Data'!$C40) -> 549449 | L40: =INDEX('AZIZA Model'!Q:Q,'Graph Data'!$C40) -> 683660 | M40: =INDEX('AZIZA Model'!R:R,'Graph Data'!$C40) -> 801649.4549 | N40: =INDEX('AZIZA Model'!S:S,'Graph Data'!$C40) -> 842243.2285 | O40: =INDEX('AZIZA Model'!T:T,'Graph Data'!$C40) -> 884893.1225 | P40: =INDEX('AZIZA Model'!U:U,'Graph Data'!$C40) -> 929703.3094 | Q40: =INDEX('AZIZA Model'!V:V,'Graph Data'!$C40) -> 976783.2407 | R40: =INDEX('AZIZA Model'!W:W,'Graph Data'!$C40) -> 1026247.915 | S40: =INDEX('AZIZA Model'!X:X,'Graph Data'!$C40) -> 1078218.159 | T40: =INDEX('AZIZA Model'!Y:Y,'Graph Data'!$C40) -> 1132820.923 | U40: =INDEX('AZIZA Model'!Z:Z,'Graph Data'!$C40) -> 1190189.591
B41: 39 | C41: =MATCH(B41,'AZIZA Model'!AB:AB,0) -> 127 | D41: =INDEX('AZIZA Model'!C:C,'Graph Data'!C41)&INDEX('AZIZA Model'!D:D,'Graph Data'!C41)&INDEX('AZIZA Model'!B:B,'Graph Data'!C41) -> Change in Indemity | E41: =INDEX('AZIZA Model'!J:J,'Graph Data'!$C41) -> 0 | F41: =INDEX('AZIZA Model'!K:K,'Graph Data'!$C41) -> 56343 | G41: =INDEX('AZIZA Model'!L:L,'Graph Data'!$C41) -> 77454 | H41: =INDEX('AZIZA Model'!M:M,'Graph Data'!$C41) -> 47075 | I41: =INDEX('AZIZA Model'!N:N,'Graph Data'!$C41) -> 50120 | J41: =INDEX('AZIZA Model'!O:O,'Graph Data'!$C41) -> 120717 | K41: =INDEX('AZIZA Model'!P:P,'Graph Data'!$C41) -> 36577 | L41: =INDEX('AZIZA Model'!Q:Q,'Graph Data'!$C41) -> 134211 | M41: =INDEX('AZIZA Model'!R:R,'Graph Data'!$C41) -> 117989.4549 | N41: =INDEX('AZIZA Model'!S:S,'Graph Data'!$C41) -> 40593.77358 | O41: =INDEX('AZIZA Model'!T:T,'Graph Data'!$C41) -> 42649.89401 | P41: =INDEX('AZIZA Model'!U:U,'Graph Data'!$C41) -> 44810.18686 | Q41: =INDEX('AZIZA Model'!V:V,'Graph Data'!$C41) -> 47079.93137 | R41: =INDEX('AZIZA Model'!W:W,'Graph Data'!$C41) -> 49464.67442 | S41: =INDEX('AZIZA Model'!X:X,'Graph Data'!$C41) -> 51970.24407 | T41: =INDEX('AZIZA Model'!Y:Y,'Graph Data'!$C41) -> 54602.76381 | U41: =INDEX('AZIZA Model'!Z:Z,'Graph Data'!$C41) -> 57368.66756
B42: 40 | C42: =MATCH(B42,'AZIZA Model'!AB:AB,0) -> 129 | D42: =INDEX('AZIZA Model'!C:C,'Graph Data'!C42)&INDEX('AZIZA Model'!D:D,'Graph Data'!C42)&INDEX('AZIZA Model'!B:B,'Graph Data'!C42) -> Projects In Progress | E42: =INDEX('AZIZA Model'!J:J,'Graph Data'!$C42) -> 208054 | F42: =INDEX('AZIZA Model'!K:K,'Graph Data'!$C42) -> 3071359 | G42: =INDEX('AZIZA Model'!L:L,'Graph Data'!$C42) -> 1350464 | H42: =INDEX('AZIZA Model'!M:M,'Graph Data'!$C42) -> 170690 | I42: =INDEX('AZIZA Model'!N:N,'Graph Data'!$C42) -> 184908 | J42: =INDEX('AZIZA Model'!O:O,'Graph Data'!$C42) -> 189825 | K42: =INDEX('AZIZA Model'!P:P,'Graph Data'!$C42) -> 431901 | L42: =INDEX('AZIZA Model'!Q:Q,'Graph Data'!$C42) -> 460034 | M42: =INDEX('AZIZA Model'!R:R,'Graph Data'!$C42) -> 460034 | N42: =INDEX('AZIZA Model'!S:S,'Graph Data'!$C42) -> 460034 | O42: =INDEX('AZIZA Model'!T:T,'Graph Data'!$C42) -> 460034 | P42: =INDEX('AZIZA Model'!U:U,'Graph Data'!$C42) -> 460034 | Q42: =INDEX('AZIZA Model'!V:V,'Graph Data'!$C42) -> 460034 | R42: =INDEX('AZIZA Model'!W:W,'Graph Data'!$C42) -> 460034 | S42: =INDEX('AZIZA Model'!X:X,'Graph Data'!$C42) -> 460034 | T42: =INDEX('AZIZA Model'!Y:Y,'Graph Data'!$C42) -> 460034 | U42: =INDEX('AZIZA Model'!Z:Z,'Graph Data'!$C42) -> 460034
B43: 41 | C43: =MATCH(B43,'AZIZA Model'!AB:AB,0) -> 130 | D43: =INDEX('AZIZA Model'!C:C,'Graph Data'!C43)&INDEX('AZIZA Model'!D:D,'Graph Data'!C43)&INDEX('AZIZA Model'!B:B,'Graph Data'!C43) -> Available for Sale Investments | E43: =INDEX('AZIZA Model'!J:J,'Graph Data'!$C43) -> 49336 | F43: =INDEX('AZIZA Model'!K:K,'Graph Data'!$C43) -> 25310 | G43: =INDEX('AZIZA Model'!L:L,'Graph Data'!$C43) -> 6970 | H43: =INDEX('AZIZA Model'!M:M,'Graph Data'!$C43) -> 7100 | I43: =INDEX('AZIZA Model'!N:N,'Graph Data'!$C43) -> 7262 | J43: =INDEX('AZIZA Model'!O:O,'Graph Data'!$C43) -> 7764 | K43: =INDEX('AZIZA Model'!P:P,'Graph Data'!$C43) -> 6636 | L43: =INDEX('AZIZA Model'!Q:Q,'Graph Data'!$C43) -> 6636 | M43: =INDEX('AZIZA Model'!R:R,'Graph Data'!$C43) -> 6636 | N43: =INDEX('AZIZA Model'!S:S,'Graph Data'!$C43) -> 6636 | O43: =INDEX('AZIZA Model'!T:T,'Graph Data'!$C43) -> 6636 | P43: =INDEX('AZIZA Model'!U:U,'Graph Data'!$C43) -> 6636 | Q43: =INDEX('AZIZA Model'!V:V,'Graph Data'!$C43) -> 6636 | R43: =INDEX('AZIZA Model'!W:W,'Graph Data'!$C43) -> 6636 | S43: =INDEX('AZIZA Model'!X:X,'Graph Data'!$C43) -> 6636 | T43: =INDEX('AZIZA Model'!Y:Y,'Graph Data'!$C43) -> 6636 | U43: =INDEX('AZIZA Model'!Z:Z,'Graph Data'!$C43) -> 6636
B44: 42 | C44: =MATCH(B44,'AZIZA Model'!AB:AB,0) -> 140 | D44: =INDEX('AZIZA Model'!C:C,'Graph Data'!C44)&INDEX('AZIZA Model'!D:D,'Graph Data'!C44)&INDEX('AZIZA Model'!B:B,'Graph Data'!C44) -> Minimum Cash Balance | E44: =INDEX('AZIZA Model'!J:J,'Graph Data'!$C44) -> 334544 | F44: =INDEX('AZIZA Model'!K:K,'Graph Data'!$C44) -> 1131128 | G44: =INDEX('AZIZA Model'!L:L,'Graph Data'!$C44) -> 336883 | H44: =INDEX('AZIZA Model'!M:M,'Graph Data'!$C44) -> 160936 | I44: =INDEX('AZIZA Model'!N:N,'Graph Data'!$C44) -> 114564 | J44: =INDEX('AZIZA Model'!O:O,'Graph Data'!$C44) -> 1507182 | K44: =INDEX('AZIZA Model'!P:P,'Graph Data'!$C44) -> 505299 | L44: =INDEX('AZIZA Model'!Q:Q,'Graph Data'!$C44) -> 1546993 | M44: =INDEX('AZIZA Model'!R:R,'Graph Data'!$C44) -> 337027.2267 | N44: =INDEX('AZIZA Model'!S:S,'Graph Data'!$C44) -> 353878.588 | O44: =INDEX('AZIZA Model'!T:T,'Graph Data'!$C44) -> 371572.5174 | P44: =INDEX('AZIZA Model'!U:U,'Graph Data'!$C44) -> 390151.1433 | Q44: =INDEX('AZIZA Model'!V:V,'Graph Data'!$C44) -> 409658.7004 | R44: =INDEX('AZIZA Model'!W:W,'Graph Data'!$C44) -> 430141.6355 | S44: =INDEX('AZIZA Model'!X:X,'Graph Data'!$C44) -> 451648.7172 | T44: =INDEX('AZIZA Model'!Y:Y,'Graph Data'!$C44) -> 474231.1531 | U44: =INDEX('AZIZA Model'!Z:Z,'Graph Data'!$C44) -> 497942.7107
B45: 43 | C45: =MATCH(B45,'AZIZA Model'!AB:AB,0) -> 156 | D45: =INDEX('AZIZA Model'!C:C,'Graph Data'!C45)&INDEX('AZIZA Model'!D:D,'Graph Data'!C45)&INDEX('AZIZA Model'!B:B,'Graph Data'!C45) -> Net Sales | E45: =INDEX('AZIZA Model'!J:J,'Graph Data'!$C45) -> 12551497 | F45: =INDEX('AZIZA Model'!K:K,'Graph Data'!$C45) -> 12445619 | G45: =INDEX('AZIZA Model'!L:L,'Graph Data'!$C45) -> 17843682 | H45: =INDEX('AZIZA Model'!M:M,'Graph Data'!$C45) -> 18668526 | I45: =INDEX('AZIZA Model'!N:N,'Graph Data'!$C45) -> 18862818 | J45: =INDEX('AZIZA Model'!O:O,'Graph Data'!$C45) -> 26173760 | K45: =INDEX('AZIZA Model'!P:P,'Graph Data'!$C45) -> 29532749 | L45: =INDEX('AZIZA Model'!Q:Q,'Graph Data'!$C45) -> 30444532 | M45: =INDEX('AZIZA Model'!R:R,'Graph Data'!$C45) -> 33702722.67 | N45: =INDEX('AZIZA Model'!S:S,'Graph Data'!$C45) -> 35387858.8 | O45: =INDEX('AZIZA Model'!T:T,'Graph Data'!$C45) -> 37157251.74 | P45: =INDEX('AZIZA Model'!U:U,'Graph Data'!$C45) -> 39015114.33 | Q45: =INDEX('AZIZA Model'!V:V,'Graph Data'!$C45) -> 40965870.04 | R45: =INDEX('AZIZA Model'!W:W,'Graph Data'!$C45) -> 43014163.55 | S45: =INDEX('AZIZA Model'!X:X,'Graph Data'!$C45) -> 45164871.72 | T45: =INDEX('AZIZA Model'!Y:Y,'Graph Data'!$C45) -> 47423115.31 | U45: =INDEX('AZIZA Model'!Z:Z,'Graph Data'!$C45) -> 49794271.07
B46: 44 | C46: =MATCH(B46,'AZIZA Model'!AB:AB,0) -> 157 | D46: =INDEX('AZIZA Model'!C:C,'Graph Data'!C46)&INDEX('AZIZA Model'!D:D,'Graph Data'!C46)&INDEX('AZIZA Model'!B:B,'Graph Data'!C46) -> Cost of Goods Sold | E46: =INDEX('AZIZA Model'!J:J,'Graph Data'!$C46) -> -10012291 | F46: =INDEX('AZIZA Model'!K:K,'Graph Data'!$C46) -> -8366645 | G46: =INDEX('AZIZA Model'!L:L,'Graph Data'!$C46) -> -11229979 | H46: =INDEX('AZIZA Model'!M:M,'Graph Data'!$C46) -> -15824271 | I46: =INDEX('AZIZA Model'!N:N,'Graph Data'!$C46) -> -15473803 | J46: =INDEX('AZIZA Model'!O:O,'Graph Data'!$C46) -> -19354132.81 | K46: =INDEX('AZIZA Model'!P:P,'Graph Data'!$C46) -> -22604198 | L46: =INDEX('AZIZA Model'!Q:Q,'Graph Data'!$C46) -> -23186091 | M46: =INDEX('AZIZA Model'!R:R,'Graph Data'!$C46) -> -24588512.29 | N46: =INDEX('AZIZA Model'!S:S,'Graph Data'!$C46) -> -25833136.92 | O46: =INDEX('AZIZA Model'!T:T,'Graph Data'!$C46) -> -27496366.29 | P46: =INDEX('AZIZA Model'!U:U,'Graph Data'!$C46) -> -28871184.6 | Q46: =INDEX('AZIZA Model'!V:V,'Graph Data'!$C46) -> -30314743.83 | R46: =INDEX('AZIZA Model'!W:W,'Graph Data'!$C46) -> -31830481.02 | S46: =INDEX('AZIZA Model'!X:X,'Graph Data'!$C46) -> -33422005.08 | T46: =INDEX('AZIZA Model'!Y:Y,'Graph Data'!$C46) -> -35093105.33 | U46: =INDEX('AZIZA Model'!Z:Z,'Graph Data'!$C46) -> -36847760.6
B47: 45 | C47: =MATCH(B47,'AZIZA Model'!AB:AB,0) -> 158 | D47: =INDEX('AZIZA Model'!C:C,'Graph Data'!C47)&INDEX('AZIZA Model'!D:D,'Graph Data'!C47)&INDEX('AZIZA Model'!B:B,'Graph Data'!C47) -> Gross Profit | E47: =INDEX('AZIZA Model'!J:J,'Graph Data'!$C47) -> 2539206 | F47: =INDEX('AZIZA Model'!K:K,'Graph Data'!$C47) -> 4078974 | G47: =INDEX('AZIZA Model'!L:L,'Graph Data'!$C47) -> 6613703 | H47: =INDEX('AZIZA Model'!M:M,'Graph Data'!$C47) -> 2844255 | I47: =INDEX('AZIZA Model'!N:N,'Graph Data'!$C47) -> 3389015 | J47: =INDEX('AZIZA Model'!O:O,'Graph Data'!$C47) -> 6819627.186 | K47: =INDEX('AZIZA Model'!P:P,'Graph Data'!$C47) -> 6928551 | L47: =INDEX('AZIZA Model'!Q:Q,'Graph Data'!$C47) -> 7258441 | M47: =INDEX('AZIZA Model'!R:R,'Graph Data'!$C47) -> 9114210.381 | N47: =INDEX('AZIZA Model'!S:S,'Graph Data'!$C47) -> 9554721.876 | O47: =INDEX('AZIZA Model'!T:T,'Graph Data'!$C47) -> 9660885.453 | P47: =INDEX('AZIZA Model'!U:U,'Graph Data'!$C47) -> 10143929.73 | Q47: =INDEX('AZIZA Model'!V:V,'Graph Data'!$C47) -> 10651126.21 | R47: =INDEX('AZIZA Model'!W:W,'Graph Data'!$C47) -> 11183682.52 | S47: =INDEX('AZIZA Model'!X:X,'Graph Data'!$C47) -> 11742866.65 | T47: =INDEX('AZIZA Model'!Y:Y,'Graph Data'!$C47) -> 12330009.98 | U47: =INDEX('AZIZA Model'!Z:Z,'Graph Data'!$C47) -> 12946510.48
B48: 46 | C48: =MATCH(B48,'AZIZA Model'!AB:AB,0) -> 159 | D48: =INDEX('AZIZA Model'!C:C,'Graph Data'!C48)&INDEX('AZIZA Model'!D:D,'Graph Data'!C48)&INDEX('AZIZA Model'!B:B,'Graph Data'!C48) -> General & Administrative Expenses | E48: =INDEX('AZIZA Model'!J:J,'Graph Data'!$C48) -> -627129 | F48: =INDEX('AZIZA Model'!K:K,'Graph Data'!$C48) -> -743407 | G48: =INDEX('AZIZA Model'!L:L,'Graph Data'!$C48) -> -1225100 | H48: =INDEX('AZIZA Model'!M:M,'Graph Data'!$C48) -> -930214 | I48: =INDEX('AZIZA Model'!N:N,'Graph Data'!$C48) -> -917134 | J48: =INDEX('AZIZA Model'!O:O,'Graph Data'!$C48) -> -1089010.763 | K48: =INDEX('AZIZA Model'!P:P,'Graph Data'!$C48) -> -1092824 | L48: =INDEX('AZIZA Model'!Q:Q,'Graph Data'!$C48) -> -1224293 | M48: =INDEX('AZIZA Model'!R:R,'Graph Data'!$C48) -> -1666718.039 | N48: =INDEX('AZIZA Model'!S:S,'Graph Data'!$C48) -> -1750053.941 | O48: =INDEX('AZIZA Model'!T:T,'Graph Data'!$C48) -> -1837556.638 | P48: =INDEX('AZIZA Model'!U:U,'Graph Data'!$C48) -> -1929434.469 | Q48: =INDEX('AZIZA Model'!V:V,'Graph Data'!$C48) -> -2025906.193 | R48: =INDEX('AZIZA Model'!W:W,'Graph Data'!$C48) -> -2127201.503 | S48: =INDEX('AZIZA Model'!X:X,'Graph Data'!$C48) -> -2233561.578 | T48: =INDEX('AZIZA Model'!Y:Y,'Graph Data'!$C48) -> -2345239.657 | U48: =INDEX('AZIZA Model'!Z:Z,'Graph Data'!$C48) -> -2462501.639
B49: 47 | C49: =MATCH(B49,'AZIZA Model'!AB:AB,0) -> 160 | D49: =INDEX('AZIZA Model'!C:C,'Graph Data'!C49)&INDEX('AZIZA Model'!D:D,'Graph Data'!C49)&INDEX('AZIZA Model'!B:B,'Graph Data'!C49) -> Doubtful Debts Provision | E49: =INDEX('AZIZA Model'!J:J,'Graph Data'!$C49) -> -195856 | F49: =INDEX('AZIZA Model'!K:K,'Graph Data'!$C49) -> -71641 | G49: =INDEX('AZIZA Model'!L:L,'Graph Data'!$C49) -> 0 | H49: =INDEX('AZIZA Model'!M:M,'Graph Data'!$C49) -> 0 | I49: =INDEX('AZIZA Model'!N:N,'Graph Data'!$C49) -> -128440 | J49: =INDEX('AZIZA Model'!O:O,'Graph Data'!$C49) -> -118450.3922 | K49: =INDEX('AZIZA Model'!P:P,'Graph Data'!$C49) -> -132310 | L49: =INDEX('AZIZA Model'!Q:Q,'Graph Data'!$C49) -> -139494 | M49: =INDEX('AZIZA Model'!R:R,'Graph Data'!$C49) -> -175916.5749 | N49: =INDEX('AZIZA Model'!S:S,'Graph Data'!$C49) -> -184712.4037 | O49: =INDEX('AZIZA Model'!T:T,'Graph Data'!$C49) -> -193948.0238 | P49: =INDEX('AZIZA Model'!U:U,'Graph Data'!$C49) -> -203645.425 | Q49: =INDEX('AZIZA Model'!V:V,'Graph Data'!$C49) -> -213827.6963 | R49: =INDEX('AZIZA Model'!W:W,'Graph Data'!$C49) -> -224519.0811 | S49: =INDEX('AZIZA Model'!X:X,'Graph Data'!$C49) -> -235745.0351 | T49: =INDEX('AZIZA Model'!Y:Y,'Graph Data'!$C49) -> -247532.2869 | U49: =INDEX('AZIZA Model'!Z:Z,'Graph Data'!$C49) -> -259908.9013
B50: 48 | C50: =MATCH(B50,'AZIZA Model'!AB:AB,0) -> 161 | D50: =INDEX('AZIZA Model'!C:C,'Graph Data'!C50)&INDEX('AZIZA Model'!D:D,'Graph Data'!C50)&INDEX('AZIZA Model'!B:B,'Graph Data'!C50) -> Sales & Marketing Expenses | E50: =INDEX('AZIZA Model'!J:J,'Graph Data'!$C50) -> 0 | F50: =INDEX('AZIZA Model'!K:K,'Graph Data'!$C50) -> 0 | G50: =INDEX('AZIZA Model'!L:L,'Graph Data'!$C50) -> -134452 | H50: =INDEX('AZIZA Model'!M:M,'Graph Data'!$C50) -> -263664 | I50: =INDEX('AZIZA Model'!N:N,'Graph Data'!$C50) -> -330443 | J50: =INDEX('AZIZA Model'!O:O,'Graph Data'!$C50) -> -744684 | K50: =INDEX('AZIZA Model'!P:P,'Graph Data'!$C50) -> -977936 | L50: =INDEX('AZIZA Model'!Q:Q,'Graph Data'!$C50) -> -956025 | M50: =INDEX('AZIZA Model'!R:R,'Graph Data'!$C50) -> -1005446.811 | N50: =INDEX('AZIZA Model'!S:S,'Graph Data'!$C50) -> -1057423.488 | O50: =INDEX('AZIZA Model'!T:T,'Graph Data'!$C50) -> -1112087.104 | P50: =INDEX('AZIZA Model'!U:U,'Graph Data'!$C50) -> -1169576.562 | Q50: =INDEX('AZIZA Model'!V:V,'Graph Data'!$C50) -> -1230037.943 | R50: =INDEX('AZIZA Model'!W:W,'Graph Data'!$C50) -> -1293624.881 | S50: =INDEX('AZIZA Model'!X:X,'Graph Data'!$C50) -> -1360498.953 | T50: =INDEX('AZIZA Model'!Y:Y,'Graph Data'!$C50) -> -1430830.087 | U50: =INDEX('AZIZA Model'!Z:Z,'Graph Data'!$C50) -> -1504796.996
B51: 49 | C51: =MATCH(B51,'AZIZA Model'!AB:AB,0) -> 162 | D51: =INDEX('AZIZA Model'!C:C,'Graph Data'!C51)&INDEX('AZIZA Model'!D:D,'Graph Data'!C51)&INDEX('AZIZA Model'!B:B,'Graph Data'!C51) -> Depreciation | E51: =INDEX('AZIZA Model'!J:J,'Graph Data'!$C51) -> -669633 | F51: =INDEX('AZIZA Model'!K:K,'Graph Data'!$C51) -> -646466 | G51: =INDEX('AZIZA Model'!L:L,'Graph Data'!$C51) -> -765898 | H51: =INDEX('AZIZA Model'!M:M,'Graph Data'!$C51) -> -1113589 | I51: =INDEX('AZIZA Model'!N:N,'Graph Data'!$C51) -> -1139330 | J51: =INDEX('AZIZA Model'!O:O,'Graph Data'!$C51) -> -1236666 | K51: =INDEX('AZIZA Model'!P:P,'Graph Data'!$C51) -> -1276822 | L51: =INDEX('AZIZA Model'!Q:Q,'Graph Data'!$C51) -> -1198225 | M51: =INDEX('AZIZA Model'!R:R,'Graph Data'!$C51) -> -1205000 | N51: =INDEX('AZIZA Model'!S:S,'Graph Data'!$C51) -> -1420676.066 | O51: =INDEX('AZIZA Model'!T:T,'Graph Data'!$C51) -> -1623413.004 | P51: =INDEX('AZIZA Model'!U:U,'Graph Data'!$C51) -> -1813987.076 | Q51: =INDEX('AZIZA Model'!V:V,'Graph Data'!$C51) -> -1993127.972 | R51: =INDEX('AZIZA Model'!W:W,'Graph Data'!$C51) -> -2161521.607 | S51: =INDEX('AZIZA Model'!X:X,'Graph Data'!$C51) -> -2319812.745 | T51: =INDEX('AZIZA Model'!Y:Y,'Graph Data'!$C51) -> -2468607.468 | U51: =INDEX('AZIZA Model'!Z:Z,'Graph Data'!$C51) -> -2608475.499
B52: 50 | C52: =MATCH(B52,'AZIZA Model'!AB:AB,0) -> 163 | D52: =INDEX('AZIZA Model'!C:C,'Graph Data'!C52)&INDEX('AZIZA Model'!D:D,'Graph Data'!C52)&INDEX('AZIZA Model'!B:B,'Graph Data'!C52) -> Operating Proft (EBIT) | E52: =INDEX('AZIZA Model'!J:J,'Graph Data'!$C52) -> 1046588 | F52: =INDEX('AZIZA Model'!K:K,'Graph Data'!$C52) -> 2617460 | G52: =INDEX('AZIZA Model'!L:L,'Graph Data'!$C52) -> 4488253 | H52: =INDEX('AZIZA Model'!M:M,'Graph Data'!$C52) -> 536788 | I52: =INDEX('AZIZA Model'!N:N,'Graph Data'!$C52) -> 873668 | J52: =INDEX('AZIZA Model'!O:O,'Graph Data'!$C52) -> 3630816.031 | K52: =INDEX('AZIZA Model'!P:P,'Graph Data'!$C52) -> 3448659 | L52: =INDEX('AZIZA Model'!Q:Q,'Graph Data'!$C52) -> 3740404 | M52: =INDEX('AZIZA Model'!R:R,'Graph Data'!$C52) -> 5061128.956 | N52: =INDEX('AZIZA Model'!S:S,'Graph Data'!$C52) -> 5141855.978 | O52: =INDEX('AZIZA Model'!T:T,'Graph Data'!$C52) -> 4893880.683 | P52: =INDEX('AZIZA Model'!U:U,'Graph Data'!$C52) -> 5027286.193 | Q52: =INDEX('AZIZA Model'!V:V,'Graph Data'!$C52) -> 5188226.407 | R52: =INDEX('AZIZA Model'!W:W,'Graph Data'!$C52) -> 5376815.45 | S52: =INDEX('AZIZA Model'!X:X,'Graph Data'!$C52) -> 5593248.338 | T52: =INDEX('AZIZA Model'!Y:Y,'Graph Data'!$C52) -> 5837800.482 | U52: =INDEX('AZIZA Model'!Z:Z,'Graph Data'!$C52) -> 6110827.444
B53: 51 | C53: =MATCH(B53,'AZIZA Model'!AB:AB,0) -> 164 | D53: =INDEX('AZIZA Model'!C:C,'Graph Data'!C53)&INDEX('AZIZA Model'!D:D,'Graph Data'!C53)&INDEX('AZIZA Model'!B:B,'Graph Data'!C53) -> Financing Cost | E53: =INDEX('AZIZA Model'!J:J,'Graph Data'!$C53) -> -106468 | F53: =INDEX('AZIZA Model'!K:K,'Graph Data'!$C53) -> -69600 | G53: =INDEX('AZIZA Model'!L:L,'Graph Data'!$C53) -> -91599 | H53: =INDEX('AZIZA Model'!M:M,'Graph Data'!$C53) -> -195767 | I53: =INDEX('AZIZA Model'!N:N,'Graph Data'!$C53) -> -190958 | J53: =INDEX('AZIZA Model'!O:O,'Graph Data'!$C53) -> -299918.9863 | K53: =INDEX('AZIZA Model'!P:P,'Graph Data'!$C53) -> -208211 | L53: =INDEX('AZIZA Model'!Q:Q,'Graph Data'!$C53) -> -173168 | M53: =INDEX('AZIZA Model'!R:R,'Graph Data'!$C53) -> -133695.28 | N53: =INDEX('AZIZA Model'!S:S,'Graph Data'!$C53) -> -179055.2455 | O53: =INDEX('AZIZA Model'!T:T,'Graph Data'!$C53) -> -268417.6779 | P53: =INDEX('AZIZA Model'!U:U,'Graph Data'!$C53) -> -352510.9449 | Q53: =INDEX('AZIZA Model'!V:V,'Graph Data'!$C53) -> -427077.2083 | R53: =INDEX('AZIZA Model'!W:W,'Graph Data'!$C53) -> -489485.091 | S53: =INDEX('AZIZA Model'!X:X,'Graph Data'!$C53) -> -539403.8845 | T53: =INDEX('AZIZA Model'!Y:Y,'Graph Data'!$C53) -> -576452.7608 | U53: =INDEX('AZIZA Model'!Z:Z,'Graph Data'!$C53) -> -600199.8637
B54: 52 | C54: =MATCH(B54,'AZIZA Model'!AB:AB,0) -> 165 | D54: =INDEX('AZIZA Model'!C:C,'Graph Data'!C54)&INDEX('AZIZA Model'!D:D,'Graph Data'!C54)&INDEX('AZIZA Model'!B:B,'Graph Data'!C54) -> Other Revenues (Expenses) | E54: =INDEX('AZIZA Model'!J:J,'Graph Data'!$C54) -> -53580 | F54: =INDEX('AZIZA Model'!K:K,'Graph Data'!$C54) -> 303309 | G54: =INDEX('AZIZA Model'!L:L,'Graph Data'!$C54) -> 405445 | H54: =INDEX('AZIZA Model'!M:M,'Graph Data'!$C54) -> -523975 | I54: =INDEX('AZIZA Model'!N:N,'Graph Data'!$C54) -> 185977 | J54: =INDEX('AZIZA Model'!O:O,'Graph Data'!$C54) -> 523873.802 | K54: =INDEX('AZIZA Model'!P:P,'Graph Data'!$C54) -> -469868 | L54: =INDEX('AZIZA Model'!Q:Q,'Graph Data'!$C54) -> -40317 | M54: =INDEX('AZIZA Model'!R:R,'Graph Data'!$C54) -> 50000 | N54: =INDEX('AZIZA Model'!S:S,'Graph Data'!$C54) -> 50000 | O54: =INDEX('AZIZA Model'!T:T,'Graph Data'!$C54) -> 50000 | P54: =INDEX('AZIZA Model'!U:U,'Graph Data'!$C54) -> 50000 | Q54: =INDEX('AZIZA Model'!V:V,'Graph Data'!$C54) -> 50000 | R54: =INDEX('AZIZA Model'!W:W,'Graph Data'!$C54) -> 50000 | S54: =INDEX('AZIZA Model'!X:X,'Graph Data'!$C54) -> 50000 | T54: =INDEX('AZIZA Model'!Y:Y,'Graph Data'!$C54) -> 50000 | U54: =INDEX('AZIZA Model'!Z:Z,'Graph Data'!$C54) -> 50000
B55: 53 | C55: =MATCH(B55,'AZIZA Model'!AB:AB,0) -> 166 | D55: =INDEX('AZIZA Model'!C:C,'Graph Data'!C55)&INDEX('AZIZA Model'!D:D,'Graph Data'!C55)&INDEX('AZIZA Model'!B:B,'Graph Data'!C55) -> Pre Tax Income | E55: =INDEX('AZIZA Model'!J:J,'Graph Data'!$C55) -> 886540 | F55: =INDEX('AZIZA Model'!K:K,'Graph Data'!$C55) -> 2851169 | G55: =INDEX('AZIZA Model'!L:L,'Graph Data'!$C55) -> 4802099 | H55: =INDEX('AZIZA Model'!M:M,'Graph Data'!$C55) -> -182954 | I55: =INDEX('AZIZA Model'!N:N,'Graph Data'!$C55) -> 868687 | J55: =INDEX('AZIZA Model'!O:O,'Graph Data'!$C55) -> 3854770.847 | K55: =INDEX('AZIZA Model'!P:P,'Graph Data'!$C55) -> 2770580 | L55: =INDEX('AZIZA Model'!Q:Q,'Graph Data'!$C55) -> 3526919 | M55: =INDEX('AZIZA Model'!R:R,'Graph Data'!$C55) -> 4977433.676 | N55: =INDEX('AZIZA Model'!S:S,'Graph Data'!$C55) -> 5012800.732 | O55: =INDEX('AZIZA Model'!T:T,'Graph Data'!$C55) -> 4675463.005 | P55: =INDEX('AZIZA Model'!U:U,'Graph Data'!$C55) -> 4724775.248 | Q55: =INDEX('AZIZA Model'!V:V,'Graph Data'!$C55) -> 4811149.199 | R55: =INDEX('AZIZA Model'!W:W,'Graph Data'!$C55) -> 4937330.359 | S55: =INDEX('AZIZA Model'!X:X,'Graph Data'!$C55) -> 5103844.453 | T55: =INDEX('AZIZA Model'!Y:Y,'Graph Data'!$C55) -> 5311347.721 | U55: =INDEX('AZIZA Model'!Z:Z,'Graph Data'!$C55) -> 5560627.581
B56: 54 | C56: =MATCH(B56,'AZIZA Model'!AB:AB,0) -> 167 | D56: =INDEX('AZIZA Model'!C:C,'Graph Data'!C56)&INDEX('AZIZA Model'!D:D,'Graph Data'!C56)&INDEX('AZIZA Model'!B:B,'Graph Data'!C56) -> Income Tax | E56: =INDEX('AZIZA Model'!J:J,'Graph Data'!$C56) -> -93890 | F56: =INDEX('AZIZA Model'!K:K,'Graph Data'!$C56) -> -227640 | G56: =INDEX('AZIZA Model'!L:L,'Graph Data'!$C56) -> -358817 | H56: =INDEX('AZIZA Model'!M:M,'Graph Data'!$C56) -> -115836 | I56: =INDEX('AZIZA Model'!N:N,'Graph Data'!$C56) -> -184890 | J56: =INDEX('AZIZA Model'!O:O,'Graph Data'!$C56) -> -493097 | K56: =INDEX('AZIZA Model'!P:P,'Graph Data'!$C56) -> -448339 | L56: =INDEX('AZIZA Model'!Q:Q,'Graph Data'!$C56) -> -433286 | M56: =INDEX('AZIZA Model'!R:R,'Graph Data'!$C56) -> -746615.0514 | N56: =INDEX('AZIZA Model'!S:S,'Graph Data'!$C56) -> -751920.1099 | O56: =INDEX('AZIZA Model'!T:T,'Graph Data'!$C56) -> -701319.4507 | P56: =INDEX('AZIZA Model'!U:U,'Graph Data'!$C56) -> -708716.2872 | Q56: =INDEX('AZIZA Model'!V:V,'Graph Data'!$C56) -> -721672.3799 | R56: =INDEX('AZIZA Model'!W:W,'Graph Data'!$C56) -> -740599.5539 | S56: =INDEX('AZIZA Model'!X:X,'Graph Data'!$C56) -> -765576.668 | T56: =INDEX('AZIZA Model'!Y:Y,'Graph Data'!$C56) -> -796702.1582 | U56: =INDEX('AZIZA Model'!Z:Z,'Graph Data'!$C56) -> -834094.1371
B57: 55 | C57: =MATCH(B57,'AZIZA Model'!AB:AB,0) -> 168 | D57: =INDEX('AZIZA Model'!C:C,'Graph Data'!C57)&INDEX('AZIZA Model'!D:D,'Graph Data'!C57)&INDEX('AZIZA Model'!B:B,'Graph Data'!C57) -> Net Profit | E57: =INDEX('AZIZA Model'!J:J,'Graph Data'!$C57) -> 792650 | F57: =INDEX('AZIZA Model'!K:K,'Graph Data'!$C57) -> 2623529 | G57: =INDEX('AZIZA Model'!L:L,'Graph Data'!$C57) -> 4443282 | H57: =INDEX('AZIZA Model'!M:M,'Graph Data'!$C57) -> -298790 | I57: =INDEX('AZIZA Model'!N:N,'Graph Data'!$C57) -> 683797 | J57: =INDEX('AZIZA Model'!O:O,'Graph Data'!$C57) -> 3361673.847 | K57: =INDEX('AZIZA Model'!P:P,'Graph Data'!$C57) -> 2322241 | L57: =INDEX('AZIZA Model'!Q:Q,'Graph Data'!$C57) -> 3093633 | M57: =INDEX('AZIZA Model'!R:R,'Graph Data'!$C57) -> 4230818.625 | N57: =INDEX('AZIZA Model'!S:S,'Graph Data'!$C57) -> 4260880.623 | O57: =INDEX('AZIZA Model'!T:T,'Graph Data'!$C57) -> 3974143.554 | P57: =INDEX('AZIZA Model'!U:U,'Graph Data'!$C57) -> 4016058.961 | Q57: =INDEX('AZIZA Model'!V:V,'Graph Data'!$C57) -> 4089476.819 | R57: =INDEX('AZIZA Model'!W:W,'Graph Data'!$C57) -> 4196730.805 | S57: =INDEX('AZIZA Model'!X:X,'Graph Data'!$C57) -> 4338267.785 | T57: =INDEX('AZIZA Model'!Y:Y,'Graph Data'!$C57) -> 4514645.563 | U57: =INDEX('AZIZA Model'!Z:Z,'Graph Data'!$C57) -> 4726533.443
B58: 56 | C58: =MATCH(B58,'AZIZA Model'!AB:AB,0) -> 177 | D58: =INDEX('AZIZA Model'!C:C,'Graph Data'!C58)&INDEX('AZIZA Model'!D:D,'Graph Data'!C58)&INDEX('AZIZA Model'!B:B,'Graph Data'!C58) -> EBTDA | E58: =INDEX('AZIZA Model'!J:J,'Graph Data'!$C58) -> 1716221 | F58: =INDEX('AZIZA Model'!K:K,'Graph Data'!$C58) -> 3263926 | G58: =INDEX('AZIZA Model'!L:L,'Graph Data'!$C58) -> 5254151 | H58: =INDEX('AZIZA Model'!M:M,'Graph Data'!$C58) -> 1650377 | I58: =INDEX('AZIZA Model'!N:N,'Graph Data'!$C58) -> 2012998 | J58: =INDEX('AZIZA Model'!O:O,'Graph Data'!$C58) -> 4867482.031 | K58: =INDEX('AZIZA Model'!P:P,'Graph Data'!$C58) -> 4725481 | L58: =INDEX('AZIZA Model'!Q:Q,'Graph Data'!$C58) -> 4938629 | M58: =INDEX('AZIZA Model'!R:R,'Graph Data'!$C58) -> 6266128.956 | N58: =INDEX('AZIZA Model'!S:S,'Graph Data'!$C58) -> 6562532.044 | O58: =INDEX('AZIZA Model'!T:T,'Graph Data'!$C58) -> 6517293.687 | P58: =INDEX('AZIZA Model'!U:U,'Graph Data'!$C58) -> 6841273.269 | Q58: =INDEX('AZIZA Model'!V:V,'Graph Data'!$C58) -> 7181354.379 | R58: =INDEX('AZIZA Model'!W:W,'Graph Data'!$C58) -> 7538337.057 | S58: =INDEX('AZIZA Model'!X:X,'Graph Data'!$C58) -> 7913061.082 | T58: =INDEX('AZIZA Model'!Y:Y,'Graph Data'!$C58) -> 8306407.95 | U58: =INDEX('AZIZA Model'!Z:Z,'Graph Data'!$C58) -> 8719302.943
B59: 57 | C59: =MATCH(B59,'AZIZA Model'!AB:AB,0) -> 178 | D59: =INDEX('AZIZA Model'!C:C,'Graph Data'!C59)&INDEX('AZIZA Model'!D:D,'Graph Data'!C59)&INDEX('AZIZA Model'!B:B,'Graph Data'!C59) -> Less: Taxes | E59: =INDEX('AZIZA Model'!J:J,'Graph Data'!$C59) -> -93890 | F59: =INDEX('AZIZA Model'!K:K,'Graph Data'!$C59) -> -227640 | G59: =INDEX('AZIZA Model'!L:L,'Graph Data'!$C59) -> -358817 | H59: =INDEX('AZIZA Model'!M:M,'Graph Data'!$C59) -> -115836 | I59: =INDEX('AZIZA Model'!N:N,'Graph Data'!$C59) -> -184890 | J59: =INDEX('AZIZA Model'!O:O,'Graph Data'!$C59) -> -493097 | K59: =INDEX('AZIZA Model'!P:P,'Graph Data'!$C59) -> -448339 | L59: =INDEX('AZIZA Model'!Q:Q,'Graph Data'!$C59) -> -433286 | M59: =INDEX('AZIZA Model'!R:R,'Graph Data'!$C59) -> -746615.0514 | N59: =INDEX('AZIZA Model'!S:S,'Graph Data'!$C59) -> -751920.1099 | O59: =INDEX('AZIZA Model'!T:T,'Graph Data'!$C59) -> -701319.4507 | P59: =INDEX('AZIZA Model'!U:U,'Graph Data'!$C59) -> -708716.2872 | Q59: =INDEX('AZIZA Model'!V:V,'Graph Data'!$C59) -> -721672.3799 | R59: =INDEX('AZIZA Model'!W:W,'Graph Data'!$C59) -> -740599.5539 | S59: =INDEX('AZIZA Model'!X:X,'Graph Data'!$C59) -> -765576.668 | T59: =INDEX('AZIZA Model'!Y:Y,'Graph Data'!$C59) -> -796702.1582 | U59: =INDEX('AZIZA Model'!Z:Z,'Graph Data'!$C59) -> -834094.1371
B60: 58 | C60: =MATCH(B60,'AZIZA Model'!AB:AB,0) -> 179 | D60: =INDEX('AZIZA Model'!C:C,'Graph Data'!C60)&INDEX('AZIZA Model'!D:D,'Graph Data'!C60)&INDEX('AZIZA Model'!B:B,'Graph Data'!C60) -> Less: WC Changes | E60: =INDEX('AZIZA Model'!J:J,'Graph Data'!$C60) -> -2091704 | F60: =INDEX('AZIZA Model'!K:K,'Graph Data'!$C60) -> -413209 | G60: =INDEX('AZIZA Model'!L:L,'Graph Data'!$C60) -> -896963 | H60: =INDEX('AZIZA Model'!M:M,'Graph Data'!$C60) -> -419745 | I60: =INDEX('AZIZA Model'!N:N,'Graph Data'!$C60) -> -699625 | J60: =INDEX('AZIZA Model'!O:O,'Graph Data'!$C60) -> -615403 | K60: =INDEX('AZIZA Model'!P:P,'Graph Data'!$C60) -> -756880 | L60: =INDEX('AZIZA Model'!Q:Q,'Graph Data'!$C60) -> 663073 | M60: =INDEX('AZIZA Model'!R:R,'Graph Data'!$C60) -> -201042.0413 | N60: =INDEX('AZIZA Model'!S:S,'Graph Data'!$C60) -> -269849.7827 | O60: =INDEX('AZIZA Model'!T:T,'Graph Data'!$C60) -> -242893.1732 | P60: =INDEX('AZIZA Model'!U:U,'Graph Data'!$C60) -> -297212.0499 | Q60: =INDEX('AZIZA Model'!V:V,'Graph Data'!$C60) -> -312072.6524 | R60: =INDEX('AZIZA Model'!W:W,'Graph Data'!$C60) -> -327676.285 | S60: =INDEX('AZIZA Model'!X:X,'Graph Data'!$C60) -> -344060.0992 | T60: =INDEX('AZIZA Model'!Y:Y,'Graph Data'!$C60) -> -361263.1042 | U60: =INDEX('AZIZA Model'!Z:Z,'Graph Data'!$C60) -> -379326.2594
B61: 59 | C61: =MATCH(B61,'AZIZA Model'!AB:AB,0) -> 180 | D61: =INDEX('AZIZA Model'!C:C,'Graph Data'!C61)&INDEX('AZIZA Model'!D:D,'Graph Data'!C61)&INDEX('AZIZA Model'!B:B,'Graph Data'!C61) -> Add: Change in Indemity | E61: =INDEX('AZIZA Model'!J:J,'Graph Data'!$C61) -> 0 | F61: =INDEX('AZIZA Model'!K:K,'Graph Data'!$C61) -> 56343 | G61: =INDEX('AZIZA Model'!L:L,'Graph Data'!$C61) -> 77454 | H61: =INDEX('AZIZA Model'!M:M,'Graph Data'!$C61) -> 47075 | I61: =INDEX('AZIZA Model'!N:N,'Graph Data'!$C61) -> 50120 | J61: =INDEX('AZIZA Model'!O:O,'Graph Data'!$C61) -> 120717 | K61: =INDEX('AZIZA Model'!P:P,'Graph Data'!$C61) -> 36577 | L61: =INDEX('AZIZA Model'!Q:Q,'Graph Data'!$C61) -> 134211 | M61: =INDEX('AZIZA Model'!R:R,'Graph Data'!$C61) -> 117989.4549 | N61: =INDEX('AZIZA Model'!S:S,'Graph Data'!$C61) -> 40593.77358 | O61: =INDEX('AZIZA Model'!T:T,'Graph Data'!$C61) -> 42649.89401 | P61: =INDEX('AZIZA Model'!U:U,'Graph Data'!$C61) -> 44810.18686 | Q61: =INDEX('AZIZA Model'!V:V,'Graph Data'!$C61) -> 47079.93137 | R61: =INDEX('AZIZA Model'!W:W,'Graph Data'!$C61) -> 49464.67442 | S61: =INDEX('AZIZA Model'!X:X,'Graph Data'!$C61) -> 51970.24407 | T61: =INDEX('AZIZA Model'!Y:Y,'Graph Data'!$C61) -> 54602.76381 | U61: =INDEX('AZIZA Model'!Z:Z,'Graph Data'!$C61) -> 57368.66756
B62: 60 | C62: =MATCH(B62,'AZIZA Model'!AB:AB,0) -> 181 | D62: =INDEX('AZIZA Model'!C:C,'Graph Data'!C62)&INDEX('AZIZA Model'!D:D,'Graph Data'!C62)&INDEX('AZIZA Model'!B:B,'Graph Data'!C62) -> Add: Other Income | E62: =INDEX('AZIZA Model'!J:J,'Graph Data'!$C62) -> -53580 | F62: =INDEX('AZIZA Model'!K:K,'Graph Data'!$C62) -> 303309 | G62: =INDEX('AZIZA Model'!L:L,'Graph Data'!$C62) -> 405445 | H62: =INDEX('AZIZA Model'!M:M,'Graph Data'!$C62) -> -523975 | I62: =INDEX('AZIZA Model'!N:N,'Graph Data'!$C62) -> 185977 | J62: =INDEX('AZIZA Model'!O:O,'Graph Data'!$C62) -> 523873.802 | K62: =INDEX('AZIZA Model'!P:P,'Graph Data'!$C62) -> -469868 | L62: =INDEX('AZIZA Model'!Q:Q,'Graph Data'!$C62) -> -40317 | M62: =INDEX('AZIZA Model'!R:R,'Graph Data'!$C62) -> 50000 | N62: =INDEX('AZIZA Model'!S:S,'Graph Data'!$C62) -> 50000 | O62: =INDEX('AZIZA Model'!T:T,'Graph Data'!$C62) -> 50000 | P62: =INDEX('AZIZA Model'!U:U,'Graph Data'!$C62) -> 50000 | Q62: =INDEX('AZIZA Model'!V:V,'Graph Data'!$C62) -> 50000 | R62: =INDEX('AZIZA Model'!W:W,'Graph Data'!$C62) -> 50000 | S62: =INDEX('AZIZA Model'!X:X,'Graph Data'!$C62) -> 50000 | T62: =INDEX('AZIZA Model'!Y:Y,'Graph Data'!$C62) -> 50000 | U62: =INDEX('AZIZA Model'!Z:Z,'Graph Data'!$C62) -> 50000
B63: 61 | C63: =MATCH(B63,'AZIZA Model'!AB:AB,0) -> 182 | D63: =INDEX('AZIZA Model'!C:C,'Graph Data'!C63)&INDEX('AZIZA Model'!D:D,'Graph Data'!C63)&INDEX('AZIZA Model'!B:B,'Graph Data'!C63) -> Operating Cash Flow | E63: =INDEX('AZIZA Model'!J:J,'Graph Data'!$C63) -> -522953 | F63: =INDEX('AZIZA Model'!K:K,'Graph Data'!$C63) -> 2982729 | G63: =INDEX('AZIZA Model'!L:L,'Graph Data'!$C63) -> 4481270 | H63: =INDEX('AZIZA Model'!M:M,'Graph Data'!$C63) -> 637896 | I63: =INDEX('AZIZA Model'!N:N,'Graph Data'!$C63) -> 1364580 | J63: =INDEX('AZIZA Model'!O:O,'Graph Data'!$C63) -> 4403572.833 | K63: =INDEX('AZIZA Model'!P:P,'Graph Data'!$C63) -> 3086971 | L63: =INDEX('AZIZA Model'!Q:Q,'Graph Data'!$C63) -> 5262310 | M63: =INDEX('AZIZA Model'!R:R,'Graph Data'!$C63) -> 5486461.318 | N63: =INDEX('AZIZA Model'!S:S,'Graph Data'!$C63) -> 5631355.925 | O63: =INDEX('AZIZA Model'!T:T,'Graph Data'!$C63) -> 5665730.957 | P63: =INDEX('AZIZA Model'!U:U,'Graph Data'!$C63) -> 5930155.119 | Q63: =INDEX('AZIZA Model'!V:V,'Graph Data'!$C63) -> 6244689.279 | R63: =INDEX('AZIZA Model'!W:W,'Graph Data'!$C63) -> 6569525.893 | S63: =INDEX('AZIZA Model'!X:X,'Graph Data'!$C63) -> 6905394.559 | T63: =INDEX('AZIZA Model'!Y:Y,'Graph Data'!$C63) -> 7253045.452 | U63: =INDEX('AZIZA Model'!Z:Z,'Graph Data'!$C63) -> 7613251.214
B64: 62 | C64: =MATCH(B64,'AZIZA Model'!AB:AB,0) -> 183 | D64: =INDEX('AZIZA Model'!C:C,'Graph Data'!C64)&INDEX('AZIZA Model'!D:D,'Graph Data'!C64)&INDEX('AZIZA Model'!B:B,'Graph Data'!C64) -> Less:Capital Expenditure | E64: =INDEX('AZIZA Model'!J:J,'Graph Data'!$C64) -> -305477 | F64: =INDEX('AZIZA Model'!K:K,'Graph Data'!$C64) -> -6263126 | G64: =INDEX('AZIZA Model'!L:L,'Graph Data'!$C64) -> -5157567 | H64: =INDEX('AZIZA Model'!M:M,'Graph Data'!$C64) -> -2513906 | I64: =INDEX('AZIZA Model'!N:N,'Graph Data'!$C64) -> -639793 | J64: =INDEX('AZIZA Model'!O:O,'Graph Data'!$C64) -> -413643 | K64: =INDEX('AZIZA Model'!P:P,'Graph Data'!$C64) -> -1282665 | L64: =INDEX('AZIZA Model'!Q:Q,'Graph Data'!$C64) -> -976195 | M64: =INDEX('AZIZA Model'!R:R,'Graph Data'!$C64) -> -4800000 | N64: =INDEX('AZIZA Model'!S:S,'Graph Data'!$C64) -> -4800000 | O64: =INDEX('AZIZA Model'!T:T,'Graph Data'!$C64) -> -4800000 | P64: =INDEX('AZIZA Model'!U:U,'Graph Data'!$C64) -> -4800000 | Q64: =INDEX('AZIZA Model'!V:V,'Graph Data'!$C64) -> -4800000 | R64: =INDEX('AZIZA Model'!W:W,'Graph Data'!$C64) -> -4800000 | S64: =INDEX('AZIZA Model'!X:X,'Graph Data'!$C64) -> -4800000 | T64: =INDEX('AZIZA Model'!Y:Y,'Graph Data'!$C64) -> -4800000 | U64: =INDEX('AZIZA Model'!Z:Z,'Graph Data'!$C64) -> -4800000
B65: 63 | C65: =MATCH(B65,'AZIZA Model'!AB:AB,0) -> 184 | D65: =INDEX('AZIZA Model'!C:C,'Graph Data'!C65)&INDEX('AZIZA Model'!D:D,'Graph Data'!C65)&INDEX('AZIZA Model'!B:B,'Graph Data'!C65) -> Net Cash Flow Before Financing | E65: =INDEX('AZIZA Model'!J:J,'Graph Data'!$C65) -> -828430 | F65: =INDEX('AZIZA Model'!K:K,'Graph Data'!$C65) -> -3280397 | G65: =INDEX('AZIZA Model'!L:L,'Graph Data'!$C65) -> -676297 | H65: =INDEX('AZIZA Model'!M:M,'Graph Data'!$C65) -> -1876010 | I65: =INDEX('AZIZA Model'!N:N,'Graph Data'!$C65) -> 724787 | J65: =INDEX('AZIZA Model'!O:O,'Graph Data'!$C65) -> 3989929.833 | K65: =INDEX('AZIZA Model'!P:P,'Graph Data'!$C65) -> 1804306 | L65: =INDEX('AZIZA Model'!Q:Q,'Graph Data'!$C65) -> 4286115 | M65: =INDEX('AZIZA Model'!R:R,'Graph Data'!$C65) -> 686461.3182 | N65: =INDEX('AZIZA Model'!S:S,'Graph Data'!$C65) -> 831355.9251 | O65: =INDEX('AZIZA Model'!T:T,'Graph Data'!$C65) -> 865730.9571 | P65: =INDEX('AZIZA Model'!U:U,'Graph Data'!$C65) -> 1130155.119 | Q65: =INDEX('AZIZA Model'!V:V,'Graph Data'!$C65) -> 1444689.279 | R65: =INDEX('AZIZA Model'!W:W,'Graph Data'!$C65) -> 1769525.893 | S65: =INDEX('AZIZA Model'!X:X,'Graph Data'!$C65) -> 2105394.559 | T65: =INDEX('AZIZA Model'!Y:Y,'Graph Data'!$C65) -> 2453045.452 | U65: =INDEX('AZIZA Model'!Z:Z,'Graph Data'!$C65) -> 2813251.214
B66: 64 | C66: =MATCH(B66,'AZIZA Model'!AB:AB,0) -> 185 | D66: =INDEX('AZIZA Model'!C:C,'Graph Data'!C66)&INDEX('AZIZA Model'!D:D,'Graph Data'!C66)&INDEX('AZIZA Model'!B:B,'Graph Data'!C66) -> Less: Financing Cost | E66: =INDEX('AZIZA Model'!J:J,'Graph Data'!$C66) -> -106468 | F66: =INDEX('AZIZA Model'!K:K,'Graph Data'!$C66) -> -69600 | G66: =INDEX('AZIZA Model'!L:L,'Graph Data'!$C66) -> -91599 | H66: =INDEX('AZIZA Model'!M:M,'Graph Data'!$C66) -> -195767 | I66: =INDEX('AZIZA Model'!N:N,'Graph Data'!$C66) -> -190958 | J66: =INDEX('AZIZA Model'!O:O,'Graph Data'!$C66) -> -299918.9863 | K66: =INDEX('AZIZA Model'!P:P,'Graph Data'!$C66) -> -208211 | L66: =INDEX('AZIZA Model'!Q:Q,'Graph Data'!$C66) -> -173168 | M66: =INDEX('AZIZA Model'!R:R,'Graph Data'!$C66) -> -133695.28 | N66: =INDEX('AZIZA Model'!S:S,'Graph Data'!$C66) -> -179055.2455 | O66: =INDEX('AZIZA Model'!T:T,'Graph Data'!$C66) -> -268417.6779 | P66: =INDEX('AZIZA Model'!U:U,'Graph Data'!$C66) -> -352510.9449 | Q66: =INDEX('AZIZA Model'!V:V,'Graph Data'!$C66) -> -427077.2083 | R66: =INDEX('AZIZA Model'!W:W,'Graph Data'!$C66) -> -489485.091 | S66: =INDEX('AZIZA Model'!X:X,'Graph Data'!$C66) -> -539403.8845 | T66: =INDEX('AZIZA Model'!Y:Y,'Graph Data'!$C66) -> -576452.7608 | U66: =INDEX('AZIZA Model'!Z:Z,'Graph Data'!$C66) -> -600199.8637
B67: 65 | C67: =MATCH(B67,'AZIZA Model'!AB:AB,0) -> 186 | D67: =INDEX('AZIZA Model'!C:C,'Graph Data'!C67)&INDEX('AZIZA Model'!D:D,'Graph Data'!C67)&INDEX('AZIZA Model'!B:B,'Graph Data'!C67) -> Less: Dividends | E67: =INDEX('AZIZA Model'!J:J,'Graph Data'!$C67) -> 0 | F67: =INDEX('AZIZA Model'!K:K,'Graph Data'!$C67) -> 0 | G67: =INDEX('AZIZA Model'!L:L,'Graph Data'!$C67) -> -583307 | H67: =INDEX('AZIZA Model'!M:M,'Graph Data'!$C67) -> -326535 | I67: =INDEX('AZIZA Model'!N:N,'Graph Data'!$C67) -> -45256 | J67: =INDEX('AZIZA Model'!O:O,'Graph Data'!$C67) -> -136627 | K67: =INDEX('AZIZA Model'!P:P,'Graph Data'!$C67) -> -1521121 | L67: =INDEX('AZIZA Model'!Q:Q,'Graph Data'!$C67) -> -1592683 | M67: =INDEX('AZIZA Model'!R:R,'Graph Data'!$C67) -> -2115409.312 | N67: =INDEX('AZIZA Model'!S:S,'Graph Data'!$C67) -> -2130440.311 | O67: =INDEX('AZIZA Model'!T:T,'Graph Data'!$C67) -> -1987071.777 | P67: =INDEX('AZIZA Model'!U:U,'Graph Data'!$C67) -> -2008029.48 | Q67: =INDEX('AZIZA Model'!V:V,'Graph Data'!$C67) -> -2044738.41 | R67: =INDEX('AZIZA Model'!W:W,'Graph Data'!$C67) -> -2098365.403 | S67: =INDEX('AZIZA Model'!X:X,'Graph Data'!$C67) -> -2169133.893 | T67: =INDEX('AZIZA Model'!Y:Y,'Graph Data'!$C67) -> -2257322.782 | U67: =INDEX('AZIZA Model'!Z:Z,'Graph Data'!$C67) -> -2363266.722
B68: 66 | C68: =MATCH(B68,'AZIZA Model'!AB:AB,0) -> 187 | D68: =INDEX('AZIZA Model'!C:C,'Graph Data'!C68)&INDEX('AZIZA Model'!D:D,'Graph Data'!C68)&INDEX('AZIZA Model'!B:B,'Graph Data'!C68) -> Net Cash Flow | E68: =INDEX('AZIZA Model'!J:J,'Graph Data'!$C68) -> -934898 | F68: =INDEX('AZIZA Model'!K:K,'Graph Data'!$C68) -> -3349997 | G68: =INDEX('AZIZA Model'!L:L,'Graph Data'!$C68) -> -1351203 | H68: =INDEX('AZIZA Model'!M:M,'Graph Data'!$C68) -> -2398312 | I68: =INDEX('AZIZA Model'!N:N,'Graph Data'!$C68) -> 488573 | J68: =INDEX('AZIZA Model'!O:O,'Graph Data'!$C68) -> 3553383.847 | K68: =INDEX('AZIZA Model'!P:P,'Graph Data'!$C68) -> 74974 | L68: =INDEX('AZIZA Model'!Q:Q,'Graph Data'!$C68) -> 2520264 | M68: =INDEX('AZIZA Model'!R:R,'Graph Data'!$C68) -> -1562643.274 | N68: =INDEX('AZIZA Model'!S:S,'Graph Data'!$C68) -> -1478139.632 | O68: =INDEX('AZIZA Model'!T:T,'Graph Data'!$C68) -> -1389758.498 | P68: =INDEX('AZIZA Model'!U:U,'Graph Data'!$C68) -> -1230385.307 | Q68: =INDEX('AZIZA Model'!V:V,'Graph Data'!$C68) -> -1027126.339 | R68: =INDEX('AZIZA Model'!W:W,'Graph Data'!$C68) -> -818324.6011 | S68: =INDEX('AZIZA Model'!X:X,'Graph Data'!$C68) -> -603143.2179 | T68: =INDEX('AZIZA Model'!Y:Y,'Graph Data'!$C68) -> -380730.0908 | U68: =INDEX('AZIZA Model'!Z:Z,'Graph Data'!$C68) -> -150215.3714
B69: 67 | C69: =MATCH(B69,'AZIZA Model'!AB:AB,0) -> 196 | D69: =INDEX('AZIZA Model'!C:C,'Graph Data'!C69)&INDEX('AZIZA Model'!D:D,'Graph Data'!C69)&INDEX('AZIZA Model'!B:B,'Graph Data'!C69) -> Cash Balance | E69: =INDEX('AZIZA Model'!J:J,'Graph Data'!$C69) -> 334544 | F69: =INDEX('AZIZA Model'!K:K,'Graph Data'!$C69) -> 1131128 | G69: =INDEX('AZIZA Model'!L:L,'Graph Data'!$C69) -> 336883 | H69: =INDEX('AZIZA Model'!M:M,'Graph Data'!$C69) -> 160936 | I69: =INDEX('AZIZA Model'!N:N,'Graph Data'!$C69) -> 114564 | J69: =INDEX('AZIZA Model'!O:O,'Graph Data'!$C69) -> 1507182 | K69: =INDEX('AZIZA Model'!P:P,'Graph Data'!$C69) -> 505299 | L69: =INDEX('AZIZA Model'!Q:Q,'Graph Data'!$C69) -> 1546993 | M69: =INDEX('AZIZA Model'!R:R,'Graph Data'!$C69) -> 337027.2267 | N69: =INDEX('AZIZA Model'!S:S,'Graph Data'!$C69) -> 353878.588 | O69: =INDEX('AZIZA Model'!T:T,'Graph Data'!$C69) -> 371572.5174 | P69: =INDEX('AZIZA Model'!U:U,'Graph Data'!$C69) -> 390151.1433 | Q69: =INDEX('AZIZA Model'!V:V,'Graph Data'!$C69) -> 409658.7004 | R69: =INDEX('AZIZA Model'!W:W,'Graph Data'!$C69) -> 430141.6355 | S69: =INDEX('AZIZA Model'!X:X,'Graph Data'!$C69) -> 451648.7172 | T69: =INDEX('AZIZA Model'!Y:Y,'Graph Data'!$C69) -> 474231.1531 | U69: =INDEX('AZIZA Model'!Z:Z,'Graph Data'!$C69) -> 497942.7107
B70: 68 | C70: =MATCH(B70,'AZIZA Model'!AB:AB,0) -> 197 | D70: =INDEX('AZIZA Model'!C:C,'Graph Data'!C70)&INDEX('AZIZA Model'!D:D,'Graph Data'!C70)&INDEX('AZIZA Model'!B:B,'Graph Data'!C70) -> Biological Assets | E70: =INDEX('AZIZA Model'!J:J,'Graph Data'!$C70) -> 1168434 | F70: =INDEX('AZIZA Model'!K:K,'Graph Data'!$C70) -> 1696723 | G70: =INDEX('AZIZA Model'!L:L,'Graph Data'!$C70) -> 2490128 | H70: =INDEX('AZIZA Model'!M:M,'Graph Data'!$C70) -> 1961385 | I70: =INDEX('AZIZA Model'!N:N,'Graph Data'!$C70) -> 2011969 | J70: =INDEX('AZIZA Model'!O:O,'Graph Data'!$C70) -> 1892214 | K70: =INDEX('AZIZA Model'!P:P,'Graph Data'!$C70) -> 1802803 | L70: =INDEX('AZIZA Model'!Q:Q,'Graph Data'!$C70) -> 2019602 | M70: =INDEX('AZIZA Model'!R:R,'Graph Data'!$C70) -> 2145362.044 | N70: =INDEX('AZIZA Model'!S:S,'Graph Data'!$C70) -> 2252630.146 | O70: =INDEX('AZIZA Model'!T:T,'Graph Data'!$C70) -> 2365261.654 | P70: =INDEX('AZIZA Model'!U:U,'Graph Data'!$C70) -> 2483524.736 | Q70: =INDEX('AZIZA Model'!V:V,'Graph Data'!$C70) -> 2607700.973 | R70: =INDEX('AZIZA Model'!W:W,'Graph Data'!$C70) -> 2738086.022 | S70: =INDEX('AZIZA Model'!X:X,'Graph Data'!$C70) -> 2874990.323 | T70: =INDEX('AZIZA Model'!Y:Y,'Graph Data'!$C70) -> 3018739.839 | U70: =INDEX('AZIZA Model'!Z:Z,'Graph Data'!$C70) -> 3169676.831
B71: 69 | C71: =MATCH(B71,'AZIZA Model'!AB:AB,0) -> 198 | D71: =INDEX('AZIZA Model'!C:C,'Graph Data'!C71)&INDEX('AZIZA Model'!D:D,'Graph Data'!C71)&INDEX('AZIZA Model'!B:B,'Graph Data'!C71) -> Inventories | E71: =INDEX('AZIZA Model'!J:J,'Graph Data'!$C71) -> 1113114 | F71: =INDEX('AZIZA Model'!K:K,'Graph Data'!$C71) -> 941042 | G71: =INDEX('AZIZA Model'!L:L,'Graph Data'!$C71) -> 2078143 | H71: =INDEX('AZIZA Model'!M:M,'Graph Data'!$C71) -> 1398643 | I71: =INDEX('AZIZA Model'!N:N,'Graph Data'!$C71) -> 1508159 | J71: =INDEX('AZIZA Model'!O:O,'Graph Data'!$C71) -> 2350474 | K71: =INDEX('AZIZA Model'!P:P,'Graph Data'!$C71) -> 2532370 | L71: =INDEX('AZIZA Model'!Q:Q,'Graph Data'!$C71) -> 1859144 | M71: =INDEX('AZIZA Model'!R:R,'Graph Data'!$C71) -> 2024681.323 | N71: =INDEX('AZIZA Model'!S:S,'Graph Data'!$C71) -> 2127166.916 | O71: =INDEX('AZIZA Model'!T:T,'Graph Data'!$C71) -> 2264121.498 | P71: =INDEX('AZIZA Model'!U:U,'Graph Data'!$C71) -> 2377327.573 | Q71: =INDEX('AZIZA Model'!V:V,'Graph Data'!$C71) -> 2496193.951 | R71: =INDEX('AZIZA Model'!W:W,'Graph Data'!$C71) -> 2621003.649 | S71: =INDEX('AZIZA Model'!X:X,'Graph Data'!$C71) -> 2752053.831 | T71: =INDEX('AZIZA Model'!Y:Y,'Graph Data'!$C71) -> 2889656.523 | U71: =INDEX('AZIZA Model'!Z:Z,'Graph Data'!$C71) -> 3034139.349
B72: 70 | C72: =MATCH(B72,'AZIZA Model'!AB:AB,0) -> 199 | D72: =INDEX('AZIZA Model'!C:C,'Graph Data'!C72)&INDEX('AZIZA Model'!D:D,'Graph Data'!C72)&INDEX('AZIZA Model'!B:B,'Graph Data'!C72) -> Accounts Receivable | E72: =INDEX('AZIZA Model'!J:J,'Graph Data'!$C72) -> 1414380 | F72: =INDEX('AZIZA Model'!K:K,'Graph Data'!$C72) -> 1571703 | G72: =INDEX('AZIZA Model'!L:L,'Graph Data'!$C72) -> 1884711 | H72: =INDEX('AZIZA Model'!M:M,'Graph Data'!$C72) -> 3404388 | I72: =INDEX('AZIZA Model'!N:N,'Graph Data'!$C72) -> 4328998 | J72: =INDEX('AZIZA Model'!O:O,'Graph Data'!$C72) -> 4746615 | K72: =INDEX('AZIZA Model'!P:P,'Graph Data'!$C72) -> 5704328 | L72: =INDEX('AZIZA Model'!Q:Q,'Graph Data'!$C72) -> 5621711 | M72: =INDEX('AZIZA Model'!R:R,'Graph Data'!$C72) -> 6621521.004 | N72: =INDEX('AZIZA Model'!S:S,'Graph Data'!$C72) -> 6952597.055 | O72: =INDEX('AZIZA Model'!T:T,'Graph Data'!$C72) -> 7300226.907 | P72: =INDEX('AZIZA Model'!U:U,'Graph Data'!$C72) -> 7665238.253 | Q72: =INDEX('AZIZA Model'!V:V,'Graph Data'!$C72) -> 8048500.165 | R72: =INDEX('AZIZA Model'!W:W,'Graph Data'!$C72) -> 8450925.174 | S72: =INDEX('AZIZA Model'!X:X,'Graph Data'!$C72) -> 8873471.432 | T72: =INDEX('AZIZA Model'!Y:Y,'Graph Data'!$C72) -> 9317145.004 | U72: =INDEX('AZIZA Model'!Z:Z,'Graph Data'!$C72) -> 9783002.254
B73: 71 | C73: =MATCH(B73,'AZIZA Model'!AB:AB,0) -> 200 | D73: =INDEX('AZIZA Model'!C:C,'Graph Data'!C73)&INDEX('AZIZA Model'!D:D,'Graph Data'!C73)&INDEX('AZIZA Model'!B:B,'Graph Data'!C73) -> Other Current Assets | E73: =INDEX('AZIZA Model'!J:J,'Graph Data'!$C73) -> 628093 | F73: =INDEX('AZIZA Model'!K:K,'Graph Data'!$C73) -> 906652 | G73: =INDEX('AZIZA Model'!L:L,'Graph Data'!$C73) -> 993682 | H73: =INDEX('AZIZA Model'!M:M,'Graph Data'!$C73) -> 1802258 | I73: =INDEX('AZIZA Model'!N:N,'Graph Data'!$C73) -> 1369257 | J73: =INDEX('AZIZA Model'!O:O,'Graph Data'!$C73) -> 718849 | K73: =INDEX('AZIZA Model'!P:P,'Graph Data'!$C73) -> 393102 | L73: =INDEX('AZIZA Model'!Q:Q,'Graph Data'!$C73) -> 301815 | M73: =INDEX('AZIZA Model'!R:R,'Graph Data'!$C73) -> 381646.4609 | N73: =INDEX('AZIZA Model'!S:S,'Graph Data'!$C73) -> 400728.784 | O73: =INDEX('AZIZA Model'!T:T,'Graph Data'!$C73) -> 420765.2232 | P73: =INDEX('AZIZA Model'!U:U,'Graph Data'!$C73) -> 441803.4844 | Q73: =INDEX('AZIZA Model'!V:V,'Graph Data'!$C73) -> 463893.6586 | R73: =INDEX('AZIZA Model'!W:W,'Graph Data'!$C73) -> 487088.3415 | S73: =INDEX('AZIZA Model'!X:X,'Graph Data'!$C73) -> 511442.7586 | T73: =INDEX('AZIZA Model'!Y:Y,'Graph Data'!$C73) -> 537014.8965 | U73: =INDEX('AZIZA Model'!Z:Z,'Graph Data'!$C73) -> 563865.6413
B74: 72 | C74: =MATCH(B74,'AZIZA Model'!AB:AB,0) -> 201 | D74: =INDEX('AZIZA Model'!C:C,'Graph Data'!C74)&INDEX('AZIZA Model'!D:D,'Graph Data'!C74)&INDEX('AZIZA Model'!B:B,'Graph Data'!C74) -> Total Current Assets | E74: =INDEX('AZIZA Model'!J:J,'Graph Data'!$C74) -> 4658565 | F74: =INDEX('AZIZA Model'!K:K,'Graph Data'!$C74) -> 6247248 | G74: =INDEX('AZIZA Model'!L:L,'Graph Data'!$C74) -> 7783547 | H74: =INDEX('AZIZA Model'!M:M,'Graph Data'!$C74) -> 8727610 | I74: =INDEX('AZIZA Model'!N:N,'Graph Data'!$C74) -> 9332947 | J74: =INDEX('AZIZA Model'!O:O,'Graph Data'!$C74) -> 11215334 | K74: =INDEX('AZIZA Model'!P:P,'Graph Data'!$C74) -> 10937902 | L74: =INDEX('AZIZA Model'!Q:Q,'Graph Data'!$C74) -> 11349265 | M74: =INDEX('AZIZA Model'!R:R,'Graph Data'!$C74) -> 11510238.06 | N74: =INDEX('AZIZA Model'!S:S,'Graph Data'!$C74) -> 12087001.49 | O74: =INDEX('AZIZA Model'!T:T,'Graph Data'!$C74) -> 12721947.8 | P74: =INDEX('AZIZA Model'!U:U,'Graph Data'!$C74) -> 13358045.19 | Q74: =INDEX('AZIZA Model'!V:V,'Graph Data'!$C74) -> 14025947.45 | R74: =INDEX('AZIZA Model'!W:W,'Graph Data'!$C74) -> 14727244.82 | S74: =INDEX('AZIZA Model'!X:X,'Graph Data'!$C74) -> 15463607.06 | T74: =INDEX('AZIZA Model'!Y:Y,'Graph Data'!$C74) -> 16236787.42 | U74: =INDEX('AZIZA Model'!Z:Z,'Graph Data'!$C74) -> 17048626.79
B75: 73 | C75: =MATCH(B75,'AZIZA Model'!AB:AB,0) -> 202 | D75: =INDEX('AZIZA Model'!C:C,'Graph Data'!C75)&INDEX('AZIZA Model'!D:D,'Graph Data'!C75)&INDEX('AZIZA Model'!B:B,'Graph Data'!C75) -> Plant Assets | E75: =INDEX('AZIZA Model'!J:J,'Graph Data'!$C75) -> 11076447 | F75: =INDEX('AZIZA Model'!K:K,'Graph Data'!$C75) -> 13893518 | G75: =INDEX('AZIZA Model'!L:L,'Graph Data'!$C75) -> 21004249 | H75: =INDEX('AZIZA Model'!M:M,'Graph Data'!$C75) -> 22364278 | I75: =INDEX('AZIZA Model'!N:N,'Graph Data'!$C75) -> 22319582 | J75: =INDEX('AZIZA Model'!O:O,'Graph Data'!$C75) -> 23006550 | K75: =INDEX('AZIZA Model'!P:P,'Graph Data'!$C75) -> 20328563 | L75: =INDEX('AZIZA Model'!Q:Q,'Graph Data'!$C75) -> 20085562 | M75: =INDEX('AZIZA Model'!R:R,'Graph Data'!$C75) -> 23680562 | N75: =INDEX('AZIZA Model'!S:S,'Graph Data'!$C75) -> 27059885.93 | O75: =INDEX('AZIZA Model'!T:T,'Graph Data'!$C75) -> 30236472.93 | P75: =INDEX('AZIZA Model'!U:U,'Graph Data'!$C75) -> 33222485.85 | Q75: =INDEX('AZIZA Model'!V:V,'Graph Data'!$C75) -> 36029357.88 | R75: =INDEX('AZIZA Model'!W:W,'Graph Data'!$C75) -> 38667836.27 | S75: =INDEX('AZIZA Model'!X:X,'Graph Data'!$C75) -> 41148023.53 | T75: =INDEX('AZIZA Model'!Y:Y,'Graph Data'!$C75) -> 43479416.06 | U75: =INDEX('AZIZA Model'!Z:Z,'Graph Data'!$C75) -> 45670940.56
B76: 74 | C76: =MATCH(B76,'AZIZA Model'!AB:AB,0) -> 203 | D76: =INDEX('AZIZA Model'!C:C,'Graph Data'!C76)&INDEX('AZIZA Model'!D:D,'Graph Data'!C76)&INDEX('AZIZA Model'!B:B,'Graph Data'!C76) -> Other Plant in Service | E76: =INDEX('AZIZA Model'!J:J,'Graph Data'!$C76) -> 208054 | F76: =INDEX('AZIZA Model'!K:K,'Graph Data'!$C76) -> 3071359 | G76: =INDEX('AZIZA Model'!L:L,'Graph Data'!$C76) -> 1350464 | H76: =INDEX('AZIZA Model'!M:M,'Graph Data'!$C76) -> 170690 | I76: =INDEX('AZIZA Model'!N:N,'Graph Data'!$C76) -> 184908 | J76: =INDEX('AZIZA Model'!O:O,'Graph Data'!$C76) -> 189825 | K76: =INDEX('AZIZA Model'!P:P,'Graph Data'!$C76) -> 431901 | L76: =INDEX('AZIZA Model'!Q:Q,'Graph Data'!$C76) -> 460034 | M76: =INDEX('AZIZA Model'!R:R,'Graph Data'!$C76) -> 460034 | N76: =INDEX('AZIZA Model'!S:S,'Graph Data'!$C76) -> 460034 | O76: =INDEX('AZIZA Model'!T:T,'Graph Data'!$C76) -> 460034 | P76: =INDEX('AZIZA Model'!U:U,'Graph Data'!$C76) -> 460034 | Q76: =INDEX('AZIZA Model'!V:V,'Graph Data'!$C76) -> 460034 | R76: =INDEX('AZIZA Model'!W:W,'Graph Data'!$C76) -> 460034 | S76: =INDEX('AZIZA Model'!X:X,'Graph Data'!$C76) -> 460034 | T76: =INDEX('AZIZA Model'!Y:Y,'Graph Data'!$C76) -> 460034 | U76: =INDEX('AZIZA Model'!Z:Z,'Graph Data'!$C76) -> 460034
B77: 75 | C77: =MATCH(B77,'AZIZA Model'!AB:AB,0) -> 204 | D77: =INDEX('AZIZA Model'!C:C,'Graph Data'!C77)&INDEX('AZIZA Model'!D:D,'Graph Data'!C77)&INDEX('AZIZA Model'!B:B,'Graph Data'!C77) -> Held for Sale | E77: =INDEX('AZIZA Model'!J:J,'Graph Data'!$C77) -> 49336 | F77: =INDEX('AZIZA Model'!K:K,'Graph Data'!$C77) -> 25310 | G77: =INDEX('AZIZA Model'!L:L,'Graph Data'!$C77) -> 6970 | H77: =INDEX('AZIZA Model'!M:M,'Graph Data'!$C77) -> 7100 | I77: =INDEX('AZIZA Model'!N:N,'Graph Data'!$C77) -> 7262 | J77: =INDEX('AZIZA Model'!O:O,'Graph Data'!$C77) -> 7764 | K77: =INDEX('AZIZA Model'!P:P,'Graph Data'!$C77) -> 6636 | L77: =INDEX('AZIZA Model'!Q:Q,'Graph Data'!$C77) -> 6636 | M77: =INDEX('AZIZA Model'!R:R,'Graph Data'!$C77) -> 6636 | N77: =INDEX('AZIZA Model'!S:S,'Graph Data'!$C77) -> 6636 | O77: =INDEX('AZIZA Model'!T:T,'Graph Data'!$C77) -> 6636 | P77: =INDEX('AZIZA Model'!U:U,'Graph Data'!$C77) -> 6636 | Q77: =INDEX('AZIZA Model'!V:V,'Graph Data'!$C77) -> 6636 | R77: =INDEX('AZIZA Model'!W:W,'Graph Data'!$C77) -> 6636 | S77: =INDEX('AZIZA Model'!X:X,'Graph Data'!$C77) -> 6636 | T77: =INDEX('AZIZA Model'!Y:Y,'Graph Data'!$C77) -> 6636 | U77: =INDEX('AZIZA Model'!Z:Z,'Graph Data'!$C77) -> 6636
B78: 76 | C78: =MATCH(B78,'AZIZA Model'!AB:AB,0) -> 205 | D78: =INDEX('AZIZA Model'!C:C,'Graph Data'!C78)&INDEX('AZIZA Model'!D:D,'Graph Data'!C78)&INDEX('AZIZA Model'!B:B,'Graph Data'!C78) -> Total Assets | E78: =INDEX('AZIZA Model'!J:J,'Graph Data'!$C78) -> 15992402 | F78: =INDEX('AZIZA Model'!K:K,'Graph Data'!$C78) -> 23237435 | G78: =INDEX('AZIZA Model'!L:L,'Graph Data'!$C78) -> 30145230 | H78: =INDEX('AZIZA Model'!M:M,'Graph Data'!$C78) -> 31269678 | I78: =INDEX('AZIZA Model'!N:N,'Graph Data'!$C78) -> 31844699 | J78: =INDEX('AZIZA Model'!O:O,'Graph Data'!$C78) -> 34419473 | K78: =INDEX('AZIZA Model'!P:P,'Graph Data'!$C78) -> 31705002 | L78: =INDEX('AZIZA Model'!Q:Q,'Graph Data'!$C78) -> 31901497 | M78: =INDEX('AZIZA Model'!R:R,'Graph Data'!$C78) -> 35657470.06 | N78: =INDEX('AZIZA Model'!S:S,'Graph Data'!$C78) -> 39613557.42 | O78: =INDEX('AZIZA Model'!T:T,'Graph Data'!$C78) -> 43425090.73 | P78: =INDEX('AZIZA Model'!U:U,'Graph Data'!$C78) -> 47047201.04 | Q78: =INDEX('AZIZA Model'!V:V,'Graph Data'!$C78) -> 50521975.33 | R78: =INDEX('AZIZA Model'!W:W,'Graph Data'!$C78) -> 53861751.1 | S78: =INDEX('AZIZA Model'!X:X,'Graph Data'!$C78) -> 57078300.59 | T78: =INDEX('AZIZA Model'!Y:Y,'Graph Data'!$C78) -> 60182873.48 | U78: =INDEX('AZIZA Model'!Z:Z,'Graph Data'!$C78) -> 63186237.35
B79: 77 | C79: =MATCH(B79,'AZIZA Model'!AB:AB,0) -> 210 | D79: =INDEX('AZIZA Model'!C:C,'Graph Data'!C79)&INDEX('AZIZA Model'!D:D,'Graph Data'!C79)&INDEX('AZIZA Model'!B:B,'Graph Data'!C79) -> Accounts Payable | E79: =INDEX('AZIZA Model'!J:J,'Graph Data'!$C79) -> 1919057 | F79: =INDEX('AZIZA Model'!K:K,'Graph Data'!$C79) -> 2374014 | G79: =INDEX('AZIZA Model'!L:L,'Graph Data'!$C79) -> 3433231 | H79: =INDEX('AZIZA Model'!M:M,'Graph Data'!$C79) -> 4363041 | I79: =INDEX('AZIZA Model'!N:N,'Graph Data'!$C79) -> 4293309 | J79: =INDEX('AZIZA Model'!O:O,'Graph Data'!$C79) -> 3864400 | K79: =INDEX('AZIZA Model'!P:P,'Graph Data'!$C79) -> 4202940 | L79: =INDEX('AZIZA Model'!Q:Q,'Graph Data'!$C79) -> 4182140 | M79: =INDEX('AZIZA Model'!R:R,'Graph Data'!$C79) -> 5176396.213 | N79: =INDEX('AZIZA Model'!S:S,'Graph Data'!$C79) -> 5438192.67 | O79: =INDEX('AZIZA Model'!T:T,'Graph Data'!$C79) -> 5782872.758 | P79: =INDEX('AZIZA Model'!U:U,'Graph Data'!$C79) -> 6072016.396 | Q79: =INDEX('AZIZA Model'!V:V,'Graph Data'!$C79) -> 6375617.215 | R79: =INDEX('AZIZA Model'!W:W,'Graph Data'!$C79) -> 6694398.076 | S79: =INDEX('AZIZA Model'!X:X,'Graph Data'!$C79) -> 7029117.98 | T79: =INDEX('AZIZA Model'!Y:Y,'Graph Data'!$C79) -> 7380573.879 | U79: =INDEX('AZIZA Model'!Z:Z,'Graph Data'!$C79) -> 7749602.573
B80: 78 | C80: =MATCH(B80,'AZIZA Model'!AB:AB,0) -> 211 | D80: =INDEX('AZIZA Model'!C:C,'Graph Data'!C80)&INDEX('AZIZA Model'!D:D,'Graph Data'!C80)&INDEX('AZIZA Model'!B:B,'Graph Data'!C80) -> Other Current Liabilities | E80: =INDEX('AZIZA Model'!J:J,'Graph Data'!$C80) -> 313260 | F80: =INDEX('AZIZA Model'!K:K,'Graph Data'!$C80) -> 237193 | G80: =INDEX('AZIZA Model'!L:L,'Graph Data'!$C80) -> 611557 | H80: =INDEX('AZIZA Model'!M:M,'Graph Data'!$C80) -> 382012 | I80: =INDEX('AZIZA Model'!N:N,'Graph Data'!$C80) -> 403828 | J80: =INDEX('AZIZA Model'!O:O,'Graph Data'!$C80) -> 707103 | K80: =INDEX('AZIZA Model'!P:P,'Graph Data'!$C80) -> 336134 | L80: =INDEX('AZIZA Model'!Q:Q,'Graph Data'!$C80) -> 389676 | M80: =INDEX('AZIZA Model'!R:R,'Graph Data'!$C80) -> 565316.5779 | N80: =INDEX('AZIZA Model'!S:S,'Graph Data'!$C80) -> 593582.4068 | O80: =INDEX('AZIZA Model'!T:T,'Graph Data'!$C80) -> 623261.5271 | P80: =INDEX('AZIZA Model'!U:U,'Graph Data'!$C80) -> 654424.6035 | Q80: =INDEX('AZIZA Model'!V:V,'Graph Data'!$C80) -> 687145.8336 | R80: =INDEX('AZIZA Model'!W:W,'Graph Data'!$C80) -> 721503.1253 | S80: =INDEX('AZIZA Model'!X:X,'Graph Data'!$C80) -> 757578.2816 | T80: =INDEX('AZIZA Model'!Y:Y,'Graph Data'!$C80) -> 795457.1957 | U80: =INDEX('AZIZA Model'!Z:Z,'Graph Data'!$C80) -> 835230.0554
B81: 79 | C81: =MATCH(B81,'AZIZA Model'!AB:AB,0) -> 212 | D81: =INDEX('AZIZA Model'!C:C,'Graph Data'!C81)&INDEX('AZIZA Model'!D:D,'Graph Data'!C81)&INDEX('AZIZA Model'!B:B,'Graph Data'!C81) -> Provision for Employees' Indemnity | E81: =INDEX('AZIZA Model'!J:J,'Graph Data'!$C81) -> 161163 | F81: =INDEX('AZIZA Model'!K:K,'Graph Data'!$C81) -> 217506 | G81: =INDEX('AZIZA Model'!L:L,'Graph Data'!$C81) -> 294960 | H81: =INDEX('AZIZA Model'!M:M,'Graph Data'!$C81) -> 342035 | I81: =INDEX('AZIZA Model'!N:N,'Graph Data'!$C81) -> 392155 | J81: =INDEX('AZIZA Model'!O:O,'Graph Data'!$C81) -> 512872 | K81: =INDEX('AZIZA Model'!P:P,'Graph Data'!$C81) -> 549449 | L81: =INDEX('AZIZA Model'!Q:Q,'Graph Data'!$C81) -> 683660 | M81: =INDEX('AZIZA Model'!R:R,'Graph Data'!$C81) -> 801649.4549 | N81: =INDEX('AZIZA Model'!S:S,'Graph Data'!$C81) -> 842243.2285 | O81: =INDEX('AZIZA Model'!T:T,'Graph Data'!$C81) -> 884893.1225 | P81: =INDEX('AZIZA Model'!U:U,'Graph Data'!$C81) -> 929703.3094 | Q81: =INDEX('AZIZA Model'!V:V,'Graph Data'!$C81) -> 976783.2407 | R81: =INDEX('AZIZA Model'!W:W,'Graph Data'!$C81) -> 1026247.915 | S81: =INDEX('AZIZA Model'!X:X,'Graph Data'!$C81) -> 1078218.159 | T81: =INDEX('AZIZA Model'!Y:Y,'Graph Data'!$C81) -> 1132820.923 | U81: =INDEX('AZIZA Model'!Z:Z,'Graph Data'!$C81) -> 1190189.591
B82: 80 | C82: =MATCH(B82,'AZIZA Model'!AB:AB,0) -> 213 | D82: =INDEX('AZIZA Model'!C:C,'Graph Data'!C82)&INDEX('AZIZA Model'!D:D,'Graph Data'!C82)&INDEX('AZIZA Model'!B:B,'Graph Data'!C82) -> Debt | E82: =INDEX('AZIZA Model'!J:J,'Graph Data'!$C82) -> 1413848 | F82: =INDEX('AZIZA Model'!K:K,'Graph Data'!$C82) -> 4732275 | G82: =INDEX('AZIZA Model'!L:L,'Graph Data'!$C82) -> 5103641 | H82: =INDEX('AZIZA Model'!M:M,'Graph Data'!$C82) -> 7881531 | I82: =INDEX('AZIZA Model'!N:N,'Graph Data'!$C82) -> 7321188 | J82: =INDEX('AZIZA Model'!O:O,'Graph Data'!$C82) -> 5055711 | K82: =INDEX('AZIZA Model'!P:P,'Graph Data'!$C82) -> 4217332 | L82: =INDEX('AZIZA Model'!Q:Q,'Graph Data'!$C82) -> 2743919 | M82: =INDEX('AZIZA Model'!R:R,'Graph Data'!$C82) -> 3096596.501 | N82: =INDEX('AZIZA Model'!S:S,'Graph Data'!$C82) -> 4591587.494 | O82: =INDEX('AZIZA Model'!T:T,'Graph Data'!$C82) -> 5999039.921 | P82: =INDEX('AZIZA Model'!U:U,'Graph Data'!$C82) -> 7248003.853 | Q82: =INDEX('AZIZA Model'!V:V,'Graph Data'!$C82) -> 8294637.75 | R82: =INDEX('AZIZA Model'!W:W,'Graph Data'!$C82) -> 9133445.286 | S82: =INDEX('AZIZA Model'!X:X,'Graph Data'!$C82) -> 9758095.586 | T82: =INDEX('AZIZA Model'!Y:Y,'Graph Data'!$C82) -> 10161408.11 | U82: =INDEX('AZIZA Model'!Z:Z,'Graph Data'!$C82) -> 10335335.04
B83: 81 | C83: =MATCH(B83,'AZIZA Model'!AB:AB,0) -> 214 | D83: =INDEX('AZIZA Model'!C:C,'Graph Data'!C83)&INDEX('AZIZA Model'!D:D,'Graph Data'!C83)&INDEX('AZIZA Model'!B:B,'Graph Data'!C83) -> Equity | E83: =INDEX('AZIZA Model'!J:J,'Graph Data'!$C83) -> 12185074 | F83: =INDEX('AZIZA Model'!K:K,'Graph Data'!$C83) -> 15676447 | G83: =INDEX('AZIZA Model'!L:L,'Graph Data'!$C83) -> 20701841 | H83: =INDEX('AZIZA Model'!M:M,'Graph Data'!$C83) -> 18301059 | I83: =INDEX('AZIZA Model'!N:N,'Graph Data'!$C83) -> 19434219 | J83: =INDEX('AZIZA Model'!O:O,'Graph Data'!$C83) -> 24279387 | K83: =INDEX('AZIZA Model'!P:P,'Graph Data'!$C83) -> 22399147 | L83: =INDEX('AZIZA Model'!Q:Q,'Graph Data'!$C83) -> 23902102 | M83: =INDEX('AZIZA Model'!R:R,'Graph Data'!$C83) -> 26017511.31 | N83: =INDEX('AZIZA Model'!S:S,'Graph Data'!$C83) -> 28147951.62 | O83: =INDEX('AZIZA Model'!T:T,'Graph Data'!$C83) -> 30135023.4 | P83: =INDEX('AZIZA Model'!U:U,'Graph Data'!$C83) -> 32143052.88 | Q83: =INDEX('AZIZA Model'!V:V,'Graph Data'!$C83) -> 34187791.29 | R83: =INDEX('AZIZA Model'!W:W,'Graph Data'!$C83) -> 36286156.69 | S83: =INDEX('AZIZA Model'!X:X,'Graph Data'!$C83) -> 38455290.59 | T83: =INDEX('AZIZA Model'!Y:Y,'Graph Data'!$C83) -> 40712613.37 | U83: =INDEX('AZIZA Model'!Z:Z,'Graph Data'!$C83) -> 43075880.09
B84: 82 | C84: =MATCH(B84,'AZIZA Model'!AB:AB,0) -> 215 | D84: =INDEX('AZIZA Model'!C:C,'Graph Data'!C84)&INDEX('AZIZA Model'!D:D,'Graph Data'!C84)&INDEX('AZIZA Model'!B:B,'Graph Data'!C84) -> Total Liabilities and Capital | E84: =INDEX('AZIZA Model'!J:J,'Graph Data'!$C84) -> 15992402 | F84: =INDEX('AZIZA Model'!K:K,'Graph Data'!$C84) -> 23237435 | G84: =INDEX('AZIZA Model'!L:L,'Graph Data'!$C84) -> 30145230 | H84: =INDEX('AZIZA Model'!M:M,'Graph Data'!$C84) -> 31269678 | I84: =INDEX('AZIZA Model'!N:N,'Graph Data'!$C84) -> 31844699 | J84: =INDEX('AZIZA Model'!O:O,'Graph Data'!$C84) -> 34419473 | K84: =INDEX('AZIZA Model'!P:P,'Graph Data'!$C84) -> 31705002 | L84: =INDEX('AZIZA Model'!Q:Q,'Graph Data'!$C84) -> 31901497 | M84: =INDEX('AZIZA Model'!R:R,'Graph Data'!$C84) -> 35657470.06 | N84: =INDEX('AZIZA Model'!S:S,'Graph Data'!$C84) -> 39613557.42 | O84: =INDEX('AZIZA Model'!T:T,'Graph Data'!$C84) -> 43425090.73 | P84: =INDEX('AZIZA Model'!U:U,'Graph Data'!$C84) -> 47047201.04 | Q84: =INDEX('AZIZA Model'!V:V,'Graph Data'!$C84) -> 50521975.33 | R84: =INDEX('AZIZA Model'!W:W,'Graph Data'!$C84) -> 53861751.1 | S84: =INDEX('AZIZA Model'!X:X,'Graph Data'!$C84) -> 57078300.59 | T84: =INDEX('AZIZA Model'!Y:Y,'Graph Data'!$C84) -> 60182873.48 | U84: =INDEX('AZIZA Model'!Z:Z,'Graph Data'!$C84) -> 63186237.35
B85: =B84+1 -> 83 | C85: =MATCH(B85,'AZIZA Model'!AB:AB,0) -> 226 | D85: =INDEX('AZIZA Model'!C:C,'Graph Data'!C85)&INDEX('AZIZA Model'!D:D,'Graph Data'!C85)&INDEX('AZIZA Model'!B:B,'Graph Data'!C85) -> ROE | E85: =INDEX('AZIZA Model'!J:J,'Graph Data'!$C85) -> 0.06505089752 | F85: =INDEX('AZIZA Model'!K:K,'Graph Data'!$C85) -> 0.1883263301 | G85: =INDEX('AZIZA Model'!L:L,'Graph Data'!$C85) -> 0.2442820839 | H85: =INDEX('AZIZA Model'!M:M,'Graph Data'!$C85) -> -0.01532142482 | I85: =INDEX('AZIZA Model'!N:N,'Graph Data'!$C85) -> 0.03624178945 | J85: =INDEX('AZIZA Model'!O:O,'Graph Data'!$C85) -> 0.1538044629 | K85: =INDEX('AZIZA Model'!P:P,'Graph Data'!$C85) -> 0.09949931161 | L85: =INDEX('AZIZA Model'!Q:Q,'Graph Data'!$C85) -> 0.13363065 | M85: =INDEX('AZIZA Model'!R:R,'Graph Data'!$C85) -> 0.1695052643 | N85: =INDEX('AZIZA Model'!S:S,'Graph Data'!$C85) -> 0.1573283193 | O85: =INDEX('AZIZA Model'!T:T,'Graph Data'!$C85) -> 0.1363740802 | P85: =INDEX('AZIZA Model'!U:U,'Graph Data'!$C85) -> 0.1289718373 | Q85: =INDEX('AZIZA Model'!V:V,'Graph Data'!$C85) -> 0.1233054357 | R85: =INDEX('AZIZA Model'!W:W,'Graph Data'!$C85) -> 0.1191002044 | S85: =INDEX('AZIZA Model'!X:X,'Graph Data'!$C85) -> 0.1160873369 | T85: =INDEX('AZIZA Model'!Y:Y,'Graph Data'!$C85) -> 0.1140524212 | U85: =INDEX('AZIZA Model'!Z:Z,'Graph Data'!$C85) -> 0.1128205855
B86: =B85+1 -> 84 | C86: =MATCH(B86,'AZIZA Model'!AB:AB,0) -> 232 | D86: =INDEX('AZIZA Model'!C:C,'Graph Data'!C86)&INDEX('AZIZA Model'!D:D,'Graph Data'!C86)&INDEX('AZIZA Model'!B:B,'Graph Data'!C86) -> ROIC | E86: =INDEX('AZIZA Model'!J:J,'Graph Data'!$C86) -> 0.06731721322 | F86: =INDEX('AZIZA Model'!K:K,'Graph Data'!$C86) -> 0.1370510771 | G86: =INDEX('AZIZA Model'!L:L,'Graph Data'!$C86) -> 0.1706410732 | H86: =INDEX('AZIZA Model'!M:M,'Graph Data'!$C86) -> 0.01772741386 | I86: =INDEX('AZIZA Model'!N:N,'Graph Data'!$C86) -> 0.02821060233 | J86: =INDEX('AZIZA Model'!O:O,'Graph Data'!$C86) -> 0.1133510397 | K86: =INDEX('AZIZA Model'!P:P,'Graph Data'!$C86) -> 0.1087205072 | L86: =INDEX('AZIZA Model'!Q:Q,'Graph Data'!$C86) -> 0.1242005342 | M86: =INDEX('AZIZA Model'!R:R,'Graph Data'!$C86) -> 0.1597375811 | N86: =INDEX('AZIZA Model'!S:S,'Graph Data'!$C86) -> 0.1429473598 | O86: =INDEX('AZIZA Model'!T:T,'Graph Data'!$C86) -> 0.1221048198 | P86: =INDEX('AZIZA Model'!U:U,'Graph Data'!$C86) -> 0.1143327399 | Q86: =INDEX('AZIZA Model'!V:V,'Graph Data'!$C86) -> 0.1088075616 | R86: =INDEX('AZIZA Model'!W:W,'Graph Data'!$C86) -> 0.105005119 | S86: =INDEX('AZIZA Model'!X:X,'Graph Data'!$C86) -> 0.1025311068 | T86: =INDEX('AZIZA Model'!Y:Y,'Graph Data'!$C86) -> 0.1011149993 | U86: =INDEX('AZIZA Model'!Z:Z,'Graph Data'!$C86) -> 0.1005656118
B87: 85 | C87: =MATCH(B87,'AZIZA Model'!AB:AB,0) -> 234 | D87: =INDEX('AZIZA Model'!C:C,'Graph Data'!C87)&INDEX('AZIZA Model'!D:D,'Graph Data'!C87)&INDEX('AZIZA Model'!B:B,'Graph Data'!C87) -> Working Capital to EBITDA | E87: =INDEX('AZIZA Model'!J:J,'Graph Data'!$C87) -> 1.21878476 | F87: =INDEX('AZIZA Model'!K:K,'Graph Data'!$C87) -> 0.7674539803 | G87: =INDEX('AZIZA Model'!L:L,'Graph Data'!$C87) -> 0.6474644524 | H87: =INDEX('AZIZA Model'!M:M,'Graph Data'!$C87) -> 2.315604859 | I87: =INDEX('AZIZA Model'!N:N,'Graph Data'!$C87) -> 2.246026077 | J87: =INDEX('AZIZA Model'!O:O,'Graph Data'!$C87) -> 1.055299016 | K87: =INDEX('AZIZA Model'!P:P,'Graph Data'!$C87) -> 1.247180763 | L87: =INDEX('AZIZA Model'!Q:Q,'Graph Data'!$C87) -> 1.059090691 | M87: =INDEX('AZIZA Model'!R:R,'Graph Data'!$C87) -> 0.8668027868 | N87: =INDEX('AZIZA Model'!S:S,'Graph Data'!$C87) -> 0.8687725691 | O87: =INDEX('AZIZA Model'!T:T,'Graph Data'!$C87) -> 0.9120719861 | P87: =INDEX('AZIZA Model'!U:U,'Graph Data'!$C87) -> 0.9123233062 | Q87: =INDEX('AZIZA Model'!V:V,'Graph Data'!$C87) -> 0.9125751708 | R87: =INDEX('AZIZA Model'!W:W,'Graph Data'!$C87) -> 0.9128275815 | S87: =INDEX('AZIZA Model'!X:X,'Graph Data'!$C87) -> 0.9130805397 | T87: =INDEX('AZIZA Model'!Y:Y,'Graph Data'!$C87) -> 0.9133340468 | U87: =INDEX('AZIZA Model'!Z:Z,'Graph Data'!$C87) -> 0.9135881044
B88: 86 | C88: =MATCH(B88,'AZIZA Model'!AB:AB,0) ->  | D88: =INDEX('AZIZA Model'!C:C,'Graph Data'!C88)&INDEX('AZIZA Model'!D:D,'Graph Data'!C88)&INDEX('AZIZA Model'!B:B,'Graph Data'!C88) ->  | E88: =INDEX('AZIZA Model'!J:J,'Graph Data'!$C88) ->  | F88: =INDEX('AZIZA Model'!K:K,'Graph Data'!$C88) ->  | G88: =INDEX('AZIZA Model'!L:L,'Graph Data'!$C88) ->  | H88: =INDEX('AZIZA Model'!M:M,'Graph Data'!$C88) ->  | I88: =INDEX('AZIZA Model'!N:N,'Graph Data'!$C88) ->  | J88: =INDEX('AZIZA Model'!O:O,'Graph Data'!$C88) ->  | K88: =INDEX('AZIZA Model'!P:P,'Graph Data'!$C88) ->  | L88: =INDEX('AZIZA Model'!Q:Q,'Graph Data'!$C88) ->  | M88: =INDEX('AZIZA Model'!R:R,'Graph Data'!$C88) ->  | N88: =INDEX('AZIZA Model'!S:S,'Graph Data'!$C88) ->  | O88: =INDEX('AZIZA Model'!T:T,'Graph Data'!$C88) ->  | P88: =INDEX('AZIZA Model'!U:U,'Graph Data'!$C88) ->  | Q88: =INDEX('AZIZA Model'!V:V,'Graph Data'!$C88) ->  | R88: =INDEX('AZIZA Model'!W:W,'Graph Data'!$C88) ->  | S88: =INDEX('AZIZA Model'!X:X,'Graph Data'!$C88) ->  | T88: =INDEX('AZIZA Model'!Y:Y,'Graph Data'!$C88) ->  | U88: =INDEX('AZIZA Model'!Z:Z,'Graph Data'!$C88) -> 
B92: Code | C92: 4
E94: ='AZIZA Model'!J2 -> TRUE | F94: ='AZIZA Model'!K2 -> TRUE | G94: ='AZIZA Model'!L2 -> TRUE | H94: ='AZIZA Model'!M2 -> TRUE | I94: ='AZIZA Model'!N2 -> TRUE | J94: ='AZIZA Model'!O2 -> TRUE | K94: ='AZIZA Model'!P2 -> TRUE | L94: ='AZIZA Model'!Q2 -> TRUE | M94: ='AZIZA Model'!R2 -> FALSE | N94: ='AZIZA Model'!S2 -> FALSE | O94: ='AZIZA Model'!T2 -> FALSE | P94: ='AZIZA Model'!U2 -> FALSE | Q94: ='AZIZA Model'!V2 -> FALSE | R94: ='AZIZA Model'!W2 -> FALSE | S94: ='AZIZA Model'!X2 -> FALSE | T94: ='AZIZA Model'!Y2 -> FALSE | U94: ='AZIZA Model'!Z2 -> FALSE
E95: ='AZIZA Model'!J1 -> 2008 | F95: ='AZIZA Model'!K1 -> 2009 | G95: ='AZIZA Model'!L1 -> 2010 | H95: ='AZIZA Model'!M1 -> 2011 | I95: ='AZIZA Model'!N1 -> 2012 | J95: ='AZIZA Model'!O1 -> 2013 | K95: ='AZIZA Model'!P1 -> 2014 | L95: ='AZIZA Model'!Q1 -> 2015 | M95: ='AZIZA Model'!R1 -> 2016 | N95: ='AZIZA Model'!S1 -> 2017 | O95: ='AZIZA Model'!T1 -> 2018 | P95: ='AZIZA Model'!U1 -> 2019 | Q95: ='AZIZA Model'!V1 -> 2020 | R95: ='AZIZA Model'!W1 -> 2021 | S95: ='AZIZA Model'!X1 -> 2022 | T95: ='AZIZA Model'!Y1 -> 2023 | U95: ='AZIZA Model'!Z1 -> 2024
D96: =INDEX(D:D,$C$92) -> COGS Percent Assumption | E96: 0.79769696 | F96: 0.6722562373 | G96: 0.6293532355 | H96: 0.8476443721 | I96: 0.820333579 | J96: 0.7394479362 | K96: 0.7653943085 | L96: 0.7615847404 | M96: 0.7295705017 | N96: 0.73 | O96: 0.74 | P96: 0.74 | Q96: 0.74 | R96: 0.74 | S96: 0.74 | T96: 0.74 | U96: 0.74
D98: Min | E98: =MIN(E96:U96) -> 0.6293532355 | F98: 0.9 | G98: =E98*F98 -> 0.566417912
D99: Max | E99: =MAX(E96:U96) -> 0.8476443721 | F99: 1.1 | G99: =E99*F99 -> 0.9324088094
E101: =E95 -> 2008 | F101: 2009 | G101: 2010 | H101: 2011 | I101: 2012 | J101: 2013 | K101: 2014 | L101: 2015 | M101: 2016 | N101: 2017 | O101: 2018 | P101: 2019 | Q101: 2020 | R101: 2021 | S101: 2022 | T101: 2023 | U101: 2024
D102: History | E102: =IF(E$94,E96) -> 0.79769696 | F102: =IF(F94,F96) -> 0.6722562373 | G102: 0.6293532355 | H102: 0.8476443721 | I102: 0.820333579 | J102: 0.7394479362 | K102: 0.7653943085 | L102: 0.7615847404 | M102: FALSE | N102: FALSE | O102: FALSE | P102: FALSE | Q102: FALSE | R102: FALSE | S102: FALSE | T102: FALSE | U102: FALSE
D103: Forecast | E103: =IF(NOT(E$94),E96) -> FALSE | F103: =IF(NOT(F94),F96) -> FALSE | G103: FALSE | H103: FALSE | I103: FALSE | J103: FALSE | K103: FALSE | L103: FALSE | M103: 0.7295705017 | N103: 0.73 | O103: 0.74 | P103: 0.74 | Q103: 0.74 | R103: 0.74 | S103: 0.74 | T103: 0.74 | U103: 0.74
B106: Code | C106: 86 | D106: =INDEX(D:D,$C$106) -> ROIC | E106: 0.06731721322 | F106: 0.1370510771 | G106: 0.1706410732 | H106: 0.01772741386 | I106: 0.02821060233 | J106: 0.1133510397 | K106: 0.1087205072 | L106: 0.1242005342 | M106: 0.1597375811 | N106: 0.1429473598 | O106: 0.1221048198 | P106: 0.1143327399 | Q106: 0.1088075616 | R106: 0.105005119 | S106: 0.1025311068 | T106: 0.1011149993 | U106: 0.1005656118
E108: =E101 -> 2008 | F108: =F101 -> 2009 | G108: 2010 | H108: 2011 | I108: 2012 | J108: 2013 | K108: 2014 | L108: 2015 | M108: 2016 | N108: 2017 | O108: 2018 | P108: 2019 | Q108: 2020 | R108: 2021 | S108: 2022 | T108: 2023 | U108: 2024
D109: History | E109: =IF(E$94,E106) -> 0.06731721322 | F109: =IF(F$94,F106) -> 0.1370510771 | G109: 0.1706410732 | H109: 0.01772741386 | I109: 0.02821060233 | J109: 0.1133510397 | K109: 0.1087205072 | L109: 0.1242005342 | M109: FALSE | N109: FALSE | O109: FALSE | P109: FALSE | Q109: FALSE | R109: FALSE | S109: FALSE | T109: FALSE | U109: FALSE
D110: Forecast | E110: =IF(NOT(E$94),E106) -> FALSE | F110: =IF(NOT(F$94),F106) -> FALSE | G110: FALSE | H110: FALSE | I110: FALSE | J110: FALSE | K110: FALSE | L110: FALSE | M110: 0.1597375811 | N110: 0.1429473598 | O110: 0.1221048198 | P110: 0.1143327399 | Q110: 0.1088075616 | R110: 0.105005119 | S110: 0.1025311068 | T110: 0.1011149993 | U110: 0.1005656118
D112: Min | E112: =MIN(E109:U109) -> 0.01772741386 | F112: 0.9 | G112: =E112*F112 -> 0.01595467247
D113: Max | E113: =MAX(E110:U110) -> 0.1597375811 | F113: 1.1 | G113: =E113*F113 -> 0.1757113392

Sheet Periodic Model
A1: ``
E2: Months in Period
A3: Date | E3: 12 | G3: 2016-01-01 | H3: =EDATE(G3,$E$3) -> 2017-01-01 | I3: =EDATE(H3,$E$3) -> 2018-01-01 | J3: 2019-01-01 | K3: 2020-01-01 | L3: 2021-01-01 | M3: 2022-01-01 | N3: 2023-01-01 | O3: 2024-01-01 | P3: 2025-01-01 | Q3: 2026-01-01 | R3: 2027-01-01 | S3: 2028-01-01 | T3: 2029-01-01 | U3: 2030-01-01 | V3: 2031-01-01 | W3: 2032-01-01 | X3: 2033-01-01 | Y3: 2034-01-01 | Z3: 2035-01-01 | AA3: 2036-01-01 | AB3: 2037-01-01 | AC3: 2038-01-01 | AD3: 2039-01-01
A6: Operating Analysis
B7: Revenues | E7: 150 | F7: -0.03 | G7: =E7 -> 150 | H7: =G7*(1+$F7) -> 145.5 | I7: =H7*(1+$F7) -> 141.135 | J7: 136.90095 | K7: 132.7939215 | L7: 128.8101039 | M7: 124.9458007 | N7: 121.1974267 | O7: 117.5615039 | P7: 114.0346588 | Q7: 110.613619 | R7: 107.2952105 | S7: 104.0763541 | T7: 100.9540635 | U7: 97.92544162 | V7: 94.98767837 | W7: 92.13804802 | X7: 89.37390658 | Y7: 86.69268938 | Z7: 84.0919087 | AA7: 81.56915144 | AB7: 79.1220769 | AC7: 76.74841459 | AD7: 74.44596215
B8: Operating Cost | E8: 120
B9: A/R Days | E9: 30
B10: R&D Expenditure | E10: 60 | G10: =$E$10 -> 60 | H10: =G10 -> 60 | I10: =H10 -> 60 | J10: 60 | K10: 60 | L10: 60 | M10: 60 | N10: 60 | O10: 60 | P10: 60 | Q10: 60 | R10: 60 | S10: 60 | T10: 60 | U10: 60 | V10: 60 | W10: 60 | X10: 60 | Y10: 60 | Z10: 60 | AA10: 60 | AB10: 60 | AC10: 60 | AD10: 60
A13: Starting Balance Sheet
B14: Cash | F14: 30
B16: Debt | F16: 0
B17: Equity | F17: =F14-F16 -> 30
C18: Total | F18: =SUM(F16:F17) -> 30
B20: Revenue Seasonality | G20: 1 | H20: 2 | I20: 3 | J20: 4 | K20: 5 | L20: 6 | M20: 7 | N20: 8 | O20: 9 | P20: 10 | Q20: 11 | R20: 12
C21: Percent | G21: 0.02 | H21: 0.02 | I21: 0.03 | J21: 0.06 | K21: 0.06 | L21: 0.06 | M21: 0.05 | N21: 0.05 | O21: 0.05 | P21: 0.2 | Q21: 0.2 | R21: 0.2

Sheet Stable Cap Exp to Dep
A3: Assumptions | G3: Stable Ratio | I3: =stable_capexp(E5,E4) -> 1.172305065
B4: Growth | E4: =DCF!E8 -> 0.03
B5: Life | E5: 10
B7: Plant Balance | E7: 1 | F7: 2 | G7: 3 | H7: 4 | I7: 5 | J7: 6 | K7: 7 | L7: 8 | M7: 9 | N7: 10 | O7: 11 | P7: 12 | Q7: 13 | R7: 14 | S7: 15 | T7: 16 | U7: 17 | V7: 18 | W7: 19 | X7: 20 | Y7: 21 | Z7: 22 | AA7: 23 | AB7: 24 | AC7: 25 | AD7: 26 | AE7: 27 | AF7: 28 | AG7: 29 | AH7: 30 | AI7: 31 | AJ7: 32 | AK7: 33 | AL7: 34 | AM7: 35 | AN7: 36 | AO7: 37 | AP7: 38 | AQ7: 39 | AR7: 40 | AS7: 41 | AT7: 42 | AU7: 43 | AV7: 44 | AW7: 45 | AX7: 46 | AY7: 47 | AZ7: 48 | BA7: 49 | BB7: 50 | BC7: 51 | BD7: 52 | BE7: 53 | BF7: 54 | BG7: 55 | BH7: 56 | BI7: 57 | BJ7: 58 | BK7: 59 | BL7: 60 | BM7: 61 | BN7: 62 | BO7: 63 | BP7: 64 | BQ7: 65 | BR7: 66 | BS7: 67 | BT7: 68 | BU7: 69 | BV7: 70 | BW7: 71 | BX7: 72 | BY7: 73 | BZ7: 74 | CA7: 75 | CB7: 76 | CC7: 77 | CD7: 78 | CE7: 79 | CF7: 80 | CG7: 81 | CH7: 82 | CI7: 83 | CJ7: 84 | CK7: 85 | CL7: 86 | CM7: 87 | CN7: 88 | CO7: 89 | CP7: 90 | CQ7: 91 | CR7: 92 | CS7: 93 | CT7: 94 | CU7: 95 | CV7: 96 | CW7: 97 | CX7: 98 | CY7: 99 | CZ7: 100 | DA7: 101 | DB7: 102 | DC7: 103 | DD7: 104 | DE7: 105 | DF7: 106 | DG7: 107 | DH7: 108 | DI7: 109 | DJ7: 110 | DK7: 111 | DL7: 112 | DM7: 113 | DN7: 114 | DO7: 115 | DP7: 116 | DQ7: 117 | DR7: 118 | DS7: 119 | DT7: 120 | DU7: 121 | DV7: 122 | DW7: 123 | DX7: 124 | DY7: 125 | DZ7: 126 | EA7: 127 | EB7: 128 | EC7: 129 | ED7: 130 | EE7: 131 | EF7: 132 | EG7: 133 | EH7: 134 | EI7: 135 | EJ7: 136 | EK7: 137 | EL7: 138 | EM7: 139 | EN7: 140 | EO7: 141 | EP7: 142 | EQ7: 143 | ER7: 144 | ES7: 145 | ET7: 146 | EU7: 147 | EV7: 148 | EW7: 149 | EX7: 150 | EY7: 151 | EZ7: 152 | FA7: 153 | FB7: 154 | FC7: 155 | FD7: 156 | FE7: 157 | FF7: 158 | FG7: 159 | FH7: 160 | FI7: 161 | FJ7: 162 | FK7: 163 | FL7: 164 | FM7: 165 | FN7: 166 | FO7: 167 | FP7: 168 | FQ7: 169 | FR7: 170 | FS7: 171 | FT7: 172 | FU7: 173 | FV7: 174 | FW7: 175 | FX7: 176 | FY7: 177 | FZ7: 178 | GA7: 179 | GB7: 180 | GC7: 181 | GD7: 182 | GE7: 183 | GF7: 184 | GG7: 185 | GH7: 186 | GI7: 187 | GJ7: 188 | GK7: 189 | GL7: 190 | GM7: 191 | GN7: 192 | GO7: 193 | GP7: 194 | GQ7: 195 | GR7: 196 | GS7: 197 | GT7: 198 | GU7: 199 | GV7: 200 | GW7: 201 | GX7: 202 | GY7: 203 | GZ7: 204 | HA7: 205 | HB7: 206 | HC7: 207 | HD7: 208 | HE7: 209 | HF7: 210 | HG7: 211 | HH7: 212 | HI7: 213 | HJ7: 214 | HK7: 215 | HL7: 216 | HM7: 217 | HN7: 218 | HO7: 219 | HP7: 220 | HQ7: 221 | HR7: 222 | HS7: 223 | HT7: 224 | HU7: 225 | HV7: 226 | HW7: 227 | HX7: 228 | HY7: 229 | HZ7: 230 | IA7: 231 | IB7: 232 | IC7: 233 | ID7: 234 | IE7: 235 | IF7: 236 | IG7: 237 | IH7: 238 | II7: 239 | IJ7: 240 | IK7: 241 | IL7: 242 | IM7: 243 | IN7: 244 | IO7: 245 | IP7: 246 | IQ7: 247 | IR7: 248 | IS7: 249 | IT7: 250 | IU7: 251 | IV7: 252 | IW7: 253 | IX7: 254 | IY7: 255 | IZ7: 256 | JA7: 257 | JB7: 258 | JC7: 259 | JD7: 260 | JE7: 261 | JF7: 262 | JG7: 263 | JH7: 264 | JI7: 265 | JJ7: 266 | JK7: 267 | JL7: 268 | JM7: 269 | JN7: 270 | JO7: 271 | JP7: 272 | JQ7: 273 | JR7: 274 | JS7: 275 | JT7: 276 | JU7: 277 | JV7: 278 | JW7: 279 | JX7: 280 | JY7: 281 | JZ7: 282 | KA7: 283 | KB7: 284 | KC7: 285 | KD7: 286 | KE7: 287 | KF7: 288 | KG7: 289 | KH7: 290 | KI7: 291 | KJ7: 292 | KK7: 293 | KL7: 294 | KM7: 295 | KN7: 296 | KO7: 297 | KP7: 298 | KQ7: 299 | KR7: 300
C8: Opening Balance | F8: =E11 -> 100 | G8: =F11 -> 203 | H8: 309.09 | I8: 418.3627 | J8: 530.913581 | K8: 646.8409884 | L8: 766.2462181 | M8: 889.2336046 | N8: 1015.910613 | O8: 1146.387931 | P8: 1180.779569 | Q8: 1216.202956 | R8: 1252.689045 | S8: 1290.269716 | T8: 1328.977808 | U8: 1368.847142 | V8: 1409.912556 | W8: 1452.209933 | X8: 1495.776231 | Y8: 1540.649518 | Z8: 1586.869003 | AA8: 1634.475073 | AB8: 1683.509326 | AC8: 1734.014605 | AD8: 1786.035044 | AE8: 1839.616095 | AF8: 1894.804578 | AG8: 1951.648715 | AH8: 2010.198176 | AI8: 2070.504122 | AJ8: 2132.619245 | AK8: 2196.597823 | AL8: 2262.495757 | AM8: 2330.37063 | AN8: 2400.281749 | AO8: 2472.290202 | AP8: 2546.458908 | AQ8: 2622.852675 | AR8: 2701.538255 | AS8: 2782.584403 | AT8: 2866.061935 | AU8: 2952.043793 | AV8: 3040.605107 | AW8: 3131.82326 | AX8: 3225.777958 | AY8: 3322.551296 | AZ8: 3422.227835 | BA8: 3524.89467 | BB8: 3630.64151 | BC8: 3739.560756 | BD8: 3851.747578 | BE8: 3967.300006 | BF8: 4086.319006 | BG8: 4208.908576 | BH8: 4335.175833 | BI8: 4465.231108 | BJ8: 4599.188042 | BK8: 4737.163683 | BL8: 4879.278593 | BM8: 5025.656951 | BN8: 5176.42666 | BO8: 5331.719459 | BP8: 5491.671043 | BQ8: 5656.421175 | BR8: 5826.11381 | BS8: =BR11 -> 6000.897224 | BT8: 6180.924141 | BU8: 6366.351865 | BV8: 6557.342421 | BW8: 6754.062694 | BX8: 6956.684574 | BY8: 7165.385112 | BZ8: 7380.346665 | CA8: 7601.757065 | CB8: 7829.809777 | CC8: 8064.70407 | CD8: 8306.645192 | CE8: 8555.844548 | CF8: 8812.519884 | CG8: 9076.895481 | CH8: 9349.202345 | CI8: 9629.678416 | CJ8: 9918.568768 | CK8: 10216.12583 | CL8: 10522.60961 | CM8: 10838.28789 | CN8: 11163.43653 | CO8: 11498.33963 | CP8: 11843.28982 | CQ8: 12198.58851 | CR8: 12564.54617 | CS8: 12941.48255 | CT8: 13329.72703 | CU8: 13729.61884 | CV8: 14141.5074 | CW8: 14565.75263 | CX8: 15002.7252 | CY8: 15452.80696 | CZ8: 15916.39117 | DA8: 16393.8829 | DB8: 16885.69939 | DC8: 17392.27037 | DD8: 17914.03848 | DE8: 18451.45964 | DF8: 19005.00343 | DG8: 19575.15353 | DH8: 20162.40814 | DI8: 20767.28038 | DJ8: 21390.29879 | DK8: 22032.00776 | DL8: 22692.96799 | DM8: 23373.75703 | DN8: 24074.96974 | DO8: 24797.21883 | DP8: 25541.1354 | DQ8: 26307.36946 | DR8: 27096.59054 | DS8: 27909.48826 | DT8: 28746.77291 | DU8: 29609.17609 | DV8: 30497.45138 | DW8: 31412.37492 | DX8: 32354.74616 | DY8: 33325.38855 | DZ8: 34325.15021 | EA8: 35354.90471 | EB8: 36415.55185 | EC8: 37508.01841 | ED8: 38633.25896 | EE8: =ED11 -> 39792.25673 | EF8: 40986.02443 | EG8: 42215.60517 | EH8: 43482.07332 | EI8: 44786.53552 | EJ8: 46130.13159 | EK8: 47514.03553 | EL8: 48939.4566 | EM8: 50407.6403 | EN8: 51919.86951 | EO8: 53477.46559 | EP8: 55081.78956 | EQ8: 56734.24325 | ER8: 58436.27054 | ES8: 60189.35866 | ET8: 61995.03942 | EU8: 63854.8906 | EV8: 65770.53732 | EW8: 67743.65344 | EX8: 69775.96304 | EY8: 71869.24193 | EZ8: 74025.31919 | FA8: 76246.07877 | FB8: 78533.46113 | FC8: 80889.46496 | FD8: 83316.14891 | FE8: 85815.63338 | FF8: 88390.10238 | FG8: 91041.80545 | FH8: 93773.05962 | FI8: 96586.25141 | FJ8: 99483.83895 | FK8: 102468.3541 | FL8: 105542.4047 | FM8: 108708.6769 | FN8: 111969.9372 | FO8: 115329.0353 | FP8: 118788.9064 | FQ8: 122352.5736 | FR8: 126023.1508 | FS8: 129803.8453 | FT8: 133697.9606 | FU8: 137708.8995 | FV8: 141840.1664 | FW8: 146095.3714 | FX8: 150478.2326 | FY8: 154992.5796 | FZ8: 159642.3569 | GA8: 164431.6277 | GB8: 169364.5765 | GC8: 174445.5138 | GD8: 179678.8792 | GE8: 185069.2456 | GF8: 190621.3229 | GG8: 196339.9626 | GH8: 202230.1615 | GI8: 208297.0663 | GJ8: 214545.9783 | GK8: 220982.3577 | GL8: 227611.8284 | GM8: 234440.1833 | GN8: 241473.3888 | GO8: 248717.5904 | GP8: 256179.1181 | GQ8: =GP11 -> 263864.4917 | GR8: 271780.4264 | GS8: 279933.8392 | GT8: 288331.8544 | GU8: 296981.81 | GV8: 305891.2643 | GW8: 315068.0023 | GX8: 324520.0423 | GY8: 334255.6436 | GZ8: 344283.3129 | HA8: 354611.8123 | HB8: 365250.1667 | HC8: 376207.6717 | HD8: 387493.9018 | HE8: 399118.7189 | HF8: 411092.2804 | HG8: 423425.0489 | HH8: 436127.8003 | HI8: 449211.6343 | HJ8: 462687.9834 | HK8: 476568.6229 | HL8: 490865.6816 | HM8: 505591.652 | HN8: 520759.4016 | HO8: 536382.1836 | HP8: 552473.6491 | HQ8: 569047.8586 | HR8: 586119.2943 | HS8: 603702.8732 | HT8: 621813.9594 | HU8: 640468.3782 | HV8: 659682.4295 | HW8: 679472.9024 | HX8: 699857.0895 | HY8: 720852.8021 | HZ8: 742478.3862 | IA8: 764752.7378 | IB8: 787695.3199 | IC8: 811326.1795 | ID8: 835665.9649 | IE8: 860735.9439 | IF8: 886558.0222 | IG8: 913154.7628 | IH8: 940549.4057 | II8: 968765.8879 | IJ8: 997828.8645 | IK8: 1027763.73 | IL8: 1058596.642 | IM8: 1090354.542 | IN8: 1123065.178 | IO8: 1156757.133 | IP8: 1191459.847 | IQ8: 1227203.643 | IR8: 1264019.752 | IS8: 1301940.344 | IT8: 1340998.555 | IU8: 1381228.511 | IV8: 1422665.367 | IW8: 1465345.328 | IX8: 1509305.688 | IY8: 1554584.858 | IZ8: 1601222.404 | JA8: 1649259.076 | JB8: 1698736.848 | JC8: =JB11 -> 1749698.954 | JD8: 1802189.923 | JE8: 1856255.62 | JF8: 1911943.289 | JG8: 1969301.587 | JH8: 2028380.635 | JI8: 2089232.054 | JJ8: 2151909.016 | JK8: 2216466.286 | JL8: 2282960.275 | JM8: 2351449.083 | JN8: 2421992.556 | JO8: 2494652.332 | JP8: 2569491.902 | JQ8: 2646576.659 | JR8: 2725973.959 | JS8: 2807753.178 | JT8: 2891985.773 | JU8: 2978745.346 | JV8: 3068107.707 | JW8: 3160150.938 | JX8: 3254955.466 | JY8: 3352604.13 | JZ8: 3453182.254 | KA8: 3556777.722 | KB8: 3663481.053 | KC8: 3773385.485 | KD8: 3886587.049 | KE8: 4003184.661 | KF8: 4123280.201 | KG8: 4246978.607 | KH8: 4374387.965 | KI8: 4505619.604 | KJ8: 4640788.192 | KK8: 4780011.838 | KL8: 4923412.193 | KM8: 5071114.559 | KN8: 5223247.995 | KO8: 5379945.435 | KP8: 5541343.798 | KQ8: 5707584.112 | KR8: 5878811.636
C9: Add: Cap Exp | E9: 100 | F9: =E9*(1+$E$4) -> 103 | G9: =F9*(1+$E$4) -> 106.09 | H9: 109.2727 | I9: 112.550881 | J9: 115.9274074 | K9: 119.4052297 | L9: 122.9873865 | M9: 126.6770081 | N9: 130.4773184 | O9: 134.3916379 | P9: 138.4233871 | Q9: 142.5760887 | R9: 146.8533713 | S9: 151.2589725 | T9: 155.7967417 | U9: 160.4706439 | V9: 165.2847632 | W9: 170.2433061 | X9: 175.3506053 | Y9: 180.6111235 | Z9: 186.0294572 | AA9: 191.6103409 | AB9: 197.3586511 | AC9: 203.2794106 | AD9: 209.377793 | AE9: 215.6591268 | AF9: 222.1289006 | AG9: 228.7927676 | AH9: 235.6565506 | AI9: 242.7262471 | AJ9: 250.0080345 | AK9: 257.5082756 | AL9: 265.2335238 | AM9: 273.1905296 | AN9: 281.3862454 | AO9: 289.8278328 | AP9: 298.5226678 | AQ9: 307.4783478 | AR9: 316.7026983 | AS9: 326.2037792 | AT9: 335.9898926 | AU9: 346.0695894 | AV9: 356.451677 | AW9: 367.1452273 | AX9: 378.1595842 | AY9: 389.5043717 | AZ9: 401.1895028 | BA9: 413.2251879 | BB9: 425.6219436 | BC9: 438.3906019 | BD9: 451.5423199 | BE9: 465.0885895 | BF9: 479.0412472 | BG9: 493.4124846 | BH9: 508.2148592 | BI9: 523.4613049 | BJ9: 539.1651441 | BK9: 555.3400984 | BL9: 572.0003014 | BM9: 589.1603104 | BN9: 606.8351197 | BO9: 625.0401733 | BP9: 643.7913785 | BQ9: 663.1051199 | BR9: 682.9982735 | BS9: =BR9*(1+$E$4) -> 703.4882217 | BT9: 724.5928683 | BU9: 746.3306544 | BV9: 768.720574 | BW9: 791.7821912 | BX9: 815.5356569 | BY9: 840.0017267 | BZ9: 865.2017785 | CA9: 891.1578318 | CB9: 917.8925668 | CC9: 945.4293438 | CD9: 973.7922241 | CE9: 1003.005991 | CF9: 1033.096171 | CG9: 1064.089056 | CH9: 1096.011727 | CI9: 1128.892079 | CJ9: 1162.758842 | CK9: 1197.641607 | CL9: 1233.570855 | CM9: 1270.577981 | CN9: 1308.69532 | CO9: 1347.95618 | CP9: 1388.394865 | CQ9: 1430.046711 | CR9: 1472.948112 | CS9: 1517.136556 | CT9: 1562.650652 | CU9: 1609.530172 | CV9: 1657.816077 | CW9: 1707.550559 | CX9: 1758.777076 | CY9: 1811.540388 | CZ9: 1865.8866 | DA9: 1921.863198 | DB9: 1979.519094 | DC9: 2038.904667 | DD9: 2100.071807 | DE9: 2163.073961 | DF9: 2227.96618 | DG9: 2294.805165 | DH9: 2363.64932 | DI9: 2434.5588 | DJ9: 2507.595564 | DK9: 2582.823431 | DL9: 2660.308134 | DM9: 2740.117378 | DN9: 2822.320899 | DO9: 2906.990526 | DP9: 2994.200242 | DQ9: 3084.026249 | DR9: 3176.547037 | DS9: 3271.843448 | DT9: 3369.998751 | DU9: 3471.098714 | DV9: 3575.231675 | DW9: 3682.488625 | DX9: 3792.963284 | DY9: 3906.752182 | DZ9: 4023.954748 | EA9: 4144.67339 | EB9: 4269.013592 | EC9: 4397.084 | ED9: 4528.99652 | EE9: =ED9*(1+$E$4) -> 4664.866415 | EF9: 4804.812408 | EG9: 4948.95678 | EH9: 5097.425484 | EI9: 5250.348248 | EJ9: 5407.858696 | EK9: 5570.094456 | EL9: 5737.19729 | EM9: 5909.313209 | EN9: 6086.592605 | EO9: 6269.190383 | EP9: 6457.266095 | EQ9: 6650.984078 | ER9: 6850.5136 | ES9: 7056.029008 | ET9: 7267.709878 | EU9: 7485.741174 | EV9: 7710.31341 | EW9: 7941.622812 | EX9: 8179.871496 | EY9: 8425.267641 | EZ9: 8678.02567 | FA9: 8938.366441 | FB9: 9206.517434 | FC9: 9482.712957 | FD9: 9767.194346 | FE9: 10060.21018 | FF9: 10362.01648 | FG9: 10672.87698 | FH9: 10993.06328 | FI9: 11322.85518 | FJ9: 11662.54084 | FK9: 12012.41706 | FL9: 12372.78958 | FM9: 12743.97326 | FN9: 13126.29246 | FO9: 13520.08123 | FP9: 13925.68367 | FQ9: 14343.45418 | FR9: 14773.75781 | FS9: 15216.97054 | FT9: 15673.47966 | FU9: 16143.68405 | FV9: 16627.99457 | FW9: 17126.83441 | FX9: 17640.63944 | FY9: 18169.85862 | FZ9: 18714.95438 | GA9: 19276.40301 | GB9: 19854.6951 | GC9: 20450.33596 | GD9: 21063.84603 | GE9: 21695.76141 | GF9: 22346.63426 | GG9: 23017.03329 | GH9: 23707.54428 | GI9: 24418.77061 | GJ9: 25151.33373 | GK9: 25905.87374 | GL9: 26683.04995 | GM9: 27483.54145 | GN9: 28308.0477 | GO9: 29157.28913 | GP9: 30032.0078 | GQ9: =GP9*(1+$E$4) -> 30932.96804 | GR9: 31860.95708 | GS9: 32816.78579 | GT9: 33801.28936 | GU9: 34815.32804 | GV9: 35859.78789 | GW9: 36935.58152 | GX9: 38043.64897 | GY9: 39184.95844 | GZ9: 40360.50719 | HA9: 41571.3224 | HB9: 42818.46208 | HC9: 44103.01594 | HD9: 45426.10642 | HE9: 46788.88961 | HF9: 48192.5563 | HG9: 49638.33299 | HH9: 51127.48298 | HI9: 52661.30747 | HJ9: 54241.14669 | HK9: 55868.38109 | HL9: 57544.43252 | HM9: 59270.7655 | HN9: 61048.88846 | HO9: 62880.35512 | HP9: 64766.76577 | HQ9: 66709.76875 | HR9: 68711.06181 | HS9: 70772.39366 | HT9: 72895.56547 | HU9: 75082.43244 | HV9: 77334.90541 | HW9: 79654.95257 | HX9: 82044.60115 | HY9: 84505.93918 | HZ9: 87041.11736 | IA9: 89652.35088 | IB9: 92341.92141 | IC9: 95112.17905 | ID9: 97965.54442 | IE9: 100904.5108 | IF9: 103931.6461 | IG9: 107049.5955 | IH9: 110261.0833 | II9: 113568.9158 | IJ9: 116975.9833 | IK9: 120485.2628 | IL9: 124099.8207 | IM9: 127822.8153 | IN9: 131657.4998 | IO9: 135607.2247 | IP9: 139675.4415 | IQ9: 143865.7047 | IR9: 148181.6759 | IS9: 152627.1262 | IT9: 157205.9399 | IU9: 161922.1181 | IV9: 166779.7817 | IW9: 171783.1751 | IX9: 176936.6704 | IY9: 182244.7705 | IZ9: 187712.1136 | JA9: 193343.477 | JB9: 199143.7813 | JC9: =JB9*(1+$E$4) -> 205118.0948 | JD9: 211271.6376 | JE9: 217609.7867 | JF9: 224138.0803 | JG9: 230862.2228 | JH9: 237788.0894 | JI9: 244921.7321 | JJ9: 252269.3841 | JK9: 259837.4656 | JL9: 267632.5896 | JM9: 275661.5673 | JN9: 283931.4143 | JO9: 292449.3567 | JP9: 301222.8374 | JQ9: 310259.5225 | JR9: 319567.3082 | JS9: 329154.3275 | JT9: 339028.9573 | JU9: 349199.826 | JV9: 359675.8208 | JW9: 370466.0954 | JX9: 381580.0783 | JY9: 393027.4806 | JZ9: 404818.305 | KA9: 416962.8542 | KB9: 429471.7398 | KC9: 442355.892 | KD9: 455626.5688 | KE9: 469295.3658 | KF9: 483374.2268 | KG9: 497875.4536 | KH9: 512811.7172 | KI9: 528196.0687 | KJ9: 544041.9508 | KK9: 560363.2093 | KL9: 577174.1056 | KM9: 594489.3288 | KN9: 612324.0086 | KO9: 630693.7289 | KP9: 649614.5407 | KQ9: 669102.977 | KR9: 689176.0663
C10: Less: Retirement | E10: =IF(E7>$E$5,OFFSET(E9,0,-$E$5))*1 -> 0 | F10: =IF(F7>$E$5,OFFSET(F9,0,-$E$5))*1 -> 0 | G10: 0 | H10: 0 | I10: 0 | J10: 0 | K10: 0 | L10: 0 | M10: 0 | N10: 0 | O10: 100 | P10: 103 | Q10: 106.09 | R10: 109.2727 | S10: 112.550881 | T10: 115.9274074 | U10: 119.4052297 | V10: 122.9873865 | W10: 126.6770081 | X10: 130.4773184 | Y10: 134.3916379 | Z10: 138.4233871 | AA10: 142.5760887 | AB10: 146.8533713 | AC10: 151.2589725 | AD10: 155.7967417 | AE10: 160.4706439 | AF10: 165.2847632 | AG10: 170.2433061 | AH10: 175.3506053 | AI10: 180.6111235 | AJ10: 186.0294572 | AK10: 191.6103409 | AL10: 197.3586511 | AM10: 203.2794106 | AN10: 209.377793 | AO10: 215.6591268 | AP10: 222.1289006 | AQ10: 228.7927676 | AR10: 235.6565506 | AS10: 242.7262471 | AT10: 250.0080345 | AU10: 257.5082756 | AV10: 265.2335238 | AW10: 273.1905296 | AX10: 281.3862454 | AY10: 289.8278328 | AZ10: 298.5226678 | BA10: 307.4783478 | BB10: 316.7026983 | BC10: 326.2037792 | BD10: 335.9898926 | BE10: 346.0695894 | BF10: 356.451677 | BG10: 367.1452273 | BH10: 378.1595842 | BI10: 389.5043717 | BJ10: 401.1895028 | BK10: 413.2251879 | BL10: 425.6219436 | BM10: 438.3906019 | BN10: 451.5423199 | BO10: 465.0885895 | BP10: 479.0412472 | BQ10: 493.4124846 | BR10: =IF(BR7>$E$5,OFFSET(BR9,0,-$E$5))*1 -> 508.2148592 | BS10: 523.4613049 | BT10: 539.1651441 | BU10: 555.3400984 | BV10: 572.0003014 | BW10: 589.1603104 | BX10: 606.8351197 | BY10: 625.0401733 | BZ10: 643.7913785 | CA10: 663.1051199 | CB10: 682.9982735 | CC10: 703.4882217 | CD10: 724.5928683 | CE10: 746.3306544 | CF10: 768.720574 | CG10: 791.7821912 | CH10: 815.5356569 | CI10: 840.0017267 | CJ10: 865.2017785 | CK10: 891.1578318 | CL10: 917.8925668 | CM10: 945.4293438 | CN10: 973.7922241 | CO10: 1003.005991 | CP10: 1033.096171 | CQ10: 1064.089056 | CR10: 1096.011727 | CS10: 1128.892079 | CT10: 1162.758842 | CU10: 1197.641607 | CV10: 1233.570855 | CW10: 1270.577981 | CX10: 1308.69532 | CY10: 1347.95618 | CZ10: 1388.394865 | DA10: 1430.046711 | DB10: 1472.948112 | DC10: 1517.136556 | DD10: 1562.650652 | DE10: 1609.530172 | DF10: 1657.816077 | DG10: 1707.550559 | DH10: 1758.777076 | DI10: 1811.540388 | DJ10: 1865.8866 | DK10: 1921.863198 | DL10: 1979.519094 | DM10: 2038.904667 | DN10: 2100.071807 | DO10: 2163.073961 | DP10: 2227.96618 | DQ10: 2294.805165 | DR10: 2363.64932 | DS10: 2434.5588 | DT10: 2507.595564 | DU10: 2582.823431 | DV10: 2660.308134 | DW10: 2740.117378 | DX10: 2822.320899 | DY10: 2906.990526 | DZ10: 2994.200242 | EA10: 3084.026249 | EB10: 3176.547037 | EC10: 3271.843448 | ED10: =IF(ED7>$E$5,OFFSET(ED9,0,-$E$5))*1 -> 3369.998751 | EE10: 3471.098714 | EF10: 3575.231675 | EG10: 3682.488625 | EH10: 3792.963284 | EI10: 3906.752182 | EJ10: 4023.954748 | EK10: 4144.67339 | EL10: 4269.013592 | EM10: 4397.084 | EN10: 4528.99652 | EO10: 4664.866415 | EP10: 4804.812408 | EQ10: 4948.95678 | ER10: 5097.425484 | ES10: 5250.348248 | ET10: 5407.858696 | EU10: 5570.094456 | EV10: 5737.19729 | EW10: 5909.313209 | EX10: 6086.592605 | EY10: 6269.190383 | EZ10: 6457.266095 | FA10: 6650.984078 | FB10: 6850.5136 | FC10: 7056.029008 | FD10: 7267.709878 | FE10: 7485.741174 | FF10: 7710.31341 | FG10: 7941.622812 | FH10: 8179.871496 | FI10: 8425.267641 | FJ10: 8678.02567 | FK10: 8938.366441 | FL10: 9206.517434 | FM10: 9482.712957 | FN10: 9767.194346 | FO10: 10060.21018 | FP10: 10362.01648 | FQ10: 10672.87698 | FR10: 10993.06328 | FS10: 11322.85518 | FT10: 11662.54084 | FU10: 12012.41706 | FV10: 12372.78958 | FW10: 12743.97326 | FX10: 13126.29246 | FY10: 13520.08123 | FZ10: 13925.68367 | GA10: 14343.45418 | GB10: 14773.75781 | GC10: 15216.97054 | GD10: 15673.47966 | GE10: 16143.68405 | GF10: 16627.99457 | GG10: 17126.83441 | GH10: 17640.63944 | GI10: 18169.85862 | GJ10: 18714.95438 | GK10: 19276.40301 | GL10: 19854.6951 | GM10: 20450.33596 | GN10: 21063.84603 | GO10: 21695.76141 | GP10: =IF(GP7>$E$5,OFFSET(GP9,0,-$E$5))*1 -> 22346.63426 | GQ10: 23017.03329 | GR10: 23707.54428 | GS10: 24418.77061 | GT10: 25151.33373 | GU10: 25905.87374 | GV10: 26683.04995 | GW10: 27483.54145 | GX10: 28308.0477 | GY10: 29157.28913 | GZ10: 30032.0078 | HA10: 30932.96804 | HB10: 31860.95708 | HC10: 32816.78579 | HD10: 33801.28936 | HE10: 34815.32804 | HF10: 35859.78789 | HG10: 36935.58152 | HH10: 38043.64897 | HI10: 39184.95844 | HJ10: 40360.50719 | HK10: 41571.3224 | HL10: 42818.46208 | HM10: 44103.01594 | HN10: 45426.10642 | HO10: 46788.88961 | HP10: 48192.5563 | HQ10: 49638.33299 | HR10: 51127.48298 | HS10: 52661.30747 | HT10: 54241.14669 | HU10: 55868.38109 | HV10: 57544.43252 | HW10: 59270.7655 | HX10: 61048.88846 | HY10: 62880.35512 | HZ10: 64766.76577 | IA10: 66709.76875 | IB10: 68711.06181 | IC10: 70772.39366 | ID10: 72895.56547 | IE10: 75082.43244 | IF10: 77334.90541 | IG10: 79654.95257 | IH10: 82044.60115 | II10: 84505.93918 | IJ10: 87041.11736 | IK10: 89652.35088 | IL10: 92341.92141 | IM10: 95112.17905 | IN10: 97965.54442 | IO10: 100904.5108 | IP10: 103931.6461 | IQ10: 107049.5955 | IR10: 110261.0833 | IS10: 113568.9158 | IT10: 116975.9833 | IU10: 120485.2628 | IV10: 124099.8207 | IW10: 127822.8153 | IX10: 131657.4998 | IY10: 135607.2247 | IZ10: 139675.4415 | JA10: 143865.7047 | JB10: =IF(JB7>$E$5,OFFSET(JB9,0,-$E$5))*1 -> 148181.6759 | JC10: 152627.1262 | JD10: 157205.9399 | JE10: 161922.1181 | JF10: 166779.7817 | JG10: 171783.1751 | JH10: 176936.6704 | JI10: 182244.7705 | JJ10: 187712.1136 | JK10: 193343.477 | JL10: 199143.7813 | JM10: 205118.0948 | JN10: 211271.6376 | JO10: 217609.7867 | JP10: 224138.0803 | JQ10: 230862.2228 | JR10: 237788.0894 | JS10: 244921.7321 | JT10: 252269.3841 | JU10: 259837.4656 | JV10: 267632.5896 | JW10: 275661.5673 | JX10: 283931.4143 | JY10: 292449.3567 | JZ10: 301222.8374 | KA10: 310259.5225 | KB10: 319567.3082 | KC10: 329154.3275 | KD10: 339028.9573 | KE10: 349199.826 | KF10: 359675.8208 | KG10: 370466.0954 | KH10: 381580.0783 | KI10: 393027.4806 | KJ10: 404818.305 | KK10: 416962.8542 | KL10: 429471.7398 | KM10: 442355.892 | KN10: 455626.5688 | KO10: 469295.3658 | KP10: 483374.2268 | KQ10: 497875.4536 | KR10: 512811.7172
C11: Closing Balance | E11: =E8+E9-E10 -> 100 | F11: =F8+F9-F10 -> 203 | G11: 309.09 | H11: 418.3627 | I11: 530.913581 | J11: 646.8409884 | K11: 766.2462181 | L11: 889.2336046 | M11: 1015.910613 | N11: 1146.387931 | O11: 1180.779569 | P11: 1216.202956 | Q11: 1252.689045 | R11: 1290.269716 | S11: 1328.977808 | T11: 1368.847142 | U11: 1409.912556 | V11: 1452.209933 | W11: 1495.776231 | X11: 1540.649518 | Y11: 1586.869003 | Z11: 1634.475073 | AA11: 1683.509326 | AB11: 1734.014605 | AC11: 1786.035044 | AD11: 1839.616095 | AE11: 1894.804578 | AF11: 1951.648715 | AG11: 2010.198176 | AH11: 2070.504122 | AI11: 2132.619245 | AJ11: 2196.597823 | AK11: 2262.495757 | AL11: 2330.37063 | AM11: 2400.281749 | AN11: 2472.290202 | AO11: 2546.458908 | AP11: 2622.852675 | AQ11: 2701.538255 | AR11: 2782.584403 | AS11: 2866.061935 | AT11: 2952.043793 | AU11: 3040.605107 | AV11: 3131.82326 | AW11: 3225.777958 | AX11: 3322.551296 | AY11: 3422.227835 | AZ11: 3524.89467 | BA11: 3630.64151 | BB11: 3739.560756 | BC11: 3851.747578 | BD11: 3967.300006 | BE11: 4086.319006 | BF11: 4208.908576 | BG11: 4335.175833 | BH11: 4465.231108 | BI11: 4599.188042 | BJ11: 4737.163683 | BK11: 4879.278593 | BL11: 5025.656951 | BM11: 5176.42666 | BN11: 5331.719459 | BO11: 5491.671043 | BP11: 5656.421175 | BQ11: 5826.11381 | BR11: =BR8+BR9-BR10 -> 6000.897224 | BS11: 6180.924141 | BT11: 6366.351865 | BU11: 6557.342421 | BV11: 6754.062694 | BW11: 6956.684574 | BX11: 7165.385112 | BY11: 7380.346665 | BZ11: 7601.757065 | CA11: 7829.809777 | CB11: 8064.70407 | CC11: 8306.645192 | CD11: 8555.844548 | CE11: 8812.519884 | CF11: 9076.895481 | CG11: 9349.202345 | CH11: 9629.678416 | CI11: 9918.568768 | CJ11: 10216.12583 | CK11: 10522.60961 | CL11: 10838.28789 | CM11: 11163.43653 | CN11: 11498.33963 | CO11: 11843.28982 | CP11: 12198.58851 | CQ11: 12564.54617 | CR11: 12941.48255 | CS11: 13329.72703 | CT11: 13729.61884 | CU11: 14141.5074 | CV11: 14565.75263 | CW11: 15002.7252 | CX11: 15452.80696 | CY11: 15916.39117 | CZ11: 16393.8829 | DA11: 16885.69939 | DB11: 17392.27037 | DC11: 17914.03848 | DD11: 18451.45964 | DE11: 19005.00343 | DF11: 19575.15353 | DG11: 20162.40814 | DH11: 20767.28038 | DI11: 21390.29879 | DJ11: 22032.00776 | DK11: 22692.96799 | DL11: 23373.75703 | DM11: 24074.96974 | DN11: 24797.21883 | DO11: 25541.1354 | DP11: 26307.36946 | DQ11: 27096.59054 | DR11: 27909.48826 | DS11: 28746.77291 | DT11: 29609.17609 | DU11: 30497.45138 | DV11: 31412.37492 | DW11: 32354.74616 | DX11: 33325.38855 | DY11: 34325.15021 | DZ11: 35354.90471 | EA11: 36415.55185 | EB11: 37508.01841 | EC11: 38633.25896 | ED11: =ED8+ED9-ED10 -> 39792.25673 | EE11: 40986.02443 | EF11: 42215.60517 | EG11: 43482.07332 | EH11: 44786.53552 | EI11: 46130.13159 | EJ11: 47514.03553 | EK11: 48939.4566 | EL11: 50407.6403 | EM11: 51919.86951 | EN11: 53477.46559 | EO11: 55081.78956 | EP11: 56734.24325 | EQ11: 58436.27054 | ER11: 60189.35866 | ES11: 61995.03942 | ET11: 63854.8906 | EU11: 65770.53732 | EV11: 67743.65344 | EW11: 69775.96304 | EX11: 71869.24193 | EY11: 74025.31919 | EZ11: 76246.07877 | FA11: 78533.46113 | FB11: 80889.46496 | FC11: 83316.14891 | FD11: 85815.63338 | FE11: 88390.10238 | FF11: 91041.80545 | FG11: 93773.05962 | FH11: 96586.25141 | FI11: 99483.83895 | FJ11: 102468.3541 | FK11: 105542.4047 | FL11: 108708.6769 | FM11: 111969.9372 | FN11: 115329.0353 | FO11: 118788.9064 | FP11: 122352.5736 | FQ11: 126023.1508 | FR11: 129803.8453 | FS11: 133697.9606 | FT11: 137708.8995 | FU11: 141840.1664 | FV11: 146095.3714 | FW11: 150478.2326 | FX11: 154992.5796 | FY11: 159642.3569 | FZ11: 164431.6277 | GA11: 169364.5765 | GB11: 174445.5138 | GC11: 179678.8792 | GD11: 185069.2456 | GE11: 190621.3229 | GF11: 196339.9626 | GG11: 202230.1615 | GH11: 208297.0663 | GI11: 214545.9783 | GJ11: 220982.3577 | GK11: 227611.8284 | GL11: 234440.1833 | GM11: 241473.3888 | GN11: 248717.5904 | GO11: 256179.1181 | GP11: =GP8+GP9-GP10 -> 263864.4917 | GQ11: 271780.4264 | GR11: 279933.8392 | GS11: 288331.8544 | GT11: 296981.81 | GU11: 305891.2643 | GV11: 315068.0023 | GW11: 324520.0423 | GX11: 334255.6436 | GY11: 344283.3129 | GZ11: 354611.8123 | HA11: 365250.1667 | HB11: 376207.6717 | HC11: 387493.9018 | HD11: 399118.7189 | HE11: 411092.2804 | HF11: 423425.0489 | HG11: 436127.8003 | HH11: 449211.6343 | HI11: 462687.9834 | HJ11: 476568.6229 | HK11: 490865.6816 | HL11: 505591.652 | HM11: 520759.4016 | HN11: 536382.1836 | HO11: 552473.6491 | HP11: 569047.8586 | HQ11: 586119.2943 | HR11: 603702.8732 | HS11: 621813.9594 | HT11: 640468.3782 | HU11: 659682.4295 | HV11: 679472.9024 | HW11: 699857.0895 | HX11: 720852.8021 | HY11: 742478.3862 | HZ11: 764752.7378 | IA11: 787695.3199 | IB11: 811326.1795 | IC11: 835665.9649 | ID11: 860735.9439 | IE11: 886558.0222 | IF11: 913154.7628 | IG11: 940549.4057 | IH11: 968765.8879 | II11: 997828.8645 | IJ11: 1027763.73 | IK11: 1058596.642 | IL11: 1090354.542 | IM11: 1123065.178 | IN11: 1156757.133 | IO11: 1191459.847 | IP11: 1227203.643 | IQ11: 1264019.752 | IR11: 1301940.344 | IS11: 1340998.555 | IT11: 1381228.511 | IU11: 1422665.367 | IV11: 1465345.328 | IW11: 1509305.688 | IX11: 1554584.858 | IY11: 1601222.404 | IZ11: 1649259.076 | JA11: 1698736.848 | JB11: =JB8+JB9-JB10 -> 1749698.954 | JC11: 1802189.923 | JD11: 1856255.62 | JE11: 1911943.289 | JF11: 1969301.587 | JG11: 2028380.635 | JH11: 2089232.054 | JI11: 2151909.016 | JJ11: 2216466.286 | JK11: 2282960.275 | JL11: 2351449.083 | JM11: 2421992.556 | JN11: 2494652.332 | JO11: 2569491.902 | JP11: 2646576.659 | JQ11: 2725973.959 | JR11: 2807753.178 | JS11: 2891985.773 | JT11: 2978745.346 | JU11: 3068107.707 | JV11: 3160150.938 | JW11: 3254955.466 | JX11: 3352604.13 | JY11: 3453182.254 | JZ11: 3556777.722 | KA11: 3663481.053 | KB11: 3773385.485 | KC11: 3886587.049 | KD11: 4003184.661 | KE11: 4123280.201 | KF11: 4246978.607 | KG11: 4374387.965 | KH11: 4505619.604 | KI11: 4640788.192 | KJ11: 4780011.838 | KK11: 4923412.193 | KL11: 5071114.559 | KM11: 5223247.995 | KN11: 5379945.435 | KO11: 5541343.798 | KP11: 5707584.112 | KQ11: 5878811.636 | KR11: 6055175.985
C13: Dep Rate | E13: =1/$E$5 -> 0.1 | F13: =1/$E$5 -> 0.1 | G13: 0.1 | H13: 0.1 | I13: 0.1 | J13: 0.1 | K13: 0.1 | L13: 0.1 | M13: 0.1 | N13: 0.1 | O13: 0.1 | P13: 0.1 | Q13: 0.1 | R13: 0.1 | S13: 0.1 | T13: 0.1 | U13: 0.1 | V13: 0.1 | W13: 0.1 | X13: 0.1 | Y13: 0.1 | Z13: 0.1 | AA13: 0.1 | AB13: 0.1 | AC13: 0.1 | AD13: 0.1 | AE13: 0.1 | AF13: 0.1 | AG13: 0.1 | AH13: 0.1 | AI13: 0.1 | AJ13: 0.1 | AK13: 0.1 | AL13: 0.1 | AM13: 0.1 | AN13: 0.1 | AO13: 0.1 | AP13: 0.1 | AQ13: 0.1 | AR13: 0.1 | AS13: 0.1 | AT13: 0.1 | AU13: 0.1 | AV13: 0.1 | AW13: 0.1 | AX13: 0.1 | AY13: 0.1 | AZ13: 0.1 | BA13: 0.1 | BB13: 0.1 | BC13: 0.1 | BD13: 0.1 | BE13: 0.1 | BF13: 0.1 | BG13: 0.1 | BH13: 0.1 | BI13: 0.1 | BJ13: 0.1 | BK13: 0.1 | BL13: 0.1 | BM13: 0.1 | BN13: 0.1 | BO13: 0.1 | BP13: 0.1 | BQ13: 0.1 | BR13: =1/$E$5 -> 0.1 | BS13: 0.1 | BT13: 0.1 | BU13: 0.1 | BV13: 0.1 | BW13: 0.1 | BX13: 0.1 | BY13: 0.1 | BZ13: 0.1 | CA13: 0.1 | CB13: 0.1 | CC13: 0.1 | CD13: 0.1 | CE13: 0.1 | CF13: 0.1 | CG13: 0.1 | CH13: 0.1 | CI13: 0.1 | CJ13: 0.1 | CK13: 0.1 | CL13: 0.1 | CM13: 0.1 | CN13: 0.1 | CO13: 0.1 | CP13: 0.1 | CQ13: 0.1 | CR13: 0.1 | CS13: 0.1 | CT13: 0.1 | CU13: 0.1 | CV13: 0.1 | CW13: 0.1 | CX13: 0.1 | CY13: 0.1 | CZ13: 0.1 | DA13: 0.1 | DB13: 0.1 | DC13: 0.1 | DD13: 0.1 | DE13: 0.1 | DF13: 0.1 | DG13: 0.1 | DH13: 0.1 | DI13: 0.1 | DJ13: 0.1 | DK13: 0.1 | DL13: 0.1 | DM13: 0.1 | DN13: 0.1 | DO13: 0.1 | DP13: 0.1 | DQ13: 0.1 | DR13: 0.1 | DS13: 0.1 | DT13: 0.1 | DU13: 0.1 | DV13: 0.1 | DW13: 0.1 | DX13: 0.1 | DY13: 0.1 | DZ13: 0.1 | EA13: 0.1 | EB13: 0.1 | EC13: 0.1 | ED13: =1/$E$5 -> 0.1 | EE13: 0.1 | EF13: 0.1 | EG13: 0.1 | EH13: 0.1 | EI13: 0.1 | EJ13: 0.1 | EK13: 0.1 | EL13: 0.1 | EM13: 0.1 | EN13: 0.1 | EO13: 0.1 | EP13: 0.1 | EQ13: 0.1 | ER13: 0.1 | ES13: 0.1 | ET13: 0.1 | EU13: 0.1 | EV13: 0.1 | EW13: 0.1 | EX13: 0.1 | EY13: 0.1 | EZ13: 0.1 | FA13: 0.1 | FB13: 0.1 | FC13: 0.1 | FD13: 0.1 | FE13: 0.1 | FF13: 0.1 | FG13: 0.1 | FH13: 0.1 | FI13: 0.1 | FJ13: 0.1 | FK13: 0.1 | FL13: 0.1 | FM13: 0.1 | FN13: 0.1 | FO13: 0.1 | FP13: 0.1 | FQ13: 0.1 | FR13: 0.1 | FS13: 0.1 | FT13: 0.1 | FU13: 0.1 | FV13: 0.1 | FW13: 0.1 | FX13: 0.1 | FY13: 0.1 | FZ13: 0.1 | GA13: 0.1 | GB13: 0.1 | GC13: 0.1 | GD13: 0.1 | GE13: 0.1 | GF13: 0.1 | GG13: 0.1 | GH13: 0.1 | GI13: 0.1 | GJ13: 0.1 | GK13: 0.1 | GL13: 0.1 | GM13: 0.1 | GN13: 0.1 | GO13: 0.1 | GP13: =1/$E$5 -> 0.1 | GQ13: 0.1 | GR13: 0.1 | GS13: 0.1 | GT13: 0.1 | GU13: 0.1 | GV13: 0.1 | GW13: 0.1 | GX13: 0.1 | GY13: 0.1 | GZ13: 0.1 | HA13: 0.1 | HB13: 0.1 | HC13: 0.1 | HD13: 0.1 | HE13: 0.1 | HF13: 0.1 | HG13: 0.1 | HH13: 0.1 | HI13: 0.1 | HJ13: 0.1 | HK13: 0.1 | HL13: 0.1 | HM13: 0.1 | HN13: 0.1 | HO13: 0.1 | HP13: 0.1 | HQ13: 0.1 | HR13: 0.1 | HS13: 0.1 | HT13: 0.1 | HU13: 0.1 | HV13: 0.1 | HW13: 0.1 | HX13: 0.1 | HY13: 0.1 | HZ13: 0.1 | IA13: 0.1 | IB13: 0.1 | IC13: 0.1 | ID13: 0.1 | IE13: 0.1 | IF13: 0.1 | IG13: 0.1 | IH13: 0.1 | II13: 0.1 | IJ13: 0.1 | IK13: 0.1 | IL13: 0.1 | IM13: 0.1 | IN13: 0.1 | IO13: 0.1 | IP13: 0.1 | IQ13: 0.1 | IR13: 0.1 | IS13: 0.1 | IT13: 0.1 | IU13: 0.1 | IV13: 0.1 | IW13: 0.1 | IX13: 0.1 | IY13: 0.1 | IZ13: 0.1 | JA13: 0.1 | JB13: =1/$E$5 -> 0.1 | JC13: 0.1 | JD13: 0.1 | JE13: 0.1 | JF13: 0.1 | JG13: 0.1 | JH13: 0.1 | JI13: 0.1 | JJ13: 0.1 | JK13: 0.1 | JL13: 0.1 | JM13: 0.1 | JN13: 0.1 | JO13: 0.1 | JP13: 0.1 | JQ13: 0.1 | JR13: 0.1 | JS13: 0.1 | JT13: 0.1 | JU13: 0.1 | JV13: 0.1 | JW13: 0.1 | JX13: 0.1 | JY13: 0.1 | JZ13: 0.1 | KA13: 0.1 | KB13: 0.1 | KC13: 0.1 | KD13: 0.1 | KE13: 0.1 | KF13: 0.1 | KG13: 0.1 | KH13: 0.1 | KI13: 0.1 | KJ13: 0.1 | KK13: 0.1 | KL13: 0.1 | KM13: 0.1 | KN13: 0.1 | KO13: 0.1 | KP13: 0.1 | KQ13: 0.1 | KR13: 0.1
C14: Depreciation Expense | E14: =E13*E8 -> 0 | F14: =F13*F8 -> 10 | G14: 20.3 | H14: 30.909 | I14: 41.83627 | J14: 53.0913581 | K14: 64.68409884 | L14: 76.62462181 | M14: 88.92336046 | N14: 101.5910613 | O14: 114.6387931 | P14: 118.0779569 | Q14: 121.6202956 | R14: 125.2689045 | S14: 129.0269716 | T14: 132.8977808 | U14: 136.8847142 | V14: 140.9912556 | W14: 145.2209933 | X14: 149.5776231 | Y14: 154.0649518 | Z14: 158.6869003 | AA14: 163.4475073 | AB14: 168.3509326 | AC14: 173.4014605 | AD14: 178.6035044 | AE14: 183.9616095 | AF14: 189.4804578 | AG14: 195.1648715 | AH14: 201.0198176 | AI14: 207.0504122 | AJ14: 213.2619245 | AK14: 219.6597823 | AL14: 226.2495757 | AM14: 233.037063 | AN14: 240.0281749 | AO14: 247.2290202 | AP14: 254.6458908 | AQ14: 262.2852675 | AR14: 270.1538255 | AS14: 278.2584403 | AT14: 286.6061935 | AU14: 295.2043793 | AV14: 304.0605107 | AW14: 313.182326 | AX14: 322.5777958 | AY14: 332.2551296 | AZ14: 342.2227835 | BA14: 352.489467 | BB14: 363.064151 | BC14: 373.9560756 | BD14: 385.1747578 | BE14: 396.7300006 | BF14: 408.6319006 | BG14: 420.8908576 | BH14: 433.5175833 | BI14: 446.5231108 | BJ14: 459.9188042 | BK14: 473.7163683 | BL14: 487.9278593 | BM14: 502.5656951 | BN14: 517.642666 | BO14: 533.1719459 | BP14: 549.1671043 | BQ14: 565.6421175 | BR14: =BR13*BR8 -> 582.611381 | BS14: 600.0897224 | BT14: 618.0924141 | BU14: 636.6351865 | BV14: 655.7342421 | BW14: 675.4062694 | BX14: 695.6684574 | BY14: 716.5385112 | BZ14: 738.0346665 | CA14: 760.1757065 | CB14: 782.9809777 | CC14: 806.470407 | CD14: 830.6645192 | CE14: 855.5844548 | CF14: 881.2519884 | CG14: 907.6895481 | CH14: 934.9202345 | CI14: 962.9678416 | CJ14: 991.8568768 | CK14: 1021.612583 | CL14: 1052.260961 | CM14: 1083.828789 | CN14: 1116.343653 | CO14: 1149.833963 | CP14: 1184.328982 | CQ14: 1219.858851 | CR14: 1256.454617 | CS14: 1294.148255 | CT14: 1332.972703 | CU14: 1372.961884 | CV14: 1414.15074 | CW14: 1456.575263 | CX14: 1500.27252 | CY14: 1545.280696 | CZ14: 1591.639117 | DA14: 1639.38829 | DB14: 1688.569939 | DC14: 1739.227037 | DD14: 1791.403848 | DE14: 1845.145964 | DF14: 1900.500343 | DG14: 1957.515353 | DH14: 2016.240814 | DI14: 2076.728038 | DJ14: 2139.029879 | DK14: 2203.200776 | DL14: 2269.296799 | DM14: 2337.375703 | DN14: 2407.496974 | DO14: 2479.721883 | DP14: 2554.11354 | DQ14: 2630.736946 | DR14: 2709.659054 | DS14: 2790.948826 | DT14: 2874.677291 | DU14: 2960.917609 | DV14: 3049.745138 | DW14: 3141.237492 | DX14: 3235.474616 | DY14: 3332.538855 | DZ14: 3432.515021 | EA14: 3535.490471 | EB14: 3641.555185 | EC14: 3750.801841 | ED14: =ED13*ED8 -> 3863.325896 | EE14: 3979.225673 | EF14: 4098.602443 | EG14: 4221.560517 | EH14: 4348.207332 | EI14: 4478.653552 | EJ14: 4613.013159 | EK14: 4751.403553 | EL14: 4893.94566 | EM14: 5040.76403 | EN14: 5191.986951 | EO14: 5347.746559 | EP14: 5508.178956 | EQ14: 5673.424325 | ER14: 5843.627054 | ES14: 6018.935866 | ET14: 6199.503942 | EU14: 6385.48906 | EV14: 6577.053732 | EW14: 6774.365344 | EX14: 6977.596304 | EY14: 7186.924193 | EZ14: 7402.531919 | FA14: 7624.607877 | FB14: 7853.346113 | FC14: 8088.946496 | FD14: 8331.614891 | FE14: 8581.563338 | FF14: 8839.010238 | FG14: 9104.180545 | FH14: 9377.305962 | FI14: 9658.625141 | FJ14: 9948.383895 | FK14: 10246.83541 | FL14: 10554.24047 | FM14: 10870.86769 | FN14: 11196.99372 | FO14: 11532.90353 | FP14: 11878.89064 | FQ14: 12235.25736 | FR14: 12602.31508 | FS14: 12980.38453 | FT14: 13369.79606 | FU14: 13770.88995 | FV14: 14184.01664 | FW14: 14609.53714 | FX14: 15047.82326 | FY14: 15499.25796 | FZ14: 15964.23569 | GA14: 16443.16277 | GB14: 16936.45765 | GC14: 17444.55138 | GD14: 17967.88792 | GE14: 18506.92456 | GF14: 19062.13229 | GG14: 19633.99626 | GH14: 20223.01615 | GI14: 20829.70663 | GJ14: 21454.59783 | GK14: 22098.23577 | GL14: 22761.18284 | GM14: 23444.01833 | GN14: 24147.33888 | GO14: 24871.75904 | GP14: =GP13*GP8 -> 25617.91181 | GQ14: 26386.44917 | GR14: 27178.04264 | GS14: 27993.38392 | GT14: 28833.18544 | GU14: 29698.181 | GV14: 30589.12643 | GW14: 31506.80023 | GX14: 32452.00423 | GY14: 33425.56436 | GZ14: 34428.33129 | HA14: 35461.18123 | HB14: 36525.01667 | HC14: 37620.76717 | HD14: 38749.39018 | HE14: 39911.87189 | HF14: 41109.22804 | HG14: 42342.50489 | HH14: 43612.78003 | HI14: 44921.16343 | HJ14: 46268.79834 | HK14: 47656.86229 | HL14: 49086.56816 | HM14: 50559.1652 | HN14: 52075.94016 | HO14: 53638.21836 | HP14: 55247.36491 | HQ14: 56904.78586 | HR14: 58611.92943 | HS14: 60370.28732 | HT14: 62181.39594 | HU14: 64046.83782 | HV14: 65968.24295 | HW14: 67947.29024 | HX14: 69985.70895 | HY14: 72085.28021 | HZ14: 74247.83862 | IA14: 76475.27378 | IB14: 78769.53199 | IC14: 81132.61795 | ID14: 83566.59649 | IE14: 86073.59439 | IF14: 88655.80222 | IG14: 91315.47628 | IH14: 94054.94057 | II14: 96876.58879 | IJ14: 99782.88645 | IK14: 102776.373 | IL14: 105859.6642 | IM14: 109035.4542 | IN14: 112306.5178 | IO14: 115675.7133 | IP14: 119145.9847 | IQ14: 122720.3643 | IR14: 126401.9752 | IS14: 130194.0344 | IT14: 134099.8555 | IU14: 138122.8511 | IV14: 142266.5367 | IW14: 146534.5328 | IX14: 150930.5688 | IY14: 155458.4858 | IZ14: 160122.2404 | JA14: 164925.9076 | JB14: =JB13*JB8 -> 169873.6848 | JC14: 174969.8954 | JD14: 180218.9923 | JE14: 185625.562 | JF14: 191194.3289 | JG14: 196930.1587 | JH14: 202838.0635 | JI14: 208923.2054 | JJ14: 215190.9016 | JK14: 221646.6286 | JL14: 228296.0275 | JM14: 235144.9083 | JN14: 242199.2556 | JO14: 249465.2332 | JP14: 256949.1902 | JQ14: 264657.6659 | JR14: 272597.3959 | JS14: 280775.3178 | JT14: 289198.5773 | JU14: 297874.5346 | JV14: 306810.7707 | JW14: 316015.0938 | JX14: 325495.5466 | JY14: 335260.413 | JZ14: 345318.2254 | KA14: 355677.7722 | KB14: 366348.1053 | KC14: 377338.5485 | KD14: 388658.7049 | KE14: 400318.4661 | KF14: 412328.0201 | KG14: 424697.8607 | KH14: 437438.7965 | KI14: 450561.9604 | KJ14: 464078.8192 | KK14: 478001.1838 | KL14: 492341.2193 | KM14: 507111.4559 | KN14: 522324.7995 | KO14: 537994.5435 | KP14: 554134.3798 | KQ14: 570758.4112 | KR14: 587881.1636
C16: Cap Exp to Dep | E16: =IF(E14,E9/E14) -> FALSE | F16: =IF(F14,F9/F14) -> 10.3 | G16: 5.226108374 | H16: 3.535303633 | I16: 2.690270452 | J16: 2.183545714 | K16: 1.845975005 | L16: 1.605063538 | M16: 1.424563888 | N16: 1.28433857 | O16: 1.172305066 | P16: 1.172305066 | Q16: 1.172305066 | R16: 1.172305066 | S16: 1.172305066 | T16: 1.172305066 | U16: 1.172305066 | V16: 1.172305066 | W16: 1.172305066 | X16: 1.172305066 | Y16: 1.172305066 | Z16: 1.172305066 | AA16: 1.172305066 | AB16: 1.172305066 | AC16: 1.172305066 | AD16: 1.172305066 | AE16: 1.172305066 | AF16: 1.172305066 | AG16: 1.172305066 | AH16: 1.172305066 | AI16: 1.172305066 | AJ16: 1.172305066 | AK16: 1.172305066 | AL16: 1.172305066 | AM16: 1.172305066 | AN16: 1.172305066 | AO16: 1.172305066 | AP16: 1.172305066 | AQ16: 1.172305066 | AR16: 1.172305066 | AS16: 1.172305066 | AT16: 1.172305066 | AU16: 1.172305066 | AV16: 1.172305066 | AW16: 1.172305066 | AX16: 1.172305066 | AY16: 1.172305066 | AZ16: 1.172305066 | BA16: 1.172305066 | BB16: 1.172305066 | BC16: 1.172305066 | BD16: 1.172305066 | BE16: 1.172305066 | BF16: 1.172305066 | BG16: 1.172305066 | BH16: 1.172305066 | BI16: 1.172305066 | BJ16: 1.172305066 | BK16: 1.172305066 | BL16: 1.172305066 | BM16: 1.172305066 | BN16: 1.172305066 | BO16: 1.172305066 | BP16: 1.172305066 | BQ16: 1.172305066 | BR16: =IF(BR14,BR9/BR14) -> 1.172305066 | BS16: 1.172305066 | BT16: 1.172305066 | BU16: 1.172305066 | BV16: 1.172305066 | BW16: 1.172305066 | BX16: 1.172305066 | BY16: 1.172305066 | BZ16: 1.172305066 | CA16: 1.172305066 | CB16: 1.172305066 | CC16: 1.172305066 | CD16: 1.172305066 | CE16: 1.172305066 | CF16: 1.172305066 | CG16: 1.172305066 | CH16: 1.172305066 | CI16: 1.172305066 | CJ16: 1.172305066 | CK16: 1.172305066 | CL16: 1.172305066 | CM16: 1.172305066 | CN16: 1.172305066 | CO16: 1.172305066 | CP16: 1.172305066 | CQ16: 1.172305066 | CR16: 1.172305066 | CS16: 1.172305066 | CT16: 1.172305066 | CU16: 1.172305066 | CV16: 1.172305066 | CW16: 1.172305066 | CX16: 1.172305066 | CY16: 1.172305066 | CZ16: 1.172305066 | DA16: 1.172305066 | DB16: 1.172305066 | DC16: 1.172305066 | DD16: 1.172305066 | DE16: 1.172305066 | DF16: 1.172305066 | DG16: 1.172305066 | DH16: 1.172305066 | DI16: 1.172305066 | DJ16: 1.172305066 | DK16: 1.172305066 | DL16: 1.172305066 | DM16: 1.172305066 | DN16: 1.172305066 | DO16: 1.172305066 | DP16: 1.172305066 | DQ16: 1.172305066 | DR16: 1.172305066 | DS16: 1.172305066 | DT16: 1.172305066 | DU16: 1.172305066 | DV16: 1.172305066 | DW16: 1.172305066 | DX16: 1.172305066 | DY16: 1.172305066 | DZ16: 1.172305066 | EA16: 1.172305066 | EB16: 1.172305066 | EC16: 1.172305066 | ED16: =IF(ED14,ED9/ED14) -> 1.172305066 | EE16: 1.172305066 | EF16: 1.172305066 | EG16: 1.172305066 | EH16: 1.172305066 | EI16: 1.172305066 | EJ16: 1.172305066 | EK16: 1.172305066 | EL16: 1.172305066 | EM16: 1.172305066 | EN16: 1.172305066 | EO16: 1.172305066 | EP16: 1.172305066 | EQ16: 1.172305066 | ER16: 1.172305066 | ES16: 1.172305066 | ET16: 1.172305066 | EU16: 1.172305066 | EV16: 1.172305066 | EW16: 1.172305066 | EX16: 1.172305066 | EY16: 1.172305066 | EZ16: 1.172305066 | FA16: 1.172305066 | FB16: 1.172305066 | FC16: 1.172305066 | FD16: 1.172305066 | FE16: 1.172305066 | FF16: 1.172305066 | FG16: 1.172305066 | FH16: 1.172305066 | FI16: 1.172305066 | FJ16: 1.172305066 | FK16: 1.172305066 | FL16: 1.172305066 | FM16: 1.172305066 | FN16: 1.172305066 | FO16: 1.172305066 | FP16: 1.172305066 | FQ16: 1.172305066 | FR16: 1.172305066 | FS16: 1.172305066 | FT16: 1.172305066 | FU16: 1.172305066 | FV16: 1.172305066 | FW16: 1.172305066 | FX16: 1.172305066 | FY16: 1.172305066 | FZ16: 1.172305066 | GA16: 1.172305066 | GB16: 1.172305066 | GC16: 1.172305066 | GD16: 1.172305066 | GE16: 1.172305066 | GF16: 1.172305066 | GG16: 1.172305066 | GH16: 1.172305066 | GI16: 1.172305066 | GJ16: 1.172305066 | GK16: 1.172305066 | GL16: 1.172305066 | GM16: 1.172305066 | GN16: 1.172305066 | GO16: 1.172305066 | GP16: =IF(GP14,GP9/GP14) -> 1.172305066 | GQ16: 1.172305066 | GR16: 1.172305066 | GS16: 1.172305066 | GT16: 1.172305066 | GU16: 1.172305066 | GV16: 1.172305066 | GW16: 1.172305066 | GX16: 1.172305066 | GY16: 1.172305066 | GZ16: 1.172305066 | HA16: 1.172305066 | HB16: 1.172305066 | HC16: 1.172305066 | HD16: 1.172305066 | HE16: 1.172305066 | HF16: 1.172305066 | HG16: 1.172305066 | HH16: 1.172305066 | HI16: 1.172305066 | HJ16: 1.172305066 | HK16: 1.172305066 | HL16: 1.172305066 | HM16: 1.172305066 | HN16: 1.172305066 | HO16: 1.172305066 | HP16: 1.172305066 | HQ16: 1.172305066 | HR16: 1.172305066 | HS16: 1.172305066 | HT16: 1.172305066 | HU16: 1.172305066 | HV16: 1.172305066 | HW16: 1.172305066 | HX16: 1.172305066 | HY16: 1.172305066 | HZ16: 1.172305066 | IA16: 1.172305066 | IB16: 1.172305066 | IC16: 1.172305066 | ID16: 1.172305066 | IE16: 1.172305066 | IF16: 1.172305066 | IG16: 1.172305066 | IH16: 1.172305066 | II16: 1.172305066 | IJ16: 1.172305066 | IK16: 1.172305066 | IL16: 1.172305066 | IM16: 1.172305066 | IN16: 1.172305066 | IO16: 1.172305066 | IP16: 1.172305066 | IQ16: 1.172305066 | IR16: 1.172305066 | IS16: 1.172305066 | IT16: 1.172305066 | IU16: 1.172305066 | IV16: 1.172305066 | IW16: 1.172305066 | IX16: 1.172305066 | IY16: 1.172305066 | IZ16: 1.172305066 | JA16: 1.172305066 | JB16: =IF(JB14,JB9/JB14) -> 1.172305066 | JC16: 1.172305066 | JD16: 1.172305066 | JE16: 1.172305066 | JF16: 1.172305066 | JG16: 1.172305066 | JH16: 1.172305066 | JI16: 1.172305066 | JJ16: 1.172305066 | JK16: 1.172305066 | JL16: 1.172305066 | JM16: 1.172305066 | JN16: 1.172305066 | JO16: 1.172305066 | JP16: 1.172305066 | JQ16: 1.172305066 | JR16: 1.172305066 | JS16: 1.172305066 | JT16: 1.172305066 | JU16: 1.172305066 | JV16: 1.172305066 | JW16: 1.172305066 | JX16: 1.172305066 | JY16: 1.172305066 | JZ16: 1.172305066 | KA16: 1.172305066 | KB16: 1.172305066 | KC16: 1.172305066 | KD16: 1.172305066 | KE16: 1.172305066 | KF16: 1.172305066 | KG16: 1.172305066 | KH16: 1.172305066 | KI16: 1.172305066 | KJ16: 1.172305066 | KK16: 1.172305066 | KL16: 1.172305066 | KM16: 1.172305066 | KN16: 1.172305066 | KO16: 1.172305066 | KP16: 1.172305066 | KQ16: 1.172305066 | KR16: 1.172305066

Sheet PE Analysis
C2: Short-term | D2: Long-term
B3: Years | C3: 1 | D3: 5
B4: ROE | C4: 0.15 | D4: 0.18 | G4: P/E | H4: =C32 -> 13.3333212
B5: G | C5: 0.05 | D5: 0.03 | G5: Value driver | H5: =(1-C5/C4)/(C6-C5) -> 13.33333333 | I5: =_xlfn.FORMULATEXT(H5) -> =(1-C5/C4)/(C6-C5)
B6: Cost of Capital | C6: 0.1 | D6: =C6 -> 0.1
B7: DPO | C7: =1-(C5/C4) -> 0.6666666667 | D7: =1-(D5/D4) -> 0.8333333333
B8: BookValue per share | C8: 1.9
C10: 1 | D10: 2 | E10: 3 | F10: 4 | G10: 5 | H10: 6 | I10: 7 | J10: 8 | K10: 9 | L10: 10 | M10: 11 | N10: 12 | O10: 13 | P10: 14 | Q10: 15 | R10: 16 | S10: 17 | T10: 18 | U10: 19 | V10: 20 | W10: 21 | X10: 22 | Y10: 23 | Z10: 24 | AA10: 25 | AB10: 26 | AC10: 27 | AD10: 28 | AE10: 29 | AF10: 30 | AG10: 31 | AH10: 32 | AI10: 33 | AJ10: 34 | AK10: 35 | AL10: 36 | AM10: 37 | AN10: 38 | AO10: 39 | AP10: 40 | AQ10: 41 | AR10: 42 | AS10: 43 | AT10: 44 | AU10: 45 | AV10: 46 | AW10: 47 | AX10: 48 | AY10: 49 | AZ10: 50 | BA10: 51 | BB10: 52 | BC10: 53 | BD10: 54 | BE10: 55 | BF10: 56 | BG10: 57 | BH10: 58 | BI10: 59 | BJ10: 60 | BK10: 61 | BL10: 62 | BM10: 63 | BN10: 64 | BO10: 65 | BP10: 66 | BQ10: 67 | BR10: 68 | BS10: 69 | BT10: 70 | BU10: 71 | BV10: 72 | BW10: 73 | BX10: 74 | BY10: 75 | BZ10: 76 | CA10: 77 | CB10: 78 | CC10: 79 | CD10: 80 | CE10: 81 | CF10: 82 | CG10: 83 | CH10: 84 | CI10: 85 | CJ10: 86 | CK10: 87 | CL10: 88 | CM10: 89 | CN10: 90 | CO10: 91 | CP10: 92 | CQ10: 93 | CR10: 94 | CS10: 95 | CT10: 96 | CU10: 97 | CV10: 98 | CW10: 99 | CX10: 100 | CY10: 101 | CZ10: 102 | DA10: 103 | DB10: 104 | DC10: 105 | DD10: 106 | DE10: 107 | DF10: 108 | DG10: 109 | DH10: 110 | DI10: 111 | DJ10: 112 | DK10: 113 | DL10: 114 | DM10: 115 | DN10: 116 | DO10: 117 | DP10: 118 | DQ10: 119 | DR10: 120 | DS10: 121 | DT10: 122 | DU10: 123 | DV10: 124 | DW10: 125 | DX10: 126 | DY10: 127 | DZ10: 128 | EA10: 129 | EB10: 130 | EC10: 131 | ED10: 132 | EE10: 133 | EF10: 134 | EG10: 135 | EH10: 136 | EI10: 137 | EJ10: 138 | EK10: 139 | EL10: 140 | EM10: 141 | EN10: 142 | EO10: 143 | EP10: 144 | EQ10: 145 | ER10: 146 | ES10: 147 | ET10: 148 | EU10: 149 | EV10: 150 | EW10: 151 | EX10: 152 | EY10: 153 | EZ10: 154 | FA10: 155 | FB10: 156 | FC10: 157 | FD10: 158 | FE10: 159 | FF10: 160 | FG10: 161 | FH10: 162 | FI10: 163 | FJ10: 164 | FK10: 165 | FL10: 166 | FM10: 167 | FN10: 168 | FO10: 169 | FP10: 170 | FQ10: 171 | FR10: 172 | FS10: 173 | FT10: 174 | FU10: 175 | FV10: 176 | FW10: 177 | FX10: 178 | FY10: 179 | FZ10: 180 | GA10: 181 | GB10: 182 | GC10: 183 | GD10: 184 | GE10: 185 | GF10: 186 | GG10: 187 | GH10: 188 | GI10: 189 | GJ10: 190 | GK10: 191 | GL10: 192 | GM10: 193 | GN10: 194 | GO10: 195 | GP10: 196 | GQ10: 197 | GR10: 198 | GS10: 199 | GT10: 200 | GU10: 201 | GV10: 202 | GW10: 203 | GX10: 204 | GY10: 205 | GZ10: 206 | HA10: 207 | HB10: 208 | HC10: 209 | HD10: 210 | HE10: 211 | HF10: 212 | HG10: 213 | HH10: 214 | HI10: 215 | HJ10: 216 | HK10: 217 | HL10: 218 | HM10: 219 | HN10: 220 | HO10: 221 | HP10: 222 | HQ10: 223 | HR10: 224 | HS10: 225 | HT10: 226 | HU10: 227 | HV10: 228 | HW10: 229 | HX10: 230 | HY10: 231 | HZ10: 232 | IA10: 233 | IB10: 234 | IC10: 235 | ID10: 236 | IE10: 237 | IF10: 238 | IG10: 239 | IH10: 240 | II10: 241 | IJ10: 242 | IK10: 243 | IL10: 244 | IM10: 245 | IN10: 246 | IO10: 247 | IP10: 248 | IQ10: 249 | IR10: 250 | IS10: 251 | IT10: 252 | IU10: 253 | IV10: 254 | IW10: 255 | IX10: 256 | IY10: 257 | IZ10: 258 | JA10: 259 | JB10: 260 | JC10: 261 | JD10: 262 | JE10: 263 | JF10: 264 | JG10: 265 | JH10: 266 | JI10: 267 | JJ10: 268 | JK10: 269 | JL10: 270 | JM10: 271 | JN10: 272 | JO10: 273 | JP10: 274 | JQ10: 275 | JR10: 276 | JS10: 277 | JT10: 278 | JU10: 279 | JV10: 280 | JW10: 281 | JX10: 282 | JY10: 283 | JZ10: 284 | KA10: 285 | KB10: 286 | KC10: 287 | KD10: 288 | KE10: 289 | KF10: 290 | KG10: 291 | KH10: 292 | KI10: 293 | KJ10: 294 | KK10: 295 | KL10: 296 | KM10: 297 | KN10: 298 | KO10: 299 | KP10: 300
B12: Company growth | C12: 0.2
B13: Real growth | C13: 0.01
B14: Population growth | C14: 0.027
B15: Population | C15: 4300 | D15: =C15*(1+$C$14) -> 4416.1 | E15: 4535.3347 | F15: 4657.788737 | G15: 4783.549033 | H15: 4912.704857 | I15: 5045.347888 | J15: 5181.572281 | K15: 5321.474732 | L15: 5465.15455 | M15: 5612.713723 | N15: 5764.256994 | O15: 5919.891932 | P15: 6079.729015 | Q15: 6243.881698 | R15: 6412.466504 | S15: 6585.603099 | T15: 6763.414383 | U15: 6946.026571 | V15: 7133.569289 | W15: 7326.17566 | X15: 7523.982402 | Y15: 7727.129927 | Z15: 7935.762435 | AA15: 8150.028021 | AB15: 8370.078778 | AC15: 8596.070905 | AD15: 8828.164819 | AE15: 9066.525269 | AF15: 9311.321451 | AG15: 9562.727131 | AH15: 9820.920763 | AI15: 10086.08562 | AJ15: 10358.40994 | AK15: 10638.087 | AL15: 10925.31535 | AM15: 11220.29887 | AN15: 11523.24694 | AO15: 11834.3746 | AP15: 12153.90272 | AQ15: 12482.05809 | AR15: 12819.07366 | AS15: 13165.18865 | AT15: 13520.64874 | AU15: 13885.70626 | AV15: 14260.62033 | AW15: 14645.65708 | AX15: 15041.08982 | AY15: 15447.19924 | AZ15: 15864.27362 | BA15: 16292.60901 | BB15: 16732.50945 | BC15: 17184.28721 | BD15: 17648.26296 | BE15: 18124.76606 | BF15: 18614.13475 | BG15: 19116.71639 | BH15: 19632.86773 | BI15: 20162.95516 | BJ15: 20707.35495 | BK15: 21266.45353 | BL15: 21840.64777 | BM15: 22430.34526 | BN15: 23035.96459 | BO15: 23657.93563 | BP15: =BO15*(1+$C$14) -> 24296.69989 | BQ15: 24952.71079 | BR15: 25626.43398 | BS15: 26318.3477 | BT15: 27028.94309 | BU15: 27758.72455 | BV15: 28508.21011 | BW15: 29277.93179 | BX15: 30068.43594 | BY15: 30880.28371 | BZ15: 31714.05137 | CA15: 32570.33076 | CB15: 33449.72969 | CC15: 34352.87239 | CD15: 35280.39995 | CE15: 36232.97075 | CF15: 37211.26096 | CG15: 38215.965 | CH15: 39247.79606 | CI15: 40307.48655 | CJ15: 41395.78869 | CK15: 42513.47498 | CL15: 43661.33881 | CM15: 44840.19495 | CN15: 46050.88022 | CO15: 47294.25398 | CP15: 48571.19884 | CQ15: 49882.62121 | CR15: 51229.45198 | CS15: 52612.64719 | CT15: 54033.18866 | CU15: 55492.08476 | CV15: 56990.37104 | CW15: 58529.11106 | CX15: 60109.39706 | CY15: 61732.35078 | CZ15: 63399.12425 | DA15: 65110.90061 | DB15: 66868.89492 | DC15: 68674.35509 | DD15: 70528.56267 | DE15: 72432.83387 | DF15: 74388.52038 | DG15: 76397.01043 | DH15: 78459.72971 | DI15: 80578.14241 | DJ15: 82753.75226 | DK15: 84988.10357 | DL15: 87282.78237 | DM15: 89639.41749 | DN15: 92059.68176 | DO15: 94545.29317 | DP15: 97098.01609 | DQ15: 99719.66252 | DR15: 102412.0934 | DS15: 105177.2199 | DT15: 108017.0049 | DU15: 110933.464 | DV15: 113928.6675 | DW15: 117004.7416 | DX15: 120163.8696 | DY15: 123408.2941 | DZ15: 126740.318 | EA15: 130162.3066 | EB15: =EA15*(1+$C$14) -> 133676.6889 | EC15: 137285.9595 | ED15: 140992.6804 | EE15: 144799.4827 | EF15: 148709.0688 | EG15: 152724.2136 | EH15: 156847.7674 | EI15: 161082.6571 | EJ15: 165431.8888 | EK15: 169898.5498 | EL15: 174485.8107 | EM15: 179196.9276 | EN15: 184035.2446 | EO15: 189004.1962 | EP15: 194107.3095 | EQ15: 199348.2069 | ER15: 204730.6085 | ES15: 210258.3349 | ET15: 215935.3099 | EU15: 221765.5633 | EV15: 227753.2335 | EW15: 233902.5708 | EX15: 240217.9402 | EY15: 246703.8246 | EZ15: 253364.8279 | FA15: 260205.6782 | FB15: 267231.2316 | FC15: 274446.4748 | FD15: 281856.5296 | FE15: 289466.6559 | FF15: 297282.2556 | FG15: 305308.8765 | FH15: 313552.2162 | FI15: 322018.126 | FJ15: 330712.6154 | FK15: 339641.8561 | FL15: 348812.1862 | FM15: 358230.1152 | FN15: 367902.3283 | FO15: 377835.6912 | FP15: 388037.2548 | FQ15: 398514.2607 | FR15: 409274.1458 | FS15: 420324.5477 | FT15: 431673.3105 | FU15: 443328.4899 | FV15: 455298.3591 | FW15: 467591.4148 | FX15: 480216.383 | FY15: 493182.2253 | FZ15: 506498.1454 | GA15: 520173.5953 | GB15: 534218.2824 | GC15: 548642.176 | GD15: 563455.5148 | GE15: 578668.8137 | GF15: 594292.8717 | GG15: 610338.7792 | GH15: 626817.9262 | GI15: 643742.0102 | GJ15: 661123.0445 | GK15: 678973.3667 | GL15: 697305.6476 | GM15: 716132.9001 | GN15: =GM15*(1+$C$14) -> 735468.4884 | GO15: 755326.1376 | GP15: 775719.9433 | GQ15: 796664.3818 | GR15: 818174.3201 | GS15: 840265.0267 | GT15: 862952.1825 | GU15: 886251.8914 | GV15: 910180.6924 | GW15: 934755.5711 | GX15: 959993.9716 | GY15: 985913.8088 | GZ15: 1012533.482 | HA15: 1039871.886 | HB15: 1067948.427 | HC15: 1096783.034 | HD15: 1126396.176 | HE15: 1156808.873 | HF15: 1188042.712 | HG15: 1220119.866 | HH15: 1253063.102 | HI15: 1286895.806 | HJ15: 1321641.992 | HK15: 1357326.326 | HL15: 1393974.137 | HM15: 1431611.439 | HN15: 1470264.948 | HO15: 1509962.101 | HP15: 1550731.078 | HQ15: 1592600.817 | HR15: 1635601.039 | HS15: 1679762.267 | HT15: 1725115.848 | HU15: 1771693.976 | HV15: 1819529.714 | HW15: 1868657.016 | HX15: 1919110.755 | HY15: 1970926.746 | HZ15: 2024141.768 | IA15: 2078793.596 | IB15: 2134921.023 | IC15: 2192563.89 | ID15: 2251763.115 | IE15: 2312560.719 | IF15: 2374999.859 | IG15: 2439124.855 | IH15: 2504981.226 | II15: 2572615.719 | IJ15: 2642076.344 | IK15: 2713412.405 | IL15: 2786674.54 | IM15: 2861914.752 | IN15: 2939186.451 | IO15: 3018544.485 | IP15: 3100045.186 | IQ15: 3183746.406 | IR15: 3269707.559 | IS15: 3357989.663 | IT15: 3448655.384 | IU15: 3541769.079 | IV15: 3637396.844 | IW15: 3735606.559 | IX15: 3836467.936 | IY15: 3940052.571 | IZ15: =IY15*(1+$C$14) -> 4046433.99 | JA15: 4155687.708 | JB15: 4267891.276 | JC15: 4383124.34 | JD15: 4501468.697 | JE15: 4623008.352 | JF15: 4747829.578 | JG15: 4876020.976 | JH15: 5007673.543 | JI15: 5142880.728 | JJ15: 5281738.508 | JK15: 5424345.448 | JL15: 5570802.775 | JM15: 5721214.45 | JN15: 5875687.24 | JO15: 6034330.795 | JP15: 6197257.727 | JQ15: 6364583.686 | JR15: 6536427.445 | JS15: 6712910.986 | JT15: 6894159.583 | JU15: 7080301.891 | JV15: 7271470.042 | JW15: 7467799.734 | JX15: 7669430.326 | JY15: 7876504.945 | JZ15: 8089170.579 | KA15: 8307578.184 | KB15: 8531882.795 | KC15: 8762243.631 | KD15: 8998824.209 | KE15: 9241792.462 | KF15: 9491320.859 | KG15: 9747586.522 | KH15: 10010771.36 | KI15: 10281062.18 | KJ15: 10558650.86 | KK15: 10843734.44 | KL15: 11136515.27 | KM15: 11437201.18 | KN15: 11746005.61 | KO15: 12063147.76 | KP15: 12388852.75
B16: GDP | C16: 7600 | D16: =C16*(1+$C$14)*(1+$C$13) -> 7883.252 | E16: 8177.060802 | F16: 8481.819858 | G16: 8797.937284 | H16: 9125.836407 | I16: 9465.95633 | J16: 9818.752522 | K16: 10184.69743 | L16: 10564.2811 | M16: 10958.01186 | N16: 11366.41696 | O16: 11790.04332 | P16: 12229.45824 | Q16: 12685.25014 | R16: 13158.02942 | S16: 13648.42917 | T16: 14157.10613 | U16: 14684.74147 | V16: 15232.04179 | W16: 15799.73999 | X16: 16388.59629 | Y16: 16999.39928 | Z16: 17632.96689 | AA16: 18290.14757 | AB16: 18971.82137 | AC16: 19678.90115 | AD16: 20412.33379 | AE16: 21173.10147 | AF16: 21962.22297 | AG16: 22780.75502 | AH16: 23629.79376 | AI16: 24510.47617 | AJ16: 25423.98162 | AK16: 26371.53341 | AL16: 27354.40046 | AM16: 28373.89897 | AN16: 29431.39418 | AO16: 30528.30224 | AP16: 31666.09207 | AQ16: 32846.28732 | AR16: 34070.46845 | AS16: 35340.2748 | AT16: 36657.40685 | AU16: 38023.6284 | AV16: 39440.76903 | AW16: 40910.72649 | AX16: 42435.46927 | AY16: 44017.03921 | AZ16: 45657.55426 | BA16: 47359.21131 | BB16: 49124.28911 | BC16: 50955.15137 | BD16: 52854.24986 | BE16: 54824.12775 | BF16: 56867.42299 | BG16: 58986.87185 | BH16: 61185.31256 | BI16: 63465.68916 | BJ16: 65831.05539 | BK16: 68284.57883 | BL16: 70829.54508 | BM16: 73469.36223 | BN16: 76207.56536 | BO16: 79047.82132 | BP16: =BO16*(1+$C$14)*(1+$C$13) -> 81993.93362 | BQ16: 85049.84752 | BR16: 88219.65534 | BS16: 91507.6019 | BT16: 94918.09022 | BU16: 98455.68744 | BV16: 102125.1309 | BW16: 105931.3345 | BX16: 109879.3954 | BY16: 113974.6004 | BZ16: 118222.4338 | CA16: 122628.5839 | CB16: 127198.9512 | CC16: 131939.6561 | CD16: 136857.0471 | CE16: 141957.7093 | CF16: 147248.4731 | CG16: 152736.4237 | CH16: 158428.9102 | CI16: 164333.5557 | CJ16: 170458.2673 | CK16: 176811.2469 | CL16: 183401.0021 | CM16: 190236.3575 | CN16: 197326.4665 | CO16: 204680.8239 | CP16: 212309.2782 | CQ16: 220222.045 | CR16: 228429.7206 | CS16: 236943.2963 | CT16: 245774.173 | CU16: 254934.1764 | CV16: 264435.5731 | CW16: 274291.087 | CX16: 284513.9158 | CY16: 295117.7494 | CZ16: 306116.7879 | DA16: 317525.7606 | DB16: 329359.9457 | DC16: 341635.1909 | DD16: 354367.9345 | DE16: 367575.2274 | DF16: 381274.7561 | DG16: 395484.8663 | DH16: 410224.5872 | DI16: 425513.6576 | DJ16: 441372.5516 | DK16: 457822.5066 | DL16: 474885.5514 | DM16: 492584.5359 | DN16: 510943.1616 | DO16: 529986.0132 | DP16: 549738.5919 | DQ16: 570227.3493 | DR16: 591479.7226 | DS16: 613524.1718 | DT16: 636390.2177 | DU16: 660108.4811 | DV16: 684710.7242 | DW16: 710229.8929 | DX16: 736700.161 | DY16: 764156.976 | DZ16: 792637.1065 | EA16: 822178.6915 | EB16: =EA16*(1+$C$14)*(1+$C$13) -> 852821.2913 | EC16: 884605.9408 | ED16: 917575.2042 | EE16: 951773.2321 | EF16: 987245.8205 | EG16: 1024040.472 | EH16: 1062206.461 | EI16: 1101794.895 | EJ16: 1142858.791 | EK16: 1185453.138 | EL16: 1229634.977 | EM16: 1275463.472 | EN16: 1322999.996 | EO16: 1372308.206 | EP16: 1423454.133 | EQ16: 1476506.268 | ER16: 1531535.657 | ES16: 1588615.991 | ET16: 1647823.709 | EU16: 1709238.098 | EV16: 1772941.402 | EW16: 1839018.928 | EX16: 1907559.164 | EY16: 1978653.894 | EZ16: 2052398.324 | FA16: 2128891.21 | FB16: 2208234.985 | FC16: 2290535.903 | FD16: 2375904.176 | FE16: 2464454.125 | FF16: 2556304.33 | FG16: 2651577.793 | FH16: 2750402.097 | FI16: 2852909.583 | FJ16: 2959237.523 | FK16: 3069528.306 | FL16: 3183929.626 | FM16: 3302594.683 | FN16: 3425682.387 | FO16: 3553357.569 | FP16: 3685791.206 | FQ16: 3823160.644 | FR16: 3965649.841 | FS16: 4113449.611 | FT16: 4266757.878 | FU16: 4425779.944 | FV16: 4590728.762 | FW16: 4761825.223 | FX16: 4939298.449 | FY16: 5123386.103 | FZ16: 5314334.703 | GA16: 5512399.957 | GB16: 5717847.103 | GC16: 5930951.265 | GD16: 6151997.819 | GE16: 6381282.777 | GF16: 6619113.187 | GG16: 6865807.535 | GH16: 7121696.182 | GI16: 7387121.798 | GJ16: 7662439.828 | GK16: 7948018.96 | GL16: 8244241.627 | GM16: 8551504.512 | GN16: =GM16*(1+$C$14)*(1+$C$13) -> 8870219.086 | GO16: 9200812.151 | GP16: 9543726.42 | GQ16: 9899421.103 | GR16: 10268372.53 | GS16: 10651074.77 | GT16: 11048040.33 | GU16: 11459800.79 | GV16: 11886907.57 | GW16: 12329932.61 | GX16: 12789469.2 | GY16: 13266132.72 | GZ16: 13760561.48 | HA16: 14273417.61 | HB16: 14805387.89 | HC16: 15357184.69 | HD16: 15929546.97 | HE16: 16523241.18 | HF16: 17139062.38 | HG16: 17777835.23 | HH16: 18440415.15 | HI16: 19127689.43 | HJ16: 19840578.41 | HK16: 20580036.77 | HL16: 21347054.74 | HM16: 22142659.47 | HN16: 22967916.39 | HO16: 23823930.63 | HP16: 24711848.53 | HQ16: 25632859.12 | HR16: 26588195.78 | HS16: 27579137.84 | HT16: 28607012.3 | HU16: 29673195.65 | HV16: 30779115.65 | HW16: 31926253.29 | HX16: 33116144.75 | HY16: 34350383.47 | HZ16: 35630622.26 | IA16: 36958575.55 | IB16: 38336021.66 | IC16: 39764805.19 | ID16: 41246839.48 | IE16: 42784109.19 | IF16: 44378672.94 | IG16: 46032666.08 | IH16: 47748303.54 | II16: 49527882.82 | IJ16: 51373787.01 | IK16: 53288488.05 | IL16: 55274550 | IM16: 57334632.48 | IN16: 59471494.23 | IO16: 61687996.82 | IP16: 63987108.46 | IQ16: 66371908 | IR16: 68845589.01 | IS16: 71411464.11 | IT16: 74072969.38 | IU16: 76833668.94 | IV16: 79697259.79 | IW16: 82667576.66 | IX16: 85748597.24 | IY16: 88944447.46 | IZ16: =IY16*(1+$C$14)*(1+$C$13) -> 92259407.02 | JA16: 95697915.12 | JB16: 99264576.41 | JC16: 102964167.2 | JD16: 106801641.7 | JE16: 110782138.9 | JF16: 114910989.2 | JG16: 119193721.8 | JH16: 123636071.8 | JI16: 128243988.2 | JJ16: 133023641.6 | JK16: 137981432.7 | JL16: 143124000.7 | JM16: 148458232.2 | JN16: 153991270.5 | JO16: 159730525.2 | JP16: 165683681.9 | JQ16: 171858712.7 | JR16: 178263886.9 | JS16: 184907782 | JT16: 191799295 | JU16: 198947654.7 | JV16: 206362433.8 | JW16: 214053561.7 | JX16: 222031338 | JY16: 230306445.9 | JZ16: 238889967.2 | KA16: 247793396.3 | KB16: 257028656.1 | KC16: 266608114.2 | KD16: 276544598.6 | KE16: 286851415.8 | KF16: 297542368 | KG16: 308631772.1 | KH16: 320134478.2 | KI16: 332065890.2 | KJ16: 344441986 | KK16: 357279338.8 | KL16: 370595139.7 | KM16: 384407220.6 | KN16: 398734077.7 | KO16: 413594896.8 | KP16: 429009578.6
B17: Revenues | C17: =33/0.9 -> 36.66666667 | D17: =C17*(1+$C$12) -> 44 | E17: 52.8 | F17: 63.36 | G17: 76.032 | H17: 91.2384 | I17: 109.48608 | J17: 131.383296 | K17: 157.6599552 | L17: 189.1919462 | M17: 227.0303355 | N17: 272.4364026 | O17: 326.9236831 | P17: 392.3084197 | Q17: 470.7701037 | R17: 564.9241244 | S17: 677.9089493 | T17: 813.4907391 | U17: 976.188887 | V17: 1171.426664 | W17: 1405.711997 | X17: 1686.854397 | Y17: 2024.225276 | Z17: 2429.070331 | AA17: 2914.884397 | AB17: 3497.861277 | AC17: 4197.433532 | AD17: 5036.920239 | AE17: 6044.304287 | AF17: 7253.165144 | AG17: 8703.798173 | AH17: 10444.55781 | AI17: 12533.46937 | AJ17: 15040.16324 | AK17: 18048.19589 | AL17: 21657.83507 | AM17: 25989.40208 | AN17: 31187.2825 | AO17: 37424.739 | AP17: 44909.6868 | AQ17: 53891.62416 | AR17: 64669.94899 | AS17: 77603.93879 | AT17: 93124.72655 | AU17: 111749.6719 | AV17: 134099.6062 | AW17: 160919.5275 | AX17: 193103.433 | AY17: 231724.1196 | AZ17: 278068.9435 | BA17: 333682.7322 | BB17: 400419.2786 | BC17: 480503.1343 | BD17: 576603.7612 | BE17: 691924.5134 | BF17: 830309.4161 | BG17: 996371.2993 | BH17: 1195645.559 | BI17: 1434774.671 | BJ17: 1721729.605 | BK17: 2066075.526 | BL17: 2479290.632 | BM17: 2975148.758 | BN17: 3570178.509 | BO17: 4284214.211 | BP17: =BO17*(1+$C$12) -> 5141057.054 | BQ17: 6169268.464 | BR17: 7403122.157 | BS17: 8883746.589 | BT17: 10660495.91 | BU17: 12792595.09 | BV17: 15351114.11 | BW17: 18421336.93 | BX17: 22105604.31 | BY17: 26526725.17 | BZ17: 31832070.21 | CA17: 38198484.25 | CB17: 45838181.1 | CC17: 55005817.32 | CD17: 66006980.78 | CE17: 79208376.94 | CF17: 95050052.33 | CG17: 114060062.8 | CH17: 136872075.4 | CI17: 164246490.4 | CJ17: 197095788.5 | CK17: 236514946.2 | CL17: 283817935.5 | CM17: 340581522.5 | CN17: 408697827.1 | CO17: 490437392.5 | CP17: 588524871 | CQ17: 706229845.1 | CR17: 847475814.2 | CS17: 1016970977 | CT17: 1220365172 | CU17: 1464438207 | CV17: 1757325848 | CW17: 2108791018 | CX17: 2530549222 | CY17: 3036659066 | CZ17: 3643990879 | DA17: 4372789055 | DB17: 5247346866 | DC17: 6296816239 | DD17: 7556179487 | DE17: 9067415384 | DF17: 1.088089846e+10 | DG17: 1.305707815e+10 | DH17: 1.566849378e+10 | DI17: 1.880219254e+10 | DJ17: 2.256263105e+10 | DK17: 2.707515726e+10 | DL17: 3.249018871e+10 | DM17: 3.898822645e+10 | DN17: 4.678587174e+10 | DO17: 5.614304609e+10 | DP17: 6.737165531e+10 | DQ17: 8.084598637e+10 | DR17: 9.701518364e+10 | DS17: 1.164182204e+11 | DT17: 1.397018644e+11 | DU17: 1.676422373e+11 | DV17: 2.011706848e+11 | DW17: 2.414048218e+11 | DX17: 2.896857861e+11 | DY17: 3.476229433e+11 | DZ17: 4.17147532e+11 | EA17: 5.005770384e+11 | EB17: =EA17*(1+$C$12) -> 6.006924461e+11 | EC17: 7.208309353e+11 | ED17: 8.649971224e+11 | EE17: 1.037996547e+12 | EF17: 1.245595856e+12 | EG17: 1.494715027e+12 | EH17: 1.793658033e+12 | EI17: 2.15238964e+12 | EJ17: 2.582867567e+12 | EK17: 3.099441081e+12 | EL17: 3.719329297e+12 | EM17: 4.463195157e+12 | EN17: 5.355834188e+12 | EO17: 6.427001025e+12 | EP17: 7.71240123e+12 | EQ17: 9.254881477e+12 | ER17: 1.110585777e+13 | ES17: 1.332702933e+13 | ET17: 1.599243519e+13 | EU17: 1.919092223e+13 | EV17: 2.302910668e+13 | EW17: 2.763492801e+13 | EX17: 3.316191361e+13 | EY17: 3.979429634e+13 | EZ17: 4.77531556e+13 | FA17: 5.730378672e+13 | FB17: 6.876454407e+13 | FC17: 8.251745288e+13 | FD17: 9.902094346e+13 | FE17: 1.188251322e+14 | FF17: 1.425901586e+14 | FG17: 1.711081903e+14 | FH17: 2.053298284e+14 | FI17: 2.46395794e+14 | FJ17: 2.956749528e+14 | FK17: 3.548099434e+14 | FL17: 4.257719321e+14 | FM17: 5.109263185e+14 | FN17: 6.131115822e+14 | FO17: 7.357338986e+14 | FP17: 8.828806784e+14 | FQ17: 1059456814028206 | FR17: 1.271348177e+15 | FS17: 1.525617812e+15 | FT17: 1830741374640740 | FU17: 2196889649568888 | FV17: 2.636267579e+15 | FW17: 3.163521095e+15 | FX17: 3796225314455038 | FY17: 4555470377346045 | FZ17: 5466564452815254 | GA17: 6559877343378305 | GB17: 7871852812053966 | GC17: 9446223374464758 | GD17: 1.133546805e+16 | GE17: 1.360256166e+16 | GF17: 1.632307399e+16 | GG17: 1.958768879e+16 | GH17: 2.350522655e+16 | GI17: 2.820627186e+16 | GJ17: 3.384752623e+16 | GK17: 4.061703147e+16 | GL17: 4.874043777e+16 | GM17: 5.848852532e+16 | GN17: =GM17*(1+$C$12) -> 7.018623039e+16 | GO17: 8.422347646e+16 | GP17: 1.010681718e+17 | GQ17: 1.212818061e+17 | GR17: 1.455381673e+17 | GS17: 1.746458008e+17 | GT17: 2.09574961e+17 | GU17: 2.514899531e+17 | GV17: 3.017879438e+17 | GW17: 3.621455325e+17 | GX17: 4.34574639e+17 | GY17: 5.214895668e+17 | GZ17: 6.257874802e+17 | HA17: 7.509449762e+17 | HB17: 9.011339715e+17 | HC17: 1.081360766e+18 | HD17: 1.297632919e+18 | HE17: 1.557159503e+18 | HF17: 1.868591403e+18 | HG17: 2.242309684e+18 | HH17: 2.690771621e+18 | HI17: 3.228925945e+18 | HJ17: 3.874711134e+18 | HK17: 4.649653361e+18 | HL17: 5.579584033e+18 | HM17: 6.695500839e+18 | HN17: 8.034601007e+18 | HO17: 9.641521209e+18 | HP17: 1.156982545e+19 | HQ17: 1.388379054e+19 | HR17: 1.666054865e+19 | HS17: 1.999265838e+19 | HT17: 2.399119005e+19 | HU17: 2.878942806e+19 | HV17: 3.454731368e+19 | HW17: 4.145677641e+19 | HX17: 4.97481317e+19 | HY17: 5.969775804e+19 | HZ17: 7.163730964e+19 | IA17: 8.596477157e+19 | IB17: 1.031577259e+20 | IC17: 1.237892711e+20 | ID17: 1.485471253e+20 | IE17: 1.782565503e+20 | IF17: 2.139078604e+20 | IG17: 2.566894325e+20 | IH17: 3.08027319e+20 | II17: 3.696327828e+20 | IJ17: 4.435593393e+20 | IK17: 5.322712072e+20 | IL17: 6.387254486e+20 | IM17: 7.664705383e+20 | IN17: 9.19764646e+20 | IO17: 1.103717575e+21 | IP17: 1.32446109e+21 | IQ17: 1.589353308e+21 | IR17: 1.90722397e+21 | IS17: 2.288668764e+21 | IT17: 2.746402517e+21 | IU17: 3.29568302e+21 | IV17: 3.954819624e+21 | IW17: 4.745783549e+21 | IX17: 5.694940259e+21 | IY17: 6.83392831e+21 | IZ17: =IY17*(1+$C$12) -> 8.200713972e+21 | JA17: 9.840856767e+21 | JB17: 1.180902812e+22 | JC17: 1.417083374e+22 | JD17: 1.700500049e+22 | JE17: 2.040600059e+22 | JF17: 2.448720071e+22 | JG17: 2.938464085e+22 | JH17: 3.526156902e+22 | JI17: 4.231388283e+22 | JJ17: 5.077665939e+22 | JK17: 6.093199127e+22 | JL17: 7.311838953e+22 | JM17: 8.774206743e+22 | JN17: 1.052904809e+23 | JO17: 1.263485771e+23 | JP17: 1.516182925e+23 | JQ17: 1.81941951e+23 | JR17: 2.183303412e+23 | JS17: 2.619964095e+23 | JT17: 3.143956914e+23 | JU17: 3.772748296e+23 | JV17: 4.527297956e+23 | JW17: 5.432757547e+23 | JX17: 6.519309056e+23 | JY17: 7.823170868e+23 | JZ17: 9.387805041e+23 | KA17: 1.126536605e+24 | KB17: 1.351843926e+24 | KC17: 1.622212711e+24 | KD17: 1.946655253e+24 | KE17: 2.335986304e+24 | KF17: 2.803183565e+24 | KG17: 3.363820278e+24 | KH17: 4.036584333e+24 | KI17: 4.8439012e+24 | KJ17: 5.81268144e+24 | KK17: 6.975217728e+24 | KL17: 8.370261273e+24 | KM17: 1.004431353e+25 | KN17: 1.205317623e+25 | KO17: 1.446381148e+25 | KP17: 1.735657378e+25
